{"text_format":"3","workbook":"xlsx","n_sheets":39,"sheets":["leeg invulscherm2","leeg inputscherm","keuzelijst Andere","Inhoudstafel","technische fiche","basisgegevens","keuzelijst assistent","keuzelijst huishouden","keuzelijst zorgaanbieder","keuzelijst vervoer","keuzelijst bijstand","invulscherm1","individuele bedragen","jaarkalender","grafiek","vrijwilliger","jobstudent","assistent","deeleconomie","zelfstandige","gezins- en thuiszorg","dienstencheques","wijkwerkcheques","vergunde zorgaanbieders","vervoer","bijstandsorganisaties","Blad4","Blad2","Blad1","jaartabel","alg","alg2","opmerkingen","overzichten","jaarkalender eenheden","Blad3","Budgetplan OL","absoluut","pab"],"not_rendered":{"images":33,"macros":1,"defined_names":1,"comments":2},"read":"whole","date_system":"1900"}

{"sheet":"leeg invulscherm2","index":0,"n_rows":45,"n_cols":24,"rows_kept":45,"hidden":true,"merged":[[3,9,4,16],[5,0,6,0],[5,1,6,1],[5,5,6,5],[5,7,6,7],[5,8,6,8],[5,9,6,9],[5,10,6,10],[5,11,6,11],[5,12,6,12],[5,13,5,14],[5,16,6,16],[5,18,6,18],[5,19,6,19]]}
[{"$nulls":13},4]
[]
[{"$nulls":3},2,9," ",2,4,null,11,12,13,null,6,7,null,17,16,null,14]
[null," ",{"$nulls":7},"Tarieven:"]
[]
["Initialisatie lijn","Aard ondersteuning",{"$nulls":3},"Naam:",null,"Eenheid:","Gemiddeld maandaantal","Minimum","Maximum","Richtprijs","Reële prijs","Factor",null,"Raming kostprijs","exta kosten per jaar",null,"op budget?","jaarlimiet"]
[{"$nulls":13},1,2,null,null,"op budget?"]
[null,"  Assistenten",{"$nulls":11},{"$f":"IF(ISERROR(VLOOKUP(C8,basisgegevens!$A$1:$AB$50,$N$3,FALSE)),\"\",IF(VLOOKUP(C8,basisgegevens!$A$1:$AB$50,$N$3,FALSE)=0,\"\",VLOOKUP(C8,basisgegevens!$A$1:$AB$50,$N$3,FALSE)))","v":""}]
[null,null,{"$f":"IF('keuzelijst assistent'!$B$1=\"\",\"\",CONCATENATE('keuzelijst assistent'!$B$1))","v":""},{"$f":"IF(ISERROR(VLOOKUP(C9,basisgegevens!$A$1:$AB$50,$D$3,FALSE)),\"\",VLOOKUP(C9,basisgegevens!$A$1:$AB$404,$D$3,FALSE))","v":""},{"$f":"IF(ISERROR(VLOOKUP(C9,basisgegevens!$A$1:$ZL$50,$E$3,FALSE)),\"\",VLOOKUP(C9,basisgegevens!$A$1:$AB$50,$E$3,FALSE))","v":""},null,{"$f":"IF(C9=\"\",\"\",CONCATENATE(D9,\"  \",F9))","v":""},{"$f":"IF(ISERROR(VLOOKUP(C9,basisgegevens!$A$1:$AB$50,$H$3,FALSE)),\"\",VLOOKUP(C9,basisgegevens!$A$1:$AB$50,$H$3,FALSE))","v":""},null,{"$f":"IF(ISERROR(VLOOKUP(C9,basisgegevens!$A$1:$AB$50,$J$3,FALSE)),\"\",VLOOKUP(C9,basisgegevens!$A$1:$AB$50,$J$3,FALSE))","v":""},{"$f":"IF(ISERROR(VLOOKUP(C9,basisgegevens!$A$1:$AB$50,$K$3,FALSE)),\"\",VLOOKUP(C9,basisgegevens!$A$1:$AB$50,$K$3,FALSE))","v":""},{"$f":"IF(ISERROR(VLOOKUP(C9,basisgegevens!$A$1:$AB$50,$L$3,FALSE)),\"\",VLOOKUP(C9,basisgegevens!$A$1:$AB$50,$L$3,FALSE))","v":""},{"$f":"IF(L9=\"\",\"\",L9)","v":""},{"$f":"IF(ISERROR(VLOOKUP(C9,basisgegevens!$A$1:$AB$50,$N$3,FALSE)),\"\",IF(VLOOKUP(C9,basisgegevens!$A$1:$AB$50,$N$3,FALSE)=0,\"\",VLOOKUP(C9,basisgegevens!$A$1:$AB$50,$N$3,FALSE)))","v":""},{"$f":"IF(ISERROR(VLOOKUP(C9,basisgegevens!$A$1:$AB$50,$O$3,FALSE)),\"\",VLOOKUP(C9,basisgegevens!$A$1:$AB$50,$O$3,FALSE))","v":""},{"$f":"IF(M9=\"\",\"\",IF(M9=0,0,IF(N9=\"+\",M9+O9,IF(N9=\"*\",M9*O9,M9))))","v":""},{"$f":"IF(ISERROR(VLOOKUP(C9,basisgegevens!$A$1:$AB$50,$Q$3,FALSE)),\"\",VLOOKUP(C9,basisgegevens!$A$1:$AB$50,$Q$3,FALSE))","v":""},{"$f":"IF(ISERROR(VLOOKUP(C9,basisgegevens!$A$1:$AB$50,$R$3,FALSE)),\"\",VLOOKUP(C9,basisgegevens!$A$1:$AB$409,$R$3,FALSE))","v":""},{"$f":"R9","v":""},{"$f":"IF(ISERROR(VLOOKUP(C9,basisgegevens!$A$1:$AB$50,$T$3,FALSE)),\"\",VLOOKUP(C9,basisgegevens!$A$1:$AB$409,$T$3,FALSE))","v":""}]
[null,null,{"$f":"IF('keuzelijst assistent'!$C$1=\"\",\"\",CONCATENATE('keuzelijst assistent'!$C$1))","v":""},{"$f":"IF(ISERROR(VLOOKUP(C10,basisgegevens!$A$1:$AB$50,$D$3,FALSE)),\"\",VLOOKUP(C10,basisgegevens!$A$1:$AB$404,$D$3,FALSE))","v":""},{"$f":"IF(ISERROR(VLOOKUP(C10,basisgegevens!$A$1:$ZL$50,$E$3,FALSE)),\"\",VLOOKUP(C10,basisgegevens!$A$1:$AB$50,$E$3,FALSE))","v":""},null,{"$f":"IF(C10=\"\",\"\",CONCATENATE(D10,\"  \",F10))","v":""},{"$f":"IF(ISERROR(VLOOKUP(C10,basisgegevens!$A$1:$AB$50,$H$3,FALSE)),\"\",VLOOKUP(C10,basisgegevens!$A$1:$AB$50,$H$3,FALSE))","v":""},null,{"$f":"IF(ISERROR(VLOOKUP(C10,basisgegevens!$A$1:$AB$50,$J$3,FALSE)),\"\",VLOOKUP(C10,basisgegevens!$A$1:$AB$50,$J$3,FALSE))","v":""},{"$f":"IF(ISERROR(VLOOKUP(C10,basisgegevens!$A$1:$AB$50,$K$3,FALSE)),\"\",VLOOKUP(C10,basisgegevens!$A$1:$AB$50,$K$3,FALSE))","v":""},{"$f":"IF(ISERROR(VLOOKUP(C10,basisgegevens!$A$1:$AB$50,$L$3,FALSE)),\"\",VLOOKUP(C10,basisgegevens!$A$1:$AB$50,$L$3,FALSE))","v":""},{"$f":"IF(L10=\"\",\"\",L10)","v":""},{"$f":"IF(ISERROR(VLOOKUP(C10,basisgegevens!$A$1:$AB$50,$N$3,FALSE)),\"\",IF(VLOOKUP(C10,basisgegevens!$A$1:$AB$50,$N$3,FALSE)=0,\"\",VLOOKUP(C10,basisgegevens!$A$1:$AB$50,$N$3,FALSE)))","v":""},{"$f":"IF(ISERROR(VLOOKUP(C10,basisgegevens!$A$1:$AB$50,$O$3,FALSE)),\"\",VLOOKUP(C10,basisgegevens!$A$1:$AB$50,$O$3,FALSE))","v":""},{"$f":"IF(M10=\"\",\"\",IF(M10=0,0,IF(N10=\"+\",M10+O10,IF(N10=\"*\",M10*O10,M10))))","v":""},{"$f":"IF(ISERROR(VLOOKUP(C10,basisgegevens!$A$1:$AB$50,$Q$3,FALSE)),\"\",VLOOKUP(C10,basisgegevens!$A$1:$AB$50,$Q$3,FALSE))","v":""},{"$f":"IF(ISERROR(VLOOKUP(C10,basisgegevens!$A$1:$AB$50,$R$3,FALSE)),\"\",VLOOKUP(C10,basisgegevens!$A$1:$AB$409,$R$3,FALSE))","v":""},{"$f":"R10","v":""},{"$f":"IF(ISERROR(VLOOKUP(C10,basisgegevens!$A$1:$AB$50,$T$3,FALSE)),\"\",VLOOKUP(C10,basisgegevens!$A$1:$AB$409,$T$3,FALSE))","v":""},{"$nulls":3}," "]
[null,null,{"$f":"IF('keuzelijst assistent'!$D$1=\"\",\"\",CONCATENATE('keuzelijst assistent'!$D$1))","v":""},{"$f":"IF(ISERROR(VLOOKUP(C11,basisgegevens!$A$1:$AB$50,$D$3,FALSE)),\"\",VLOOKUP(C11,basisgegevens!$A$1:$AB$404,$D$3,FALSE))","v":""},{"$f":"IF(ISERROR(VLOOKUP(C11,basisgegevens!$A$1:$ZL$50,$E$3,FALSE)),\"\",VLOOKUP(C11,basisgegevens!$A$1:$AB$50,$E$3,FALSE))","v":""},null,"",{"$f":"IF(ISERROR(VLOOKUP(C11,basisgegevens!$A$1:$AB$50,$H$3,FALSE)),\"\",VLOOKUP(C11,basisgegevens!$A$1:$AB$50,$H$3,FALSE))","v":""},null,{"$f":"IF(ISERROR(VLOOKUP(C11,basisgegevens!$A$1:$AB$50,$J$3,FALSE)),\"\",VLOOKUP(C11,basisgegevens!$A$1:$AB$50,$J$3,FALSE))","v":""},{"$f":"IF(ISERROR(VLOOKUP(C11,basisgegevens!$A$1:$AB$50,$K$3,FALSE)),\"\",VLOOKUP(C11,basisgegevens!$A$1:$AB$50,$K$3,FALSE))","v":""},{"$f":"IF(ISERROR(VLOOKUP(C11,basisgegevens!$A$1:$AB$50,$L$3,FALSE)),\"\",VLOOKUP(C11,basisgegevens!$A$1:$AB$50,$L$3,FALSE))","v":""},"",{"$f":"IF(ISERROR(VLOOKUP(C11,basisgegevens!$A$1:$AB$50,$N$3,FALSE)),\"\",IF(VLOOKUP(C11,basisgegevens!$A$1:$AB$50,$N$3,FALSE)=0,\"\",VLOOKUP(C11,basisgegevens!$A$1:$AB$50,$N$3,FALSE)))","v":""},{"$f":"IF(ISERROR(VLOOKUP(C11,basisgegevens!$A$1:$AB$50,$O$3,FALSE)),\"\",VLOOKUP(C11,basisgegevens!$A$1:$AB$50,$O$3,FALSE))","v":""},"",{"$f":"IF(ISERROR(VLOOKUP(C11,basisgegevens!$A$1:$AB$50,$Q$3,FALSE)),\"\",VLOOKUP(C11,basisgegevens!$A$1:$AB$50,$Q$3,FALSE))","v":""},{"$f":"IF(ISERROR(VLOOKUP(C11,basisgegevens!$A$1:$AB$50,$R$3,FALSE)),\"\",VLOOKUP(C11,basisgegevens!$A$1:$AB$409,$R$3,FALSE))","v":""},"",{"$f":"IF(ISERROR(VLOOKUP(C11,basisgegevens!$A$1:$AB$50,$T$3,FALSE)),\"\",VLOOKUP(C11,basisgegevens!$A$1:$AB$409,$T$3,FALSE))","v":""}]
[null,null,{"$f":"IF('keuzelijst assistent'!$E$1=\"\",\"\",CONCATENATE('keuzelijst assistent'!$E$1))","v":""},{"$f":"IF(ISERROR(VLOOKUP(C12,basisgegevens!$A$1:$AB$50,$D$3,FALSE)),\"\",VLOOKUP(C12,basisgegevens!$A$1:$AB$404,$D$3,FALSE))","v":""},{"$f":"IF(ISERROR(VLOOKUP(C12,basisgegevens!$A$1:$ZL$50,$E$3,FALSE)),\"\",VLOOKUP(C12,basisgegevens!$A$1:$AB$50,$E$3,FALSE))","v":""},null,"",{"$f":"IF(ISERROR(VLOOKUP(C12,basisgegevens!$A$1:$AB$50,$H$3,FALSE)),\"\",VLOOKUP(C12,basisgegevens!$A$1:$AB$50,$H$3,FALSE))","v":""},null,{"$f":"IF(ISERROR(VLOOKUP(C12,basisgegevens!$A$1:$AB$50,$J$3,FALSE)),\"\",VLOOKUP(C12,basisgegevens!$A$1:$AB$50,$J$3,FALSE))","v":""},{"$f":"IF(ISERROR(VLOOKUP(C12,basisgegevens!$A$1:$AB$50,$K$3,FALSE)),\"\",VLOOKUP(C12,basisgegevens!$A$1:$AB$50,$K$3,FALSE))","v":""},{"$f":"IF(ISERROR(VLOOKUP(C12,basisgegevens!$A$1:$AB$50,$L$3,FALSE)),\"\",VLOOKUP(C12,basisgegevens!$A$1:$AB$50,$L$3,FALSE))","v":""},"",{"$f":"IF(ISERROR(VLOOKUP(C12,basisgegevens!$A$1:$AB$50,$N$3,FALSE)),\"\",IF(VLOOKUP(C12,basisgegevens!$A$1:$AB$50,$N$3,FALSE)=0,\"\",VLOOKUP(C12,basisgegevens!$A$1:$AB$50,$N$3,FALSE)))","v":""},{"$f":"IF(ISERROR(VLOOKUP(C12,basisgegevens!$A$1:$AB$50,$O$3,FALSE)),\"\",VLOOKUP(C12,basisgegevens!$A$1:$AB$50,$O$3,FALSE))","v":""},"",{"$f":"IF(ISERROR(VLOOKUP(C12,basisgegevens!$A$1:$AB$50,$Q$3,FALSE)),\"\",VLOOKUP(C12,basisgegevens!$A$1:$AB$50,$Q$3,FALSE))","v":""},{"$f":"IF(ISERROR(VLOOKUP(C12,basisgegevens!$A$1:$AB$50,$R$3,FALSE)),\"\",VLOOKUP(C12,basisgegevens!$A$1:$AB$409,$R$3,FALSE))","v":""},"",{"$f":"IF(ISERROR(VLOOKUP(C12,basisgegevens!$A$1:$AB$50,$T$3,FALSE)),\"\",VLOOKUP(C12,basisgegevens!$A$1:$AB$409,$T$3,FALSE))","v":""}]
[null,null,{"$f":"IF('keuzelijst assistent'!$F$1=\"\",\"\",CONCATENATE('keuzelijst assistent'!$F$1))","v":""},{"$f":"IF(ISERROR(VLOOKUP(C13,basisgegevens!$A$1:$AB$50,$D$3,FALSE)),\"\",VLOOKUP(C13,basisgegevens!$A$1:$AB$404,$D$3,FALSE))","v":""},{"$f":"IF(ISERROR(VLOOKUP(C13,basisgegevens!$A$1:$ZL$50,$E$3,FALSE)),\"\",VLOOKUP(C13,basisgegevens!$A$1:$AB$50,$E$3,FALSE))","v":""},null,"",{"$f":"IF(ISERROR(VLOOKUP(C13,basisgegevens!$A$1:$AB$50,$H$3,FALSE)),\"\",VLOOKUP(C13,basisgegevens!$A$1:$AB$50,$H$3,FALSE))","v":""},null,{"$f":"IF(ISERROR(VLOOKUP(C13,basisgegevens!$A$1:$AB$50,$J$3,FALSE)),\"\",VLOOKUP(C13,basisgegevens!$A$1:$AB$50,$J$3,FALSE))","v":""},{"$f":"IF(ISERROR(VLOOKUP(C13,basisgegevens!$A$1:$AB$50,$K$3,FALSE)),\"\",VLOOKUP(C13,basisgegevens!$A$1:$AB$50,$K$3,FALSE))","v":""},{"$f":"IF(ISERROR(VLOOKUP(C13,basisgegevens!$A$1:$AB$50,$L$3,FALSE)),\"\",VLOOKUP(C13,basisgegevens!$A$1:$AB$50,$L$3,FALSE))","v":""},"",{"$f":"IF(ISERROR(VLOOKUP(C13,basisgegevens!$A$1:$AB$50,$N$3,FALSE)),\"\",IF(VLOOKUP(C13,basisgegevens!$A$1:$AB$50,$N$3,FALSE)=0,\"\",VLOOKUP(C13,basisgegevens!$A$1:$AB$50,$N$3,FALSE)))","v":""},{"$f":"IF(ISERROR(VLOOKUP(C13,basisgegevens!$A$1:$AB$50,$O$3,FALSE)),\"\",VLOOKUP(C13,basisgegevens!$A$1:$AB$50,$O$3,FALSE))","v":""},"",{"$f":"IF(ISERROR(VLOOKUP(C13,basisgegevens!$A$1:$AB$50,$Q$3,FALSE)),\"\",VLOOKUP(C13,basisgegevens!$A$1:$AB$50,$Q$3,FALSE))","v":""},{"$f":"IF(ISERROR(VLOOKUP(C13,basisgegevens!$A$1:$AB$50,$R$3,FALSE)),\"\",VLOOKUP(C13,basisgegevens!$A$1:$AB$409,$R$3,FALSE))","v":""},"",{"$f":"IF(ISERROR(VLOOKUP(C13,basisgegevens!$A$1:$AB$50,$T$3,FALSE)),\"\",VLOOKUP(C13,basisgegevens!$A$1:$AB$409,$T$3,FALSE))","v":""}]
[null,null,{"$f":"IF('keuzelijst assistent'!$G$1=\"\",\"\",CONCATENATE('keuzelijst assistent'!$G$1))","v":""},{"$f":"IF(ISERROR(VLOOKUP(C14,basisgegevens!$A$1:$AB$50,$D$3,FALSE)),\"\",VLOOKUP(C14,basisgegevens!$A$1:$AB$404,$D$3,FALSE))","v":""},{"$f":"IF(ISERROR(VLOOKUP(C14,basisgegevens!$A$1:$ZL$50,$E$3,FALSE)),\"\",VLOOKUP(C14,basisgegevens!$A$1:$AB$50,$E$3,FALSE))","v":""},null,"",{"$f":"IF(ISERROR(VLOOKUP(C14,basisgegevens!$A$1:$AB$50,$H$3,FALSE)),\"\",VLOOKUP(C14,basisgegevens!$A$1:$AB$50,$H$3,FALSE))","v":""},null,{"$f":"IF(ISERROR(VLOOKUP(C14,basisgegevens!$A$1:$AB$50,$J$3,FALSE)),\"\",VLOOKUP(C14,basisgegevens!$A$1:$AB$50,$J$3,FALSE))","v":""},{"$f":"IF(ISERROR(VLOOKUP(C14,basisgegevens!$A$1:$AB$50,$K$3,FALSE)),\"\",VLOOKUP(C14,basisgegevens!$A$1:$AB$50,$K$3,FALSE))","v":""},{"$f":"IF(ISERROR(VLOOKUP(C14,basisgegevens!$A$1:$AB$50,$L$3,FALSE)),\"\",VLOOKUP(C14,basisgegevens!$A$1:$AB$50,$L$3,FALSE))","v":""},"",{"$f":"IF(ISERROR(VLOOKUP(C14,basisgegevens!$A$1:$AB$50,$N$3,FALSE)),\"\",IF(VLOOKUP(C14,basisgegevens!$A$1:$AB$50,$N$3,FALSE)=0,\"\",VLOOKUP(C14,basisgegevens!$A$1:$AB$50,$N$3,FALSE)))","v":""},{"$f":"IF(ISERROR(VLOOKUP(C14,basisgegevens!$A$1:$AB$50,$O$3,FALSE)),\"\",VLOOKUP(C14,basisgegevens!$A$1:$AB$50,$O$3,FALSE))","v":""},"",{"$f":"IF(ISERROR(VLOOKUP(C14,basisgegevens!$A$1:$AB$50,$Q$3,FALSE)),\"\",VLOOKUP(C14,basisgegevens!$A$1:$AB$50,$Q$3,FALSE))","v":""},{"$f":"IF(ISERROR(VLOOKUP(C14,basisgegevens!$A$1:$AB$50,$R$3,FALSE)),\"\",VLOOKUP(C14,basisgegevens!$A$1:$AB$409,$R$3,FALSE))","v":""},"",{"$f":"IF(ISERROR(VLOOKUP(C14,basisgegevens!$A$1:$AB$50,$T$3,FALSE)),\"\",VLOOKUP(C14,basisgegevens!$A$1:$AB$409,$T$3,FALSE))","v":""}]
[null,null,{"$f":"IF('keuzelijst assistent'!$H$1=\"\",\"\",CONCATENATE('keuzelijst assistent'!$H$1))","v":""},{"$f":"IF(ISERROR(VLOOKUP(C15,basisgegevens!$A$1:$AB$50,$D$3,FALSE)),\"\",VLOOKUP(C15,basisgegevens!$A$1:$AB$404,$D$3,FALSE))","v":""},{"$f":"IF(ISERROR(VLOOKUP(C15,basisgegevens!$A$1:$ZL$50,$E$3,FALSE)),\"\",VLOOKUP(C15,basisgegevens!$A$1:$AB$50,$E$3,FALSE))","v":""},null,"",{"$f":"IF(ISERROR(VLOOKUP(C15,basisgegevens!$A$1:$AB$50,$H$3,FALSE)),\"\",VLOOKUP(C15,basisgegevens!$A$1:$AB$50,$H$3,FALSE))","v":""},null,{"$f":"IF(ISERROR(VLOOKUP(C15,basisgegevens!$A$1:$AB$50,$J$3,FALSE)),\"\",VLOOKUP(C15,basisgegevens!$A$1:$AB$50,$J$3,FALSE))","v":""},{"$f":"IF(ISERROR(VLOOKUP(C15,basisgegevens!$A$1:$AB$50,$K$3,FALSE)),\"\",VLOOKUP(C15,basisgegevens!$A$1:$AB$50,$K$3,FALSE))","v":""},{"$f":"IF(ISERROR(VLOOKUP(C15,basisgegevens!$A$1:$AB$50,$L$3,FALSE)),\"\",VLOOKUP(C15,basisgegevens!$A$1:$AB$50,$L$3,FALSE))","v":""},"",{"$f":"IF(ISERROR(VLOOKUP(C15,basisgegevens!$A$1:$AB$50,$N$3,FALSE)),\"\",IF(VLOOKUP(C15,basisgegevens!$A$1:$AB$50,$N$3,FALSE)=0,\"\",VLOOKUP(C15,basisgegevens!$A$1:$AB$50,$N$3,FALSE)))","v":""},{"$f":"IF(ISERROR(VLOOKUP(C15,basisgegevens!$A$1:$AB$50,$O$3,FALSE)),\"\",VLOOKUP(C15,basisgegevens!$A$1:$AB$50,$O$3,FALSE))","v":""},"",{"$f":"IF(ISERROR(VLOOKUP(C15,basisgegevens!$A$1:$AB$50,$Q$3,FALSE)),\"\",VLOOKUP(C15,basisgegevens!$A$1:$AB$50,$Q$3,FALSE))","v":""},{"$f":"IF(ISERROR(VLOOKUP(C15,basisgegevens!$A$1:$AB$50,$R$3,FALSE)),\"\",VLOOKUP(C15,basisgegevens!$A$1:$AB$409,$R$3,FALSE))","v":""},"",{"$f":"IF(ISERROR(VLOOKUP(C15,basisgegevens!$A$1:$AB$50,$T$3,FALSE)),\"\",VLOOKUP(C15,basisgegevens!$A$1:$AB$409,$T$3,FALSE))","v":""}]
[null,null,{"$f":"IF('keuzelijst assistent'!$I$1=\"\",\"\",CONCATENATE('keuzelijst assistent'!$I$1))","v":""},{"$f":"IF(ISERROR(VLOOKUP(C16,basisgegevens!$A$1:$AB$50,$D$3,FALSE)),\"\",VLOOKUP(C16,basisgegevens!$A$1:$AB$404,$D$3,FALSE))","v":""},{"$f":"IF(ISERROR(VLOOKUP(C16,basisgegevens!$A$1:$ZL$50,$E$3,FALSE)),\"\",VLOOKUP(C16,basisgegevens!$A$1:$AB$50,$E$3,FALSE))","v":""},null,"",{"$f":"IF(ISERROR(VLOOKUP(C16,basisgegevens!$A$1:$AB$50,$H$3,FALSE)),\"\",VLOOKUP(C16,basisgegevens!$A$1:$AB$50,$H$3,FALSE))","v":""},null,{"$f":"IF(ISERROR(VLOOKUP(C16,basisgegevens!$A$1:$AB$50,$J$3,FALSE)),\"\",VLOOKUP(C16,basisgegevens!$A$1:$AB$50,$J$3,FALSE))","v":""},{"$f":"IF(ISERROR(VLOOKUP(C16,basisgegevens!$A$1:$AB$50,$K$3,FALSE)),\"\",VLOOKUP(C16,basisgegevens!$A$1:$AB$50,$K$3,FALSE))","v":""},{"$f":"IF(ISERROR(VLOOKUP(C16,basisgegevens!$A$1:$AB$50,$L$3,FALSE)),\"\",VLOOKUP(C16,basisgegevens!$A$1:$AB$50,$L$3,FALSE))","v":""},"",{"$f":"IF(ISERROR(VLOOKUP(C16,basisgegevens!$A$1:$AB$50,$N$3,FALSE)),\"\",IF(VLOOKUP(C16,basisgegevens!$A$1:$AB$50,$N$3,FALSE)=0,\"\",VLOOKUP(C16,basisgegevens!$A$1:$AB$50,$N$3,FALSE)))","v":""},{"$f":"IF(ISERROR(VLOOKUP(C16,basisgegevens!$A$1:$AB$50,$O$3,FALSE)),\"\",VLOOKUP(C16,basisgegevens!$A$1:$AB$50,$O$3,FALSE))","v":""},"",{"$f":"IF(ISERROR(VLOOKUP(C16,basisgegevens!$A$1:$AB$50,$Q$3,FALSE)),\"\",VLOOKUP(C16,basisgegevens!$A$1:$AB$50,$Q$3,FALSE))","v":""},{"$f":"IF(ISERROR(VLOOKUP(C16,basisgegevens!$A$1:$AB$50,$R$3,FALSE)),\"\",VLOOKUP(C16,basisgegevens!$A$1:$AB$409,$R$3,FALSE))","v":""},"",{"$f":"IF(ISERROR(VLOOKUP(C16,basisgegevens!$A$1:$AB$50,$T$3,FALSE)),\"\",VLOOKUP(C16,basisgegevens!$A$1:$AB$409,$T$3,FALSE))","v":""}]
[null,null,{"$f":"IF('keuzelijst assistent'!$J$1=\"\",\"\",CONCATENATE('keuzelijst assistent'!$J$1))","v":""},{"$f":"IF(ISERROR(VLOOKUP(C17,basisgegevens!$A$1:$AB$50,$D$3,FALSE)),\"\",VLOOKUP(C17,basisgegevens!$A$1:$AB$404,$D$3,FALSE))","v":""},{"$f":"IF(ISERROR(VLOOKUP(C17,basisgegevens!$A$1:$ZL$50,$E$3,FALSE)),\"\",VLOOKUP(C17,basisgegevens!$A$1:$AB$50,$E$3,FALSE))","v":""},null,"",{"$f":"IF(ISERROR(VLOOKUP(C17,basisgegevens!$A$1:$AB$50,$H$3,FALSE)),\"\",VLOOKUP(C17,basisgegevens!$A$1:$AB$50,$H$3,FALSE))","v":""},null,{"$f":"IF(ISERROR(VLOOKUP(C17,basisgegevens!$A$1:$AB$50,$J$3,FALSE)),\"\",VLOOKUP(C17,basisgegevens!$A$1:$AB$50,$J$3,FALSE))","v":""},{"$f":"IF(ISERROR(VLOOKUP(C17,basisgegevens!$A$1:$AB$50,$K$3,FALSE)),\"\",VLOOKUP(C17,basisgegevens!$A$1:$AB$50,$K$3,FALSE))","v":""},{"$f":"IF(ISERROR(VLOOKUP(C17,basisgegevens!$A$1:$AB$50,$L$3,FALSE)),\"\",VLOOKUP(C17,basisgegevens!$A$1:$AB$50,$L$3,FALSE))","v":""},"",{"$f":"IF(ISERROR(VLOOKUP(C17,basisgegevens!$A$1:$AB$50,$N$3,FALSE)),\"\",IF(VLOOKUP(C17,basisgegevens!$A$1:$AB$50,$N$3,FALSE)=0,\"\",VLOOKUP(C17,basisgegevens!$A$1:$AB$50,$N$3,FALSE)))","v":""},{"$f":"IF(ISERROR(VLOOKUP(C17,basisgegevens!$A$1:$AB$50,$O$3,FALSE)),\"\",VLOOKUP(C17,basisgegevens!$A$1:$AB$50,$O$3,FALSE))","v":""},"",{"$f":"IF(ISERROR(VLOOKUP(C17,basisgegevens!$A$1:$AB$50,$Q$3,FALSE)),\"\",VLOOKUP(C17,basisgegevens!$A$1:$AB$50,$Q$3,FALSE))","v":""},{"$f":"IF(ISERROR(VLOOKUP(C17,basisgegevens!$A$1:$AB$50,$R$3,FALSE)),\"\",VLOOKUP(C17,basisgegevens!$A$1:$AB$409,$R$3,FALSE))","v":""},"",{"$f":"IF(ISERROR(VLOOKUP(C17,basisgegevens!$A$1:$AB$50,$T$3,FALSE)),\"\",VLOOKUP(C17,basisgegevens!$A$1:$AB$409,$T$3,FALSE))","v":""}]
[null,null,{"$f":"IF('keuzelijst assistent'!$K$1=\"\",\"\",CONCATENATE('keuzelijst assistent'!$K$1))","v":""},{"$f":"IF(ISERROR(VLOOKUP(C18,basisgegevens!$A$1:$AB$50,$D$3,FALSE)),\"\",VLOOKUP(C18,basisgegevens!$A$1:$AB$404,$D$3,FALSE))","v":""},{"$f":"IF(ISERROR(VLOOKUP(C18,basisgegevens!$A$1:$ZL$50,$E$3,FALSE)),\"\",VLOOKUP(C18,basisgegevens!$A$1:$AB$50,$E$3,FALSE))","v":""},null,"",{"$f":"IF(ISERROR(VLOOKUP(C18,basisgegevens!$A$1:$AB$50,$H$3,FALSE)),\"\",VLOOKUP(C18,basisgegevens!$A$1:$AB$50,$H$3,FALSE))","v":""},null,{"$f":"IF(ISERROR(VLOOKUP(C18,basisgegevens!$A$1:$AB$50,$J$3,FALSE)),\"\",VLOOKUP(C18,basisgegevens!$A$1:$AB$50,$J$3,FALSE))","v":""},{"$f":"IF(ISERROR(VLOOKUP(C18,basisgegevens!$A$1:$AB$50,$K$3,FALSE)),\"\",VLOOKUP(C18,basisgegevens!$A$1:$AB$50,$K$3,FALSE))","v":""},{"$f":"IF(ISERROR(VLOOKUP(C18,basisgegevens!$A$1:$AB$50,$L$3,FALSE)),\"\",VLOOKUP(C18,basisgegevens!$A$1:$AB$50,$L$3,FALSE))","v":""},"",{"$f":"IF(ISERROR(VLOOKUP(C18,basisgegevens!$A$1:$AB$50,$N$3,FALSE)),\"\",IF(VLOOKUP(C18,basisgegevens!$A$1:$AB$50,$N$3,FALSE)=0,\"\",VLOOKUP(C18,basisgegevens!$A$1:$AB$50,$N$3,FALSE)))","v":""},{"$f":"IF(ISERROR(VLOOKUP(C18,basisgegevens!$A$1:$AB$50,$O$3,FALSE)),\"\",VLOOKUP(C18,basisgegevens!$A$1:$AB$50,$O$3,FALSE))","v":""},"",{"$f":"IF(ISERROR(VLOOKUP(C18,basisgegevens!$A$1:$AB$50,$Q$3,FALSE)),\"\",VLOOKUP(C18,basisgegevens!$A$1:$AB$50,$Q$3,FALSE))","v":""},{"$f":"IF(ISERROR(VLOOKUP(C18,basisgegevens!$A$1:$AB$50,$R$3,FALSE)),\"\",VLOOKUP(C18,basisgegevens!$A$1:$AB$409,$R$3,FALSE))","v":""},"",{"$f":"IF(ISERROR(VLOOKUP(C18,basisgegevens!$A$1:$AB$50,$T$3,FALSE)),\"\",VLOOKUP(C18,basisgegevens!$A$1:$AB$409,$T$3,FALSE))","v":""}]
[null,null,{"$f":"IF('keuzelijst assistent'!$L1=\"\",\"\",CONCATENATE('keuzelijst assistent'!$L$1))","v":""},{"$f":"IF(ISERROR(VLOOKUP(C19,basisgegevens!$A$1:$AB$50,$D$3,FALSE)),\"\",VLOOKUP(C19,basisgegevens!$A$1:$AB$404,$D$3,FALSE))","v":""},{"$f":"IF(ISERROR(VLOOKUP(C19,basisgegevens!$A$1:$ZL$50,$E$3,FALSE)),\"\",VLOOKUP(C19,basisgegevens!$A$1:$AB$50,$E$3,FALSE))","v":""},null,"",{"$f":"IF(ISERROR(VLOOKUP(C19,basisgegevens!$A$1:$AB$50,$H$3,FALSE)),\"\",VLOOKUP(C19,basisgegevens!$A$1:$AB$50,$H$3,FALSE))","v":""},null,{"$f":"IF(ISERROR(VLOOKUP(C19,basisgegevens!$A$1:$AB$50,$J$3,FALSE)),\"\",VLOOKUP(C19,basisgegevens!$A$1:$AB$50,$J$3,FALSE))","v":""},{"$f":"IF(ISERROR(VLOOKUP(C19,basisgegevens!$A$1:$AB$50,$K$3,FALSE)),\"\",VLOOKUP(C19,basisgegevens!$A$1:$AB$50,$K$3,FALSE))","v":""},{"$f":"IF(ISERROR(VLOOKUP(C19,basisgegevens!$A$1:$AB$50,$L$3,FALSE)),\"\",VLOOKUP(C19,basisgegevens!$A$1:$AB$50,$L$3,FALSE))","v":""},"",{"$f":"IF(ISERROR(VLOOKUP(C19,basisgegevens!$A$1:$AB$50,$N$3,FALSE)),\"\",IF(VLOOKUP(C19,basisgegevens!$A$1:$AB$50,$N$3,FALSE)=0,\"\",VLOOKUP(C19,basisgegevens!$A$1:$AB$50,$N$3,FALSE)))","v":""},{"$f":"IF(ISERROR(VLOOKUP(C19,basisgegevens!$A$1:$AB$50,$O$3,FALSE)),\"\",VLOOKUP(C19,basisgegevens!$A$1:$AB$50,$O$3,FALSE))","v":""},"",{"$f":"IF(ISERROR(VLOOKUP(C19,basisgegevens!$A$1:$AB$50,$Q$3,FALSE)),\"\",VLOOKUP(C19,basisgegevens!$A$1:$AB$50,$Q$3,FALSE))","v":""},{"$f":"IF(ISERROR(VLOOKUP(C19,basisgegevens!$A$1:$AB$50,$R$3,FALSE)),\"\",VLOOKUP(C19,basisgegevens!$A$1:$AB$409,$R$3,FALSE))","v":""},"",{"$f":"IF(ISERROR(VLOOKUP(C19,basisgegevens!$A$1:$AB$50,$T$3,FALSE)),\"\",VLOOKUP(C19,basisgegevens!$A$1:$AB$409,$T$3,FALSE))","v":""}]
[null,null,{"$f":"IF('keuzelijst assistent'!$B12=\"\",\"\",CONCATENATE('keuzelijst assistent'!$B12))","v":""},{"$nulls":3},{"$f":"IF(C20=\"\",\"\",CONCATENATE(D20,\"  \",F20))","v":""},{"$f":"IF(ISERROR(VLOOKUP(C20,basisgegevens!$A$1:$AB$50,$H$3,FALSE)),\"\",VLOOKUP(C20,basisgegevens!$A$1:$AB$50,$H$3,FALSE))","v":""},{"$nulls":4},"",{"$f":"IF(ISERROR(VLOOKUP(C20,basisgegevens!$A$1:$AB$50,$N$3,FALSE)),\"\",IF(VLOOKUP(C20,basisgegevens!$A$1:$AB$50,$N$3,FALSE)=0,\"\",VLOOKUP(C20,basisgegevens!$A$1:$AB$50,$N$3,FALSE)))","v":""},{"$f":"IF(ISERROR(VLOOKUP(C20,basisgegevens!$A$1:$AB$50,$O$3,FALSE)),\"\",VLOOKUP(C20,basisgegevens!$A$1:$AB$50,$O$3,FALSE))","v":""},"",{"$nulls":3},{"$f":"IF(ISERROR(VLOOKUP(C20,basisgegevens!$A$1:$AB$50,$T$3,FALSE)),\"\",VLOOKUP(C20,basisgegevens!$A$1:$AB$409,$T$3,FALSE))","v":""}]
[null,"  Huishouden, verzorging",{"$f":"IF('keuzelijst assistent'!$B13=\"\",\"\",CONCATENATE('keuzelijst assistent'!$B13))","v":""},{"$nulls":3},{"$f":"IF(C21=\"\",\"\",CONCATENATE(D21,\"  \",F21))","v":""},{"$nulls":5},"",{"$nulls":6},{"$f":"IF(ISERROR(VLOOKUP(C21,basisgegevens!$A$1:$AB$50,$T$3,FALSE)),\"\",VLOOKUP(C21,basisgegevens!$A$1:$AB$409,$T$3,FALSE))","v":""}]
[null,null,{"$f":"IF('keuzelijst huishouden'!$B$1=\"\",\"\",CONCATENATE('keuzelijst huishouden'!$B$1+13))","v":""},{"$f":"IF(ISERROR(VLOOKUP(C22,basisgegevens!$A$1:$AB$50,$D$3,FALSE)),\"\",VLOOKUP(C22,basisgegevens!$A$1:$AB$404,$D$3,FALSE))","v":""},{"$f":"IF(ISERROR(VLOOKUP(C22,basisgegevens!$A$1:$ZL$50,$E$3,FALSE)),\"\",VLOOKUP(C22,basisgegevens!$A$1:$AB$50,$E$3,FALSE))","v":""},null,{"$f":"IF(C22=\"\",\"\",CONCATENATE(D22,\"  \",F22))","v":""},{"$f":"IF(ISERROR(VLOOKUP(C22,basisgegevens!$A$1:$AB$50,$H$3,FALSE)),\"\",VLOOKUP(C22,basisgegevens!$A$1:$AB$50,$H$3,FALSE))","v":""},null,{"$f":"IF(ISERROR(VLOOKUP(C22,basisgegevens!$A$1:$AB$50,$J$3,FALSE)),\"\",VLOOKUP(C22,basisgegevens!$A$1:$AB$50,$J$3,FALSE))","v":""},{"$f":"IF(ISERROR(VLOOKUP(C22,basisgegevens!$A$1:$AB$50,$K$3,FALSE)),\"\",VLOOKUP(C22,basisgegevens!$A$1:$AB$50,$K$3,FALSE))","v":""},null,"",{"$f":"IF(ISERROR(VLOOKUP(C22,basisgegevens!$A$1:$AB$50,$N$3,FALSE)),\"\",VLOOKUP(C22,basisgegevens!$A$1:$AB$50,$N$3,FALSE))","v":""},{"$f":"IF(ISERROR(VLOOKUP(C22,basisgegevens!$A$1:$AB$50,$O$3,FALSE)),\"\",VLOOKUP(C22,basisgegevens!$A$1:$AB$50,$O$3,FALSE))","v":""},{"$f":"IF(M22=\"\",\"\",IF(M22=0,0,IF(N22=\"+\",M22+O22,IF(N22=\"*\",M22*O22,M22))))","v":""},{"$f":"IF(ISERROR(VLOOKUP(C22,basisgegevens!$A$1:$AB$50,$Q$3,FALSE)),\"\",VLOOKUP(C22,basisgegevens!$A$1:$AB$50,$Q$3,FALSE))","v":""},{"$f":"IF(ISERROR(VLOOKUP(C22,basisgegevens!$A$1:$AB$50,$R$3,FALSE)),\"\",VLOOKUP(C22,basisgegevens!$A$1:$AB$409,$R$3,FALSE))","v":""},{"$f":"R22","v":""},{"$f":"IF(ISERROR(VLOOKUP(C22,basisgegevens!$A$1:$AB$50,$T$3,FALSE)),\"\",VLOOKUP(C22,basisgegevens!$A$1:$AB$409,$T$3,FALSE))","v":""}]
[null,null,{"$f":"IF('keuzelijst huishouden'!$C$1=\"\",\"\",CONCATENATE('keuzelijst huishouden'!$C$1+13))","v":""},{"$f":"IF(ISERROR(VLOOKUP(C23,basisgegevens!$A$1:$AB$50,$D$3,FALSE)),\"\",VLOOKUP(C23,basisgegevens!$A$1:$AB$404,$D$3,FALSE))","v":""},{"$f":"IF(ISERROR(VLOOKUP(C23,basisgegevens!$A$1:$ZL$50,$E$3,FALSE)),\"\",VLOOKUP(C23,basisgegevens!$A$1:$AB$50,$E$3,FALSE))","v":""},null,"",{"$f":"IF(ISERROR(VLOOKUP(C23,basisgegevens!$A$1:$AB$50,$H$3,FALSE)),\"\",VLOOKUP(C23,basisgegevens!$A$1:$AB$50,$H$3,FALSE))","v":""},null,{"$f":"IF(ISERROR(VLOOKUP(C23,basisgegevens!$A$1:$AB$50,$J$3,FALSE)),\"\",VLOOKUP(C23,basisgegevens!$A$1:$AB$50,$J$3,FALSE))","v":""},{"$f":"IF(ISERROR(VLOOKUP(C23,basisgegevens!$A$1:$AB$50,$K$3,FALSE)),\"\",VLOOKUP(C23,basisgegevens!$A$1:$AB$50,$K$3,FALSE))","v":""},null,"",{"$f":"IF(ISERROR(VLOOKUP(C23,basisgegevens!$A$1:$AB$50,$N$3,FALSE)),\"\",VLOOKUP(C23,basisgegevens!$A$1:$AB$50,$N$3,FALSE))","v":""},{"$f":"IF(ISERROR(VLOOKUP(C23,basisgegevens!$A$1:$AB$50,$O$3,FALSE)),\"\",VLOOKUP(C23,basisgegevens!$A$1:$AB$50,$O$3,FALSE))","v":""},{"$f":"IF(M23=\"\",\"\",IF(M23=0,0,IF(N23=\"+\",M23+O23,IF(N23=\"*\",M23*O23,M23))))","v":""},{"$f":"IF(ISERROR(VLOOKUP(C23,basisgegevens!$A$1:$AB$50,$Q$3,FALSE)),\"\",VLOOKUP(C23,basisgegevens!$A$1:$AB$50,$Q$3,FALSE))","v":""},{"$f":"IF(ISERROR(VLOOKUP(C23,basisgegevens!$A$1:$AB$50,$R$3,FALSE)),\"\",VLOOKUP(C23,basisgegevens!$A$1:$AB$409,$R$3,FALSE))","v":""},"",{"$f":"IF(ISERROR(VLOOKUP(C23,basisgegevens!$A$1:$AB$50,$T$3,FALSE)),\"\",VLOOKUP(C23,basisgegevens!$A$1:$AB$409,$T$3,FALSE))","v":""}]
[null,null,{"$f":"IF('keuzelijst huishouden'!$D$1=\"\",\"\",CONCATENATE('keuzelijst huishouden'!$D$1+13))","v":""},{"$f":"IF(ISERROR(VLOOKUP(C24,basisgegevens!$A$1:$AB$50,$D$3,FALSE)),\"\",VLOOKUP(C24,basisgegevens!$A$1:$AB$404,$D$3,FALSE))","v":""},{"$f":"IF(ISERROR(VLOOKUP(C24,basisgegevens!$A$1:$ZL$50,$E$3,FALSE)),\"\",VLOOKUP(C24,basisgegevens!$A$1:$AB$50,$E$3,FALSE))","v":""},null,"",{"$f":"IF(ISERROR(VLOOKUP(C24,basisgegevens!$A$1:$AB$50,$H$3,FALSE)),\"\",VLOOKUP(C24,basisgegevens!$A$1:$AB$50,$H$3,FALSE))","v":""},null,{"$f":"IF(ISERROR(VLOOKUP(C24,basisgegevens!$A$1:$AB$50,$J$3,FALSE)),\"\",VLOOKUP(C24,basisgegevens!$A$1:$AB$50,$J$3,FALSE))","v":""},{"$f":"IF(ISERROR(VLOOKUP(C24,basisgegevens!$A$1:$AB$50,$K$3,FALSE)),\"\",VLOOKUP(C24,basisgegevens!$A$1:$AB$50,$K$3,FALSE))","v":""},null,"",{"$f":"IF(ISERROR(VLOOKUP(C24,basisgegevens!$A$1:$AB$50,$N$3,FALSE)),\"\",VLOOKUP(C24,basisgegevens!$A$1:$AB$50,$N$3,FALSE))","v":""},{"$f":"IF(ISERROR(VLOOKUP(C24,basisgegevens!$A$1:$AB$50,$O$3,FALSE)),\"\",VLOOKUP(C24,basisgegevens!$A$1:$AB$50,$O$3,FALSE))","v":""},"",{"$f":"IF(ISERROR(VLOOKUP(C24,basisgegevens!$A$1:$AB$50,$Q$3,FALSE)),\"\",VLOOKUP(C24,basisgegevens!$A$1:$AB$50,$Q$3,FALSE))","v":""},{"$f":"IF(ISERROR(VLOOKUP(C24,basisgegevens!$A$1:$AB$50,$R$3,FALSE)),\"\",VLOOKUP(C24,basisgegevens!$A$1:$AB$409,$R$3,FALSE))","v":""},"",{"$f":"IF(ISERROR(VLOOKUP(C24,basisgegevens!$A$1:$AB$50,$T$3,FALSE)),\"\",VLOOKUP(C24,basisgegevens!$A$1:$AB$409,$T$3,FALSE))","v":""}]
[null,null,{"$f":"IF('keuzelijst huishouden'!$E$1=\"\",\"\",CONCATENATE('keuzelijst huishouden'!$E$1+13))","v":""},{"$f":"IF(ISERROR(VLOOKUP(C25,basisgegevens!$A$1:$AB$50,$D$3,FALSE)),\"\",VLOOKUP(C25,basisgegevens!$A$1:$AB$404,$D$3,FALSE))","v":""},{"$f":"IF(ISERROR(VLOOKUP(C25,basisgegevens!$A$1:$ZL$50,$E$3,FALSE)),\"\",VLOOKUP(C25,basisgegevens!$A$1:$AB$50,$E$3,FALSE))","v":""},null,"",{"$f":"IF(ISERROR(VLOOKUP(C25,basisgegevens!$A$1:$AB$50,$H$3,FALSE)),\"\",VLOOKUP(C25,basisgegevens!$A$1:$AB$50,$H$3,FALSE))","v":""},null,{"$f":"IF(ISERROR(VLOOKUP(C25,basisgegevens!$A$1:$AB$50,$J$3,FALSE)),\"\",VLOOKUP(C25,basisgegevens!$A$1:$AB$50,$J$3,FALSE))","v":""},{"$f":"IF(ISERROR(VLOOKUP(C25,basisgegevens!$A$1:$AB$50,$K$3,FALSE)),\"\",VLOOKUP(C25,basisgegevens!$A$1:$AB$50,$K$3,FALSE))","v":""},null,"",{"$f":"IF(ISERROR(VLOOKUP(C25,basisgegevens!$A$1:$AB$50,$N$3,FALSE)),\"\",VLOOKUP(C25,basisgegevens!$A$1:$AB$50,$N$3,FALSE))","v":""},{"$f":"IF(ISERROR(VLOOKUP(C25,basisgegevens!$A$1:$AB$50,$O$3,FALSE)),\"\",VLOOKUP(C25,basisgegevens!$A$1:$AB$50,$O$3,FALSE))","v":""},"",{"$f":"IF(ISERROR(VLOOKUP(C25,basisgegevens!$A$1:$AB$50,$Q$3,FALSE)),\"\",VLOOKUP(C25,basisgegevens!$A$1:$AB$50,$Q$3,FALSE))","v":""},{"$f":"IF(ISERROR(VLOOKUP(C25,basisgegevens!$A$1:$AB$50,$R$3,FALSE)),\"\",VLOOKUP(C25,basisgegevens!$A$1:$AB$409,$R$3,FALSE))","v":""},"",{"$f":"IF(ISERROR(VLOOKUP(C25,basisgegevens!$A$1:$AB$50,$T$3,FALSE)),\"\",VLOOKUP(C25,basisgegevens!$A$1:$AB$409,$T$3,FALSE))","v":""}]
[null,null,{"$f":"IF('keuzelijst huishouden'!$F$1=\"\",\"\",CONCATENATE('keuzelijst huishouden'!$F$1+13))","v":""},{"$f":"IF(ISERROR(VLOOKUP(C26,basisgegevens!$A$1:$AB$50,$D$3,FALSE)),\"\",VLOOKUP(C26,basisgegevens!$A$1:$AB$404,$D$3,FALSE))","v":""},{"$f":"IF(ISERROR(VLOOKUP(C26,basisgegevens!$A$1:$ZL$50,$E$3,FALSE)),\"\",VLOOKUP(C26,basisgegevens!$A$1:$AB$50,$E$3,FALSE))","v":""},null,"",{"$f":"IF(ISERROR(VLOOKUP(C26,basisgegevens!$A$1:$AB$50,$H$3,FALSE)),\"\",VLOOKUP(C26,basisgegevens!$A$1:$AB$50,$H$3,FALSE))","v":""},null,{"$f":"IF(ISERROR(VLOOKUP(C26,basisgegevens!$A$1:$AB$50,$J$3,FALSE)),\"\",VLOOKUP(C26,basisgegevens!$A$1:$AB$50,$J$3,FALSE))","v":""},{"$f":"IF(ISERROR(VLOOKUP(C26,basisgegevens!$A$1:$AB$50,$K$3,FALSE)),\"\",VLOOKUP(C26,basisgegevens!$A$1:$AB$50,$K$3,FALSE))","v":""},null,"",{"$f":"IF(ISERROR(VLOOKUP(C26,basisgegevens!$A$1:$AB$50,$N$3,FALSE)),\"\",VLOOKUP(C26,basisgegevens!$A$1:$AB$50,$N$3,FALSE))","v":""},{"$f":"IF(ISERROR(VLOOKUP(C26,basisgegevens!$A$1:$AB$50,$O$3,FALSE)),\"\",VLOOKUP(C26,basisgegevens!$A$1:$AB$50,$O$3,FALSE))","v":""},"",{"$f":"IF(ISERROR(VLOOKUP(C26,basisgegevens!$A$1:$AB$50,$Q$3,FALSE)),\"\",VLOOKUP(C26,basisgegevens!$A$1:$AB$50,$Q$3,FALSE))","v":""},{"$f":"IF(ISERROR(VLOOKUP(C26,basisgegevens!$A$1:$AB$50,$R$3,FALSE)),\"\",VLOOKUP(C26,basisgegevens!$A$1:$AB$409,$R$3,FALSE))","v":""},"",{"$f":"IF(ISERROR(VLOOKUP(C26,basisgegevens!$A$1:$AB$50,$T$3,FALSE)),\"\",VLOOKUP(C26,basisgegevens!$A$1:$AB$409,$T$3,FALSE))","v":""}]
[{"$nulls":6},"",{"$nulls":5},"",{"$nulls":6},{"$f":"IF(ISERROR(VLOOKUP(C27,basisgegevens!$A$1:$AB$50,$T$3,FALSE)),\"\",VLOOKUP(C27,basisgegevens!$A$1:$AB$409,$T$3,FALSE))","v":""}]
[null,"  Vergunde zorgaanbieder",{"$nulls":4},"",{"$nulls":5},"",{"$nulls":6},{"$f":"IF(ISERROR(VLOOKUP(C28,basisgegevens!$A$1:$AB$50,$T$3,FALSE)),\"\",VLOOKUP(C28,basisgegevens!$A$1:$AB$409,$T$3,FALSE))","v":""}]
[null,null,{"$f":"IF('keuzelijst zorgaanbieder'!$B$1=\"\",\"\",CONCATENATE('keuzelijst zorgaanbieder'!$B$1+22))","v":""},{"$f":"IF(ISERROR(VLOOKUP(C29,basisgegevens!$A$1:$AB$50,$D$3,FALSE)),\"\",VLOOKUP(C29,basisgegevens!$A$1:$AB$404,$D$3,FALSE))","v":""},{"$f":"IF(ISERROR(VLOOKUP(C29,basisgegevens!$A$1:$ZL$50,$E$3,FALSE)),\"\",VLOOKUP(C29,basisgegevens!$A$1:$AB$50,$E$3,FALSE))","v":""},null,"",{"$f":"IF(ISERROR(VLOOKUP(C29,basisgegevens!$A$1:$AB$50,$H$3,FALSE)),\"\",VLOOKUP(C29,basisgegevens!$A$1:$AB$50,$H$3,FALSE))","v":""},null,{"$f":"IF(ISERROR(VLOOKUP(C29,basisgegevens!$A$1:$AB$50,$J$3,FALSE)),\"\",VLOOKUP(C29,basisgegevens!$A$1:$AB$50,$J$3,FALSE))","v":""},{"$f":"IF(ISERROR(VLOOKUP(C29,basisgegevens!$A$1:$AB$50,$K$3,FALSE)),\"\",VLOOKUP(C29,basisgegevens!$A$1:$AB$50,$K$3,FALSE))","v":""},null,"",{"$f":"IF(ISERROR(VLOOKUP(C29,basisgegevens!$A$1:$AB$50,$N$3,FALSE)),\"\",VLOOKUP(C29,basisgegevens!$A$1:$AB$50,$N$3,FALSE))","v":""},{"$f":"IF(ISERROR(VLOOKUP(C29,basisgegevens!$A$1:$AB$50,$O$3,FALSE)),\"\",VLOOKUP(C29,basisgegevens!$A$1:$AB$50,$O$3,FALSE))","v":""},{"$f":"IF(M29=\"\",\"\",IF(M29=0,0,IF(N29=\"+\",M29+O29,IF(N29=\"*\",M29*O29,M29))))","v":""},{"$f":"IF(ISERROR(VLOOKUP(C29,basisgegevens!$A$1:$AB$50,$Q$3,FALSE)),\"\",VLOOKUP(C29,basisgegevens!$A$1:$AB$50,$Q$3,FALSE))","v":""},{"$f":"IF(ISERROR(VLOOKUP(C29,basisgegevens!$A$1:$AB$50,$R$3,FALSE)),\"\",VLOOKUP(C29,basisgegevens!$A$1:$AB$409,$R$3,FALSE))","v":""},{"$f":"R29","v":""},{"$f":"IF(ISERROR(VLOOKUP(C29,basisgegevens!$A$1:$AB$50,$T$3,FALSE)),\"\",VLOOKUP(C29,basisgegevens!$A$1:$AB$409,$T$3,FALSE))","v":""}]
[null,null,{"$f":"IF('keuzelijst zorgaanbieder'!$C$1=\"\",\"\",CONCATENATE('keuzelijst zorgaanbieder'!$C$1+22))","v":""},{"$f":"IF(ISERROR(VLOOKUP(C30,basisgegevens!$A$1:$AB$50,$D$3,FALSE)),\"\",VLOOKUP(C30,basisgegevens!$A$1:$AB$404,$D$3,FALSE))","v":""},{"$f":"IF(ISERROR(VLOOKUP(C30,basisgegevens!$A$1:$ZL$50,$E$3,FALSE)),\"\",VLOOKUP(C30,basisgegevens!$A$1:$AB$50,$E$3,FALSE))","v":""},null,"",{"$f":"IF(ISERROR(VLOOKUP(C30,basisgegevens!$A$1:$AB$50,$H$3,FALSE)),\"\",VLOOKUP(C30,basisgegevens!$A$1:$AB$50,$H$3,FALSE))","v":""},null,{"$f":"IF(ISERROR(VLOOKUP(C30,basisgegevens!$A$1:$AB$50,$J$3,FALSE)),\"\",VLOOKUP(C30,basisgegevens!$A$1:$AB$50,$J$3,FALSE))","v":""},{"$f":"IF(ISERROR(VLOOKUP(C30,basisgegevens!$A$1:$AB$50,$K$3,FALSE)),\"\",VLOOKUP(C30,basisgegevens!$A$1:$AB$50,$K$3,FALSE))","v":""},null,"",{"$f":"IF(ISERROR(VLOOKUP(C30,basisgegevens!$A$1:$AB$50,$N$3,FALSE)),\"\",VLOOKUP(C30,basisgegevens!$A$1:$AB$50,$N$3,FALSE))","v":""},{"$f":"IF(ISERROR(VLOOKUP(C30,basisgegevens!$A$1:$AB$50,$O$3,FALSE)),\"\",VLOOKUP(C30,basisgegevens!$A$1:$AB$50,$O$3,FALSE))","v":""},{"$f":"IF(M30=\"\",\"\",IF(M30=0,0,IF(N30=\"+\",M30+O30,IF(N30=\"*\",M30*O30,M30))))","v":""},{"$f":"IF(ISERROR(VLOOKUP(C30,basisgegevens!$A$1:$AB$50,$Q$3,FALSE)),\"\",VLOOKUP(C30,basisgegevens!$A$1:$AB$50,$Q$3,FALSE))","v":""},{"$f":"IF(ISERROR(VLOOKUP(C30,basisgegevens!$A$1:$AB$50,$R$3,FALSE)),\"\",VLOOKUP(C30,basisgegevens!$A$1:$AB$409,$R$3,FALSE))","v":""},"",{"$f":"IF(ISERROR(VLOOKUP(C30,basisgegevens!$A$1:$AB$50,$T$3,FALSE)),\"\",VLOOKUP(C30,basisgegevens!$A$1:$AB$409,$T$3,FALSE))","v":""}]
[null,null,{"$f":"IF('keuzelijst zorgaanbieder'!$D$1=\"\",\"\",CONCATENATE('keuzelijst zorgaanbieder'!$D$1+22))","v":""},{"$f":"IF(ISERROR(VLOOKUP(C31,basisgegevens!$A$1:$AB$50,$D$3,FALSE)),\"\",VLOOKUP(C31,basisgegevens!$A$1:$AB$404,$D$3,FALSE))","v":""},{"$f":"IF(ISERROR(VLOOKUP(C31,basisgegevens!$A$1:$ZL$50,$E$3,FALSE)),\"\",VLOOKUP(C31,basisgegevens!$A$1:$AB$50,$E$3,FALSE))","v":""},null,"",{"$f":"IF(ISERROR(VLOOKUP(C31,basisgegevens!$A$1:$AB$50,$H$3,FALSE)),\"\",VLOOKUP(C31,basisgegevens!$A$1:$AB$50,$H$3,FALSE))","v":""},null,{"$f":"IF(ISERROR(VLOOKUP(C31,basisgegevens!$A$1:$AB$50,$J$3,FALSE)),\"\",VLOOKUP(C31,basisgegevens!$A$1:$AB$50,$J$3,FALSE))","v":""},{"$f":"IF(ISERROR(VLOOKUP(C31,basisgegevens!$A$1:$AB$50,$K$3,FALSE)),\"\",VLOOKUP(C31,basisgegevens!$A$1:$AB$50,$K$3,FALSE))","v":""},null,"",{"$f":"IF(ISERROR(VLOOKUP(C31,basisgegevens!$A$1:$AB$50,$N$3,FALSE)),\"\",VLOOKUP(C31,basisgegevens!$A$1:$AB$50,$N$3,FALSE))","v":""},{"$f":"IF(ISERROR(VLOOKUP(C31,basisgegevens!$A$1:$AB$50,$O$3,FALSE)),\"\",VLOOKUP(C31,basisgegevens!$A$1:$AB$50,$O$3,FALSE))","v":""},"",{"$f":"IF(ISERROR(VLOOKUP(C31,basisgegevens!$A$1:$AB$50,$Q$3,FALSE)),\"\",VLOOKUP(C31,basisgegevens!$A$1:$AB$50,$Q$3,FALSE))","v":""},{"$f":"IF(ISERROR(VLOOKUP(C31,basisgegevens!$A$1:$AB$50,$R$3,FALSE)),\"\",VLOOKUP(C31,basisgegevens!$A$1:$AB$409,$R$3,FALSE))","v":""},"",{"$f":"IF(ISERROR(VLOOKUP(C31,basisgegevens!$A$1:$AB$50,$T$3,FALSE)),\"\",VLOOKUP(C31,basisgegevens!$A$1:$AB$409,$T$3,FALSE))","v":""}]
[null,null,{"$f":"IF('keuzelijst zorgaanbieder'!$E$1=\"\",\"\",CONCATENATE('keuzelijst zorgaanbieder'!$E$1+22))","v":""},{"$f":"IF(ISERROR(VLOOKUP(C32,basisgegevens!$A$1:$AB$50,$D$3,FALSE)),\"\",VLOOKUP(C32,basisgegevens!$A$1:$AB$404,$D$3,FALSE))","v":""},{"$f":"IF(ISERROR(VLOOKUP(C32,basisgegevens!$A$1:$ZL$50,$E$3,FALSE)),\"\",VLOOKUP(C32,basisgegevens!$A$1:$AB$50,$E$3,FALSE))","v":""},null,"",{"$f":"IF(ISERROR(VLOOKUP(C32,basisgegevens!$A$1:$AB$50,$H$3,FALSE)),\"\",VLOOKUP(C32,basisgegevens!$A$1:$AB$50,$H$3,FALSE))","v":""},null,{"$f":"IF(ISERROR(VLOOKUP(C32,basisgegevens!$A$1:$AB$50,$J$3,FALSE)),\"\",VLOOKUP(C32,basisgegevens!$A$1:$AB$50,$J$3,FALSE))","v":""},{"$f":"IF(ISERROR(VLOOKUP(C32,basisgegevens!$A$1:$AB$50,$K$3,FALSE)),\"\",VLOOKUP(C32,basisgegevens!$A$1:$AB$50,$K$3,FALSE))","v":""},null,"",{"$f":"IF(ISERROR(VLOOKUP(C32,basisgegevens!$A$1:$AB$50,$N$3,FALSE)),\"\",VLOOKUP(C32,basisgegevens!$A$1:$AB$50,$N$3,FALSE))","v":""},{"$f":"IF(ISERROR(VLOOKUP(C32,basisgegevens!$A$1:$AB$50,$O$3,FALSE)),\"\",VLOOKUP(C32,basisgegevens!$A$1:$AB$50,$O$3,FALSE))","v":""},"",{"$f":"IF(ISERROR(VLOOKUP(C32,basisgegevens!$A$1:$AB$50,$Q$3,FALSE)),\"\",VLOOKUP(C32,basisgegevens!$A$1:$AB$50,$Q$3,FALSE))","v":""},{"$f":"IF(ISERROR(VLOOKUP(C32,basisgegevens!$A$1:$AB$50,$R$3,FALSE)),\"\",VLOOKUP(C32,basisgegevens!$A$1:$AB$409,$R$3,FALSE))","v":""},"",{"$f":"IF(ISERROR(VLOOKUP(C32,basisgegevens!$A$1:$AB$50,$T$3,FALSE)),\"\",VLOOKUP(C32,basisgegevens!$A$1:$AB$409,$T$3,FALSE))","v":""}]
[{"$nulls":6},"",{"$nulls":5},"",{"$nulls":6},{"$f":"IF(ISERROR(VLOOKUP(C33,basisgegevens!$A$1:$AB$50,$T$3,FALSE)),\"\",VLOOKUP(C33,basisgegevens!$A$1:$AB$409,$T$3,FALSE))","v":""}]
[null,"  Bijstandsorganisatie",{"$nulls":4},"",{"$nulls":5},"",{"$nulls":6},{"$f":"IF(ISERROR(VLOOKUP(C34,basisgegevens!$A$1:$AB$50,$T$3,FALSE)),\"\",VLOOKUP(C34,basisgegevens!$A$1:$AB$409,$T$3,FALSE))","v":""}]
[null,null,{"$f":"IF('keuzelijst bijstand'!$A$1=\"\",\"\",CONCATENATE('keuzelijst bijstand'!$A$1+29))","v":""},{"$f":"IF(ISERROR(VLOOKUP(C35,basisgegevens!$A$1:$AB$89,$D$3,FALSE)),\"\",VLOOKUP(C35,basisgegevens!$A$1:$AB$404,$D$3,FALSE))","v":""},{"$f":"IF(ISERROR(VLOOKUP(C35,basisgegevens!$A$1:$ZL$50,$E$3,FALSE)),\"\",VLOOKUP(C35,basisgegevens!$A$1:$AB$50,$E$3,FALSE))","v":""},null,"",{"$f":"IF(ISERROR(VLOOKUP(C35,basisgegevens!$A$1:$AB$50,$H$3,FALSE)),\"\",VLOOKUP(C35,basisgegevens!$A$1:$AB$50,$H$3,FALSE))","v":""},null,{"$f":"IF(ISERROR(VLOOKUP(C35,basisgegevens!$A$1:$AB$50,$J$3,FALSE)),\"\",VLOOKUP(C35,basisgegevens!$A$1:$AB$50,$J$3,FALSE))","v":""},{"$f":"IF(ISERROR(VLOOKUP(C35,basisgegevens!$A$1:$AB$50,$K$3,FALSE)),\"\",VLOOKUP(C35,basisgegevens!$A$1:$AB$50,$K$3,FALSE))","v":""},null,"",{"$f":"IF(ISERROR(VLOOKUP(C35,basisgegevens!$A$1:$AB$50,$N$3,FALSE)),\"\",VLOOKUP(C35,basisgegevens!$A$1:$AB$50,$N$3,FALSE))","v":""},{"$f":"IF(ISERROR(VLOOKUP(C35,basisgegevens!$A$1:$AB$50,$O$3,FALSE)),\"\",VLOOKUP(C35,basisgegevens!$A$1:$AB$50,$O$3,FALSE))","v":""},{"$f":"IF(M35=\"\",\"\",IF(M35=0,0,IF(N35=\"+\",M35+O35,IF(N35=\"*\",M35*O35,M35))))","v":""},{"$f":"IF(ISERROR(VLOOKUP(C35,basisgegevens!$A$1:$AB$50,$Q$3,FALSE)),\"\",VLOOKUP(C35,basisgegevens!$A$1:$AB$50,$Q$3,FALSE))","v":""},{"$f":"IF(ISERROR(VLOOKUP(C35,basisgegevens!$A$1:$AB$50,$R$3,FALSE)),\"\",VLOOKUP(C35,basisgegevens!$A$1:$AB$409,$R$3,FALSE))","v":""},{"$f":"R35","v":""},{"$f":"IF(ISERROR(VLOOKUP(C35,basisgegevens!$A$1:$AB$50,$T$3,FALSE)),\"\",VLOOKUP(C35,basisgegevens!$A$1:$AB$409,$T$3,FALSE))","v":""}]
[{"$nulls":6},"",{"$nulls":5},"",{"$nulls":6},{"$f":"IF(ISERROR(VLOOKUP(C36,basisgegevens!$A$1:$AB$50,$T$3,FALSE)),\"\",VLOOKUP(C36,basisgegevens!$A$1:$AB$409,$T$3,FALSE))","v":""}]
[null,"Vervoer",{"$nulls":4},"",{"$f":"IF(ISERROR(VLOOKUP(C37,basisgegevens!$A$1:$AB$50,$H$3,FALSE)),\"\",VLOOKUP(C37,basisgegevens!$A$1:$AB$50,$H$3,FALSE))","v":""},{"$nulls":4},"",{"$f":"IF(ISERROR(VLOOKUP(C37,basisgegevens!$A$1:$AB$50,$N$3,FALSE)),\"\",IF(VLOOKUP(C37,basisgegevens!$A$1:$AB$50,$N$3,FALSE)=0,\"\",VLOOKUP(C37,basisgegevens!$A$1:$AB$50,$N$3,FALSE)))","v":""},{"$f":"IF(ISERROR(VLOOKUP(C37,basisgegevens!$A$1:$AB$50,$O$3,FALSE)),\"\",VLOOKUP(C37,basisgegevens!$A$1:$AB$50,$O$3,FALSE))","v":""},"",{"$nulls":3},{"$f":"IF(ISERROR(VLOOKUP(C37,basisgegevens!$A$1:$AB$50,$T$3,FALSE)),\"\",VLOOKUP(C37,basisgegevens!$A$1:$AB$409,$T$3,FALSE))","v":""}]
[null,null,{"$f":"IF('keuzelijst vervoer'!$B$1=\"\",\"\",CONCATENATE('keuzelijst vervoer'!$B$1+34))","v":""},{"$f":"IF(ISERROR(VLOOKUP(C38,basisgegevens!$A$1:$AB$50,$D$3,FALSE)),\"\",VLOOKUP(C38,basisgegevens!$A$1:$AB$404,$D$3,FALSE))","v":""},{"$f":"IF(ISERROR(VLOOKUP(C38,basisgegevens!$A$1:$ZL$50,$E$3,FALSE)),\"\",VLOOKUP(C38,basisgegevens!$A$1:$AB$50,$E$3,FALSE))","v":""},null,"",{"$f":"IF(ISERROR(VLOOKUP(C38,basisgegevens!$A$1:$AB$50,$H$3,FALSE)),\"\",VLOOKUP(C38,basisgegevens!$A$1:$AB$50,$H$3,FALSE))","v":""},null,{"$f":"IF(ISERROR(VLOOKUP(C38,basisgegevens!$A$1:$AB$50,$J$3,FALSE)),\"\",VLOOKUP(C38,basisgegevens!$A$1:$AB$50,$J$3,FALSE))","v":""},{"$f":"IF(ISERROR(VLOOKUP(C38,basisgegevens!$A$1:$AB$50,$K$3,FALSE)),\"\",VLOOKUP(C38,basisgegevens!$A$1:$AB$50,$K$3,FALSE))","v":""},{"$f":"IF(ISERROR(VLOOKUP(C38,basisgegevens!$A$1:$AB$50,$L$3,FALSE)),\"\",VLOOKUP(C38,basisgegevens!$A$1:$AB$50,$L$3,FALSE))","v":""},"",{"$f":"IF(ISERROR(VLOOKUP(C38,basisgegevens!$A$1:$AB$50,$N$3,FALSE)),\"\",IF(VLOOKUP(C38,basisgegevens!$A$1:$AB$50,$N$3,FALSE)=0,\"\",VLOOKUP(C38,basisgegevens!$A$1:$AB$50,$N$3,FALSE)))","v":""},{"$f":"IF(ISERROR(VLOOKUP(C38,basisgegevens!$A$1:$AB$50,$O$3,FALSE)),\"\",VLOOKUP(C38,basisgegevens!$A$1:$AB$50,$O$3,FALSE))","v":""},"",{"$f":"IF(ISERROR(VLOOKUP(C38,basisgegevens!$A$1:$AB$50,$Q$3,FALSE)),\"\",VLOOKUP(C38,basisgegevens!$A$1:$AB$50,$Q$3,FALSE))","v":""},{"$f":"IF(ISERROR(VLOOKUP(C38,basisgegevens!$A$1:$AB$50,$R$3,FALSE)),\"\",VLOOKUP(C38,basisgegevens!$A$1:$AB$409,$R$3,FALSE))","v":""},{"$f":"R38","v":""},{"$f":"IF(ISERROR(VLOOKUP(C38,basisgegevens!$A$1:$AB$50,$T$3,FALSE)),\"\",VLOOKUP(C38,basisgegevens!$A$1:$AB$409,$T$3,FALSE))","v":""}]
[null,null,{"$f":"IF('keuzelijst vervoer'!$C$1=\"\",\"\",CONCATENATE('keuzelijst vervoer'!$C$1+34))","v":""},{"$f":"IF(ISERROR(VLOOKUP(C39,basisgegevens!$A$1:$AB$50,$D$3,FALSE)),\"\",VLOOKUP(C39,basisgegevens!$A$1:$AB$404,$D$3,FALSE))","v":""},{"$f":"IF(ISERROR(VLOOKUP(C39,basisgegevens!$A$1:$ZL$50,$E$3,FALSE)),\"\",VLOOKUP(C39,basisgegevens!$A$1:$AB$50,$E$3,FALSE))","v":""},null,"",{"$f":"IF(ISERROR(VLOOKUP(C39,basisgegevens!$A$1:$AB$50,$H$3,FALSE)),\"\",VLOOKUP(C39,basisgegevens!$A$1:$AB$50,$H$3,FALSE))","v":""},null,{"$f":"IF(ISERROR(VLOOKUP(C39,basisgegevens!$A$1:$AB$50,$J$3,FALSE)),\"\",VLOOKUP(C39,basisgegevens!$A$1:$AB$50,$J$3,FALSE))","v":""},{"$f":"IF(ISERROR(VLOOKUP(C39,basisgegevens!$A$1:$AB$50,$K$3,FALSE)),\"\",VLOOKUP(C39,basisgegevens!$A$1:$AB$50,$K$3,FALSE))","v":""},{"$f":"IF(ISERROR(VLOOKUP(C39,basisgegevens!$A$1:$AB$50,$L$3,FALSE)),\"\",VLOOKUP(C39,basisgegevens!$A$1:$AB$50,$L$3,FALSE))","v":""},"",{"$f":"IF(ISERROR(VLOOKUP(C39,basisgegevens!$A$1:$AB$50,$N$3,FALSE)),\"\",IF(VLOOKUP(C39,basisgegevens!$A$1:$AB$50,$N$3,FALSE)=0,\"\",VLOOKUP(C39,basisgegevens!$A$1:$AB$50,$N$3,FALSE)))","v":""},{"$f":"IF(ISERROR(VLOOKUP(C39,basisgegevens!$A$1:$AB$50,$O$3,FALSE)),\"\",VLOOKUP(C39,basisgegevens!$A$1:$AB$50,$O$3,FALSE))","v":""},"",{"$f":"IF(ISERROR(VLOOKUP(C39,basisgegevens!$A$1:$AB$50,$Q$3,FALSE)),\"\",VLOOKUP(C39,basisgegevens!$A$1:$AB$50,$Q$3,FALSE))","v":""},{"$f":"IF(ISERROR(VLOOKUP(C39,basisgegevens!$A$1:$AB$50,$R$3,FALSE)),\"\",VLOOKUP(C39,basisgegevens!$A$1:$AB$409,$R$3,FALSE))","v":""},"",{"$f":"IF(ISERROR(VLOOKUP(C39,basisgegevens!$A$1:$AB$50,$T$3,FALSE)),\"\",VLOOKUP(C39,basisgegevens!$A$1:$AB$409,$T$3,FALSE))","v":""}]
[null,null,{"$f":"IF('keuzelijst vervoer'!$D$1=\"\",\"\",CONCATENATE('keuzelijst vervoer'!$D$1+34))","v":""},{"$f":"IF(ISERROR(VLOOKUP(C40,basisgegevens!$A$1:$AB$50,$D$3,FALSE)),\"\",VLOOKUP(C40,basisgegevens!$A$1:$AB$404,$D$3,FALSE))","v":""},{"$f":"IF(ISERROR(VLOOKUP(C40,basisgegevens!$A$1:$ZL$50,$E$3,FALSE)),\"\",VLOOKUP(C40,basisgegevens!$A$1:$AB$50,$E$3,FALSE))","v":""},null,"",{"$f":"IF(ISERROR(VLOOKUP(C40,basisgegevens!$A$1:$AB$50,$H$3,FALSE)),\"\",VLOOKUP(C40,basisgegevens!$A$1:$AB$50,$H$3,FALSE))","v":""},null,{"$f":"IF(ISERROR(VLOOKUP(C40,basisgegevens!$A$1:$AB$50,$J$3,FALSE)),\"\",VLOOKUP(C40,basisgegevens!$A$1:$AB$50,$J$3,FALSE))","v":""},{"$f":"IF(ISERROR(VLOOKUP(C40,basisgegevens!$A$1:$AB$50,$K$3,FALSE)),\"\",VLOOKUP(C40,basisgegevens!$A$1:$AB$50,$K$3,FALSE))","v":""},{"$f":"IF(ISERROR(VLOOKUP(C40,basisgegevens!$A$1:$AB$50,$L$3,FALSE)),\"\",VLOOKUP(C40,basisgegevens!$A$1:$AB$50,$L$3,FALSE))","v":""},"",{"$f":"IF(ISERROR(VLOOKUP(C40,basisgegevens!$A$1:$AB$50,$N$3,FALSE)),\"\",IF(VLOOKUP(C40,basisgegevens!$A$1:$AB$50,$N$3,FALSE)=0,\"\",VLOOKUP(C40,basisgegevens!$A$1:$AB$50,$N$3,FALSE)))","v":""},{"$f":"IF(ISERROR(VLOOKUP(C40,basisgegevens!$A$1:$AB$50,$O$3,FALSE)),\"\",VLOOKUP(C40,basisgegevens!$A$1:$AB$50,$O$3,FALSE))","v":""},"",{"$f":"IF(ISERROR(VLOOKUP(C40,basisgegevens!$A$1:$AB$50,$Q$3,FALSE)),\"\",VLOOKUP(C40,basisgegevens!$A$1:$AB$50,$Q$3,FALSE))","v":""},{"$f":"IF(ISERROR(VLOOKUP(C40,basisgegevens!$A$1:$AB$50,$R$3,FALSE)),\"\",VLOOKUP(C40,basisgegevens!$A$1:$AB$409,$R$3,FALSE))","v":""},"",{"$f":"IF(ISERROR(VLOOKUP(C40,basisgegevens!$A$1:$AB$50,$T$3,FALSE)),\"\",VLOOKUP(C40,basisgegevens!$A$1:$AB$409,$T$3,FALSE))","v":""}]
[null,null,{"$f":"IF('keuzelijst vervoer'!$E$1=\"\",\"\",CONCATENATE('keuzelijst vervoer'!$E$1+34))","v":""},{"$f":"IF(ISERROR(VLOOKUP(C41,basisgegevens!$A$1:$AB$50,$D$3,FALSE)),\"\",VLOOKUP(C41,basisgegevens!$A$1:$AB$404,$D$3,FALSE))","v":""},{"$f":"IF(ISERROR(VLOOKUP(C41,basisgegevens!$A$1:$ZL$50,$E$3,FALSE)),\"\",VLOOKUP(C41,basisgegevens!$A$1:$AB$50,$E$3,FALSE))","v":""},null,"",{"$f":"IF(ISERROR(VLOOKUP(C41,basisgegevens!$A$1:$AB$50,$H$3,FALSE)),\"\",VLOOKUP(C41,basisgegevens!$A$1:$AB$50,$H$3,FALSE))","v":""},null,{"$f":"IF(ISERROR(VLOOKUP(C41,basisgegevens!$A$1:$AB$50,$J$3,FALSE)),\"\",VLOOKUP(C41,basisgegevens!$A$1:$AB$50,$J$3,FALSE))","v":""},{"$f":"IF(ISERROR(VLOOKUP(C41,basisgegevens!$A$1:$AB$50,$K$3,FALSE)),\"\",VLOOKUP(C41,basisgegevens!$A$1:$AB$50,$K$3,FALSE))","v":""},{"$f":"IF(ISERROR(VLOOKUP(C41,basisgegevens!$A$1:$AB$50,$L$3,FALSE)),\"\",VLOOKUP(C41,basisgegevens!$A$1:$AB$50,$L$3,FALSE))","v":""},"",{"$f":"IF(ISERROR(VLOOKUP(C41,basisgegevens!$A$1:$AB$50,$N$3,FALSE)),\"\",IF(VLOOKUP(C41,basisgegevens!$A$1:$AB$50,$N$3,FALSE)=0,\"\",VLOOKUP(C41,basisgegevens!$A$1:$AB$50,$N$3,FALSE)))","v":""},{"$f":"IF(ISERROR(VLOOKUP(C41,basisgegevens!$A$1:$AB$50,$O$3,FALSE)),\"\",VLOOKUP(C41,basisgegevens!$A$1:$AB$50,$O$3,FALSE))","v":""},"",{"$f":"IF(ISERROR(VLOOKUP(C41,basisgegevens!$A$1:$AB$50,$Q$3,FALSE)),\"\",VLOOKUP(C41,basisgegevens!$A$1:$AB$50,$Q$3,FALSE))","v":""},{"$f":"IF(ISERROR(VLOOKUP(C41,basisgegevens!$A$1:$AB$50,$R$3,FALSE)),\"\",VLOOKUP(C41,basisgegevens!$A$1:$AB$409,$R$3,FALSE))","v":""},"",{"$f":"IF(ISERROR(VLOOKUP(C41,basisgegevens!$A$1:$AB$50,$T$3,FALSE)),\"\",VLOOKUP(C41,basisgegevens!$A$1:$AB$409,$T$3,FALSE))","v":""}]
[]
[null,"Andere"]
[null,null,{"$f":"IF('keuzelijst Andere'!$B$1=\"\",\"\",CONCATENATE('keuzelijst Andere'!$B$1+39))","v":""},{"$f":"IF(ISERROR(VLOOKUP(C44,basisgegevens!$A$1:$AB$50,$D$3,FALSE)),\"\",VLOOKUP(C44,basisgegevens!$A$1:$AB$50,$D$3,FALSE))","v":""},null," ",{"$f":"IF(C44=\"\",\"\",CONCATENATE(D44,\"  \",F44))","v":""},{"$f":"IF(ISERROR(VLOOKUP(C44,basisgegevens!$A$1:$AB$50,$H$3,FALSE)),\"\",VLOOKUP(C44,basisgegevens!$A$1:$AB$50,$H$3,FALSE))","v":""},null,{"$f":"IF(ISERROR(VLOOKUP(C44,basisgegevens!$A$1:$AB$50,$J$3,FALSE)),\"\",VLOOKUP(C44,basisgegevens!$A$1:$AB$50,$J$3,FALSE))","v":""},{"$f":"IF(ISERROR(VLOOKUP(C44,basisgegevens!$A$1:$AB$50,$K$3,FALSE)),\"\",VLOOKUP(C44,basisgegevens!$A$1:$AB$50,$K$3,FALSE))","v":""},{"$f":"IF(ISERROR(VLOOKUP(C44,basisgegevens!$A$1:$AB$50,$L$3,FALSE)),\"\",VLOOKUP(C44,basisgegevens!$A$1:$AB$50,$L$3,FALSE))","v":""},{"$f":"IF(L44=\"\",\"\",L44)","v":""},{"$f":"IF(ISERROR(VLOOKUP(C44,basisgegevens!$A$1:$AB$50,$N$3,FALSE)),\"\",IF(VLOOKUP(C44,basisgegevens!$A$1:$AB$50,$N$3,FALSE)=0,\"\",VLOOKUP(C44,basisgegevens!$A$1:$AB$50,$N$3,FALSE)))","v":""},{"$f":"IF(ISERROR(VLOOKUP(C44,basisgegevens!$A$1:$AB$50,$O$3,FALSE)),\"\",VLOOKUP(C44,basisgegevens!$A$1:$AB$50,$O$3,FALSE))","v":""},{"$f":"IF(M44=\"\",\"\",IF(M44=0,0,IF(N44=\"+\",M44+O44,IF(N44=\"*\",M44*O44,M44))))","v":""},{"$f":"IF(ISERROR(VLOOKUP(C44,basisgegevens!$A$1:$AB$50,$Q$3,FALSE)),\"\",VLOOKUP(C44,basisgegevens!$A$1:$AB$50,$Q$3,FALSE))","v":""},{"$f":"IF(ISERROR(VLOOKUP(C44,basisgegevens!$A$1:$AB$50,$R$3,FALSE)),\"\",VLOOKUP(C44,basisgegevens!$A$1:$AB$409,$R$3,FALSE))","v":""},{"$f":"R44","v":""},{"$f":"IF(ISERROR(VLOOKUP(C44,basisgegevens!$A$1:$AB$50,$T$3,FALSE)),\"\",VLOOKUP(C44,basisgegevens!$A$1:$AB$409,$T$3,FALSE))","v":""}]
[null,null,{"$f":"IF('keuzelijst Andere'!$C$1=\"\",\"\",CONCATENATE('keuzelijst Andere'!$C$1+39))","v":""},{"$f":"IF(ISERROR(VLOOKUP(C45,basisgegevens!$A$1:$AB$50,$D$3,FALSE)),\"\",VLOOKUP(C45,basisgegevens!$A$1:$AB$50,$D$3,FALSE))","v":""},null,null,"",{"$f":"IF(ISERROR(VLOOKUP(C45,basisgegevens!$A$1:$AB$50,$H$3,FALSE)),\"\",VLOOKUP(C45,basisgegevens!$A$1:$AB$50,$H$3,FALSE))","v":""},null,{"$f":"IF(ISERROR(VLOOKUP(C45,basisgegevens!$A$1:$AB$50,$J$3,FALSE)),\"\",VLOOKUP(C45,basisgegevens!$A$1:$AB$50,$J$3,FALSE))","v":""},{"$f":"IF(ISERROR(VLOOKUP(C45,basisgegevens!$A$1:$AB$50,$K$3,FALSE)),\"\",VLOOKUP(C45,basisgegevens!$A$1:$AB$50,$K$3,FALSE))","v":""},{"$f":"IF(ISERROR(VLOOKUP(C45,basisgegevens!$A$1:$AB$50,$L$3,FALSE)),\"\",VLOOKUP(C45,basisgegevens!$A$1:$AB$50,$L$3,FALSE))","v":""},"",null,{"$f":"IF(ISERROR(VLOOKUP(C45,basisgegevens!$A$1:$AB$50,$O$3,FALSE)),\"\",VLOOKUP(C45,basisgegevens!$A$1:$AB$50,$O$3,FALSE))","v":""},"",{"$f":"IF(ISERROR(VLOOKUP(C45,basisgegevens!$A$1:$AB$50,$Q$3,FALSE)),\"\",VLOOKUP(C45,basisgegevens!$A$1:$AB$50,$Q$3,FALSE))","v":""},{"$f":"IF(ISERROR(VLOOKUP(C45,basisgegevens!$A$1:$AB$50,$R$3,FALSE)),\"\",VLOOKUP(C45,basisgegevens!$A$1:$AB$409,$R$3,FALSE))","v":""},"",{"$f":"IF(ISERROR(VLOOKUP(C45,basisgegevens!$A$1:$AB$50,$T$3,FALSE)),\"\",VLOOKUP(C45,basisgegevens!$A$1:$AB$409,$T$3,FALSE))","v":""}]

{"sheet":"leeg inputscherm","index":1,"n_rows":52,"n_cols":24,"rows_kept":52,"hidden":true,"merged":[[0,1,0,2],[1,1,1,2],[2,1,2,2],[3,1,3,2],[4,1,4,2],[9,16,10,22],[11,0,12,0],[11,1,12,1],[11,2,12,2],[11,3,12,3],[11,4,12,4],[11,5,12,5],[11,6,12,6],[11,7,12,7],[11,8,12,8],[11,9,12,9],[11,10,12,10],[11,11,12,11],[11,12,12,12],[11,13,12,13],[11,14,12,14],[11,15,12,15],[11,16,12,16],[11,17,12,17],[11,18,12,18],[11,20,12,20],[11,21,12,21],[11,22,12,22]]}
["Te besteden budget:"]
["reeds gebudgeteerd:",{"$f":"V49","v":""}]
["nog te besteden: ",{"$f":"B1-B2","v":{"$error":"#VALUE!"}}]
[]
["buiten budget:",{"$f":"W49","v":""}]
[]
[]
[]
[]
[{"$nulls":16},"Kost"]
[]
["Aard assistent:","eenheid","jan","feb","maart","april","mei","juni","juli","aug","sept","okt","nov","dec","totaal EH","Raming kostprijs","Totaal Bedrag","jaarkost","totaal","Jaarlimiet","Budget?","Op budget","Buiten budget"]
[]
["Assistenten",{"$nulls":19}," "]
[{"$f":"IF('individuele bedragen'!G9=\"\",\"\",'individuele bedragen'!G9)","v":""},{"$f":"'individuele bedragen'!H9","v":""},{"$f":"IF($A15=\"\",\"\",'individuele bedragen'!$I9)","v":""},{"$f":"IF($A15=\"\",\"\",'individuele bedragen'!$I9)","v":""},{"$f":"IF($A15=\"\",\"\",'individuele bedragen'!$I9)","v":""},{"$f":"IF($A15=\"\",\"\",'individuele bedragen'!$I9)","v":""},{"$f":"IF($A15=\"\",\"\",'individuele bedragen'!$I9)","v":""},{"$f":"IF($A15=\"\",\"\",'individuele bedragen'!$I9)","v":""},{"$f":"IF($A15=\"\",\"\",'individuele bedragen'!$I9)","v":""},{"$f":"IF($A15=\"\",\"\",'individuele bedragen'!$I9)","v":""},{"$f":"IF($A15=\"\",\"\",'individuele bedragen'!$I9)","v":""},{"$f":"IF($A15=\"\",\"\",'individuele bedragen'!$I9)","v":""},{"$f":"IF($A15=\"\",\"\",'individuele bedragen'!$I9)","v":""},{"$f":"IF($A15=\"\",\"\",'individuele bedragen'!$I9)","v":""},{"$f":"IF(A15=\"\",\"\",SUM(C15:N15))","v":""},{"$f":"IF($A15=\"\",\"\",IF('individuele bedragen'!P9=\"\",0,'individuele bedragen'!P9))","v":""},{"$f":"IF(A15=\"\",\"\",O15*P15)","v":""},{"$f":"IF(A15=\"\",\"\",IF('individuele bedragen'!Q9=\"\",0,'individuele bedragen'!Q9))","v":""},{"$f":"IF(A15=\"\",\"\",Q15+R15)","v":""},{"$f":"'individuele bedragen'!T9","v":""},{"$f":"'individuele bedragen'!S9","v":""},{"$f":"IF(S15=\"\",\"\",IF(U15=\"J\",S15,0))","v":""},{"$f":"IF(S15=\"\",\"\",IF(U15<>\"J\",S15,0))","v":""},{"$f":"IF(S15=\"\",\"\",IF(S15>T15,\"Opgelet; jaarlimiet overschreden\",\"\"))","v":""}]
[{"$f":"IF('individuele bedragen'!G10=\"\",\"\",'individuele bedragen'!G10)","v":""},{"$f":"'individuele bedragen'!H10","v":""},{"$f":"IF($A16=\"\",\"\",'individuele bedragen'!$I10)","v":""},{"$f":"IF($A16=\"\",\"\",'individuele bedragen'!$I10)","v":""},{"$f":"IF($A16=\"\",\"\",'individuele bedragen'!$I10)","v":""},{"$f":"IF($A16=\"\",\"\",'individuele bedragen'!$I10)","v":""},{"$f":"IF($A16=\"\",\"\",'individuele bedragen'!$I10)","v":""},{"$f":"IF($A16=\"\",\"\",'individuele bedragen'!$I10)","v":""},{"$f":"IF($A16=\"\",\"\",'individuele bedragen'!$I10)","v":""},{"$f":"IF($A16=\"\",\"\",'individuele bedragen'!$I10)","v":""},{"$f":"IF($A16=\"\",\"\",'individuele bedragen'!$I10)","v":""},{"$f":"IF($A16=\"\",\"\",'individuele bedragen'!$I10)","v":""},{"$f":"IF($A16=\"\",\"\",'individuele bedragen'!$I10)","v":""},{"$f":"IF($A16=\"\",\"\",'individuele bedragen'!$I10)","v":""},"",{"$f":"IF($A16=\"\",\"\",IF('individuele bedragen'!P10=\"\",0,'individuele bedragen'!P10))","v":""},"",{"$f":"IF(A16=\"\",\"\",IF('individuele bedragen'!Q10=\"\",0,'individuele bedragen'!Q10))","v":""},"",{"$f":"'individuele bedragen'!T10","v":""},{"$f":"'individuele bedragen'!S10","v":""},"","",{"$f":"IF(S16=\"\",\"\",IF(S16>T16,\"Opgelet; jaarlimiet overschreden\",\"\"))","v":""}]
[{"$f":"IF('individuele bedragen'!G11=\"\",\"\",'individuele bedragen'!G11)","v":""},{"$f":"'individuele bedragen'!H11","v":""},{"$f":"IF($A17=\"\",\"\",'individuele bedragen'!$I11)","v":""},{"$f":"IF($A17=\"\",\"\",'individuele bedragen'!$I11)","v":""},{"$f":"IF($A17=\"\",\"\",'individuele bedragen'!$I11)","v":""},{"$f":"IF($A17=\"\",\"\",'individuele bedragen'!$I11)","v":""},{"$f":"IF($A17=\"\",\"\",'individuele bedragen'!$I11)","v":""},{"$f":"IF($A17=\"\",\"\",'individuele bedragen'!$I11)","v":""},{"$f":"IF($A17=\"\",\"\",'individuele bedragen'!$I11)","v":""},{"$f":"IF($A17=\"\",\"\",'individuele bedragen'!$I11)","v":""},{"$f":"IF($A17=\"\",\"\",'individuele bedragen'!$I11)","v":""},{"$f":"IF($A17=\"\",\"\",'individuele bedragen'!$I11)","v":""},{"$f":"IF($A17=\"\",\"\",'individuele bedragen'!$I11)","v":""},{"$f":"IF($A17=\"\",\"\",'individuele bedragen'!$I11)","v":""},"",{"$f":"IF($A17=\"\",\"\",IF('individuele bedragen'!P11=\"\",0,'individuele bedragen'!P11))","v":""},"",{"$f":"IF(A17=\"\",\"\",IF('individuele bedragen'!Q11=\"\",0,'individuele bedragen'!Q11))","v":""},"",{"$f":"'individuele bedragen'!T11","v":""},{"$f":"'individuele bedragen'!S11","v":""},"","",""]
[{"$f":"IF('individuele bedragen'!G12=\"\",\"\",'individuele bedragen'!G12)","v":""},{"$f":"'individuele bedragen'!H12","v":""},{"$f":"IF($A18=\"\",\"\",'individuele bedragen'!$I12)","v":""},{"$f":"IF($A18=\"\",\"\",'individuele bedragen'!$I12)","v":""},{"$f":"IF($A18=\"\",\"\",'individuele bedragen'!$I12)","v":""},{"$f":"IF($A18=\"\",\"\",'individuele bedragen'!$I12)","v":""},{"$f":"IF($A18=\"\",\"\",'individuele bedragen'!$I12)","v":""},{"$f":"IF($A18=\"\",\"\",'individuele bedragen'!$I12)","v":""},{"$f":"IF($A18=\"\",\"\",'individuele bedragen'!$I12)","v":""},{"$f":"IF($A18=\"\",\"\",'individuele bedragen'!$I12)","v":""},{"$f":"IF($A18=\"\",\"\",'individuele bedragen'!$I12)","v":""},{"$f":"IF($A18=\"\",\"\",'individuele bedragen'!$I12)","v":""},{"$f":"IF($A18=\"\",\"\",'individuele bedragen'!$I12)","v":""},{"$f":"IF($A18=\"\",\"\",'individuele bedragen'!$I12)","v":""},"",{"$f":"IF($A18=\"\",\"\",IF('individuele bedragen'!P12=\"\",0,'individuele bedragen'!P12))","v":""},"",{"$f":"IF(A18=\"\",\"\",IF('individuele bedragen'!Q12=\"\",0,'individuele bedragen'!Q12))","v":""},"",{"$f":"'individuele bedragen'!T12","v":""},{"$f":"'individuele bedragen'!S12","v":""},"","",""]
[{"$f":"IF('individuele bedragen'!G13=\"\",\"\",'individuele bedragen'!G13)","v":""},{"$f":"'individuele bedragen'!H13","v":""},{"$f":"IF($A19=\"\",\"\",'individuele bedragen'!$I13)","v":""},{"$f":"IF($A19=\"\",\"\",'individuele bedragen'!$I13)","v":""},{"$f":"IF($A19=\"\",\"\",'individuele bedragen'!$I13)","v":""},{"$f":"IF($A19=\"\",\"\",'individuele bedragen'!$I13)","v":""},{"$f":"IF($A19=\"\",\"\",'individuele bedragen'!$I13)","v":""},{"$f":"IF($A19=\"\",\"\",'individuele bedragen'!$I13)","v":""},{"$f":"IF($A19=\"\",\"\",'individuele bedragen'!$I13)","v":""},{"$f":"IF($A19=\"\",\"\",'individuele bedragen'!$I13)","v":""},{"$f":"IF($A19=\"\",\"\",'individuele bedragen'!$I13)","v":""},{"$f":"IF($A19=\"\",\"\",'individuele bedragen'!$I13)","v":""},{"$f":"IF($A19=\"\",\"\",'individuele bedragen'!$I13)","v":""},{"$f":"IF($A19=\"\",\"\",'individuele bedragen'!$I13)","v":""},"",{"$f":"IF($A19=\"\",\"\",IF('individuele bedragen'!P13=\"\",0,'individuele bedragen'!P13))","v":""},"",{"$f":"IF(A19=\"\",\"\",IF('individuele bedragen'!Q13=\"\",0,'individuele bedragen'!Q13))","v":""},"",{"$f":"'individuele bedragen'!T13","v":""},{"$f":"'individuele bedragen'!S13","v":""},"","",""]
[{"$f":"IF('individuele bedragen'!G14=\"\",\"\",'individuele bedragen'!G14)","v":""},{"$f":"'individuele bedragen'!H14","v":""},{"$f":"IF($A20=\"\",\"\",'individuele bedragen'!$I14)","v":""},{"$f":"IF($A20=\"\",\"\",'individuele bedragen'!$I14)","v":""},{"$f":"IF($A20=\"\",\"\",'individuele bedragen'!$I14)","v":""},{"$f":"IF($A20=\"\",\"\",'individuele bedragen'!$I14)","v":""},{"$f":"IF($A20=\"\",\"\",'individuele bedragen'!$I14)","v":""},{"$f":"IF($A20=\"\",\"\",'individuele bedragen'!$I14)","v":""},{"$f":"IF($A20=\"\",\"\",'individuele bedragen'!$I14)","v":""},{"$f":"IF($A20=\"\",\"\",'individuele bedragen'!$I14)","v":""},{"$f":"IF($A20=\"\",\"\",'individuele bedragen'!$I14)","v":""},{"$f":"IF($A20=\"\",\"\",'individuele bedragen'!$I14)","v":""},{"$f":"IF($A20=\"\",\"\",'individuele bedragen'!$I14)","v":""},{"$f":"IF($A20=\"\",\"\",'individuele bedragen'!$I14)","v":""},"",{"$f":"IF($A20=\"\",\"\",IF('individuele bedragen'!P14=\"\",0,'individuele bedragen'!P14))","v":""},"",{"$f":"IF(A20=\"\",\"\",IF('individuele bedragen'!Q14=\"\",0,'individuele bedragen'!Q14))","v":""},"",{"$f":"'individuele bedragen'!T14","v":""},{"$f":"'individuele bedragen'!S14","v":""},"","",""]
[{"$f":"IF('individuele bedragen'!G15=\"\",\"\",'individuele bedragen'!G15)","v":""},{"$f":"'individuele bedragen'!H15","v":""},{"$f":"IF($A21=\"\",\"\",'individuele bedragen'!$I15)","v":""},{"$f":"IF($A21=\"\",\"\",'individuele bedragen'!$I15)","v":""},{"$f":"IF($A21=\"\",\"\",'individuele bedragen'!$I15)","v":""},{"$f":"IF($A21=\"\",\"\",'individuele bedragen'!$I15)","v":""},{"$f":"IF($A21=\"\",\"\",'individuele bedragen'!$I15)","v":""},{"$f":"IF($A21=\"\",\"\",'individuele bedragen'!$I15)","v":""},{"$f":"IF($A21=\"\",\"\",'individuele bedragen'!$I15)","v":""},{"$f":"IF($A21=\"\",\"\",'individuele bedragen'!$I15)","v":""},{"$f":"IF($A21=\"\",\"\",'individuele bedragen'!$I15)","v":""},{"$f":"IF($A21=\"\",\"\",'individuele bedragen'!$I15)","v":""},{"$f":"IF($A21=\"\",\"\",'individuele bedragen'!$I15)","v":""},{"$f":"IF($A21=\"\",\"\",'individuele bedragen'!$I15)","v":""},"",{"$f":"IF($A21=\"\",\"\",IF('individuele bedragen'!P15=\"\",0,'individuele bedragen'!P15))","v":""},"",{"$f":"IF(A21=\"\",\"\",IF('individuele bedragen'!Q15=\"\",0,'individuele bedragen'!Q15))","v":""},"",{"$f":"'individuele bedragen'!T15","v":""},{"$f":"'individuele bedragen'!S15","v":""},"","",""]
[{"$f":"IF('individuele bedragen'!G16=\"\",\"\",'individuele bedragen'!G16)","v":""},{"$f":"'individuele bedragen'!H16","v":""},{"$f":"IF($A22=\"\",\"\",'individuele bedragen'!$I16)","v":""},{"$f":"IF($A22=\"\",\"\",'individuele bedragen'!$I16)","v":""},{"$f":"IF($A22=\"\",\"\",'individuele bedragen'!$I16)","v":""},{"$f":"IF($A22=\"\",\"\",'individuele bedragen'!$I16)","v":""},{"$f":"IF($A22=\"\",\"\",'individuele bedragen'!$I16)","v":""},{"$f":"IF($A22=\"\",\"\",'individuele bedragen'!$I16)","v":""},{"$f":"IF($A22=\"\",\"\",'individuele bedragen'!$I16)","v":""},{"$f":"IF($A22=\"\",\"\",'individuele bedragen'!$I16)","v":""},{"$f":"IF($A22=\"\",\"\",'individuele bedragen'!$I16)","v":""},{"$f":"IF($A22=\"\",\"\",'individuele bedragen'!$I16)","v":""},{"$f":"IF($A22=\"\",\"\",'individuele bedragen'!$I16)","v":""},{"$f":"IF($A22=\"\",\"\",'individuele bedragen'!$I16)","v":""},"",{"$f":"IF($A22=\"\",\"\",IF('individuele bedragen'!P16=\"\",0,'individuele bedragen'!P16))","v":""},"",{"$f":"IF(A22=\"\",\"\",IF('individuele bedragen'!Q16=\"\",0,'individuele bedragen'!Q16))","v":""},"",{"$f":"'individuele bedragen'!T16","v":""},{"$f":"'individuele bedragen'!S16","v":""},"","",""]
[{"$f":"IF('individuele bedragen'!G17=\"\",\"\",'individuele bedragen'!G17)","v":""},{"$f":"'individuele bedragen'!H17","v":""},{"$f":"IF($A23=\"\",\"\",'individuele bedragen'!$I17)","v":""},{"$f":"IF($A23=\"\",\"\",'individuele bedragen'!$I17)","v":""},{"$f":"IF($A23=\"\",\"\",'individuele bedragen'!$I17)","v":""},{"$f":"IF($A23=\"\",\"\",'individuele bedragen'!$I17)","v":""},{"$f":"IF($A23=\"\",\"\",'individuele bedragen'!$I17)","v":""},{"$f":"IF($A23=\"\",\"\",'individuele bedragen'!$I17)","v":""},{"$f":"IF($A23=\"\",\"\",'individuele bedragen'!$I17)","v":""},{"$f":"IF($A23=\"\",\"\",'individuele bedragen'!$I17)","v":""},{"$f":"IF($A23=\"\",\"\",'individuele bedragen'!$I17)","v":""},{"$f":"IF($A23=\"\",\"\",'individuele bedragen'!$I17)","v":""},{"$f":"IF($A23=\"\",\"\",'individuele bedragen'!$I17)","v":""},{"$f":"IF($A23=\"\",\"\",'individuele bedragen'!$I17)","v":""},"",{"$f":"IF($A23=\"\",\"\",IF('individuele bedragen'!P17=\"\",0,'individuele bedragen'!P17))","v":""},"",{"$f":"IF(A23=\"\",\"\",IF('individuele bedragen'!Q17=\"\",0,'individuele bedragen'!Q17))","v":""},"",{"$f":"'individuele bedragen'!T17","v":""},{"$f":"'individuele bedragen'!S17","v":""},"","",""]
[{"$f":"IF('individuele bedragen'!G18=\"\",\"\",'individuele bedragen'!G18)","v":""},{"$f":"'individuele bedragen'!H18","v":""},{"$f":"IF($A24=\"\",\"\",'individuele bedragen'!$I18)","v":""},{"$f":"IF($A24=\"\",\"\",'individuele bedragen'!$I18)","v":""},{"$f":"IF($A24=\"\",\"\",'individuele bedragen'!$I18)","v":""},{"$f":"IF($A24=\"\",\"\",'individuele bedragen'!$I18)","v":""},{"$f":"IF($A24=\"\",\"\",'individuele bedragen'!$I18)","v":""},{"$f":"IF($A24=\"\",\"\",'individuele bedragen'!$I18)","v":""},{"$f":"IF($A24=\"\",\"\",'individuele bedragen'!$I18)","v":""},{"$f":"IF($A24=\"\",\"\",'individuele bedragen'!$I18)","v":""},{"$f":"IF($A24=\"\",\"\",'individuele bedragen'!$I18)","v":""},{"$f":"IF($A24=\"\",\"\",'individuele bedragen'!$I18)","v":""},{"$f":"IF($A24=\"\",\"\",'individuele bedragen'!$I18)","v":""},{"$f":"IF($A24=\"\",\"\",'individuele bedragen'!$I18)","v":""},"",{"$f":"IF($A24=\"\",\"\",IF('individuele bedragen'!P18=\"\",0,'individuele bedragen'!P18))","v":""},"",{"$f":"IF(A24=\"\",\"\",IF('individuele bedragen'!Q18=\"\",0,'individuele bedragen'!Q18))","v":""},"",{"$f":"'individuele bedragen'!T18","v":""},{"$f":"'individuele bedragen'!S18","v":""},"","",""]
[{"$f":"IF('individuele bedragen'!G19=\"\",\"\",'individuele bedragen'!G19)","v":""},{"$f":"'individuele bedragen'!H19","v":""},{"$f":"IF($A25=\"\",\"\",'individuele bedragen'!$I19)","v":""},{"$f":"IF($A25=\"\",\"\",'individuele bedragen'!$I19)","v":""},{"$f":"IF($A25=\"\",\"\",'individuele bedragen'!$I19)","v":""},{"$f":"IF($A25=\"\",\"\",'individuele bedragen'!$I19)","v":""},{"$f":"IF($A25=\"\",\"\",'individuele bedragen'!$I19)","v":""},{"$f":"IF($A25=\"\",\"\",'individuele bedragen'!$I19)","v":""},{"$f":"IF($A25=\"\",\"\",'individuele bedragen'!$I19)","v":""},{"$f":"IF($A25=\"\",\"\",'individuele bedragen'!$I19)","v":""},{"$f":"IF($A25=\"\",\"\",'individuele bedragen'!$I19)","v":""},{"$f":"IF($A25=\"\",\"\",'individuele bedragen'!$I19)","v":""},{"$f":"IF($A25=\"\",\"\",'individuele bedragen'!$I19)","v":""},{"$f":"IF($A25=\"\",\"\",'individuele bedragen'!$I19)","v":""},"",{"$f":"IF($A25=\"\",\"\",IF('individuele bedragen'!P19=\"\",0,'individuele bedragen'!P19))","v":""},"",{"$f":"IF(A25=\"\",\"\",IF('individuele bedragen'!Q19=\"\",0,'individuele bedragen'!Q19))","v":""},"",{"$f":"'individuele bedragen'!T19","v":""},{"$f":"'individuele bedragen'!S19","v":""},"","",""]
[{"$nulls":17},{"$f":"IF(A26=\"\",\"\",IF('individuele bedragen'!Q20=\"\",0,'individuele bedragen'!Q20))","v":""},"",{"$f":"'individuele bedragen'!T20","v":""},null,"","",""]
["Huishouden, verzorging",{"$nulls":18},{"$f":"'individuele bedragen'!T21","v":""},null,"","",""]
[{"$f":"IF('individuele bedragen'!G22=\"\",\"\",'individuele bedragen'!G22)","v":""},{"$f":"'individuele bedragen'!H22","v":""},{"$f":"IF($A28=\"\",\"\",'individuele bedragen'!$I22)","v":""},{"$f":"IF($A28=\"\",\"\",'individuele bedragen'!$I22)","v":""},{"$f":"IF($A28=\"\",\"\",'individuele bedragen'!$I22)","v":""},{"$f":"IF($A28=\"\",\"\",'individuele bedragen'!$I22)","v":""},{"$f":"IF($A28=\"\",\"\",'individuele bedragen'!$I22)","v":""},{"$f":"IF($A28=\"\",\"\",'individuele bedragen'!$I22)","v":""},{"$f":"IF($A28=\"\",\"\",'individuele bedragen'!$I22)","v":""},{"$f":"IF($A28=\"\",\"\",'individuele bedragen'!$I22)","v":""},{"$f":"IF($A28=\"\",\"\",'individuele bedragen'!$I22)","v":""},{"$f":"IF($A28=\"\",\"\",'individuele bedragen'!$I22)","v":""},{"$f":"IF($A28=\"\",\"\",'individuele bedragen'!$I22)","v":""},{"$f":"IF($A28=\"\",\"\",'individuele bedragen'!$I22)","v":""},{"$f":"IF(A28=\"\",\"\",SUM(C28:N28))","v":""},{"$f":"IF($A28=\"\",\"\",IF('individuele bedragen'!P22=\"\",0,'individuele bedragen'!P22))","v":""},{"$f":"IF(A28=\"\",\"\",O28*P28)","v":""},{"$f":"IF(A28=\"\",\"\",IF('individuele bedragen'!Q22=\"\",0,'individuele bedragen'!Q22))","v":""},{"$f":"IF(A28=\"\",\"\",Q28+R28)","v":""},{"$f":"'individuele bedragen'!T22","v":""},{"$f":"'individuele bedragen'!S22","v":""},"","",""]
[{"$f":"IF('individuele bedragen'!G23=\"\",\"\",'individuele bedragen'!G23)","v":""},{"$f":"'individuele bedragen'!H23","v":""},{"$f":"IF($A29=\"\",\"\",'individuele bedragen'!$I23)","v":""},{"$f":"IF($A29=\"\",\"\",'individuele bedragen'!$I23)","v":""},{"$f":"IF($A29=\"\",\"\",'individuele bedragen'!$I23)","v":""},{"$f":"IF($A29=\"\",\"\",'individuele bedragen'!$I23)","v":""},{"$f":"IF($A29=\"\",\"\",'individuele bedragen'!$I23)","v":""},{"$f":"IF($A29=\"\",\"\",'individuele bedragen'!$I23)","v":""},{"$f":"IF($A29=\"\",\"\",'individuele bedragen'!$I23)","v":""},{"$f":"IF($A29=\"\",\"\",'individuele bedragen'!$I23)","v":""},{"$f":"IF($A29=\"\",\"\",'individuele bedragen'!$I23)","v":""},{"$f":"IF($A29=\"\",\"\",'individuele bedragen'!$I23)","v":""},{"$f":"IF($A29=\"\",\"\",'individuele bedragen'!$I23)","v":""},{"$f":"IF($A29=\"\",\"\",'individuele bedragen'!$I23)","v":""},"",{"$f":"IF($A29=\"\",\"\",IF('individuele bedragen'!P23=\"\",0,'individuele bedragen'!P23))","v":""},"",{"$f":"IF(A29=\"\",\"\",IF('individuele bedragen'!Q23=\"\",0,'individuele bedragen'!Q23))","v":""},"",{"$f":"'individuele bedragen'!T23","v":""},{"$f":"'individuele bedragen'!S23","v":""},"","",""]
[{"$f":"IF('individuele bedragen'!G24=\"\",\"\",'individuele bedragen'!G24)","v":""},{"$f":"'individuele bedragen'!H24","v":""},{"$f":"IF($A30=\"\",\"\",'individuele bedragen'!$I24)","v":""},{"$f":"IF($A30=\"\",\"\",'individuele bedragen'!$I24)","v":""},{"$f":"IF($A30=\"\",\"\",'individuele bedragen'!$I24)","v":""},{"$f":"IF($A30=\"\",\"\",'individuele bedragen'!$I24)","v":""},{"$f":"IF($A30=\"\",\"\",'individuele bedragen'!$I24)","v":""},{"$f":"IF($A30=\"\",\"\",'individuele bedragen'!$I24)","v":""},{"$f":"IF($A30=\"\",\"\",'individuele bedragen'!$I24)","v":""},{"$f":"IF($A30=\"\",\"\",'individuele bedragen'!$I24)","v":""},{"$f":"IF($A30=\"\",\"\",'individuele bedragen'!$I24)","v":""},{"$f":"IF($A30=\"\",\"\",'individuele bedragen'!$I24)","v":""},{"$f":"IF($A30=\"\",\"\",'individuele bedragen'!$I24)","v":""},{"$f":"IF($A30=\"\",\"\",'individuele bedragen'!$I24)","v":""},"",{"$f":"IF($A30=\"\",\"\",IF('individuele bedragen'!P24=\"\",0,'individuele bedragen'!P24))","v":""},"",{"$f":"IF(A30=\"\",\"\",IF('individuele bedragen'!Q24=\"\",0,'individuele bedragen'!Q24))","v":""},"",{"$f":"'individuele bedragen'!T24","v":""},{"$f":"'individuele bedragen'!S24","v":""},"","",""]
[{"$f":"IF('individuele bedragen'!G25=\"\",\"\",'individuele bedragen'!G25)","v":""},{"$f":"'individuele bedragen'!H25","v":""},{"$f":"IF($A31=\"\",\"\",'individuele bedragen'!$I25)","v":""},{"$f":"IF($A31=\"\",\"\",'individuele bedragen'!$I25)","v":""},{"$f":"IF($A31=\"\",\"\",'individuele bedragen'!$I25)","v":""},{"$f":"IF($A31=\"\",\"\",'individuele bedragen'!$I25)","v":""},{"$f":"IF($A31=\"\",\"\",'individuele bedragen'!$I25)","v":""},{"$f":"IF($A31=\"\",\"\",'individuele bedragen'!$I25)","v":""},{"$f":"IF($A31=\"\",\"\",'individuele bedragen'!$I25)","v":""},{"$f":"IF($A31=\"\",\"\",'individuele bedragen'!$I25)","v":""},{"$f":"IF($A31=\"\",\"\",'individuele bedragen'!$I25)","v":""},{"$f":"IF($A31=\"\",\"\",'individuele bedragen'!$I25)","v":""},{"$f":"IF($A31=\"\",\"\",'individuele bedragen'!$I25)","v":""},{"$f":"IF($A31=\"\",\"\",'individuele bedragen'!$I25)","v":""},"",{"$f":"IF($A31=\"\",\"\",IF('individuele bedragen'!P25=\"\",0,'individuele bedragen'!P25))","v":""},"",{"$f":"IF(A31=\"\",\"\",IF('individuele bedragen'!Q25=\"\",0,'individuele bedragen'!Q25))","v":""},"",{"$f":"'individuele bedragen'!T25","v":""},{"$f":"'individuele bedragen'!S25","v":""},"","",""]
[{"$f":"IF('individuele bedragen'!G26=\"\",\"\",'individuele bedragen'!G26)","v":""},{"$f":"'individuele bedragen'!H26","v":""},{"$f":"IF($A32=\"\",\"\",'individuele bedragen'!$I26)","v":""},{"$f":"IF($A32=\"\",\"\",'individuele bedragen'!$I26)","v":""},{"$f":"IF($A32=\"\",\"\",'individuele bedragen'!$I26)","v":""},{"$f":"IF($A32=\"\",\"\",'individuele bedragen'!$I26)","v":""},{"$f":"IF($A32=\"\",\"\",'individuele bedragen'!$I26)","v":""},{"$f":"IF($A32=\"\",\"\",'individuele bedragen'!$I26)","v":""},{"$f":"IF($A32=\"\",\"\",'individuele bedragen'!$I26)","v":""},{"$f":"IF($A32=\"\",\"\",'individuele bedragen'!$I26)","v":""},{"$f":"IF($A32=\"\",\"\",'individuele bedragen'!$I26)","v":""},{"$f":"IF($A32=\"\",\"\",'individuele bedragen'!$I26)","v":""},{"$f":"IF($A32=\"\",\"\",'individuele bedragen'!$I26)","v":""},{"$f":"IF($A32=\"\",\"\",'individuele bedragen'!$I26)","v":""},"",{"$f":"IF($A32=\"\",\"\",IF('individuele bedragen'!P26=\"\",0,'individuele bedragen'!P26))","v":""},"",{"$f":"IF(A32=\"\",\"\",IF('individuele bedragen'!Q26=\"\",0,'individuele bedragen'!Q26))","v":""},"",{"$f":"'individuele bedragen'!T26","v":""},{"$f":"'individuele bedragen'!S26","v":""},"","",""]
[{"$f":"IF('individuele bedragen'!G27=\"\",\"\",'individuele bedragen'!G27)","v":""},{"$nulls":16},{"$f":"IF(A33=\"\",\"\",IF('individuele bedragen'!Q27=\"\",0,'individuele bedragen'!Q27))","v":""},"",{"$f":"'individuele bedragen'!T27","v":""},{"$nulls":3},""]
["Vergunde zorgaanbieder",{"$nulls":18},{"$f":"'individuele bedragen'!T28","v":""},{"$nulls":3},""]
[{"$f":"IF('individuele bedragen'!G29=\"\",\"\",'individuele bedragen'!G29)","v":""},{"$f":"'individuele bedragen'!H29","v":""},{"$f":"IF($A35=\"\",\"\",'individuele bedragen'!$I29)","v":""},{"$f":"IF($A35=\"\",\"\",'individuele bedragen'!$I29)","v":""},{"$f":"IF($A35=\"\",\"\",'individuele bedragen'!$I29)","v":""},{"$f":"IF($A35=\"\",\"\",'individuele bedragen'!$I29)","v":""},{"$f":"IF($A35=\"\",\"\",'individuele bedragen'!$I29)","v":""},{"$f":"IF($A35=\"\",\"\",'individuele bedragen'!$I29)","v":""},{"$f":"IF($A35=\"\",\"\",'individuele bedragen'!$I29)","v":""},{"$f":"IF($A35=\"\",\"\",'individuele bedragen'!$I29)","v":""},{"$f":"IF($A35=\"\",\"\",'individuele bedragen'!$I29)","v":""},{"$f":"IF($A35=\"\",\"\",'individuele bedragen'!$I29)","v":""},{"$f":"IF($A35=\"\",\"\",'individuele bedragen'!$I29)","v":""},{"$f":"IF($A35=\"\",\"\",'individuele bedragen'!$I29)","v":""},{"$f":"IF(A35=\"\",\"\",SUM(C35:N35))","v":""},{"$f":"IF($A35=\"\",\"\",IF('individuele bedragen'!P29=\"\",0,'individuele bedragen'!P29))","v":""},{"$f":"IF(A35=\"\",\"\",O35*P35)","v":""},{"$f":"IF(A35=\"\",\"\",IF('individuele bedragen'!Q29=\"\",0,'individuele bedragen'!Q29))","v":""},{"$f":"IF(A35=\"\",\"\",Q35+R35)","v":""},{"$f":"'individuele bedragen'!T29","v":""},{"$f":"'individuele bedragen'!S29","v":""},{"$f":"IF(S35=\"\",\"\",IF(U35=\"J\",S35,0))","v":""},{"$f":"IF(S35=\"\",\"\",IF(U35<>\"J\",S35,0))","v":""},""]
[{"$f":"IF('individuele bedragen'!G30=\"\",\"\",'individuele bedragen'!G30)","v":""},{"$f":"'individuele bedragen'!H30","v":""},{"$f":"IF($A36=\"\",\"\",'individuele bedragen'!$I30)","v":""},{"$f":"IF($A36=\"\",\"\",'individuele bedragen'!$I30)","v":""},{"$f":"IF($A36=\"\",\"\",'individuele bedragen'!$I30)","v":""},{"$f":"IF($A36=\"\",\"\",'individuele bedragen'!$I30)","v":""},{"$f":"IF($A36=\"\",\"\",'individuele bedragen'!$I30)","v":""},{"$f":"IF($A36=\"\",\"\",'individuele bedragen'!$I30)","v":""},{"$f":"IF($A36=\"\",\"\",'individuele bedragen'!$I30)","v":""},{"$f":"IF($A36=\"\",\"\",'individuele bedragen'!$I30)","v":""},{"$f":"IF($A36=\"\",\"\",'individuele bedragen'!$I30)","v":""},{"$f":"IF($A36=\"\",\"\",'individuele bedragen'!$I30)","v":""},{"$f":"IF($A36=\"\",\"\",'individuele bedragen'!$I30)","v":""},{"$f":"IF($A36=\"\",\"\",'individuele bedragen'!$I30)","v":""},"",{"$f":"IF($A36=\"\",\"\",IF('individuele bedragen'!P30=\"\",0,'individuele bedragen'!P30))","v":""},"",{"$f":"IF(A36=\"\",\"\",IF('individuele bedragen'!Q30=\"\",0,'individuele bedragen'!Q30))","v":""},"",{"$f":"'individuele bedragen'!T30","v":""},{"$f":"'individuele bedragen'!S30","v":""},"","",""]
[{"$f":"IF('individuele bedragen'!G31=\"\",\"\",'individuele bedragen'!G31)","v":""},{"$f":"'individuele bedragen'!H31","v":""},{"$f":"IF($A37=\"\",\"\",'individuele bedragen'!$I31)","v":""},{"$f":"IF($A37=\"\",\"\",'individuele bedragen'!$I31)","v":""},{"$f":"IF($A37=\"\",\"\",'individuele bedragen'!$I31)","v":""},{"$f":"IF($A37=\"\",\"\",'individuele bedragen'!$I31)","v":""},{"$f":"IF($A37=\"\",\"\",'individuele bedragen'!$I31)","v":""},{"$f":"IF($A37=\"\",\"\",'individuele bedragen'!$I31)","v":""},{"$f":"IF($A37=\"\",\"\",'individuele bedragen'!$I31)","v":""},{"$f":"IF($A37=\"\",\"\",'individuele bedragen'!$I31)","v":""},{"$f":"IF($A37=\"\",\"\",'individuele bedragen'!$I31)","v":""},{"$f":"IF($A37=\"\",\"\",'individuele bedragen'!$I31)","v":""},{"$f":"IF($A37=\"\",\"\",'individuele bedragen'!$I31)","v":""},{"$f":"IF($A37=\"\",\"\",'individuele bedragen'!$I31)","v":""},"",{"$f":"IF($A37=\"\",\"\",IF('individuele bedragen'!P31=\"\",0,'individuele bedragen'!P31))","v":""},"",{"$f":"IF(A37=\"\",\"\",IF('individuele bedragen'!Q31=\"\",0,'individuele bedragen'!Q31))","v":""},"",{"$f":"'individuele bedragen'!T31","v":""},{"$f":"'individuele bedragen'!S31","v":""},"","",""]
[{"$f":"IF('individuele bedragen'!G32=\"\",\"\",'individuele bedragen'!G32)","v":""},{"$f":"'individuele bedragen'!H32","v":""},{"$f":"IF($A38=\"\",\"\",'individuele bedragen'!$I32)","v":""},{"$f":"IF($A38=\"\",\"\",'individuele bedragen'!$I32)","v":""},{"$f":"IF($A38=\"\",\"\",'individuele bedragen'!$I32)","v":""},{"$f":"IF($A38=\"\",\"\",'individuele bedragen'!$I32)","v":""},{"$f":"IF($A38=\"\",\"\",'individuele bedragen'!$I32)","v":""},{"$f":"IF($A38=\"\",\"\",'individuele bedragen'!$I32)","v":""},{"$f":"IF($A38=\"\",\"\",'individuele bedragen'!$I32)","v":""},{"$f":"IF($A38=\"\",\"\",'individuele bedragen'!$I32)","v":""},{"$f":"IF($A38=\"\",\"\",'individuele bedragen'!$I32)","v":""},{"$f":"IF($A38=\"\",\"\",'individuele bedragen'!$I32)","v":""},{"$f":"IF($A38=\"\",\"\",'individuele bedragen'!$I32)","v":""},{"$f":"IF($A38=\"\",\"\",'individuele bedragen'!$I32)","v":""},"",{"$f":"IF($A38=\"\",\"\",IF('individuele bedragen'!P32=\"\",0,'individuele bedragen'!P32))","v":""},"",{"$f":"IF(A38=\"\",\"\",IF('individuele bedragen'!Q32=\"\",0,'individuele bedragen'!Q32))","v":""},"",{"$f":"'individuele bedragen'!T32","v":""},{"$f":"'individuele bedragen'!S32","v":""},"","",""]
[{"$nulls":17},{"$f":"IF(A39=\"\",\"\",IF('individuele bedragen'!Q33=\"\",0,'individuele bedragen'!Q33))","v":""},"",{"$f":"'individuele bedragen'!T33","v":""},null,{"$f":"IF(S39=\"\",\"\",IF(U39=\"J\",S39,0))","v":""},{"$f":"IF(S39=\"\",\"\",IF(U39<>\"J\",S39,0))","v":""},""]
["Bijstandsorganisatie",{"$nulls":22},""]
[{"$f":"IF('individuele bedragen'!G35=\"\",\"\",'individuele bedragen'!G35)","v":""},{"$f":"'individuele bedragen'!H35","v":""},{"$f":"IF($A41=\"\",\"\",'individuele bedragen'!$I35)","v":""},{"$f":"IF($A41=\"\",\"\",'individuele bedragen'!$I35)","v":""},{"$f":"IF($A41=\"\",\"\",'individuele bedragen'!$I35)","v":""},{"$f":"IF($A41=\"\",\"\",'individuele bedragen'!$I35)","v":""},{"$f":"IF($A41=\"\",\"\",'individuele bedragen'!$I35)","v":""},{"$f":"IF($A41=\"\",\"\",'individuele bedragen'!$I35)","v":""},{"$f":"IF($A41=\"\",\"\",'individuele bedragen'!$I35)","v":""},{"$f":"IF($A41=\"\",\"\",'individuele bedragen'!$I35)","v":""},{"$f":"IF($A41=\"\",\"\",'individuele bedragen'!$I35)","v":""},{"$f":"IF($A41=\"\",\"\",'individuele bedragen'!$I35)","v":""},{"$f":"IF($A41=\"\",\"\",'individuele bedragen'!$I35)","v":""},{"$f":"IF($A41=\"\",\"\",'individuele bedragen'!$I35)","v":""},{"$f":"IF(A41=\"\",\"\",SUM(C41:N41))","v":""},{"$f":"IF($A41=\"\",\"\",IF('individuele bedragen'!P35=\"\",0,'individuele bedragen'!P35))","v":""},{"$f":"IF(A41=\"\",\"\",O41*P41)","v":""},{"$f":"IF(A41=\"\",\"\",IF('individuele bedragen'!Q35=\"\",0,'individuele bedragen'!Q35))","v":""},{"$f":"IF(A41=\"\",\"\",Q41+R41)","v":""},{"$f":"'individuele bedragen'!T35","v":""},{"$f":"'individuele bedragen'!S35","v":""},{"$f":"IF(S41=\"\",\"\",IF(U41=\"J\",S41,0))","v":""},{"$f":"IF(S41=\"\",\"\",IF(U41<>\"J\",S41,0))","v":""},""]
[{"$nulls":17},{"$f":"IF(A42=\"\",\"\",IF('individuele bedragen'!Q36=\"\",0,'individuele bedragen'!Q36))","v":""},"",{"$f":"'individuele bedragen'!T36","v":""},null,{"$f":"IF(S42=\"\",\"\",IF(U42=\"J\",S42,0))","v":""},{"$f":"IF(S42=\"\",\"\",IF(U42<>\"J\",S42,0))","v":""},""]
["Vervoer",{"$f":"'individuele bedragen'!H37","v":""},{"$nulls":17},{"$f":"'individuele bedragen'!T37","v":""},{"$nulls":3},""]
[{"$f":"IF('individuele bedragen'!G38=\"\",\"\",'individuele bedragen'!G38)","v":""},{"$f":"'individuele bedragen'!H38","v":""},{"$f":"IF($A44=\"\",\"\",'individuele bedragen'!$I38)","v":""},{"$f":"IF($A44=\"\",\"\",'individuele bedragen'!$I38)","v":""},{"$f":"IF($A44=\"\",\"\",'individuele bedragen'!$I38)","v":""},{"$f":"IF($A44=\"\",\"\",'individuele bedragen'!$I38)","v":""},{"$f":"IF($A44=\"\",\"\",'individuele bedragen'!$I38)","v":""},{"$f":"IF($A44=\"\",\"\",'individuele bedragen'!$I38)","v":""},{"$f":"IF($A44=\"\",\"\",'individuele bedragen'!$I38)","v":""},{"$f":"IF($A44=\"\",\"\",'individuele bedragen'!$I38)","v":""},{"$f":"IF($A44=\"\",\"\",'individuele bedragen'!$I38)","v":""},{"$f":"IF($A44=\"\",\"\",'individuele bedragen'!$I38)","v":""},{"$f":"IF($A44=\"\",\"\",'individuele bedragen'!$I38)","v":""},{"$f":"IF($A44=\"\",\"\",'individuele bedragen'!$I38)","v":""},{"$f":"IF(A44=\"\",\"\",SUM(C44:N44))","v":""},{"$f":"IF($A44=\"\",\"\",IF('individuele bedragen'!P38=\"\",0,'individuele bedragen'!P38))","v":""},{"$f":"IF(A44=\"\",\"\",O44*P44)","v":""},{"$f":"IF(A44=\"\",\"\",IF('individuele bedragen'!Q38=\"\",0,'individuele bedragen'!Q38))","v":""},{"$f":"IF(A44=\"\",\"\",Q44+R44)","v":""},{"$f":"'individuele bedragen'!T38","v":""},{"$f":"'individuele bedragen'!S38","v":""},{"$f":"IF(S44=\"\",\"\",IF(U44=\"J\",S44,0))","v":""},{"$f":"IF(S44=\"\",\"\",IF(U44<>\"J\",S44,0))","v":""},""]
[{"$f":"IF('individuele bedragen'!G39=\"\",\"\",'individuele bedragen'!G39)","v":""},{"$f":"'individuele bedragen'!H39","v":""},{"$f":"IF($A45=\"\",\"\",'individuele bedragen'!$I39)","v":""},{"$f":"IF($A45=\"\",\"\",'individuele bedragen'!$I39)","v":""},{"$f":"IF($A45=\"\",\"\",'individuele bedragen'!$I39)","v":""},{"$f":"IF($A45=\"\",\"\",'individuele bedragen'!$I39)","v":""},{"$f":"IF($A45=\"\",\"\",'individuele bedragen'!$I39)","v":""},{"$f":"IF($A45=\"\",\"\",'individuele bedragen'!$I39)","v":""},{"$f":"IF($A45=\"\",\"\",'individuele bedragen'!$I39)","v":""},{"$f":"IF($A45=\"\",\"\",'individuele bedragen'!$I39)","v":""},{"$f":"IF($A45=\"\",\"\",'individuele bedragen'!$I39)","v":""},{"$f":"IF($A45=\"\",\"\",'individuele bedragen'!$I39)","v":""},{"$f":"IF($A45=\"\",\"\",'individuele bedragen'!$I39)","v":""},{"$f":"IF($A45=\"\",\"\",'individuele bedragen'!$I39)","v":""},"",{"$f":"IF($A45=\"\",\"\",IF('individuele bedragen'!P39=\"\",0,'individuele bedragen'!P39))","v":""},"",{"$f":"IF(A45=\"\",\"\",IF('individuele bedragen'!Q39=\"\",0,'individuele bedragen'!Q39))","v":""},"",{"$f":"'individuele bedragen'!T39","v":""},{"$f":"'individuele bedragen'!S39","v":""},"","",""]
[{"$f":"IF('individuele bedragen'!G40=\"\",\"\",'individuele bedragen'!G40)","v":""},{"$f":"'individuele bedragen'!H40","v":""},{"$f":"IF($A46=\"\",\"\",'individuele bedragen'!$I40)","v":""},{"$f":"IF($A46=\"\",\"\",'individuele bedragen'!$I40)","v":""},{"$f":"IF($A46=\"\",\"\",'individuele bedragen'!$I40)","v":""},{"$f":"IF($A46=\"\",\"\",'individuele bedragen'!$I40)","v":""},{"$f":"IF($A46=\"\",\"\",'individuele bedragen'!$I40)","v":""},{"$f":"IF($A46=\"\",\"\",'individuele bedragen'!$I40)","v":""},{"$f":"IF($A46=\"\",\"\",'individuele bedragen'!$I40)","v":""},{"$f":"IF($A46=\"\",\"\",'individuele bedragen'!$I40)","v":""},{"$f":"IF($A46=\"\",\"\",'individuele bedragen'!$I40)","v":""},{"$f":"IF($A46=\"\",\"\",'individuele bedragen'!$I40)","v":""},{"$f":"IF($A46=\"\",\"\",'individuele bedragen'!$I40)","v":""},{"$f":"IF($A46=\"\",\"\",'individuele bedragen'!$I40)","v":""},"",{"$f":"IF($A46=\"\",\"\",IF('individuele bedragen'!P40=\"\",0,'individuele bedragen'!P40))","v":""},"",{"$f":"IF(A46=\"\",\"\",IF('individuele bedragen'!Q40=\"\",0,'individuele bedragen'!Q40))","v":""},"",{"$f":"'individuele bedragen'!T40","v":""},{"$f":"'individuele bedragen'!S40","v":""},"","",""]
[{"$f":"IF('individuele bedragen'!G41=\"\",\"\",'individuele bedragen'!G41)","v":""},{"$f":"'individuele bedragen'!H41","v":""},{"$f":"IF($A47=\"\",\"\",'individuele bedragen'!$I41)","v":""},{"$f":"IF($A47=\"\",\"\",'individuele bedragen'!$I41)","v":""},{"$f":"IF($A47=\"\",\"\",'individuele bedragen'!$I41)","v":""},{"$f":"IF($A47=\"\",\"\",'individuele bedragen'!$I41)","v":""},{"$f":"IF($A47=\"\",\"\",'individuele bedragen'!$I41)","v":""},{"$f":"IF($A47=\"\",\"\",'individuele bedragen'!$I41)","v":""},{"$f":"IF($A47=\"\",\"\",'individuele bedragen'!$I41)","v":""},{"$f":"IF($A47=\"\",\"\",'individuele bedragen'!$I41)","v":""},{"$f":"IF($A47=\"\",\"\",'individuele bedragen'!$I41)","v":""},{"$f":"IF($A47=\"\",\"\",'individuele bedragen'!$I41)","v":""},{"$f":"IF($A47=\"\",\"\",'individuele bedragen'!$I41)","v":""},{"$f":"IF($A47=\"\",\"\",'individuele bedragen'!$I41)","v":""},"",{"$f":"IF($A47=\"\",\"\",IF('individuele bedragen'!P41=\"\",0,'individuele bedragen'!P41))","v":""},"",{"$f":"IF(A47=\"\",\"\",IF('individuele bedragen'!Q41=\"\",0,'individuele bedragen'!Q41))","v":""},"",{"$f":"'individuele bedragen'!T41","v":""},{"$f":"'individuele bedragen'!S41","v":""},{"$f":"IF(S47=\"\",\"\",IF(U47=\"J\",S47,0))","v":""},{"$f":"IF(S47=\"\",\"\",IF(U47<>\"J\",S47,0))","v":""},""]
["Andere",{"$nulls":22},""]
[{"$f":"IF('individuele bedragen'!G44=\"\",\"\",'individuele bedragen'!G44)","v":""},{"$f":"'individuele bedragen'!H44","v":""},{"$f":"IF($A49=\"\",\"\",'individuele bedragen'!$I44)","v":""},{"$f":"IF($A49=\"\",\"\",'individuele bedragen'!$I44)","v":""},{"$f":"IF($A49=\"\",\"\",'individuele bedragen'!$I44)","v":""},{"$f":"IF($A49=\"\",\"\",'individuele bedragen'!$I44)","v":""},{"$f":"IF($A49=\"\",\"\",'individuele bedragen'!$I44)","v":""},{"$f":"IF($A49=\"\",\"\",'individuele bedragen'!$I44)","v":""},{"$f":"IF($A49=\"\",\"\",'individuele bedragen'!$I44)","v":""},{"$f":"IF($A49=\"\",\"\",'individuele bedragen'!$I44)","v":""},{"$f":"IF($A49=\"\",\"\",'individuele bedragen'!$I44)","v":""},{"$f":"IF($A49=\"\",\"\",'individuele bedragen'!$I44)","v":""},{"$f":"IF($A49=\"\",\"\",'individuele bedragen'!$I44)","v":""},{"$f":"IF($A49=\"\",\"\",'individuele bedragen'!$I44)","v":""},{"$f":"IF(A49=\"\",\"\",SUM(C49:N49))","v":""},{"$f":"IF($A49=\"\",\"\",IF('individuele bedragen'!P44=\"\",0,'individuele bedragen'!P44))","v":""},{"$f":"IF(A49=\"\",\"\",O49*P49)","v":""},{"$f":"IF(A49=\"\",\"\",IF('individuele bedragen'!Q44=\"\",0,'individuele bedragen'!Q44))","v":""},{"$f":"IF(A49=\"\",\"\",Q49+R49)","v":""},{"$f":"'individuele bedragen'!T44","v":""},{"$f":"'individuele bedragen'!S43","v":{"v":0,"d":"0.00"}},{"$f":"IF(S49=\"\",\"\",IF(U49=\"J\",S49,0))","v":""},{"$f":"IF(S49=\"\",\"\",IF(U49<>\"J\",S49,0))","v":""}," "]
[{"$f":"IF('individuele bedragen'!G45=\"\",\"\",'individuele bedragen'!G45)","v":""},{"$f":"'individuele bedragen'!H44","v":""},{"$f":"IF($A50=\"\",\"\",'individuele bedragen'!$I44)","v":""},{"$f":"IF($A50=\"\",\"\",'individuele bedragen'!$I44)","v":""},{"$f":"IF($A50=\"\",\"\",'individuele bedragen'!$I44)","v":""},{"$f":"IF($A50=\"\",\"\",'individuele bedragen'!$I44)","v":""},{"$f":"IF($A50=\"\",\"\",'individuele bedragen'!$I44)","v":""},{"$f":"IF($A50=\"\",\"\",'individuele bedragen'!$I44)","v":""},{"$f":"IF($A50=\"\",\"\",'individuele bedragen'!$I44)","v":""},{"$f":"IF($A50=\"\",\"\",'individuele bedragen'!$I44)","v":""},{"$f":"IF($A50=\"\",\"\",'individuele bedragen'!$I44)","v":""},{"$f":"IF($A50=\"\",\"\",'individuele bedragen'!$I44)","v":""},{"$f":"IF($A50=\"\",\"\",'individuele bedragen'!$I44)","v":""},{"$f":"IF($A50=\"\",\"\",'individuele bedragen'!$I44)","v":""},"",{"$f":"IF($A50=\"\",\"\",IF('individuele bedragen'!P44=\"\",0,'individuele bedragen'!P44))","v":""},"",{"$f":"IF(A50=\"\",\"\",IF('individuele bedragen'!Q44=\"\",0,'individuele bedragen'!Q44))","v":""},"",{"$f":"'individuele bedragen'!T44","v":""},{"$f":"'individuele bedragen'!S44","v":""},"",""]
[]
["Totalen",{"$nulls":13}," "," ",null,null,{"$f":"SUM(S14:S51)","v":{"v":0,"d":"0.00"}},null,{"$f":"SUM(U14:U47)","v":{"v":0,"d":"0.00"}},{"$f":"SUM(V14:V51)","v":{"v":0,"d":"0.00"}},{"$f":"SUM(W14:W51)","v":{"v":0,"d":"0.00"}}]

{"sheet":"keuzelijst Andere","index":2,"n_rows":2,"n_cols":17,"rows_kept":2,"hidden":true}
[]
[" ",{"$f":"basisgegevens!B42","v":"Andere"},{"$f":"B2","v":"Andere"},{"$f":"C2","v":"Andere"},"Andere","Andere","Andere","Andere","Andere","Andere","Andere","Andere","Andere","Andere","Andere","Andere","Andere"]

{"sheet":"Inhoudstafel","index":3,"n_rows":25,"n_cols":13,"rows_kept":25,"merged":[[10,1,10,2],[10,6,10,10],[11,6,11,10],[12,6,12,10],[13,6,13,10],[14,6,14,10],[15,6,15,10],[16,6,16,10],[17,6,17,10],[18,6,18,10],[19,6,19,10],[20,6,20,10],[21,6,21,10]]}
[null,"7A FINANCIËLE PUZZEL"]
[]
[null,"Met deze tool kan u ruwe simulaties maken van mogelijke besteding van het budget"]
[]
[null,"U kan een korte inleiding op deze tool bekijken in het filmpje dat u als prikkel op de website vindt:"]
[null,"* Het legt kort het gebruik van de 2 invulschermen uit"]
[null,"* het schetst de bedoeling en de opbouw van de informatieve tabbladen"]
[]
[]
[null,"LINK NAAR INVULSCHERMEN",{"$nulls":4},"LINK NAAR INFORMATIEVE TABBLADEN "]
[null,"invulscherm individuele bedragen",{"$nulls":4},"uitleg vrijwilliger"]
[null,"invulscherm jaarkalender",{"$nulls":4},"uitleg jobstudent"]
[{"$nulls":6},"uitleg assistent"]
[{"$nulls":6},"uitleg deeleconomie"]
[{"$nulls":6},"uitleg zelfstandige",{"$nulls":5},"Deze tool werd uitgewerkt in samenwerking met Ingrid Van Molle. "]
[{"$nulls":6},"uitleg gezins- en thuiszorg",{"$nulls":5},"Met dank voor de informatie aangeleverd door Alin VZW, Absoluut VZW, Agilitas, Randstad,"]
[{"$nulls":6},"uitleg dienstencheques",{"$nulls":5},"Group S, Vraagwijzer van KVG en VAPH."]
[{"$nulls":6},"uitleg wijkwerkcheques",{"$nulls":5},"We consulteerden ook de publieke webpagina's van Onafhankelijk Leven VZW en Securex."]
[{"$nulls":6},"uitleg vergunde zorgaanbieders"]
[{"$nulls":6},"uitleg en ingave vervoerskosten",{"$nulls":5},"We hebben de complexiteit proberen te vatten in een toegankelijke simulatietool om "]
[{"$nulls":6},"uitleg bijstandsorganisaties",{"$nulls":5},"(beginnende) budgethouders en hun familie op weg te helpen om een ruwe inschatting te maken."]
[{"$nulls":6},"technische fiche",{"$nulls":5},"Vraag hulp aan een bijstandsorganisatie, een uitzendkantoor of een sociaal secretariaat."]
[{"$nulls":12},"Zij kunnen je helpen met meer detailinformatie, fijnere schattingen en nog andere mogelijkheden."]
[null,"Deze tool maakt deel uit van de toolbox To be or not to be: Persoonlijk assistent van een familielid?"]
[null,"www.datisdevraag.be",{"$nulls":10},"Opmerkingen en suggesties zijn welkom op magentatobe@kuleuven.be."]

{"sheet":"technische fiche","index":4,"n_rows":63,"n_cols":2,"rows_kept":63}
["TECHNISCHE FICHE"]
[]
[null,"INHOUD"]
[null,"Scherminstellingen"]
[null,"Kleurcode"]
[null,"Ingevulde gegevens wijzigen"]
[null,"Factor wijzigen "]
[]
[null,"SCHERMINSTELLINGEN "]
[null,"Onderaan het bestand zie je verschillende tabbladen staan. Je kan naar een ander tabblad gaan door op dat tablad te klikken."]
[]
[]
[null,"Niet alle tabbladen zijn tegelijk in beeld. Je kan naar de andere tabbladen schuiven door op pijltje in de linkerbenedenhoek te klikken."]
[]
[]
[null,"Als je een tabblad hebt aangeklikt, kan je de tekst groter of kleiner maken via in-/uitzoomen in de rechterbenedenhoek. "]
[]
[]
[null,"Klik op het minteken (-) om uit te zoomen en op het plusteken (+) om in te zoomen, of versleep het rechtopstaand streepje naar links of rechts."]
[null,"Het percentageteken geeft aan in welke mate je hebt uitgezoomd of ingezoomd. Het standaardpercentage is 100%."]
[]
[null,"Als je inzoomt, is het mogelijk dat sommige delen van de tekst buiten je beeld vallen. "]
[null,"Je kan in het tablad naar boven of beneden schuiven via het opstaand schuifbalkje aan de rechterkant. "]
[null,"Je kan in het tablad naar links of rechts schuiven via het schuifbalkje in de rechterbenedenhoek."]
{"$rows_empty":8}
[null,"AARD ONDERSTEUNING AANDUIDEN"]
[null,"Jouw gewenste vorm van ondersteuning duid je aan in kolom B. "]
[null,"Kies eerst de juiste categorie van ondersteuning (Asisstenten; huishouden/verzorging; vergunde zorgaanbieder; bijstandsorganisatie; vervoer; andere)"]
[null,"Binnen de juiste categorie, maak je gebruik van het uitklapbalkje."]
[null,"Je kan de opties 'uitklappen', door op het pijltje naar beneden te klikken. De verschillende opties zullen verschijnen. Klik op de optie van jouw keuze."]
[]
[]
[]
[]
[]
[]
[null,"KLEURCODE"]
[null,"In het tablad 'individuele bedragen' ziet u dat de kolommen verschillen van kleur. "]
[null,"De beige kolommen worden automatisch ingevuld door de tool. "]
[null,"Enkel  de blauwe kolommen dien je zelf  in te vullen. "]
[]
[null,"INGEVULDE GEGEVENS WIJZINGEN"]
[null,"Maakte je bij het invullen van de gegevens een fout of wens je een wijziging aan te brengen? Dan zijn er twee manieren om dat te doen."]
[null,"1. Het overschrijven van de gegevens"]
[null,"Indien je wel nog gebruik wilt maken van de ingevulde vorm van ondersteuning, maar daarbij de verkeerde cijfers invulde, kan je de getallen overschrijven. "]
[null,"Dat doe je door met de cursor (het pijltje) het verkeerde getal aan te duiden en het juiste getal in te typen."]
[null,"Opgelet! Als je het gemiddeld maandaantal aanpast, worden eerdere aanpassingen in de jaarkalender toch behouden. "]
[null,"2. Lijn wissen"]
[null,"Heb je een verkeerde vorm van ondersteuning aangeduid, of wens je geen gebruik meer te maken van een bepaalde ondersteuningsvorm?"]
[null,"Dan kan je de lijn uitblanken door in kolom A (WISSEN LIJN) op het kruisje te duwen. "]
[null,"De gegevens van die lijn zullen dan zowel in het tablad 'individuele bedragen' als in het tablad 'jaargegevens' verwijderd worden."]
[]
[null,"FACTOR WIJZIGEN"]
[null,"De factor aanpassen doe je in het tabblad 'individuele bedragen'.  "]
[null,"In de kolom '+ of *' bij Factor, vul je het somteken gevolgd door ENTER (+ ENTER) in als je wilt optellen, of het vermenigvuldigingsteken (*) in als je wilt vermenigvuldigen. "]
[null,"In de andere kolom bij Factor, vul je de waarde/cijfer in dat je bij de reële prijs wilt optellen, of waarmee je de reële prijs wilt vermenigvuldigen."]

{"sheet":"basisgegevens","index":5,"n_rows":42,"n_cols":21,"rows_kept":42}
[null,"OMSCHRIJVING","VAPH CATEGORIE","EENHEID","TARIEF","FACTOR 1","FACTOR 2","bedrag ten laste van budget per eenheid","naam vragen?","0","MINIMUM","MAXIMUM","VOORGESTELD","JAARLIMIET","Kolom1","OP BUDGET","JAARL-KOST EENHEID","JAARLIJKSE KOST GROEP","eenheid 2","link"," "]
["1","Vrijwilliger (buddy) met forfaitaire vergoeding",null,"keer",null,"*",1," ","j","j",0,35.41,null,1416.16,null,"j"]
["2","Vrijwilliger (buddy) met reële kostenvergoeding",null,"keer",{"$nulls":4},"j","j",{"$nulls":5},"j"]
["3","Jobstudent via uitzendkantoor",null,"uur"," ","*",1.23,null,"j",null,9.87,{"$nulls":4},"j"]
["4","Jobstudent via sociaal secretariaat",null,"uur",null,"*",1.1,null,"j",null,11.28,{"$nulls":4},"j"]
["5","Assistent uitzendkantoor",null,"uur",null,"*",1.87,null,"j",null,9.87,{"$nulls":4},"j"]
["6","Assistent sociaal secretariaat",null,"uur",null,"*",1.42,null,"j",null,11.28,{"$nulls":4},"j"]
["7","Assistent DPA (dienst pers. Ass)",null,"uur",{"$nulls":4},"J",{"$nulls":6},"j"]
["8","Deeleconomie",null,"uur",{"$nulls":4},"j",null,0,15,7,null,null,"j"]
["9","Zelfstandige",null,"uur",null,"*",1,null,"j",{"$nulls":6},"j"]
[10,"Deeleconomie -  Helpper basis",null,"uur",null,"+",2,null,"j",null,0,15,7,null,null,"j"]
[11,"Deeleconomie - Helpper plus",null,"uur",null,"+",1.6,null,"j",null,0,15,7,null,null,"j",120]
[12,"Deeleconomie - list minute",null,"uur"," ",{"$nulls":3},"j",{"$nulls":3},7,null,null,"j"]
[]
[]
["14","Gezinszorg",null,"uur"," ","*",1,null,"n","n",{"$nulls":5},"j",{"$nulls":3},2]
["15","Thuiszorg schoonmaakhulp",null,"uur",null,"*",1,null,"n","n",{"$nulls":5},"j",{"$nulls":3},3]
["16","Thuiszorg karweihulp/oppashulp",null,"uur",null,"*",1,null,"n","n",{"$nulls":5},"j"]
["17","Dienstencheques niet op budget (belastingvoordeel)",null,"uur"," ","*",1,0,"n",null,9,10,{"$nulls":3},"n"]
["18","Dienstencheques op budget","individuele praktische hulp","uur"," ","*",1," ","n",null,9,10,{"$nulls":3},"j"]
["19","Wijkwerken niet op budget",null,"uur",null,"*",1,null,"n",null,5.95,7.45,{"$nulls":3},"n"]
["20","Wijkwerken op budget",null,"uur",null,"*",1,null,"n",null,5.95,7.45,{"$nulls":3},"j"]
["21","Thuisverpleging",null,"keer",0,null,null,0,"N",{"$nulls":6},"j"]
[]
["23","Individuele begeleiding",null,"keer",85,"*",1,null,"n",{"$nulls":6},"j"]
["24","Dagopvang",null,"dag",170,"*",1,null,"n",{"$nulls":6},"j"]
["25","Verblijf",null,"nacht",170,"*",1,null,"n",{"$nulls":6},"j"]
["26","Oproepbare permanentie",null,"keer",null,"*",1,null,"n",{"$nulls":6},"j"]
[]
["30","Absoluut VZW",null,"uur",{"$nulls":4},"n",{"$nulls":6},"j"]
["31","Alin VZW",null,"uur",{"$nulls":4},"n",{"$nulls":6},"j"]
["32","My Assist VZW",null,"uur",{"$nulls":4},"n",{"$nulls":6},"j"]
["33","Onafhankelijk leven VZw",null,"uur",{"$nulls":4},"n",{"$nulls":6},"j"]
["34","Zoom VZW",null,"uur",{"$nulls":4},"n",{"$nulls":6},"j"]
[]
["35","Mindermobielencentrale ",null,"kilometer",0.3,{"$nulls":3},"j",null,0.3,0.35,0.3,null,null,"J",12,null,null,"overzicht vervoer"]
["36","DAV",null,"kilometer",{"$nulls":4},"j",null,null," ",{"$nulls":3},"J",null,null,"keer"]
["37","Vervoerskosten vrijwilliger reële kost",null,"kilometer",{"$nulls":4},"j",{"$nulls":6},"j",{"$nulls":3},"µ"]
["38","Vervoerskosten vrijwilliger forfaietaire kost",null,"kilometer",{"$nulls":4},"j",null,0,0.3542,null,2000,null,"j"]
["39","Vervoerskosten assistenten",null,"kilometer",{"$nulls":4},"j",{"$nulls":6},"j"]
[]
["40","Andere",null," ",{"$nulls":4},"j",{"$nulls":6},"j"]

{"sheet":"keuzelijst assistent","index":6,"n_rows":29,"n_cols":289,"rows_kept":29,"hidden":true}
[{"$nulls":288},2]
[" ",{"$f":"basisgegevens!$B2","v":"Vrijwilliger (buddy) met forfaitaire vergoeding"},{"$f":"basisgegevens!$B2","v":"Vrijwilliger (buddy) met forfaitaire vergoeding"},{"$f":"basisgegevens!$B2","v":"Vrijwilliger (buddy) met forfaitaire vergoeding"},{"$f":"basisgegevens!$B2","v":"Vrijwilliger (buddy) met forfaitaire vergoeding"},{"$f":"basisgegevens!$B2","v":"Vrijwilliger (buddy) met forfaitaire vergoeding"},{"$f":"basisgegevens!$B2","v":"Vrijwilliger (buddy) met forfaitaire vergoeding"},{"$f":"basisgegevens!$B2","v":"Vrijwilliger (buddy) met forfaitaire vergoeding"},{"$f":"basisgegevens!$B2","v":"Vrijwilliger (buddy) met forfaitaire vergoeding"},{"$f":"basisgegevens!$B2","v":"Vrijwilliger (buddy) met forfaitaire vergoeding"},{"$f":"basisgegevens!$B2","v":"Vrijwilliger (buddy) met forfaitaire vergoeding"},{"$f":"basisgegevens!$B2","v":"Vrijwilliger (buddy) met forfaitaire vergoeding"},{"$f":"basisgegevens!$B2","v":"Vrijwilliger (buddy) met forfaitaire vergoeding"},{"$f":"basisgegevens!$B2","v":"Vrijwilliger (buddy) met forfaitaire vergoeding"},{"$f":"basisgegevens!$B2","v":"Vrijwilliger (buddy) met forfaitaire vergoeding"},{"$f":"basisgegevens!$B2","v":"Vrijwilliger (buddy) met forfaitaire vergoeding"},{"$f":"basisgegevens!$B2","v":"Vrijwilliger (buddy) met forfaitaire vergoeding"},{"$f":"basisgegevens!$B2","v":"Vrijwilliger (buddy) met forfaitaire vergoeding"},{"$f":"basisgegevens!$B2","v":"Vrijwilliger (buddy) met forfaitaire vergoeding"},{"$f":"basisgegevens!$B2","v":"Vrijwilliger (buddy) met forfaitaire vergoeding"},{"$f":"basisgegevens!$B2","v":"Vrijwilliger (buddy) met forfaitaire vergoeding"},{"$f":"basisgegevens!$B2","v":"Vrijwilliger (buddy) met forfaitaire vergoeding"}]
[" ",{"$f":"basisgegevens!$B3","v":"Vrijwilliger (buddy) met reële kostenvergoeding"},{"$f":"basisgegevens!$B3","v":"Vrijwilliger (buddy) met reële kostenvergoeding"},{"$f":"basisgegevens!$B3","v":"Vrijwilliger (buddy) met reële kostenvergoeding"},{"$f":"basisgegevens!$B3","v":"Vrijwilliger (buddy) met reële kostenvergoeding"},{"$f":"basisgegevens!$B3","v":"Vrijwilliger (buddy) met reële kostenvergoeding"},{"$f":"basisgegevens!$B3","v":"Vrijwilliger (buddy) met reële kostenvergoeding"},{"$f":"basisgegevens!$B3","v":"Vrijwilliger (buddy) met reële kostenvergoeding"},{"$f":"basisgegevens!$B3","v":"Vrijwilliger (buddy) met reële kostenvergoeding"},{"$f":"basisgegevens!$B3","v":"Vrijwilliger (buddy) met reële kostenvergoeding"},{"$f":"basisgegevens!$B3","v":"Vrijwilliger (buddy) met reële kostenvergoeding"},{"$f":"basisgegevens!$B3","v":"Vrijwilliger (buddy) met reële kostenvergoeding"},{"$f":"basisgegevens!$B3","v":"Vrijwilliger (buddy) met reële kostenvergoeding"},{"$f":"basisgegevens!$B3","v":"Vrijwilliger (buddy) met reële kostenvergoeding"},{"$f":"basisgegevens!$B3","v":"Vrijwilliger (buddy) met reële kostenvergoeding"},{"$f":"basisgegevens!$B3","v":"Vrijwilliger (buddy) met reële kostenvergoeding"},{"$f":"basisgegevens!$B3","v":"Vrijwilliger (buddy) met reële kostenvergoeding"},{"$f":"basisgegevens!$B3","v":"Vrijwilliger (buddy) met reële kostenvergoeding"},{"$f":"basisgegevens!$B3","v":"Vrijwilliger (buddy) met reële kostenvergoeding"},{"$f":"basisgegevens!$B3","v":"Vrijwilliger (buddy) met reële kostenvergoeding"},{"$f":"basisgegevens!$B3","v":"Vrijwilliger (buddy) met reële kostenvergoeding"},{"$f":"basisgegevens!$B3","v":"Vrijwilliger (buddy) met reële kostenvergoeding"}]
[null,{"$f":"basisgegevens!$B4","v":"Jobstudent via uitzendkantoor"},{"$f":"basisgegevens!$B4","v":"Jobstudent via uitzendkantoor"},{"$f":"basisgegevens!$B4","v":"Jobstudent via uitzendkantoor"},{"$f":"basisgegevens!$B4","v":"Jobstudent via uitzendkantoor"},{"$f":"basisgegevens!$B4","v":"Jobstudent via uitzendkantoor"},{"$f":"basisgegevens!$B4","v":"Jobstudent via uitzendkantoor"},{"$f":"basisgegevens!$B4","v":"Jobstudent via uitzendkantoor"},{"$f":"basisgegevens!$B4","v":"Jobstudent via uitzendkantoor"},{"$f":"basisgegevens!$B4","v":"Jobstudent via uitzendkantoor"},{"$f":"basisgegevens!$B4","v":"Jobstudent via uitzendkantoor"},{"$f":"basisgegevens!$B4","v":"Jobstudent via uitzendkantoor"},{"$f":"basisgegevens!$B4","v":"Jobstudent via uitzendkantoor"},{"$f":"basisgegevens!$B4","v":"Jobstudent via uitzendkantoor"},{"$f":"basisgegevens!$B4","v":"Jobstudent via uitzendkantoor"},{"$f":"basisgegevens!$B4","v":"Jobstudent via uitzendkantoor"},{"$f":"basisgegevens!$B4","v":"Jobstudent via uitzendkantoor"},{"$f":"basisgegevens!$B4","v":"Jobstudent via uitzendkantoor"},{"$f":"basisgegevens!$B4","v":"Jobstudent via uitzendkantoor"},{"$f":"basisgegevens!$B4","v":"Jobstudent via uitzendkantoor"},{"$f":"basisgegevens!$B4","v":"Jobstudent via uitzendkantoor"},{"$f":"basisgegevens!$B4","v":"Jobstudent via uitzendkantoor"}]
[null,{"$f":"basisgegevens!$B5","v":"Jobstudent via sociaal secretariaat"},{"$f":"basisgegevens!$B5","v":"Jobstudent via sociaal secretariaat"},{"$f":"basisgegevens!$B5","v":"Jobstudent via sociaal secretariaat"},{"$f":"basisgegevens!$B5","v":"Jobstudent via sociaal secretariaat"},{"$f":"basisgegevens!$B5","v":"Jobstudent via sociaal secretariaat"},{"$f":"basisgegevens!$B5","v":"Jobstudent via sociaal secretariaat"},{"$f":"basisgegevens!$B5","v":"Jobstudent via sociaal secretariaat"},{"$f":"basisgegevens!$B5","v":"Jobstudent via sociaal secretariaat"},{"$f":"basisgegevens!$B5","v":"Jobstudent via sociaal secretariaat"},{"$f":"basisgegevens!$B5","v":"Jobstudent via sociaal secretariaat"},{"$f":"basisgegevens!$B5","v":"Jobstudent via sociaal secretariaat"},{"$f":"basisgegevens!$B5","v":"Jobstudent via sociaal secretariaat"},{"$f":"basisgegevens!$B5","v":"Jobstudent via sociaal secretariaat"},{"$f":"basisgegevens!$B5","v":"Jobstudent via sociaal secretariaat"},{"$f":"basisgegevens!$B5","v":"Jobstudent via sociaal secretariaat"},{"$f":"basisgegevens!$B5","v":"Jobstudent via sociaal secretariaat"},{"$f":"basisgegevens!$B5","v":"Jobstudent via sociaal secretariaat"},{"$f":"basisgegevens!$B5","v":"Jobstudent via sociaal secretariaat"},{"$f":"basisgegevens!$B5","v":"Jobstudent via sociaal secretariaat"},{"$f":"basisgegevens!$B5","v":"Jobstudent via sociaal secretariaat"},{"$f":"basisgegevens!$B5","v":"Jobstudent via sociaal secretariaat"}]
[null,{"$f":"basisgegevens!$B6","v":"Assistent uitzendkantoor"},{"$f":"basisgegevens!$B6","v":"Assistent uitzendkantoor"},{"$f":"basisgegevens!$B6","v":"Assistent uitzendkantoor"},{"$f":"basisgegevens!$B6","v":"Assistent uitzendkantoor"},{"$f":"basisgegevens!$B6","v":"Assistent uitzendkantoor"},{"$f":"basisgegevens!$B6","v":"Assistent uitzendkantoor"},{"$f":"basisgegevens!$B6","v":"Assistent uitzendkantoor"},{"$f":"basisgegevens!$B6","v":"Assistent uitzendkantoor"},{"$f":"basisgegevens!$B6","v":"Assistent uitzendkantoor"},{"$f":"basisgegevens!$B6","v":"Assistent uitzendkantoor"},{"$f":"basisgegevens!$B6","v":"Assistent uitzendkantoor"},{"$f":"basisgegevens!$B6","v":"Assistent uitzendkantoor"},{"$f":"basisgegevens!$B6","v":"Assistent uitzendkantoor"},{"$f":"basisgegevens!$B6","v":"Assistent uitzendkantoor"},{"$f":"basisgegevens!$B6","v":"Assistent uitzendkantoor"},{"$f":"basisgegevens!$B6","v":"Assistent uitzendkantoor"},{"$f":"basisgegevens!$B6","v":"Assistent uitzendkantoor"},{"$f":"basisgegevens!$B6","v":"Assistent uitzendkantoor"},{"$f":"basisgegevens!$B6","v":"Assistent uitzendkantoor"},{"$f":"basisgegevens!$B6","v":"Assistent uitzendkantoor"},{"$f":"basisgegevens!$B6","v":"Assistent uitzendkantoor"}]
[null,{"$f":"basisgegevens!$B7","v":"Assistent sociaal secretariaat"},{"$f":"basisgegevens!$B7","v":"Assistent sociaal secretariaat"},{"$f":"basisgegevens!$B7","v":"Assistent sociaal secretariaat"},{"$f":"basisgegevens!$B7","v":"Assistent sociaal secretariaat"},{"$f":"basisgegevens!$B7","v":"Assistent sociaal secretariaat"},{"$f":"basisgegevens!$B7","v":"Assistent sociaal secretariaat"},{"$f":"basisgegevens!$B7","v":"Assistent sociaal secretariaat"},{"$f":"basisgegevens!$B7","v":"Assistent sociaal secretariaat"},{"$f":"basisgegevens!$B7","v":"Assistent sociaal secretariaat"},{"$f":"basisgegevens!$B7","v":"Assistent sociaal secretariaat"},{"$f":"basisgegevens!$B7","v":"Assistent sociaal secretariaat"},{"$f":"basisgegevens!$B7","v":"Assistent sociaal secretariaat"},{"$f":"basisgegevens!$B7","v":"Assistent sociaal secretariaat"},{"$f":"basisgegevens!$B7","v":"Assistent sociaal secretariaat"},{"$f":"basisgegevens!$B7","v":"Assistent sociaal secretariaat"},{"$f":"basisgegevens!$B7","v":"Assistent sociaal secretariaat"},{"$f":"basisgegevens!$B7","v":"Assistent sociaal secretariaat"},{"$f":"basisgegevens!$B7","v":"Assistent sociaal secretariaat"},{"$f":"basisgegevens!$B7","v":"Assistent sociaal secretariaat"},{"$f":"basisgegevens!$B7","v":"Assistent sociaal secretariaat"},{"$f":"basisgegevens!$B7","v":"Assistent sociaal secretariaat"}]
[null,{"$f":"basisgegevens!$B8","v":"Assistent DPA (dienst pers. Ass)"},{"$f":"basisgegevens!$B8","v":"Assistent DPA (dienst pers. Ass)"},{"$f":"basisgegevens!$B8","v":"Assistent DPA (dienst pers. Ass)"},{"$f":"basisgegevens!$B8","v":"Assistent DPA (dienst pers. Ass)"},{"$f":"basisgegevens!$B8","v":"Assistent DPA (dienst pers. Ass)"},{"$f":"basisgegevens!$B8","v":"Assistent DPA (dienst pers. Ass)"},{"$f":"basisgegevens!$B8","v":"Assistent DPA (dienst pers. Ass)"},{"$f":"basisgegevens!$B8","v":"Assistent DPA (dienst pers. Ass)"},{"$f":"basisgegevens!$B8","v":"Assistent DPA (dienst pers. Ass)"},{"$f":"basisgegevens!$B8","v":"Assistent DPA (dienst pers. Ass)"},{"$f":"basisgegevens!$B8","v":"Assistent DPA (dienst pers. Ass)"},{"$f":"basisgegevens!$B8","v":"Assistent DPA (dienst pers. Ass)"},{"$f":"basisgegevens!$B8","v":"Assistent DPA (dienst pers. Ass)"},{"$f":"basisgegevens!$B8","v":"Assistent DPA (dienst pers. Ass)"},{"$f":"basisgegevens!$B8","v":"Assistent DPA (dienst pers. Ass)"},{"$f":"basisgegevens!$B8","v":"Assistent DPA (dienst pers. Ass)"},{"$f":"basisgegevens!$B8","v":"Assistent DPA (dienst pers. Ass)"},{"$f":"basisgegevens!$B8","v":"Assistent DPA (dienst pers. Ass)"},{"$f":"basisgegevens!$B8","v":"Assistent DPA (dienst pers. Ass)"},{"$f":"basisgegevens!$B8","v":"Assistent DPA (dienst pers. Ass)"},{"$f":"basisgegevens!$B8","v":"Assistent DPA (dienst pers. Ass)"}]
[null,{"$f":"basisgegevens!$B9","v":"Deeleconomie"},{"$f":"basisgegevens!$B9","v":"Deeleconomie"},{"$f":"basisgegevens!$B9","v":"Deeleconomie"},{"$f":"basisgegevens!$B9","v":"Deeleconomie"},{"$f":"basisgegevens!$B9","v":"Deeleconomie"},{"$f":"basisgegevens!$B9","v":"Deeleconomie"},{"$f":"basisgegevens!$B9","v":"Deeleconomie"},{"$f":"basisgegevens!$B9","v":"Deeleconomie"},{"$f":"basisgegevens!$B9","v":"Deeleconomie"},{"$f":"basisgegevens!$B9","v":"Deeleconomie"},{"$f":"basisgegevens!$B9","v":"Deeleconomie"},{"$f":"basisgegevens!$B9","v":"Deeleconomie"},{"$f":"basisgegevens!$B9","v":"Deeleconomie"},{"$f":"basisgegevens!$B9","v":"Deeleconomie"},{"$f":"basisgegevens!$B9","v":"Deeleconomie"},{"$f":"basisgegevens!$B9","v":"Deeleconomie"},{"$f":"basisgegevens!$B9","v":"Deeleconomie"},{"$f":"basisgegevens!$B9","v":"Deeleconomie"},{"$f":"basisgegevens!$B9","v":"Deeleconomie"},{"$f":"basisgegevens!$B9","v":"Deeleconomie"},{"$f":"basisgegevens!$B9","v":"Deeleconomie"}]
[null,{"$f":"basisgegevens!$B10","v":"Zelfstandige"},{"$f":"basisgegevens!$B10","v":"Zelfstandige"},{"$f":"basisgegevens!$B10","v":"Zelfstandige"},{"$f":"basisgegevens!$B10","v":"Zelfstandige"},{"$f":"basisgegevens!$B10","v":"Zelfstandige"},{"$f":"basisgegevens!$B10","v":"Zelfstandige"},{"$f":"basisgegevens!$B10","v":"Zelfstandige"},{"$f":"basisgegevens!$B10","v":"Zelfstandige"},{"$f":"basisgegevens!$B10","v":"Zelfstandige"},{"$f":"basisgegevens!$B10","v":"Zelfstandige"},{"$f":"basisgegevens!$B10","v":"Zelfstandige"},{"$f":"basisgegevens!$B10","v":"Zelfstandige"},{"$f":"basisgegevens!$B10","v":"Zelfstandige"},{"$f":"basisgegevens!$B10","v":"Zelfstandige"},{"$f":"basisgegevens!$B10","v":"Zelfstandige"},{"$f":"basisgegevens!$B10","v":"Zelfstandige"},{"$f":"basisgegevens!$B10","v":"Zelfstandige"},{"$f":"basisgegevens!$B10","v":"Zelfstandige"},{"$f":"basisgegevens!$B10","v":"Zelfstandige"},{"$f":"basisgegevens!$B10","v":"Zelfstandige"},{"$f":"basisgegevens!$B10","v":"Zelfstandige"}]
{"$rows_empty":18}
[null," "]

{"sheet":"keuzelijst huishouden","index":7,"n_rows":27,"n_cols":289,"rows_kept":27,"hidden":true}
[{"$nulls":288},2]
[" ",{"$f":"basisgegevens!$B16","v":"Gezinszorg"},{"$f":"basisgegevens!$B16","v":"Gezinszorg"},{"$f":"basisgegevens!$B16","v":"Gezinszorg"},{"$f":"basisgegevens!$B16","v":"Gezinszorg"},{"$f":"basisgegevens!$B16","v":"Gezinszorg"},{"$f":"basisgegevens!$B16","v":"Gezinszorg"},{"$f":"basisgegevens!$B16","v":"Gezinszorg"},{"$f":"basisgegevens!$B16","v":"Gezinszorg"},{"$f":"basisgegevens!$B16","v":"Gezinszorg"},{"$f":"basisgegevens!$B16","v":"Gezinszorg"},{"$f":"basisgegevens!$B16","v":"Gezinszorg"},{"$f":"basisgegevens!$B16","v":"Gezinszorg"},{"$f":"basisgegevens!$B16","v":"Gezinszorg"},{"$f":"basisgegevens!$B16","v":"Gezinszorg"},{"$f":"basisgegevens!$B16","v":"Gezinszorg"},{"$f":"basisgegevens!$B16","v":"Gezinszorg"},{"$f":"basisgegevens!$B16","v":"Gezinszorg"},{"$f":"basisgegevens!$B16","v":"Gezinszorg"},{"$f":"basisgegevens!$B16","v":"Gezinszorg"},{"$f":"basisgegevens!$B16","v":"Gezinszorg"},{"$f":"basisgegevens!$B16","v":"Gezinszorg"}]
[" ",{"$f":"basisgegevens!$B17","v":"Thuiszorg schoonmaakhulp"},{"$f":"basisgegevens!$B17","v":"Thuiszorg schoonmaakhulp"},{"$f":"basisgegevens!$B17","v":"Thuiszorg schoonmaakhulp"},{"$f":"basisgegevens!$B17","v":"Thuiszorg schoonmaakhulp"},{"$f":"basisgegevens!$B17","v":"Thuiszorg schoonmaakhulp"},{"$f":"basisgegevens!$B17","v":"Thuiszorg schoonmaakhulp"},{"$f":"basisgegevens!$B17","v":"Thuiszorg schoonmaakhulp"},{"$f":"basisgegevens!$B17","v":"Thuiszorg schoonmaakhulp"},{"$f":"basisgegevens!$B17","v":"Thuiszorg schoonmaakhulp"},{"$f":"basisgegevens!$B17","v":"Thuiszorg schoonmaakhulp"},{"$f":"basisgegevens!$B17","v":"Thuiszorg schoonmaakhulp"},{"$f":"basisgegevens!$B17","v":"Thuiszorg schoonmaakhulp"},{"$f":"basisgegevens!$B17","v":"Thuiszorg schoonmaakhulp"},{"$f":"basisgegevens!$B17","v":"Thuiszorg schoonmaakhulp"},{"$f":"basisgegevens!$B17","v":"Thuiszorg schoonmaakhulp"},{"$f":"basisgegevens!$B17","v":"Thuiszorg schoonmaakhulp"},{"$f":"basisgegevens!$B17","v":"Thuiszorg schoonmaakhulp"},{"$f":"basisgegevens!$B17","v":"Thuiszorg schoonmaakhulp"},{"$f":"basisgegevens!$B17","v":"Thuiszorg schoonmaakhulp"},{"$f":"basisgegevens!$B17","v":"Thuiszorg schoonmaakhulp"},{"$f":"basisgegevens!$B17","v":"Thuiszorg schoonmaakhulp"}]
[null,{"$f":"basisgegevens!$B18","v":"Thuiszorg karweihulp/oppashulp"},{"$f":"basisgegevens!$B18","v":"Thuiszorg karweihulp/oppashulp"},{"$f":"basisgegevens!$B18","v":"Thuiszorg karweihulp/oppashulp"},{"$f":"basisgegevens!$B18","v":"Thuiszorg karweihulp/oppashulp"},{"$f":"basisgegevens!$B18","v":"Thuiszorg karweihulp/oppashulp"},{"$f":"basisgegevens!$B18","v":"Thuiszorg karweihulp/oppashulp"},{"$f":"basisgegevens!$B18","v":"Thuiszorg karweihulp/oppashulp"},{"$f":"basisgegevens!$B18","v":"Thuiszorg karweihulp/oppashulp"},{"$f":"basisgegevens!$B18","v":"Thuiszorg karweihulp/oppashulp"},{"$f":"basisgegevens!$B18","v":"Thuiszorg karweihulp/oppashulp"},{"$f":"basisgegevens!$B18","v":"Thuiszorg karweihulp/oppashulp"},{"$f":"basisgegevens!$B18","v":"Thuiszorg karweihulp/oppashulp"},{"$f":"basisgegevens!$B18","v":"Thuiszorg karweihulp/oppashulp"},{"$f":"basisgegevens!$B18","v":"Thuiszorg karweihulp/oppashulp"},{"$f":"basisgegevens!$B18","v":"Thuiszorg karweihulp/oppashulp"},{"$f":"basisgegevens!$B18","v":"Thuiszorg karweihulp/oppashulp"},{"$f":"basisgegevens!$B18","v":"Thuiszorg karweihulp/oppashulp"},{"$f":"basisgegevens!$B18","v":"Thuiszorg karweihulp/oppashulp"},{"$f":"basisgegevens!$B18","v":"Thuiszorg karweihulp/oppashulp"},{"$f":"basisgegevens!$B18","v":"Thuiszorg karweihulp/oppashulp"},{"$f":"basisgegevens!$B18","v":"Thuiszorg karweihulp/oppashulp"}]
[null,{"$f":"basisgegevens!$B19","v":"Dienstencheques niet op budget (belastingvoordeel)"},{"$f":"basisgegevens!$B19","v":"Dienstencheques niet op budget (belastingvoordeel)"},{"$f":"basisgegevens!$B19","v":"Dienstencheques niet op budget (belastingvoordeel)"},{"$f":"basisgegevens!$B19","v":"Dienstencheques niet op budget (belastingvoordeel)"},{"$f":"basisgegevens!$B19","v":"Dienstencheques niet op budget (belastingvoordeel)"},{"$f":"basisgegevens!$B19","v":"Dienstencheques niet op budget (belastingvoordeel)"},{"$f":"basisgegevens!$B19","v":"Dienstencheques niet op budget (belastingvoordeel)"},{"$f":"basisgegevens!$B19","v":"Dienstencheques niet op budget (belastingvoordeel)"},{"$f":"basisgegevens!$B19","v":"Dienstencheques niet op budget (belastingvoordeel)"},{"$f":"basisgegevens!$B19","v":"Dienstencheques niet op budget (belastingvoordeel)"},{"$f":"basisgegevens!$B19","v":"Dienstencheques niet op budget (belastingvoordeel)"},{"$f":"basisgegevens!$B19","v":"Dienstencheques niet op budget (belastingvoordeel)"},{"$f":"basisgegevens!$B19","v":"Dienstencheques niet op budget (belastingvoordeel)"},{"$f":"basisgegevens!$B19","v":"Dienstencheques niet op budget (belastingvoordeel)"},{"$f":"basisgegevens!$B19","v":"Dienstencheques niet op budget (belastingvoordeel)"},{"$f":"basisgegevens!$B19","v":"Dienstencheques niet op budget (belastingvoordeel)"},{"$f":"basisgegevens!$B19","v":"Dienstencheques niet op budget (belastingvoordeel)"},{"$f":"basisgegevens!$B19","v":"Dienstencheques niet op budget (belastingvoordeel)"},{"$f":"basisgegevens!$B19","v":"Dienstencheques niet op budget (belastingvoordeel)"},{"$f":"basisgegevens!$B19","v":"Dienstencheques niet op budget (belastingvoordeel)"},{"$f":"basisgegevens!$B19","v":"Dienstencheques niet op budget (belastingvoordeel)"}]
[null,{"$f":"basisgegevens!$B20","v":"Dienstencheques op budget"},{"$f":"basisgegevens!$B20","v":"Dienstencheques op budget"},{"$f":"basisgegevens!$B20","v":"Dienstencheques op budget"},{"$f":"basisgegevens!$B20","v":"Dienstencheques op budget"},{"$f":"basisgegevens!$B20","v":"Dienstencheques op budget"},{"$f":"basisgegevens!$B20","v":"Dienstencheques op budget"},{"$f":"basisgegevens!$B20","v":"Dienstencheques op budget"},{"$f":"basisgegevens!$B20","v":"Dienstencheques op budget"},{"$f":"basisgegevens!$B20","v":"Dienstencheques op budget"},{"$f":"basisgegevens!$B20","v":"Dienstencheques op budget"},{"$f":"basisgegevens!$B20","v":"Dienstencheques op budget"},{"$f":"basisgegevens!$B20","v":"Dienstencheques op budget"},{"$f":"basisgegevens!$B20","v":"Dienstencheques op budget"},{"$f":"basisgegevens!$B20","v":"Dienstencheques op budget"},{"$f":"basisgegevens!$B20","v":"Dienstencheques op budget"},{"$f":"basisgegevens!$B20","v":"Dienstencheques op budget"},{"$f":"basisgegevens!$B20","v":"Dienstencheques op budget"},{"$f":"basisgegevens!$B20","v":"Dienstencheques op budget"},{"$f":"basisgegevens!$B20","v":"Dienstencheques op budget"},{"$f":"basisgegevens!$B20","v":"Dienstencheques op budget"},{"$f":"basisgegevens!$B20","v":"Dienstencheques op budget"}]
[null,{"$f":"basisgegevens!$B21","v":"Wijkwerken niet op budget"},{"$f":"basisgegevens!$B21","v":"Wijkwerken niet op budget"},{"$f":"basisgegevens!$B21","v":"Wijkwerken niet op budget"},{"$f":"basisgegevens!$B21","v":"Wijkwerken niet op budget"},{"$f":"basisgegevens!$B21","v":"Wijkwerken niet op budget"},{"$f":"basisgegevens!$B21","v":"Wijkwerken niet op budget"},{"$f":"basisgegevens!$B21","v":"Wijkwerken niet op budget"},{"$f":"basisgegevens!$B21","v":"Wijkwerken niet op budget"},{"$f":"basisgegevens!$B21","v":"Wijkwerken niet op budget"},{"$f":"basisgegevens!$B21","v":"Wijkwerken niet op budget"},{"$f":"basisgegevens!$B21","v":"Wijkwerken niet op budget"},{"$f":"basisgegevens!$B21","v":"Wijkwerken niet op budget"},{"$f":"basisgegevens!$B21","v":"Wijkwerken niet op budget"},{"$f":"basisgegevens!$B21","v":"Wijkwerken niet op budget"},{"$f":"basisgegevens!$B21","v":"Wijkwerken niet op budget"},{"$f":"basisgegevens!$B21","v":"Wijkwerken niet op budget"},{"$f":"basisgegevens!$B21","v":"Wijkwerken niet op budget"},{"$f":"basisgegevens!$B21","v":"Wijkwerken niet op budget"},{"$f":"basisgegevens!$B21","v":"Wijkwerken niet op budget"},{"$f":"basisgegevens!$B21","v":"Wijkwerken niet op budget"},{"$f":"basisgegevens!$B21","v":"Wijkwerken niet op budget"}]
[null,{"$f":"basisgegevens!$B22","v":"Wijkwerken op budget"},{"$f":"basisgegevens!$B22","v":"Wijkwerken op budget"},{"$f":"basisgegevens!$B22","v":"Wijkwerken op budget"},{"$f":"basisgegevens!$B22","v":"Wijkwerken op budget"},{"$f":"basisgegevens!$B22","v":"Wijkwerken op budget"},{"$f":"basisgegevens!$B22","v":"Wijkwerken op budget"},{"$f":"basisgegevens!$B22","v":"Wijkwerken op budget"},{"$f":"basisgegevens!$B22","v":"Wijkwerken op budget"},{"$f":"basisgegevens!$B22","v":"Wijkwerken op budget"},{"$f":"basisgegevens!$B22","v":"Wijkwerken op budget"},{"$f":"basisgegevens!$B22","v":"Wijkwerken op budget"},{"$f":"basisgegevens!$B22","v":"Wijkwerken op budget"},{"$f":"basisgegevens!$B22","v":"Wijkwerken op budget"},{"$f":"basisgegevens!$B22","v":"Wijkwerken op budget"},{"$f":"basisgegevens!$B22","v":"Wijkwerken op budget"},{"$f":"basisgegevens!$B22","v":"Wijkwerken op budget"},{"$f":"basisgegevens!$B22","v":"Wijkwerken op budget"},{"$f":"basisgegevens!$B22","v":"Wijkwerken op budget"},{"$f":"basisgegevens!$B22","v":"Wijkwerken op budget"},{"$f":"basisgegevens!$B22","v":"Wijkwerken op budget"},{"$f":"basisgegevens!$B22","v":"Wijkwerken op budget"}]
{"$rows_empty":18}
[null,"website::www.datisdevraag.be"]

{"sheet":"keuzelijst zorgaanbieder","index":8,"n_rows":25,"n_cols":22,"rows_kept":25,"hidden":true}
[]
[" ",{"$f":"basisgegevens!$B25","v":"Individuele begeleiding"},{"$f":"basisgegevens!$B25","v":"Individuele begeleiding"},{"$f":"basisgegevens!$B25","v":"Individuele begeleiding"},{"$f":"basisgegevens!$B25","v":"Individuele begeleiding"},{"$f":"basisgegevens!$B25","v":"Individuele begeleiding"},{"$f":"basisgegevens!$B25","v":"Individuele begeleiding"},{"$f":"basisgegevens!$B25","v":"Individuele begeleiding"},{"$f":"basisgegevens!$B25","v":"Individuele begeleiding"},{"$f":"basisgegevens!$B25","v":"Individuele begeleiding"},{"$f":"basisgegevens!$B25","v":"Individuele begeleiding"},{"$f":"basisgegevens!$B25","v":"Individuele begeleiding"},{"$f":"basisgegevens!$B25","v":"Individuele begeleiding"},{"$f":"basisgegevens!$B25","v":"Individuele begeleiding"},{"$f":"basisgegevens!$B25","v":"Individuele begeleiding"},{"$f":"basisgegevens!$B25","v":"Individuele begeleiding"},{"$f":"basisgegevens!$B25","v":"Individuele begeleiding"},{"$f":"basisgegevens!$B25","v":"Individuele begeleiding"},{"$f":"basisgegevens!$B25","v":"Individuele begeleiding"},{"$f":"basisgegevens!$B25","v":"Individuele begeleiding"},{"$f":"basisgegevens!$B25","v":"Individuele begeleiding"},{"$f":"basisgegevens!$B25","v":"Individuele begeleiding"}]
[" ",{"$f":"basisgegevens!$B26","v":"Dagopvang"},{"$f":"basisgegevens!$B26","v":"Dagopvang"},{"$f":"basisgegevens!$B26","v":"Dagopvang"},{"$f":"basisgegevens!$B26","v":"Dagopvang"},{"$f":"basisgegevens!$B26","v":"Dagopvang"},{"$f":"basisgegevens!$B26","v":"Dagopvang"},{"$f":"basisgegevens!$B26","v":"Dagopvang"},{"$f":"basisgegevens!$B26","v":"Dagopvang"},{"$f":"basisgegevens!$B26","v":"Dagopvang"},{"$f":"basisgegevens!$B26","v":"Dagopvang"},{"$f":"basisgegevens!$B26","v":"Dagopvang"},{"$f":"basisgegevens!$B26","v":"Dagopvang"},{"$f":"basisgegevens!$B26","v":"Dagopvang"},{"$f":"basisgegevens!$B26","v":"Dagopvang"},{"$f":"basisgegevens!$B26","v":"Dagopvang"},{"$f":"basisgegevens!$B26","v":"Dagopvang"},{"$f":"basisgegevens!$B26","v":"Dagopvang"},{"$f":"basisgegevens!$B26","v":"Dagopvang"},{"$f":"basisgegevens!$B26","v":"Dagopvang"},{"$f":"basisgegevens!$B26","v":"Dagopvang"},{"$f":"basisgegevens!$B26","v":"Dagopvang"}]
[null,{"$f":"basisgegevens!$B27","v":"Verblijf"},{"$f":"basisgegevens!$B27","v":"Verblijf"},{"$f":"basisgegevens!$B27","v":"Verblijf"},{"$f":"basisgegevens!$B27","v":"Verblijf"},{"$f":"basisgegevens!$B27","v":"Verblijf"},{"$f":"basisgegevens!$B27","v":"Verblijf"},{"$f":"basisgegevens!$B27","v":"Verblijf"},{"$f":"basisgegevens!$B27","v":"Verblijf"},{"$f":"basisgegevens!$B27","v":"Verblijf"},{"$f":"basisgegevens!$B27","v":"Verblijf"},{"$f":"basisgegevens!$B27","v":"Verblijf"},{"$f":"basisgegevens!$B27","v":"Verblijf"},{"$f":"basisgegevens!$B27","v":"Verblijf"},{"$f":"basisgegevens!$B27","v":"Verblijf"},{"$f":"basisgegevens!$B27","v":"Verblijf"},{"$f":"basisgegevens!$B27","v":"Verblijf"},{"$f":"basisgegevens!$B27","v":"Verblijf"},{"$f":"basisgegevens!$B27","v":"Verblijf"},{"$f":"basisgegevens!$B27","v":"Verblijf"},{"$f":"basisgegevens!$B27","v":"Verblijf"},{"$f":"basisgegevens!$B27","v":"Verblijf"}]
[null,{"$f":"basisgegevens!$B28","v":"Oproepbare permanentie"},{"$f":"basisgegevens!$B28","v":"Oproepbare permanentie"},{"$f":"basisgegevens!$B28","v":"Oproepbare permanentie"},{"$f":"basisgegevens!$B28","v":"Oproepbare permanentie"},{"$f":"basisgegevens!$B28","v":"Oproepbare permanentie"},{"$f":"basisgegevens!$B28","v":"Oproepbare permanentie"},{"$f":"basisgegevens!$B28","v":"Oproepbare permanentie"},{"$f":"basisgegevens!$B28","v":"Oproepbare permanentie"},{"$f":"basisgegevens!$B28","v":"Oproepbare permanentie"},{"$f":"basisgegevens!$B28","v":"Oproepbare permanentie"},{"$f":"basisgegevens!$B28","v":"Oproepbare permanentie"},{"$f":"basisgegevens!$B28","v":"Oproepbare permanentie"},{"$f":"basisgegevens!$B28","v":"Oproepbare permanentie"},{"$f":"basisgegevens!$B28","v":"Oproepbare permanentie"},{"$f":"basisgegevens!$B28","v":"Oproepbare permanentie"},{"$f":"basisgegevens!$B28","v":"Oproepbare permanentie"},{"$f":"basisgegevens!$B28","v":"Oproepbare permanentie"},{"$f":"basisgegevens!$B28","v":"Oproepbare permanentie"},{"$f":"basisgegevens!$B28","v":"Oproepbare permanentie"},{"$f":"basisgegevens!$B28","v":"Oproepbare permanentie"},{"$f":"basisgegevens!$B28","v":"Oproepbare permanentie"}]
[null," "," "," "," "," "," "," "," "," "," "," "," "," "," "," "," "," "," "," "," "," "]
{"$rows_empty":18}
[null,"website::www.datisdevraag.be"]

{"sheet":"keuzelijst vervoer","index":9,"n_rows":28,"n_cols":17,"rows_kept":28,"hidden":true}
[]
[" ",{"$f":"basisgegevens!B36","v":"Mindermobielencentrale "},{"$f":"B2","v":"Mindermobielencentrale "},{"$f":"C2","v":"Mindermobielencentrale "},"Mindermobielencentrale ","Mindermobielencentrale ","Mindermobielencentrale ","Mindermobielencentrale ","Mindermobielencentrale ","Mindermobielencentrale ","Mindermobielencentrale ","Mindermobielencentrale ","Mindermobielencentrale ","Mindermobielencentrale ","Mindermobielencentrale ","Mindermobielencentrale ","Mindermobielencentrale "]
[" ",{"$f":"basisgegevens!B37","v":"DAV"},{"$f":"B3","v":"DAV"},"DAV","DAV","DAV","DAV","DAV","DAV","DAV","DAV","DAV","DAV","DAV","DAV","DAV","DAV"]
[null,{"$f":"basisgegevens!B38","v":"Vervoerskosten vrijwilliger reële kost"},"Vervoerskosten vrijwilliger reële kost","Vervoerskosten vrijwilliger reële kost","Vervoerskosten vrijwilliger reële kost","Vervoerskosten vrijwilliger reële kost","Vervoerskosten vrijwilliger reële kost","Vervoerskosten vrijwilliger reële kost","Vervoerskosten vrijwilliger reële kost","Vervoerskosten vrijwilliger reële kost","Vervoerskosten vrijwilliger reële kost","Vervoerskosten vrijwilliger reële kost","Vervoerskosten vrijwilliger reële kost","Vervoerskosten vrijwilliger reële kost","Vervoerskosten vrijwilliger reële kost","Vervoerskosten vrijwilliger reële kost","Vervoerskosten vrijwilliger reële kost"]
[null,{"$f":"basisgegevens!B39","v":"Vervoerskosten vrijwilliger forfaietaire kost"},"Vervoerskosten vrijwilliger forfaietaire kost","Vervoerskosten vrijwilliger forfaietaire kost","Vervoerskosten vrijwilliger forfaietaire kost","Vervoerskosten vrijwilliger forfaietaire kost","Vervoerskosten vrijwilliger forfaietaire kost","Vervoerskosten vrijwilliger forfaietaire kost","Vervoerskosten vrijwilliger forfaietaire kost","Vervoerskosten vrijwilliger forfaietaire kost","Vervoerskosten vrijwilliger forfaietaire kost","Vervoerskosten vrijwilliger forfaietaire kost","Vervoerskosten vrijwilliger forfaietaire kost","Vervoerskosten vrijwilliger forfaietaire kost","Vervoerskosten vrijwilliger forfaietaire kost","Vervoerskosten vrijwilliger forfaietaire kost","Vervoerskosten vrijwilliger forfaietaire kost"]
[null,{"$f":"basisgegevens!B40","v":"Vervoerskosten assistenten"},"Vervoerskosten assistenten","Vervoerskosten assistenten","Vervoerskosten assistenten","Vervoerskosten assistenten","Vervoerskosten assistenten","Vervoerskosten assistenten","Vervoerskosten assistenten","Vervoerskosten assistenten","Vervoerskosten assistenten","Vervoerskosten assistenten","Vervoerskosten assistenten","Vervoerskosten assistenten","Vervoerskosten assistenten","Vervoerskosten assistenten","Vervoerskosten assistenten"]
{"$rows_empty":17}
[null,"website::www.datisdevraag.be"]
[]
[]
[]
[null,"macro alles leegmaken: is overal de  eerste lijn uitblanken"]

{"sheet":"keuzelijst bijstand","index":10,"n_rows":6,"n_cols":1,"rows_kept":6,"hidden":true}
[]
[{"$f":"basisgegevens!$B30","v":"Absoluut VZW"}]
[{"$f":"basisgegevens!$B31","v":"Alin VZW"}]
[{"$f":"basisgegevens!$B32","v":"My Assist VZW"}]
[{"$f":"basisgegevens!$B33","v":"Onafhankelijk leven VZw"}]
[{"$f":"basisgegevens!$B34","v":"Zoom VZW"}]

{"sheet":"invulscherm1","index":11,"n_rows":37,"n_cols":15,"rows_kept":37,"hidden":true,"merged":[[3,8,4,12],[5,0,6,0],[5,4,6,4],[5,6,6,6],[5,7,6,7],[5,8,6,8],[5,9,6,9],[5,10,6,10],[5,11,6,11],[5,12,6,12],[5,14,6,14]]}
["j"," ",{"$nulls":7},"op budget: J/n"]
[]
[null,null,2,7," ",2,4,null,9,10,11,null,15,14]
["Te besteden budget: "," ",{"$nulls":6},"Tarieven:"]
[]
["Aard assistentie:",{"$nulls":3},"Naam:",null,"Eenheid:","Gemiddeld maandaantal","Minimum","Maximum","Voorgesteld","Te gebruiken:","jaarbijdrage",null,"op budget?"]
[{"$nulls":13},"op budget?"]
[null,{"$f":"CONCATENATE('keuzelijst assistent'!B1)","v":""},{"$f":"IF(ISERROR(VLOOKUP(B8,basisgegevens!$A$1:$AB$50,$C$3,FALSE)),\"\",VLOOKUP(B8,basisgegevens!$A$1:$AB$404,$C$3,FALSE))","v":""},{"$f":"IF(ISERROR(VLOOKUP(B8,basisgegevens!$A$1:$ZL$50,$D$3,FALSE)),\"\",VLOOKUP(B8,basisgegevens!$A$1:$AB$50,$D$3,FALSE))","v":""},null,{"$f":"IF(ISERROR(VLOOKUP(B8,basisgegevens!A$1:$AB$50,$F$3,FALSE)),\" \",IF(B8=\"\",\"\",IF(D8=\"j\",CONCATENATE(C8,\"  \",E8),C8)))","v":" "},{"$f":"IF(ISERROR(VLOOKUP(B8,basisgegevens!$A$1:$AB$50,$G$3,FALSE)),\"\",VLOOKUP(B8,basisgegevens!$A$1:$AB$50,$G$3,FALSE))","v":""},null,{"$f":"IF(ISERROR(VLOOKUP(B8,basisgegevens!$A$1:$AB$50,$I$3,FALSE)),\"\",VLOOKUP(B8,basisgegevens!A1:AB50,$I$3,FALSE))","v":""},{"$f":"IF(ISERROR(VLOOKUP(B8,basisgegevens!$A$1:$AB$50,$J$3,FALSE)),\"\",VLOOKUP(B8,basisgegevens!$A$1:$AB$50,$J$3,FALSE))","v":""},{"$f":"IF(ISERROR(VLOOKUP(B8,basisgegevens!$A$1:$AB$50,$K$3,FALSE)),\"\",VLOOKUP(B8,basisgegevens!$A$1:$AB$50,$K$3,FALSE))","v":""},{"$f":"K8","v":""},{"$f":"IF(ISERROR(VLOOKUP(B8,basisgegevens!$A$1:$AB$50,$M$3,FALSE)),\"\",VLOOKUP(B8,basisgegevens!$A$1:$AB$50,$M$3,FALSE))","v":""},{"$f":"IF(ISERROR(VLOOKUP(B8,basisgegevens!$A$1:$AB$50,$N$3,FALSE)),\"\",VLOOKUP(B8,basisgegevens!$A$1:$AB$409,$N$3,FALSE))","v":""},{"$f":"N8","v":""}]
[null,{"$f":"CONCATENATE('keuzelijst assistent'!C1)","v":""},{"$f":"IF(ISERROR(VLOOKUP(B9,basisgegevens!$A$1:$AB$50,$C$3,FALSE)),\"\",VLOOKUP(B9,basisgegevens!$A$1:$AB$404,$C$3,FALSE))","v":""},{"$f":"IF(ISERROR(VLOOKUP(B9,basisgegevens!$A$1:$ZL$50,$D$3,FALSE)),\"\",VLOOKUP(B9,basisgegevens!$A$1:$AB$50,$D$3,FALSE))","v":""},null,{"$f":"IF(ISERROR(VLOOKUP(B9,basisgegevens!A$1:$AB$50,$F$3,FALSE)),\" \",IF(B9=\"\",\"\",IF(D9=\"j\",CONCATENATE(C9,\"  \",E9),C9)))","v":" "},{"$f":"IF(ISERROR(VLOOKUP(B9,basisgegevens!$A$1:$AB$50,$G$3,FALSE)),\"\",VLOOKUP(B9,basisgegevens!$A$1:$AB$50,$G$3,FALSE))","v":""},4,{"$f":"IF(ISERROR(VLOOKUP(B9,basisgegevens!$A$1:$AB$50,$I$3,FALSE)),\"\",VLOOKUP(B9,basisgegevens!A16:AB50,$I$3,FALSE))","v":""},{"$f":"IF(ISERROR(VLOOKUP(B9,basisgegevens!$A$1:$AB$50,$J$3,FALSE)),\"\",VLOOKUP(B9,basisgegevens!$A$1:$AB$50,$J$3,FALSE))","v":""},{"$f":"IF(ISERROR(VLOOKUP(B9,basisgegevens!$A$1:$AB$50,$K$3,FALSE)),\"\",VLOOKUP(B9,basisgegevens!$A$1:$AB$50,$K$3,FALSE))","v":""},{"$f":"K9","v":""},{"$f":"IF(ISERROR(VLOOKUP(B9,basisgegevens!$A$1:$AB$50,$M$3,FALSE)),\"\",VLOOKUP(B9,basisgegevens!$A$1:$AB$50,$M$3,FALSE))","v":""},{"$f":"IF(ISERROR(VLOOKUP(B9,basisgegevens!$A$1:$AB$50,$N$3,FALSE)),\"\",VLOOKUP(B9,basisgegevens!$A$1:$AB$409,$N$3,FALSE))","v":""},{"$f":"N9","v":""}]
[null,{"$f":"CONCATENATE('keuzelijst assistent'!D$1)","v":""},{"$f":"IF(ISERROR(VLOOKUP(B10,basisgegevens!$A$1:$AB$50,$C$3,FALSE)),\"\",VLOOKUP(B10,basisgegevens!$A$1:$AB$404,$C$3,FALSE))","v":""},{"$f":"IF(ISERROR(VLOOKUP(B10,basisgegevens!$A$1:$ZL$50,$D$3,FALSE)),\"\",VLOOKUP(B10,basisgegevens!$A$1:$AB$50,$D$3,FALSE))","v":""},null,{"$f":"IF(ISERROR(VLOOKUP(B10,basisgegevens!A$1:$AB$50,$F$3,FALSE)),\" \",IF(B10=\"\",\"\",IF(D10=\"j\",CONCATENATE(C10,\"  \",E10),C10)))","v":" "},{"$f":"IF(ISERROR(VLOOKUP(B10,basisgegevens!$A$1:$AB$50,$G$3,FALSE)),\"\",VLOOKUP(B10,basisgegevens!$A$1:$AB$50,$G$3,FALSE))","v":""},null,{"$f":"IF(ISERROR(VLOOKUP(B10,basisgegevens!$A$1:$AB$50,$I$3,FALSE)),\"\",VLOOKUP(B10,basisgegevens!A2:AB50,$I$3,FALSE))","v":""},{"$f":"IF(ISERROR(VLOOKUP(B10,basisgegevens!$A$1:$AB$50,$J$3,FALSE)),\"\",VLOOKUP(B10,basisgegevens!$A$1:$AB$50,$J$3,FALSE))","v":""},{"$f":"IF(ISERROR(VLOOKUP(B10,basisgegevens!$A$1:$AB$50,$K$3,FALSE)),\"\",VLOOKUP(B10,basisgegevens!$A$1:$AB$50,$K$3,FALSE))","v":""},"",{"$f":"IF(ISERROR(VLOOKUP(B10,basisgegevens!$A$1:$AB$50,$M$3,FALSE)),\"\",VLOOKUP(B10,basisgegevens!$A$1:$AB$50,$M$3,FALSE))","v":""},{"$f":"IF(ISERROR(VLOOKUP(B10,basisgegevens!$A$1:$AB$50,$N$3,FALSE)),\"\",VLOOKUP(B10,basisgegevens!$A$1:$AB$409,$N$3,FALSE))","v":""},""]
[null,{"$f":"CONCATENATE('keuzelijst assistent'!E$1)","v":""},{"$f":"IF(ISERROR(VLOOKUP(B11,basisgegevens!$A$1:$AB$50,$C$3,FALSE)),\"\",VLOOKUP(B11,basisgegevens!$A$1:$AB$404,$C$3,FALSE))","v":""},{"$f":"IF(ISERROR(VLOOKUP(B11,basisgegevens!$A$1:$ZL$50,$D$3,FALSE)),\"\",VLOOKUP(B11,basisgegevens!$A$1:$AB$50,$D$3,FALSE))","v":""},null,{"$f":"IF(ISERROR(VLOOKUP(B11,basisgegevens!A$1:$AB$50,$F$3,FALSE)),\" \",IF(B11=\"\",\"\",IF(D11=\"j\",CONCATENATE(C11,\"  \",E11),C11)))","v":" "},{"$f":"IF(ISERROR(VLOOKUP(B11,basisgegevens!$A$1:$AB$50,$G$3,FALSE)),\"\",VLOOKUP(B11,basisgegevens!$A$1:$AB$50,$G$3,FALSE))","v":""},null,{"$f":"IF(ISERROR(VLOOKUP(B11,basisgegevens!$A$1:$AB$50,$I$3,FALSE)),\"\",VLOOKUP(B11,basisgegevens!A23:AB50,$I$3,FALSE))","v":""},{"$f":"IF(ISERROR(VLOOKUP(B11,basisgegevens!$A$1:$AB$50,$J$3,FALSE)),\"\",VLOOKUP(B11,basisgegevens!$A$1:$AB$50,$J$3,FALSE))","v":""},{"$f":"IF(ISERROR(VLOOKUP(B11,basisgegevens!$A$1:$AB$50,$K$3,FALSE)),\"\",VLOOKUP(B11,basisgegevens!$A$1:$AB$50,$K$3,FALSE))","v":""},"",{"$f":"IF(ISERROR(VLOOKUP(B11,basisgegevens!$A$1:$AB$50,$M$3,FALSE)),\"\",VLOOKUP(B11,basisgegevens!$A$1:$AB$50,$M$3,FALSE))","v":""},{"$f":"IF(ISERROR(VLOOKUP(B11,basisgegevens!$A$1:$AB$50,$N$3,FALSE)),\"\",VLOOKUP(B11,basisgegevens!$A$1:$AB$409,$N$3,FALSE))","v":""},""]
[null,{"$f":"CONCATENATE('keuzelijst assistent'!F$1)","v":""},{"$f":"IF(ISERROR(VLOOKUP(B12,basisgegevens!$A$1:$AB$50,$C$3,FALSE)),\"\",VLOOKUP(B12,basisgegevens!$A$1:$AB$404,$C$3,FALSE))","v":""},{"$f":"IF(ISERROR(VLOOKUP(B12,basisgegevens!$A$1:$ZL$50,$D$3,FALSE)),\"\",VLOOKUP(B12,basisgegevens!$A$1:$AB$50,$D$3,FALSE))","v":""},null,{"$f":"IF(ISERROR(VLOOKUP(B12,basisgegevens!A$1:$AB$50,$F$3,FALSE)),\" \",IF(B12=\"\",\"\",IF(D12=\"j\",CONCATENATE(C12,\"  \",E12),C12)))","v":" "},{"$f":"IF(ISERROR(VLOOKUP(B12,basisgegevens!$A$1:$AB$50,$G$3,FALSE)),\"\",VLOOKUP(B12,basisgegevens!$A$1:$AB$50,$G$3,FALSE))","v":""},null,{"$f":"IF(ISERROR(VLOOKUP(B12,basisgegevens!$A$1:$AB$50,$I$3,FALSE)),\"\",VLOOKUP(B12,basisgegevens!A43:AB50,$I$3,FALSE))","v":""},{"$f":"IF(ISERROR(VLOOKUP(B12,basisgegevens!$A$1:$AB$50,$J$3,FALSE)),\"\",VLOOKUP(B12,basisgegevens!$A$1:$AB$50,$J$3,FALSE))","v":""},{"$f":"IF(ISERROR(VLOOKUP(B12,basisgegevens!$A$1:$AB$50,$K$3,FALSE)),\"\",VLOOKUP(B12,basisgegevens!$A$1:$AB$50,$K$3,FALSE))","v":""},"",{"$f":"IF(ISERROR(VLOOKUP(B12,basisgegevens!$A$1:$AB$50,$M$3,FALSE)),\"\",VLOOKUP(B12,basisgegevens!$A$1:$AB$50,$M$3,FALSE))","v":""},{"$f":"IF(ISERROR(VLOOKUP(B12,basisgegevens!$A$1:$AB$50,$N$3,FALSE)),\"\",VLOOKUP(B12,basisgegevens!$A$1:$AB$409,$N$3,FALSE))","v":""},""]
[null,{"$f":"CONCATENATE('keuzelijst assistent'!G$1)","v":""},{"$f":"IF(ISERROR(VLOOKUP(B13,basisgegevens!$A$1:$AB$50,$C$3,FALSE)),\"\",VLOOKUP(B13,basisgegevens!$A$1:$AB$404,$C$3,FALSE))","v":""},{"$f":"IF(ISERROR(VLOOKUP(B13,basisgegevens!$A$1:$ZL$50,$D$3,FALSE)),\"\",VLOOKUP(B13,basisgegevens!$A$1:$AB$50,$D$3,FALSE))","v":""},null,{"$f":"IF(ISERROR(VLOOKUP(B13,basisgegevens!A$1:$AB$50,$F$3,FALSE)),\" \",IF(B13=\"\",\"\",IF(D13=\"j\",CONCATENATE(C13,\"  \",E13),C13)))","v":" "},{"$f":"IF(ISERROR(VLOOKUP(B13,basisgegevens!$A$1:$AB$50,$G$3,FALSE)),\"\",VLOOKUP(B13,basisgegevens!$A$1:$AB$50,$G$3,FALSE))","v":""},null,{"$f":"IF(ISERROR(VLOOKUP(B13,basisgegevens!$A$1:$AB$50,$I$3,FALSE)),\"\",VLOOKUP(B13,basisgegevens!A23:AB50,$I$3,FALSE))","v":""},{"$f":"IF(ISERROR(VLOOKUP(B13,basisgegevens!$A$1:$AB$50,$J$3,FALSE)),\"\",VLOOKUP(B13,basisgegevens!$A$1:$AB$50,$J$3,FALSE))","v":""},{"$f":"IF(ISERROR(VLOOKUP(B13,basisgegevens!$A$1:$AB$50,$K$3,FALSE)),\"\",VLOOKUP(B13,basisgegevens!$A$1:$AB$50,$K$3,FALSE))","v":""},"",{"$f":"IF(ISERROR(VLOOKUP(B13,basisgegevens!$A$1:$AB$50,$M$3,FALSE)),\"\",VLOOKUP(B13,basisgegevens!$A$1:$AB$50,$M$3,FALSE))","v":""},{"$f":"IF(ISERROR(VLOOKUP(B13,basisgegevens!$A$1:$AB$50,$N$3,FALSE)),\"\",VLOOKUP(B13,basisgegevens!$A$1:$AB$409,$N$3,FALSE))","v":""},""]
[null,{"$f":"CONCATENATE('keuzelijst assistent'!H$1)","v":""},{"$f":"IF(ISERROR(VLOOKUP(B14,basisgegevens!$A$1:$AB$50,$C$3,FALSE)),\"\",VLOOKUP(B14,basisgegevens!$A$1:$AB$404,$C$3,FALSE))","v":""},{"$f":"IF(ISERROR(VLOOKUP(B14,basisgegevens!$A$1:$ZL$50,$D$3,FALSE)),\"\",VLOOKUP(B14,basisgegevens!$A$1:$AB$50,$D$3,FALSE))","v":""},null,{"$f":"IF(ISERROR(VLOOKUP(B14,basisgegevens!A$1:$AB$50,$F$3,FALSE)),\" \",IF(B14=\"\",\"\",IF(D14=\"j\",CONCATENATE(C14,\"  \",E14),C14)))","v":" "},{"$f":"IF(ISERROR(VLOOKUP(B14,basisgegevens!$A$1:$AB$50,$G$3,FALSE)),\"\",VLOOKUP(B14,basisgegevens!$A$1:$AB$50,$G$3,FALSE))","v":""},null,{"$f":"IF(ISERROR(VLOOKUP(B14,basisgegevens!$A$1:$AB$50,$I$3,FALSE)),\"\",VLOOKUP(B14,basisgegevens!A8:AB50,$I$3,FALSE))","v":""},{"$f":"IF(ISERROR(VLOOKUP(B14,basisgegevens!$A$1:$AB$50,$J$3,FALSE)),\"\",VLOOKUP(B14,basisgegevens!$A$1:$AB$50,$J$3,FALSE))","v":""},{"$f":"IF(ISERROR(VLOOKUP(B14,basisgegevens!$A$1:$AB$50,$K$3,FALSE)),\"\",VLOOKUP(B14,basisgegevens!$A$1:$AB$50,$K$3,FALSE))","v":""},"",{"$f":"IF(ISERROR(VLOOKUP(B14,basisgegevens!$A$1:$AB$50,$M$3,FALSE)),\"\",VLOOKUP(B14,basisgegevens!$A$1:$AB$50,$M$3,FALSE))","v":""},{"$f":"IF(ISERROR(VLOOKUP(B14,basisgegevens!$A$1:$AB$50,$N$3,FALSE)),\"\",VLOOKUP(B14,basisgegevens!$A$1:$AB$409,$N$3,FALSE))","v":""},""]
[null,{"$f":"CONCATENATE('keuzelijst assistent'!I$1)","v":""},{"$f":"IF(ISERROR(VLOOKUP(B15,basisgegevens!$A$1:$AB$50,$C$3,FALSE)),\"\",VLOOKUP(B15,basisgegevens!$A$1:$AB$404,$C$3,FALSE))","v":""},{"$f":"IF(ISERROR(VLOOKUP(B15,basisgegevens!$A$1:$ZL$50,$D$3,FALSE)),\"\",VLOOKUP(B15,basisgegevens!$A$1:$AB$50,$D$3,FALSE))","v":""},"ingrid",{"$f":"IF(ISERROR(VLOOKUP(B15,basisgegevens!A$1:$AB$50,$F$3,FALSE)),\" \",IF(B15=\"\",\"\",IF(D15=\"j\",CONCATENATE(C15,\"  \",E15),C15)))","v":" "},{"$f":"IF(ISERROR(VLOOKUP(B15,basisgegevens!$A$1:$AB$50,$G$3,FALSE)),\"\",VLOOKUP(B15,basisgegevens!$A$1:$AB$50,$G$3,FALSE))","v":""},null,{"$f":"IF(ISERROR(VLOOKUP(B15,basisgegevens!$A$1:$AB$50,$I$3,FALSE)),\"\",VLOOKUP(B15,basisgegevens!A4:AB50,$I$3,FALSE))","v":""},{"$f":"IF(ISERROR(VLOOKUP(B15,basisgegevens!$A$1:$AB$50,$J$3,FALSE)),\"\",VLOOKUP(B15,basisgegevens!$A$1:$AB$50,$J$3,FALSE))","v":""},{"$f":"IF(ISERROR(VLOOKUP(B15,basisgegevens!$A$1:$AB$50,$K$3,FALSE)),\"\",VLOOKUP(B15,basisgegevens!$A$1:$AB$50,$K$3,FALSE))","v":""},"",{"$f":"IF(ISERROR(VLOOKUP(B15,basisgegevens!$A$1:$AB$50,$M$3,FALSE)),\"\",VLOOKUP(B15,basisgegevens!$A$1:$AB$50,$M$3,FALSE))","v":""},{"$f":"IF(ISERROR(VLOOKUP(B15,basisgegevens!$A$1:$AB$50,$N$3,FALSE)),\"\",VLOOKUP(B15,basisgegevens!$A$1:$AB$409,$N$3,FALSE))","v":""},""]
[null,{"$f":"CONCATENATE('keuzelijst assistent'!J$1)","v":""},{"$f":"IF(ISERROR(VLOOKUP(B16,basisgegevens!$A$1:$AB$50,$C$3,FALSE)),\"\",VLOOKUP(B16,basisgegevens!$A$1:$AB$404,$C$3,FALSE))","v":""},{"$f":"IF(ISERROR(VLOOKUP(B16,basisgegevens!$A$1:$ZL$50,$D$3,FALSE)),\"\",VLOOKUP(B16,basisgegevens!$A$1:$AB$50,$D$3,FALSE))","v":""},"Noor",{"$f":"IF(ISERROR(VLOOKUP(B16,basisgegevens!A$1:$AB$50,$F$3,FALSE)),\" \",IF(B16=\"\",\"\",IF(D16=\"j\",CONCATENATE(C16,\"  \",E16),C16)))","v":" "},{"$f":"IF(ISERROR(VLOOKUP(B16,basisgegevens!$A$1:$AB$50,$G$3,FALSE)),\"\",VLOOKUP(B16,basisgegevens!$A$1:$AB$50,$G$3,FALSE))","v":""},null,{"$f":"IF(ISERROR(VLOOKUP(B16,basisgegevens!$A$1:$AB$50,$I$3,FALSE)),\"\",VLOOKUP(B16,basisgegevens!A23:AB50,$I$3,FALSE))","v":""},{"$f":"IF(ISERROR(VLOOKUP(B16,basisgegevens!$A$1:$AB$50,$J$3,FALSE)),\"\",VLOOKUP(B16,basisgegevens!$A$1:$AB$50,$J$3,FALSE))","v":""},{"$f":"IF(ISERROR(VLOOKUP(B16,basisgegevens!$A$1:$AB$50,$K$3,FALSE)),\"\",VLOOKUP(B16,basisgegevens!$A$1:$AB$50,$K$3,FALSE))","v":""},"",{"$f":"IF(ISERROR(VLOOKUP(B16,basisgegevens!$A$1:$AB$50,$M$3,FALSE)),\"\",VLOOKUP(B16,basisgegevens!$A$1:$AB$50,$M$3,FALSE))","v":""},{"$f":"IF(ISERROR(VLOOKUP(B16,basisgegevens!$A$1:$AB$50,$N$3,FALSE)),\"\",VLOOKUP(B16,basisgegevens!$A$1:$AB$409,$N$3,FALSE))","v":""},""]
[null,{"$f":"CONCATENATE('keuzelijst assistent'!K$1)","v":""},{"$f":"IF(ISERROR(VLOOKUP(B17,basisgegevens!$A$1:$AB$50,$C$3,FALSE)),\"\",VLOOKUP(B17,basisgegevens!$A$1:$AB$404,$C$3,FALSE))","v":""},{"$f":"IF(ISERROR(VLOOKUP(B17,basisgegevens!$A$1:$ZL$50,$D$3,FALSE)),\"\",VLOOKUP(B17,basisgegevens!$A$1:$AB$50,$D$3,FALSE))","v":""},"Emma",{"$f":"IF(ISERROR(VLOOKUP(B17,basisgegevens!A$1:$AB$50,$F$3,FALSE)),\" \",IF(B17=\"\",\"\",IF(D17=\"j\",CONCATENATE(C17,\"  \",E17),C17)))","v":" "},{"$f":"IF(ISERROR(VLOOKUP(B17,basisgegevens!$A$1:$AB$50,$G$3,FALSE)),\"\",VLOOKUP(B17,basisgegevens!$A$1:$AB$50,$G$3,FALSE))","v":""},null,{"$f":"IF(ISERROR(VLOOKUP(B17,basisgegevens!$A$1:$AB$50,$I$3,FALSE)),\"\",VLOOKUP(B17,basisgegevens!A8:AB51,$I$3,FALSE))","v":""},{"$f":"IF(ISERROR(VLOOKUP(B17,basisgegevens!$A$1:$AB$50,$J$3,FALSE)),\"\",VLOOKUP(B17,basisgegevens!$A$1:$AB$50,$J$3,FALSE))","v":""},{"$f":"IF(ISERROR(VLOOKUP(B17,basisgegevens!$A$1:$AB$50,$K$3,FALSE)),\"\",VLOOKUP(B17,basisgegevens!$A$1:$AB$50,$K$3,FALSE))","v":""},"",{"$f":"IF(ISERROR(VLOOKUP(B17,basisgegevens!$A$1:$AB$50,$M$3,FALSE)),\"\",VLOOKUP(B17,basisgegevens!$A$1:$AB$50,$M$3,FALSE))","v":""},{"$f":"IF(ISERROR(VLOOKUP(B17,basisgegevens!$A$1:$AB$50,$N$3,FALSE)),\"\",VLOOKUP(B17,basisgegevens!$A$1:$AB$409,$N$3,FALSE))","v":""},""]
[null,{"$f":"CONCATENATE('keuzelijst assistent'!L$1)","v":""},{"$f":"IF(ISERROR(VLOOKUP(B18,basisgegevens!$A$1:$AB$50,$C$3,FALSE)),\"\",VLOOKUP(B18,basisgegevens!$A$1:$AB$404,$C$3,FALSE))","v":""},{"$f":"IF(ISERROR(VLOOKUP(B18,basisgegevens!$A$1:$ZL$50,$D$3,FALSE)),\"\",VLOOKUP(B18,basisgegevens!$A$1:$AB$50,$D$3,FALSE))","v":""},"Wim",{"$f":"IF(ISERROR(VLOOKUP(B18,basisgegevens!A$1:$AB$50,$F$3,FALSE)),\" \",IF(B18=\"\",\"\",IF(D18=\"j\",CONCATENATE(C18,\"  \",E18),C18)))","v":" "},{"$f":"IF(ISERROR(VLOOKUP(B18,basisgegevens!$A$1:$AB$50,$G$3,FALSE)),\"\",VLOOKUP(B18,basisgegevens!$A$1:$AB$50,$G$3,FALSE))","v":""},null,{"$f":"IF(ISERROR(VLOOKUP(B18,basisgegevens!$A$1:$AB$50,$I$3,FALSE)),\"\",VLOOKUP(B18,basisgegevens!A8:AB52,$I$3,FALSE))","v":""},{"$f":"IF(ISERROR(VLOOKUP(B18,basisgegevens!$A$1:$AB$50,$J$3,FALSE)),\"\",VLOOKUP(B18,basisgegevens!$A$1:$AB$50,$J$3,FALSE))","v":""},{"$f":"IF(ISERROR(VLOOKUP(B18,basisgegevens!$A$1:$AB$50,$K$3,FALSE)),\"\",VLOOKUP(B18,basisgegevens!$A$1:$AB$50,$K$3,FALSE))","v":""},"",{"$f":"IF(ISERROR(VLOOKUP(B18,basisgegevens!$A$1:$AB$50,$M$3,FALSE)),\"\",VLOOKUP(B18,basisgegevens!$A$1:$AB$50,$M$3,FALSE))","v":""},{"$f":"IF(ISERROR(VLOOKUP(B18,basisgegevens!$A$1:$AB$50,$N$3,FALSE)),\"\",VLOOKUP(B18,basisgegevens!$A$1:$AB$409,$N$3,FALSE))","v":""},""]
[null,{"$f":"CONCATENATE('keuzelijst assistent'!M$1)","v":""},{"$f":"IF(ISERROR(VLOOKUP(B19,basisgegevens!$A$1:$AB$50,$C$3,FALSE)),\"\",VLOOKUP(B19,basisgegevens!$A$1:$AB$404,$C$3,FALSE))","v":""},{"$f":"IF(ISERROR(VLOOKUP(B19,basisgegevens!$A$1:$ZL$50,$D$3,FALSE)),\"\",VLOOKUP(B19,basisgegevens!$A$1:$AB$50,$D$3,FALSE))","v":""},null,{"$f":"IF(ISERROR(VLOOKUP(B19,basisgegevens!A$1:$AB$50,$F$3,FALSE)),\" \",IF(B19=\"\",\"\",IF(D19=\"j\",CONCATENATE(C19,\"  \",E19),C19)))","v":" "},{"$f":"IF(ISERROR(VLOOKUP(B19,basisgegevens!$A$1:$AB$50,$G$3,FALSE)),\"\",VLOOKUP(B19,basisgegevens!$A$1:$AB$50,$G$3,FALSE))","v":""},null,{"$f":"IF(ISERROR(VLOOKUP(B19,basisgegevens!$A$1:$AB$50,$I$3,FALSE)),\"\",VLOOKUP(B19,basisgegevens!A8:AB53,$I$3,FALSE))","v":""},{"$f":"IF(ISERROR(VLOOKUP(B19,basisgegevens!$A$1:$AB$50,$J$3,FALSE)),\"\",VLOOKUP(B19,basisgegevens!$A$1:$AB$50,$J$3,FALSE))","v":""},{"$f":"IF(ISERROR(VLOOKUP(B19,basisgegevens!$A$1:$AB$50,$K$3,FALSE)),\"\",VLOOKUP(B19,basisgegevens!$A$1:$AB$50,$K$3,FALSE))","v":""},"",{"$f":"IF(ISERROR(VLOOKUP(B19,basisgegevens!$A$1:$AB$50,$M$3,FALSE)),\"\",VLOOKUP(B19,basisgegevens!$A$1:$AB$50,$M$3,FALSE))","v":""},{"$f":"IF(ISERROR(VLOOKUP(B19,basisgegevens!$A$1:$AB$50,$N$3,FALSE)),\"\",VLOOKUP(B19,basisgegevens!$A$1:$AB$409,$N$3,FALSE))","v":""},""]
[null,{"$f":"CONCATENATE('keuzelijst assistent'!N$1)","v":""},{"$f":"IF(ISERROR(VLOOKUP(B20,basisgegevens!$A$1:$AB$50,$C$3,FALSE)),\"\",VLOOKUP(B20,basisgegevens!$A$1:$AB$404,$C$3,FALSE))","v":""},{"$f":"IF(ISERROR(VLOOKUP(B20,basisgegevens!$A$1:$ZL$50,$D$3,FALSE)),\"\",VLOOKUP(B20,basisgegevens!$A$1:$AB$50,$D$3,FALSE))","v":""},null,{"$f":"IF(ISERROR(VLOOKUP(B20,basisgegevens!A$1:$AB$50,$F$3,FALSE)),\" \",IF(B20=\"\",\"\",IF(D20=\"j\",CONCATENATE(C20,\"  \",E20),C20)))","v":" "},{"$f":"IF(ISERROR(VLOOKUP(B20,basisgegevens!$A$1:$AB$50,$G$3,FALSE)),\"\",VLOOKUP(B20,basisgegevens!$A$1:$AB$50,$G$3,FALSE))","v":""},null,{"$f":"IF(ISERROR(VLOOKUP(B20,basisgegevens!$A$1:$AB$50,$I$3,FALSE)),\"\",VLOOKUP(B20,basisgegevens!A25:AB54,$I$3,FALSE))","v":""},{"$f":"IF(ISERROR(VLOOKUP(B20,basisgegevens!$A$1:$AB$50,$J$3,FALSE)),\"\",VLOOKUP(B20,basisgegevens!$A$1:$AB$50,$J$3,FALSE))","v":""},{"$f":"IF(ISERROR(VLOOKUP(B20,basisgegevens!$A$1:$AB$50,$K$3,FALSE)),\"\",VLOOKUP(B20,basisgegevens!$A$1:$AB$50,$K$3,FALSE))","v":""},"",{"$f":"IF(ISERROR(VLOOKUP(B20,basisgegevens!$A$1:$AB$50,$M$3,FALSE)),\"\",VLOOKUP(B20,basisgegevens!$A$1:$AB$50,$M$3,FALSE))","v":""},{"$f":"IF(ISERROR(VLOOKUP(B20,basisgegevens!$A$1:$AB$50,$N$3,FALSE)),\"\",VLOOKUP(B20,basisgegevens!$A$1:$AB$409,$N$3,FALSE))","v":""},""]
[null,{"$f":"CONCATENATE('keuzelijst assistent'!O$1)","v":""},{"$f":"IF(ISERROR(VLOOKUP(B21,basisgegevens!$A$1:$AB$50,$C$3,FALSE)),\"\",VLOOKUP(B21,basisgegevens!$A$1:$AB$404,$C$3,FALSE))","v":""},{"$f":"IF(ISERROR(VLOOKUP(B21,basisgegevens!$A$1:$ZL$50,$D$3,FALSE)),\"\",VLOOKUP(B21,basisgegevens!$A$1:$AB$50,$D$3,FALSE))","v":""},null,{"$f":"IF(ISERROR(VLOOKUP(B21,basisgegevens!A$1:$AB$50,$F$3,FALSE)),\" \",IF(B21=\"\",\"\",IF(D21=\"j\",CONCATENATE(C21,\"  \",E21),C21)))","v":" "},{"$f":"IF(ISERROR(VLOOKUP(B21,basisgegevens!$A$1:$AB$50,$G$3,FALSE)),\"\",VLOOKUP(B21,basisgegevens!$A$1:$AB$50,$G$3,FALSE))","v":""},null,{"$f":"IF(ISERROR(VLOOKUP(B21,basisgegevens!$A$1:$AB$50,$I$3,FALSE)),\"\",VLOOKUP(B21,basisgegevens!A4:AB55,$I$3,FALSE))","v":""},{"$f":"IF(ISERROR(VLOOKUP(B21,basisgegevens!$A$1:$AB$50,$J$3,FALSE)),\"\",VLOOKUP(B21,basisgegevens!$A$1:$AB$50,$J$3,FALSE))","v":""},{"$f":"IF(ISERROR(VLOOKUP(B21,basisgegevens!$A$1:$AB$50,$K$3,FALSE)),\"\",VLOOKUP(B21,basisgegevens!$A$1:$AB$50,$K$3,FALSE))","v":""},"",{"$f":"IF(ISERROR(VLOOKUP(B21,basisgegevens!$A$1:$AB$50,$M$3,FALSE)),\"\",VLOOKUP(B21,basisgegevens!$A$1:$AB$50,$M$3,FALSE))","v":""},{"$f":"IF(ISERROR(VLOOKUP(B21,basisgegevens!$A$1:$AB$50,$N$3,FALSE)),\"\",VLOOKUP(B21,basisgegevens!$A$1:$AB$409,$N$3,FALSE))","v":""},""]
[null,{"$f":"CONCATENATE('keuzelijst assistent'!P$1)","v":""},{"$f":"IF(ISERROR(VLOOKUP(B22,basisgegevens!$A$1:$AB$50,$C$3,FALSE)),\"\",VLOOKUP(B22,basisgegevens!$A$1:$AB$404,$C$3,FALSE))","v":""},{"$f":"IF(ISERROR(VLOOKUP(B22,basisgegevens!$A$1:$ZL$50,$D$3,FALSE)),\"\",VLOOKUP(B22,basisgegevens!$A$1:$AB$50,$D$3,FALSE))","v":""},null,{"$f":"IF(ISERROR(VLOOKUP(B22,basisgegevens!A$1:$AB$50,$F$3,FALSE)),\" \",IF(B22=\"\",\"\",IF(D22=\"j\",CONCATENATE(C22,\"  \",E22),C22)))","v":" "},{"$f":"IF(ISERROR(VLOOKUP(B22,basisgegevens!$A$1:$AB$50,$G$3,FALSE)),\"\",VLOOKUP(B22,basisgegevens!$A$1:$AB$50,$G$3,FALSE))","v":""},35,{"$f":"IF(ISERROR(VLOOKUP(B22,basisgegevens!$A$1:$AB$50,$I$3,FALSE)),\"\",VLOOKUP(B22,basisgegevens!A24:AB56,$I$3,FALSE))","v":""},{"$f":"IF(ISERROR(VLOOKUP(B22,basisgegevens!$A$1:$AB$50,$J$3,FALSE)),\"\",VLOOKUP(B22,basisgegevens!$A$1:$AB$50,$J$3,FALSE))","v":""},{"$f":"IF(ISERROR(VLOOKUP(B22,basisgegevens!$A$1:$AB$50,$K$3,FALSE)),\"\",VLOOKUP(B22,basisgegevens!$A$1:$AB$50,$K$3,FALSE))","v":""},"",{"$f":"IF(ISERROR(VLOOKUP(B22,basisgegevens!$A$1:$AB$50,$M$3,FALSE)),\"\",VLOOKUP(B22,basisgegevens!$A$1:$AB$50,$M$3,FALSE))","v":""},{"$f":"IF(ISERROR(VLOOKUP(B22,basisgegevens!$A$1:$AB$50,$N$3,FALSE)),\"\",VLOOKUP(B22,basisgegevens!$A$1:$AB$409,$N$3,FALSE))","v":""},""]
[null,{"$f":"CONCATENATE('keuzelijst assistent'!Q$1)","v":""},{"$f":"IF(ISERROR(VLOOKUP(B23,basisgegevens!$A$1:$AB$50,$C$3,FALSE)),\"\",VLOOKUP(B23,basisgegevens!$A$1:$AB$404,$C$3,FALSE))","v":""},{"$f":"IF(ISERROR(VLOOKUP(B23,basisgegevens!$A$1:$ZL$50,$D$3,FALSE)),\"\",VLOOKUP(B23,basisgegevens!$A$1:$AB$50,$D$3,FALSE))","v":""},null,{"$f":"IF(ISERROR(VLOOKUP(B23,basisgegevens!A$1:$AB$50,$F$3,FALSE)),\" \",IF(B23=\"\",\"\",IF(D23=\"j\",CONCATENATE(C23,\"  \",E23),C23)))","v":" "},{"$f":"IF(ISERROR(VLOOKUP(B23,basisgegevens!$A$1:$AB$50,$G$3,FALSE)),\"\",VLOOKUP(B23,basisgegevens!$A$1:$AB$50,$G$3,FALSE))","v":""},null,{"$f":"IF(ISERROR(VLOOKUP(B23,basisgegevens!$A$1:$AB$50,$I$3,FALSE)),\"\",VLOOKUP(B23,basisgegevens!A25:AB57,$I$3,FALSE))","v":""},{"$f":"IF(ISERROR(VLOOKUP(B23,basisgegevens!$A$1:$AB$50,$J$3,FALSE)),\"\",VLOOKUP(B23,basisgegevens!$A$1:$AB$50,$J$3,FALSE))","v":""},{"$f":"IF(ISERROR(VLOOKUP(B23,basisgegevens!$A$1:$AB$50,$K$3,FALSE)),\"\",VLOOKUP(B23,basisgegevens!$A$1:$AB$50,$K$3,FALSE))","v":""},"",{"$f":"IF(ISERROR(VLOOKUP(B23,basisgegevens!$A$1:$AB$50,$M$3,FALSE)),\"\",VLOOKUP(B23,basisgegevens!$A$1:$AB$50,$M$3,FALSE))","v":""},{"$f":"IF(ISERROR(VLOOKUP(B23,basisgegevens!$A$1:$AB$50,$N$3,FALSE)),\"\",VLOOKUP(B23,basisgegevens!$A$1:$AB$409,$N$3,FALSE))","v":""},""]
[{"$nulls":6},{"$f":"IF(ISERROR(VLOOKUP(B24,basisgegevens!$A$1:$AB$50,$G$3,FALSE)),\"\",VLOOKUP(B24,basisgegevens!$A$1:$AB$50,$G$3,FALSE))","v":""},{"$nulls":3},{"$f":"IF(ISERROR(VLOOKUP(B24,basisgegevens!$A$1:$AB$50,$K$3,FALSE)),\"\",VLOOKUP(B24,basisgegevens!$A$1:$AB$50,$K$3,FALSE))","v":""},null,{"$f":"IF(ISERROR(VLOOKUP(B24,basisgegevens!$A$1:$AB$50,$M$3,FALSE)),\"\",VLOOKUP(B24,basisgegevens!$A$1:$AB$50,$M$3,FALSE))","v":""},{"$f":"IF(ISERROR(VLOOKUP(B24,basisgegevens!$A$1:$AB$50,$N$3,FALSE)),\"\",VLOOKUP(B24,basisgegevens!$A$1:$AB$409,$N$3,FALSE))","v":""},""]
[]
[]
[]
["Gemiddeld = te gebruiken, maar kan ook het meest gebruikt bedrag zijn??? Vb MMC 0,3?",{"$nulls":10},"aangepast bedrag hoe aanduiden? Achtergrond, of tekstkleur?"]
[{"$nulls":11},"buiten de grenzen: rode achtergrond??"]
["jaarbedrag: te wijzigen??"]
[]
[]
["wat deon bij wijzigingen?"]
["lijnen kunnen niet zomaar gecopierd worden, max aantal te voorzien"]
[]
["Evebtueel in groepen werken !!"]
["Blok vervoer, blok assistenten…."]

{"sheet":"individuele bedragen","index":12,"n_rows":45,"n_cols":24,"rows_kept":45,"merged":[[3,8,4,12],[5,0,6,0],[5,1,6,1],[5,5,6,5],[5,7,6,7],[5,8,6,8],[5,9,6,9],[5,10,6,10],[5,11,6,11],[5,12,6,12],[5,13,5,14],[5,15,6,15],[5,16,6,16],[5,17,6,17],[5,18,6,18],[5,19,6,19]]}
[]
[]
[{"$nulls":3},2,9," ",2,4,null,11,12,13,null,6,7,null,17,16,null,14]
[" "," ",{"$nulls":6},"TARIEVEN"]
[]
["WISSEN LIJN","AARD ONDERSTEUNING",{"$nulls":3},"NAAM",null,"EENHEID","GEMIDDELD MAANDAANTAL","MINIMUM","MAXIMUM","RICHTPRIJS","REËLE PRIJS","FACTOR",null,"RAMING KOSTPRIJS","EXTRA KOSTEN PER JAAR","OP BUDGET?","OP BUDGET?","JAARLIMIET"]
[{"$nulls":13},"+ of *"," "]
[null,"  Assistenten",{"$nulls":11},{"$f":"IF(ISERROR(VLOOKUP(C8,basisgegevens!$A$1:$AB$50,$N$3,FALSE)),\"\",IF(VLOOKUP(C8,basisgegevens!$A$1:$AB$50,$N$3,FALSE)=0,\"\",VLOOKUP(C8,basisgegevens!$A$1:$AB$50,$N$3,FALSE)))","v":""}]
[null,null,{"$f":"IF('keuzelijst assistent'!$B$1=\"\",\"\",CONCATENATE('keuzelijst assistent'!$B$1))","v":""},{"$f":"IF(ISERROR(VLOOKUP(C9,basisgegevens!$A$1:$AB$50,$D$3,FALSE)),\"\",VLOOKUP(C9,basisgegevens!$A$1:$AB$404,$D$3,FALSE))","v":""},{"$f":"IF(ISERROR(VLOOKUP(C9,basisgegevens!$A$1:$ZL$50,$E$3,FALSE)),\"\",VLOOKUP(C9,basisgegevens!$A$1:$AB$50,$E$3,FALSE))","v":""},null,{"$f":"IF(C9=\"\",\"\",CONCATENATE(D9,\"  \",F9))","v":""},{"$f":"IF(ISERROR(VLOOKUP(C9,basisgegevens!$A$1:$AB$50,$H$3,FALSE)),\"\",VLOOKUP(C9,basisgegevens!$A$1:$AB$50,$H$3,FALSE))","v":""},null,{"$f":"IF(ISERROR(VLOOKUP(C9,basisgegevens!$A$1:$AB$50,$J$3,FALSE)),\"\",VLOOKUP(C9,basisgegevens!$A$1:$AB$50,$J$3,FALSE))","v":""},{"$f":"IF(ISERROR(VLOOKUP(C9,basisgegevens!$A$1:$AB$50,$K$3,FALSE)),\"\",VLOOKUP(C9,basisgegevens!$A$1:$AB$50,$K$3,FALSE))","v":""},{"$f":"IF(ISERROR(VLOOKUP(C9,basisgegevens!$A$1:$AB$50,$L$3,FALSE)),\"\",VLOOKUP(C9,basisgegevens!$A$1:$AB$50,$L$3,FALSE))","v":""},{"$f":"IF(L9=\"\",\"\",L9)","v":""},{"$f":"IF(ISERROR(VLOOKUP(C9,basisgegevens!$A$1:$AB$50,$N$3,FALSE)),\"\",IF(VLOOKUP(C9,basisgegevens!$A$1:$AB$50,$N$3,FALSE)=0,\"\",VLOOKUP(C9,basisgegevens!$A$1:$AB$50,$N$3,FALSE)))","v":""},{"$f":"IF(ISERROR(VLOOKUP(C9,basisgegevens!$A$1:$AB$50,$O$3,FALSE)),\"\",VLOOKUP(C9,basisgegevens!$A$1:$AB$50,$O$3,FALSE))","v":""},{"$f":"IF(M9=\"\",\"\",IF(M9=0,0,IF(N9=\"+\",M9+O9,IF(N9=\"*\",M9*O9,M9))))","v":""},{"$f":"IF(ISERROR(VLOOKUP(C9,basisgegevens!$A$1:$AB$50,$Q$3,FALSE)),\"\",VLOOKUP(C9,basisgegevens!$A$1:$AB$50,$Q$3,FALSE))","v":""},{"$f":"IF(ISERROR(VLOOKUP(C9,basisgegevens!$A$1:$AB$50,$R$3,FALSE)),\"\",VLOOKUP(C9,basisgegevens!$A$1:$AB$409,$R$3,FALSE))","v":""},{"$f":"R9","v":""},{"$f":"IF(ISERROR(VLOOKUP(C9,basisgegevens!$A$1:$AB$50,$T$3,FALSE)),\"\",VLOOKUP(C9,basisgegevens!$A$1:$AB$409,$T$3,FALSE))","v":""}]
[null,null,{"$f":"IF('keuzelijst assistent'!$C$1=\"\",\"\",CONCATENATE('keuzelijst assistent'!$C$1))","v":""},{"$f":"IF(ISERROR(VLOOKUP(C10,basisgegevens!$A$1:$AB$50,$D$3,FALSE)),\"\",VLOOKUP(C10,basisgegevens!$A$1:$AB$404,$D$3,FALSE))","v":""},{"$f":"IF(ISERROR(VLOOKUP(C10,basisgegevens!$A$1:$ZL$50,$E$3,FALSE)),\"\",VLOOKUP(C10,basisgegevens!$A$1:$AB$50,$E$3,FALSE))","v":""},null,{"$f":"IF(C10=\"\",\"\",CONCATENATE(D10,\"  \",F10))","v":""},{"$f":"IF(ISERROR(VLOOKUP(C10,basisgegevens!$A$1:$AB$50,$H$3,FALSE)),\"\",VLOOKUP(C10,basisgegevens!$A$1:$AB$50,$H$3,FALSE))","v":""},null,{"$f":"IF(ISERROR(VLOOKUP(C10,basisgegevens!$A$1:$AB$50,$J$3,FALSE)),\"\",VLOOKUP(C10,basisgegevens!$A$1:$AB$50,$J$3,FALSE))","v":""},{"$f":"IF(ISERROR(VLOOKUP(C10,basisgegevens!$A$1:$AB$50,$K$3,FALSE)),\"\",VLOOKUP(C10,basisgegevens!$A$1:$AB$50,$K$3,FALSE))","v":""},{"$f":"IF(ISERROR(VLOOKUP(C10,basisgegevens!$A$1:$AB$50,$L$3,FALSE)),\"\",VLOOKUP(C10,basisgegevens!$A$1:$AB$50,$L$3,FALSE))","v":""},{"$f":"IF(L10=\"\",\"\",L10)","v":""},{"$f":"IF(ISERROR(VLOOKUP(C10,basisgegevens!$A$1:$AB$50,$N$3,FALSE)),\"\",IF(VLOOKUP(C10,basisgegevens!$A$1:$AB$50,$N$3,FALSE)=0,\"\",VLOOKUP(C10,basisgegevens!$A$1:$AB$50,$N$3,FALSE)))","v":""},{"$f":"IF(ISERROR(VLOOKUP(C10,basisgegevens!$A$1:$AB$50,$O$3,FALSE)),\"\",VLOOKUP(C10,basisgegevens!$A$1:$AB$50,$O$3,FALSE))","v":""},{"$f":"IF(M10=\"\",\"\",IF(M10=0,0,IF(N10=\"+\",M10+O10,IF(N10=\"*\",M10*O10,M10))))","v":""},{"$f":"IF(ISERROR(VLOOKUP(C10,basisgegevens!$A$1:$AB$50,$Q$3,FALSE)),\"\",VLOOKUP(C10,basisgegevens!$A$1:$AB$50,$Q$3,FALSE))","v":""},{"$f":"IF(ISERROR(VLOOKUP(C10,basisgegevens!$A$1:$AB$50,$R$3,FALSE)),\"\",VLOOKUP(C10,basisgegevens!$A$1:$AB$409,$R$3,FALSE))","v":""},{"$f":"R10","v":""},{"$f":"IF(ISERROR(VLOOKUP(C10,basisgegevens!$A$1:$AB$50,$T$3,FALSE)),\"\",VLOOKUP(C10,basisgegevens!$A$1:$AB$409,$T$3,FALSE))","v":""},{"$nulls":3}," "]
[null,null,{"$f":"IF('keuzelijst assistent'!$D$1=\"\",\"\",CONCATENATE('keuzelijst assistent'!$D$1))","v":""},{"$f":"IF(ISERROR(VLOOKUP(C11,basisgegevens!$A$1:$AB$50,$D$3,FALSE)),\"\",VLOOKUP(C11,basisgegevens!$A$1:$AB$404,$D$3,FALSE))","v":""},{"$f":"IF(ISERROR(VLOOKUP(C11,basisgegevens!$A$1:$ZL$50,$E$3,FALSE)),\"\",VLOOKUP(C11,basisgegevens!$A$1:$AB$50,$E$3,FALSE))","v":""},null,"",{"$f":"IF(ISERROR(VLOOKUP(C11,basisgegevens!$A$1:$AB$50,$H$3,FALSE)),\"\",VLOOKUP(C11,basisgegevens!$A$1:$AB$50,$H$3,FALSE))","v":""},null,{"$f":"IF(ISERROR(VLOOKUP(C11,basisgegevens!$A$1:$AB$50,$J$3,FALSE)),\"\",VLOOKUP(C11,basisgegevens!$A$1:$AB$50,$J$3,FALSE))","v":""},{"$f":"IF(ISERROR(VLOOKUP(C11,basisgegevens!$A$1:$AB$50,$K$3,FALSE)),\"\",VLOOKUP(C11,basisgegevens!$A$1:$AB$50,$K$3,FALSE))","v":""},{"$f":"IF(ISERROR(VLOOKUP(C11,basisgegevens!$A$1:$AB$50,$L$3,FALSE)),\"\",VLOOKUP(C11,basisgegevens!$A$1:$AB$50,$L$3,FALSE))","v":""},"",{"$f":"IF(ISERROR(VLOOKUP(C11,basisgegevens!$A$1:$AB$50,$N$3,FALSE)),\"\",IF(VLOOKUP(C11,basisgegevens!$A$1:$AB$50,$N$3,FALSE)=0,\"\",VLOOKUP(C11,basisgegevens!$A$1:$AB$50,$N$3,FALSE)))","v":""},{"$f":"IF(ISERROR(VLOOKUP(C11,basisgegevens!$A$1:$AB$50,$O$3,FALSE)),\"\",VLOOKUP(C11,basisgegevens!$A$1:$AB$50,$O$3,FALSE))","v":""},"",{"$f":"IF(ISERROR(VLOOKUP(C11,basisgegevens!$A$1:$AB$50,$Q$3,FALSE)),\"\",VLOOKUP(C11,basisgegevens!$A$1:$AB$50,$Q$3,FALSE))","v":""},{"$f":"IF(ISERROR(VLOOKUP(C11,basisgegevens!$A$1:$AB$50,$R$3,FALSE)),\"\",VLOOKUP(C11,basisgegevens!$A$1:$AB$409,$R$3,FALSE))","v":""},"",{"$f":"IF(ISERROR(VLOOKUP(C11,basisgegevens!$A$1:$AB$50,$T$3,FALSE)),\"\",VLOOKUP(C11,basisgegevens!$A$1:$AB$409,$T$3,FALSE))","v":""}]
[null,null,{"$f":"IF('keuzelijst assistent'!$E$1=\"\",\"\",CONCATENATE('keuzelijst assistent'!$E$1))","v":""},{"$f":"IF(ISERROR(VLOOKUP(C12,basisgegevens!$A$1:$AB$50,$D$3,FALSE)),\"\",VLOOKUP(C12,basisgegevens!$A$1:$AB$404,$D$3,FALSE))","v":""},{"$f":"IF(ISERROR(VLOOKUP(C12,basisgegevens!$A$1:$ZL$50,$E$3,FALSE)),\"\",VLOOKUP(C12,basisgegevens!$A$1:$AB$50,$E$3,FALSE))","v":""},null,"",{"$f":"IF(ISERROR(VLOOKUP(C12,basisgegevens!$A$1:$AB$50,$H$3,FALSE)),\"\",VLOOKUP(C12,basisgegevens!$A$1:$AB$50,$H$3,FALSE))","v":""},null,{"$f":"IF(ISERROR(VLOOKUP(C12,basisgegevens!$A$1:$AB$50,$J$3,FALSE)),\"\",VLOOKUP(C12,basisgegevens!$A$1:$AB$50,$J$3,FALSE))","v":""},{"$f":"IF(ISERROR(VLOOKUP(C12,basisgegevens!$A$1:$AB$50,$K$3,FALSE)),\"\",VLOOKUP(C12,basisgegevens!$A$1:$AB$50,$K$3,FALSE))","v":""},{"$f":"IF(ISERROR(VLOOKUP(C12,basisgegevens!$A$1:$AB$50,$L$3,FALSE)),\"\",VLOOKUP(C12,basisgegevens!$A$1:$AB$50,$L$3,FALSE))","v":""},"",{"$f":"IF(ISERROR(VLOOKUP(C12,basisgegevens!$A$1:$AB$50,$N$3,FALSE)),\"\",IF(VLOOKUP(C12,basisgegevens!$A$1:$AB$50,$N$3,FALSE)=0,\"\",VLOOKUP(C12,basisgegevens!$A$1:$AB$50,$N$3,FALSE)))","v":""},{"$f":"IF(ISERROR(VLOOKUP(C12,basisgegevens!$A$1:$AB$50,$O$3,FALSE)),\"\",VLOOKUP(C12,basisgegevens!$A$1:$AB$50,$O$3,FALSE))","v":""},"",{"$f":"IF(ISERROR(VLOOKUP(C12,basisgegevens!$A$1:$AB$50,$Q$3,FALSE)),\"\",VLOOKUP(C12,basisgegevens!$A$1:$AB$50,$Q$3,FALSE))","v":""},{"$f":"IF(ISERROR(VLOOKUP(C12,basisgegevens!$A$1:$AB$50,$R$3,FALSE)),\"\",VLOOKUP(C12,basisgegevens!$A$1:$AB$409,$R$3,FALSE))","v":""},"",{"$f":"IF(ISERROR(VLOOKUP(C12,basisgegevens!$A$1:$AB$50,$T$3,FALSE)),\"\",VLOOKUP(C12,basisgegevens!$A$1:$AB$409,$T$3,FALSE))","v":""},null,"   "]
[null,null,{"$f":"IF('keuzelijst assistent'!$F$1=\"\",\"\",CONCATENATE('keuzelijst assistent'!$F$1))","v":""},{"$f":"IF(ISERROR(VLOOKUP(C13,basisgegevens!$A$1:$AB$50,$D$3,FALSE)),\"\",VLOOKUP(C13,basisgegevens!$A$1:$AB$404,$D$3,FALSE))","v":""},{"$f":"IF(ISERROR(VLOOKUP(C13,basisgegevens!$A$1:$ZL$50,$E$3,FALSE)),\"\",VLOOKUP(C13,basisgegevens!$A$1:$AB$50,$E$3,FALSE))","v":""},null,"",{"$f":"IF(ISERROR(VLOOKUP(C13,basisgegevens!$A$1:$AB$50,$H$3,FALSE)),\"\",VLOOKUP(C13,basisgegevens!$A$1:$AB$50,$H$3,FALSE))","v":""},null,{"$f":"IF(ISERROR(VLOOKUP(C13,basisgegevens!$A$1:$AB$50,$J$3,FALSE)),\"\",VLOOKUP(C13,basisgegevens!$A$1:$AB$50,$J$3,FALSE))","v":""},{"$f":"IF(ISERROR(VLOOKUP(C13,basisgegevens!$A$1:$AB$50,$K$3,FALSE)),\"\",VLOOKUP(C13,basisgegevens!$A$1:$AB$50,$K$3,FALSE))","v":""},{"$f":"IF(ISERROR(VLOOKUP(C13,basisgegevens!$A$1:$AB$50,$L$3,FALSE)),\"\",VLOOKUP(C13,basisgegevens!$A$1:$AB$50,$L$3,FALSE))","v":""},"",{"$f":"IF(ISERROR(VLOOKUP(C13,basisgegevens!$A$1:$AB$50,$N$3,FALSE)),\"\",IF(VLOOKUP(C13,basisgegevens!$A$1:$AB$50,$N$3,FALSE)=0,\"\",VLOOKUP(C13,basisgegevens!$A$1:$AB$50,$N$3,FALSE)))","v":""},{"$f":"IF(ISERROR(VLOOKUP(C13,basisgegevens!$A$1:$AB$50,$O$3,FALSE)),\"\",VLOOKUP(C13,basisgegevens!$A$1:$AB$50,$O$3,FALSE))","v":""},"",{"$f":"IF(ISERROR(VLOOKUP(C13,basisgegevens!$A$1:$AB$50,$Q$3,FALSE)),\"\",VLOOKUP(C13,basisgegevens!$A$1:$AB$50,$Q$3,FALSE))","v":""},{"$f":"IF(ISERROR(VLOOKUP(C13,basisgegevens!$A$1:$AB$50,$R$3,FALSE)),\"\",VLOOKUP(C13,basisgegevens!$A$1:$AB$409,$R$3,FALSE))","v":""},"",{"$f":"IF(ISERROR(VLOOKUP(C13,basisgegevens!$A$1:$AB$50,$T$3,FALSE)),\"\",VLOOKUP(C13,basisgegevens!$A$1:$AB$409,$T$3,FALSE))","v":""}]
[null,null,{"$f":"IF('keuzelijst assistent'!$G$1=\"\",\"\",CONCATENATE('keuzelijst assistent'!$G$1))","v":""},{"$f":"IF(ISERROR(VLOOKUP(C14,basisgegevens!$A$1:$AB$50,$D$3,FALSE)),\"\",VLOOKUP(C14,basisgegevens!$A$1:$AB$404,$D$3,FALSE))","v":""},{"$f":"IF(ISERROR(VLOOKUP(C14,basisgegevens!$A$1:$ZL$50,$E$3,FALSE)),\"\",VLOOKUP(C14,basisgegevens!$A$1:$AB$50,$E$3,FALSE))","v":""},null,"",{"$f":"IF(ISERROR(VLOOKUP(C14,basisgegevens!$A$1:$AB$50,$H$3,FALSE)),\"\",VLOOKUP(C14,basisgegevens!$A$1:$AB$50,$H$3,FALSE))","v":""},null,{"$f":"IF(ISERROR(VLOOKUP(C14,basisgegevens!$A$1:$AB$50,$J$3,FALSE)),\"\",VLOOKUP(C14,basisgegevens!$A$1:$AB$50,$J$3,FALSE))","v":""},{"$f":"IF(ISERROR(VLOOKUP(C14,basisgegevens!$A$1:$AB$50,$K$3,FALSE)),\"\",VLOOKUP(C14,basisgegevens!$A$1:$AB$50,$K$3,FALSE))","v":""},{"$f":"IF(ISERROR(VLOOKUP(C14,basisgegevens!$A$1:$AB$50,$L$3,FALSE)),\"\",VLOOKUP(C14,basisgegevens!$A$1:$AB$50,$L$3,FALSE))","v":""},"",{"$f":"IF(ISERROR(VLOOKUP(C14,basisgegevens!$A$1:$AB$50,$N$3,FALSE)),\"\",IF(VLOOKUP(C14,basisgegevens!$A$1:$AB$50,$N$3,FALSE)=0,\"\",VLOOKUP(C14,basisgegevens!$A$1:$AB$50,$N$3,FALSE)))","v":""},{"$f":"IF(ISERROR(VLOOKUP(C14,basisgegevens!$A$1:$AB$50,$O$3,FALSE)),\"\",VLOOKUP(C14,basisgegevens!$A$1:$AB$50,$O$3,FALSE))","v":""},"",{"$f":"IF(ISERROR(VLOOKUP(C14,basisgegevens!$A$1:$AB$50,$Q$3,FALSE)),\"\",VLOOKUP(C14,basisgegevens!$A$1:$AB$50,$Q$3,FALSE))","v":""},{"$f":"IF(ISERROR(VLOOKUP(C14,basisgegevens!$A$1:$AB$50,$R$3,FALSE)),\"\",VLOOKUP(C14,basisgegevens!$A$1:$AB$409,$R$3,FALSE))","v":""},"",{"$f":"IF(ISERROR(VLOOKUP(C14,basisgegevens!$A$1:$AB$50,$T$3,FALSE)),\"\",VLOOKUP(C14,basisgegevens!$A$1:$AB$409,$T$3,FALSE))","v":""}]
[null,null,{"$f":"IF('keuzelijst assistent'!$H$1=\"\",\"\",CONCATENATE('keuzelijst assistent'!$H$1))","v":""},{"$f":"IF(ISERROR(VLOOKUP(C15,basisgegevens!$A$1:$AB$50,$D$3,FALSE)),\"\",VLOOKUP(C15,basisgegevens!$A$1:$AB$404,$D$3,FALSE))","v":""},{"$f":"IF(ISERROR(VLOOKUP(C15,basisgegevens!$A$1:$ZL$50,$E$3,FALSE)),\"\",VLOOKUP(C15,basisgegevens!$A$1:$AB$50,$E$3,FALSE))","v":""},null,"",{"$f":"IF(ISERROR(VLOOKUP(C15,basisgegevens!$A$1:$AB$50,$H$3,FALSE)),\"\",VLOOKUP(C15,basisgegevens!$A$1:$AB$50,$H$3,FALSE))","v":""},null,{"$f":"IF(ISERROR(VLOOKUP(C15,basisgegevens!$A$1:$AB$50,$J$3,FALSE)),\"\",VLOOKUP(C15,basisgegevens!$A$1:$AB$50,$J$3,FALSE))","v":""},{"$f":"IF(ISERROR(VLOOKUP(C15,basisgegevens!$A$1:$AB$50,$K$3,FALSE)),\"\",VLOOKUP(C15,basisgegevens!$A$1:$AB$50,$K$3,FALSE))","v":""},{"$f":"IF(ISERROR(VLOOKUP(C15,basisgegevens!$A$1:$AB$50,$L$3,FALSE)),\"\",VLOOKUP(C15,basisgegevens!$A$1:$AB$50,$L$3,FALSE))","v":""},"",{"$f":"IF(ISERROR(VLOOKUP(C15,basisgegevens!$A$1:$AB$50,$N$3,FALSE)),\"\",IF(VLOOKUP(C15,basisgegevens!$A$1:$AB$50,$N$3,FALSE)=0,\"\",VLOOKUP(C15,basisgegevens!$A$1:$AB$50,$N$3,FALSE)))","v":""},{"$f":"IF(ISERROR(VLOOKUP(C15,basisgegevens!$A$1:$AB$50,$O$3,FALSE)),\"\",VLOOKUP(C15,basisgegevens!$A$1:$AB$50,$O$3,FALSE))","v":""},"",{"$f":"IF(ISERROR(VLOOKUP(C15,basisgegevens!$A$1:$AB$50,$Q$3,FALSE)),\"\",VLOOKUP(C15,basisgegevens!$A$1:$AB$50,$Q$3,FALSE))","v":""},{"$f":"IF(ISERROR(VLOOKUP(C15,basisgegevens!$A$1:$AB$50,$R$3,FALSE)),\"\",VLOOKUP(C15,basisgegevens!$A$1:$AB$409,$R$3,FALSE))","v":""},"",{"$f":"IF(ISERROR(VLOOKUP(C15,basisgegevens!$A$1:$AB$50,$T$3,FALSE)),\"\",VLOOKUP(C15,basisgegevens!$A$1:$AB$409,$T$3,FALSE))","v":""}]
[null,null,{"$f":"IF('keuzelijst assistent'!$I$1=\"\",\"\",CONCATENATE('keuzelijst assistent'!$I$1))","v":""},{"$f":"IF(ISERROR(VLOOKUP(C16,basisgegevens!$A$1:$AB$50,$D$3,FALSE)),\"\",VLOOKUP(C16,basisgegevens!$A$1:$AB$404,$D$3,FALSE))","v":""},{"$f":"IF(ISERROR(VLOOKUP(C16,basisgegevens!$A$1:$ZL$50,$E$3,FALSE)),\"\",VLOOKUP(C16,basisgegevens!$A$1:$AB$50,$E$3,FALSE))","v":""},null,"",{"$f":"IF(ISERROR(VLOOKUP(C16,basisgegevens!$A$1:$AB$50,$H$3,FALSE)),\"\",VLOOKUP(C16,basisgegevens!$A$1:$AB$50,$H$3,FALSE))","v":""},null,{"$f":"IF(ISERROR(VLOOKUP(C16,basisgegevens!$A$1:$AB$50,$J$3,FALSE)),\"\",VLOOKUP(C16,basisgegevens!$A$1:$AB$50,$J$3,FALSE))","v":""},{"$f":"IF(ISERROR(VLOOKUP(C16,basisgegevens!$A$1:$AB$50,$K$3,FALSE)),\"\",VLOOKUP(C16,basisgegevens!$A$1:$AB$50,$K$3,FALSE))","v":""},{"$f":"IF(ISERROR(VLOOKUP(C16,basisgegevens!$A$1:$AB$50,$L$3,FALSE)),\"\",VLOOKUP(C16,basisgegevens!$A$1:$AB$50,$L$3,FALSE))","v":""},"",{"$f":"IF(ISERROR(VLOOKUP(C16,basisgegevens!$A$1:$AB$50,$N$3,FALSE)),\"\",IF(VLOOKUP(C16,basisgegevens!$A$1:$AB$50,$N$3,FALSE)=0,\"\",VLOOKUP(C16,basisgegevens!$A$1:$AB$50,$N$3,FALSE)))","v":""},{"$f":"IF(ISERROR(VLOOKUP(C16,basisgegevens!$A$1:$AB$50,$O$3,FALSE)),\"\",VLOOKUP(C16,basisgegevens!$A$1:$AB$50,$O$3,FALSE))","v":""},"",{"$f":"IF(ISERROR(VLOOKUP(C16,basisgegevens!$A$1:$AB$50,$Q$3,FALSE)),\"\",VLOOKUP(C16,basisgegevens!$A$1:$AB$50,$Q$3,FALSE))","v":""},{"$f":"IF(ISERROR(VLOOKUP(C16,basisgegevens!$A$1:$AB$50,$R$3,FALSE)),\"\",VLOOKUP(C16,basisgegevens!$A$1:$AB$409,$R$3,FALSE))","v":""},"",{"$f":"IF(ISERROR(VLOOKUP(C16,basisgegevens!$A$1:$AB$50,$T$3,FALSE)),\"\",VLOOKUP(C16,basisgegevens!$A$1:$AB$409,$T$3,FALSE))","v":""}]
[null,null,{"$f":"IF('keuzelijst assistent'!$J$1=\"\",\"\",CONCATENATE('keuzelijst assistent'!$J$1))","v":""},{"$f":"IF(ISERROR(VLOOKUP(C17,basisgegevens!$A$1:$AB$50,$D$3,FALSE)),\"\",VLOOKUP(C17,basisgegevens!$A$1:$AB$404,$D$3,FALSE))","v":""},{"$f":"IF(ISERROR(VLOOKUP(C17,basisgegevens!$A$1:$ZL$50,$E$3,FALSE)),\"\",VLOOKUP(C17,basisgegevens!$A$1:$AB$50,$E$3,FALSE))","v":""},null,"",{"$f":"IF(ISERROR(VLOOKUP(C17,basisgegevens!$A$1:$AB$50,$H$3,FALSE)),\"\",VLOOKUP(C17,basisgegevens!$A$1:$AB$50,$H$3,FALSE))","v":""},null,{"$f":"IF(ISERROR(VLOOKUP(C17,basisgegevens!$A$1:$AB$50,$J$3,FALSE)),\"\",VLOOKUP(C17,basisgegevens!$A$1:$AB$50,$J$3,FALSE))","v":""},{"$f":"IF(ISERROR(VLOOKUP(C17,basisgegevens!$A$1:$AB$50,$K$3,FALSE)),\"\",VLOOKUP(C17,basisgegevens!$A$1:$AB$50,$K$3,FALSE))","v":""},{"$f":"IF(ISERROR(VLOOKUP(C17,basisgegevens!$A$1:$AB$50,$L$3,FALSE)),\"\",VLOOKUP(C17,basisgegevens!$A$1:$AB$50,$L$3,FALSE))","v":""},"",{"$f":"IF(ISERROR(VLOOKUP(C17,basisgegevens!$A$1:$AB$50,$N$3,FALSE)),\"\",IF(VLOOKUP(C17,basisgegevens!$A$1:$AB$50,$N$3,FALSE)=0,\"\",VLOOKUP(C17,basisgegevens!$A$1:$AB$50,$N$3,FALSE)))","v":""},{"$f":"IF(ISERROR(VLOOKUP(C17,basisgegevens!$A$1:$AB$50,$O$3,FALSE)),\"\",VLOOKUP(C17,basisgegevens!$A$1:$AB$50,$O$3,FALSE))","v":""},"",{"$f":"IF(ISERROR(VLOOKUP(C17,basisgegevens!$A$1:$AB$50,$Q$3,FALSE)),\"\",VLOOKUP(C17,basisgegevens!$A$1:$AB$50,$Q$3,FALSE))","v":""},{"$f":"IF(ISERROR(VLOOKUP(C17,basisgegevens!$A$1:$AB$50,$R$3,FALSE)),\"\",VLOOKUP(C17,basisgegevens!$A$1:$AB$409,$R$3,FALSE))","v":""},"",{"$f":"IF(ISERROR(VLOOKUP(C17,basisgegevens!$A$1:$AB$50,$T$3,FALSE)),\"\",VLOOKUP(C17,basisgegevens!$A$1:$AB$409,$T$3,FALSE))","v":""}]
[null,null,{"$f":"IF('keuzelijst assistent'!$K$1=\"\",\"\",CONCATENATE('keuzelijst assistent'!$K$1))","v":""},{"$f":"IF(ISERROR(VLOOKUP(C18,basisgegevens!$A$1:$AB$50,$D$3,FALSE)),\"\",VLOOKUP(C18,basisgegevens!$A$1:$AB$404,$D$3,FALSE))","v":""},{"$f":"IF(ISERROR(VLOOKUP(C18,basisgegevens!$A$1:$ZL$50,$E$3,FALSE)),\"\",VLOOKUP(C18,basisgegevens!$A$1:$AB$50,$E$3,FALSE))","v":""},null,"",{"$f":"IF(ISERROR(VLOOKUP(C18,basisgegevens!$A$1:$AB$50,$H$3,FALSE)),\"\",VLOOKUP(C18,basisgegevens!$A$1:$AB$50,$H$3,FALSE))","v":""},null,{"$f":"IF(ISERROR(VLOOKUP(C18,basisgegevens!$A$1:$AB$50,$J$3,FALSE)),\"\",VLOOKUP(C18,basisgegevens!$A$1:$AB$50,$J$3,FALSE))","v":""},{"$f":"IF(ISERROR(VLOOKUP(C18,basisgegevens!$A$1:$AB$50,$K$3,FALSE)),\"\",VLOOKUP(C18,basisgegevens!$A$1:$AB$50,$K$3,FALSE))","v":""},{"$f":"IF(ISERROR(VLOOKUP(C18,basisgegevens!$A$1:$AB$50,$L$3,FALSE)),\"\",VLOOKUP(C18,basisgegevens!$A$1:$AB$50,$L$3,FALSE))","v":""},"",{"$f":"IF(ISERROR(VLOOKUP(C18,basisgegevens!$A$1:$AB$50,$N$3,FALSE)),\"\",IF(VLOOKUP(C18,basisgegevens!$A$1:$AB$50,$N$3,FALSE)=0,\"\",VLOOKUP(C18,basisgegevens!$A$1:$AB$50,$N$3,FALSE)))","v":""},{"$f":"IF(ISERROR(VLOOKUP(C18,basisgegevens!$A$1:$AB$50,$O$3,FALSE)),\"\",VLOOKUP(C18,basisgegevens!$A$1:$AB$50,$O$3,FALSE))","v":""},"",{"$f":"IF(ISERROR(VLOOKUP(C18,basisgegevens!$A$1:$AB$50,$Q$3,FALSE)),\"\",VLOOKUP(C18,basisgegevens!$A$1:$AB$50,$Q$3,FALSE))","v":""},{"$f":"IF(ISERROR(VLOOKUP(C18,basisgegevens!$A$1:$AB$50,$R$3,FALSE)),\"\",VLOOKUP(C18,basisgegevens!$A$1:$AB$409,$R$3,FALSE))","v":""},"",{"$f":"IF(ISERROR(VLOOKUP(C18,basisgegevens!$A$1:$AB$50,$T$3,FALSE)),\"\",VLOOKUP(C18,basisgegevens!$A$1:$AB$409,$T$3,FALSE))","v":""}]
[null,null,{"$f":"IF('keuzelijst assistent'!$L1=\"\",\"\",CONCATENATE('keuzelijst assistent'!$L$1))","v":""},{"$f":"IF(ISERROR(VLOOKUP(C19,basisgegevens!$A$1:$AB$50,$D$3,FALSE)),\"\",VLOOKUP(C19,basisgegevens!$A$1:$AB$404,$D$3,FALSE))","v":""},{"$f":"IF(ISERROR(VLOOKUP(C19,basisgegevens!$A$1:$ZL$50,$E$3,FALSE)),\"\",VLOOKUP(C19,basisgegevens!$A$1:$AB$50,$E$3,FALSE))","v":""},null,"",{"$f":"IF(ISERROR(VLOOKUP(C19,basisgegevens!$A$1:$AB$50,$H$3,FALSE)),\"\",VLOOKUP(C19,basisgegevens!$A$1:$AB$50,$H$3,FALSE))","v":""},null,{"$f":"IF(ISERROR(VLOOKUP(C19,basisgegevens!$A$1:$AB$50,$J$3,FALSE)),\"\",VLOOKUP(C19,basisgegevens!$A$1:$AB$50,$J$3,FALSE))","v":""},{"$f":"IF(ISERROR(VLOOKUP(C19,basisgegevens!$A$1:$AB$50,$K$3,FALSE)),\"\",VLOOKUP(C19,basisgegevens!$A$1:$AB$50,$K$3,FALSE))","v":""},{"$f":"IF(ISERROR(VLOOKUP(C19,basisgegevens!$A$1:$AB$50,$L$3,FALSE)),\"\",VLOOKUP(C19,basisgegevens!$A$1:$AB$50,$L$3,FALSE))","v":""},"",{"$f":"IF(ISERROR(VLOOKUP(C19,basisgegevens!$A$1:$AB$50,$N$3,FALSE)),\"\",IF(VLOOKUP(C19,basisgegevens!$A$1:$AB$50,$N$3,FALSE)=0,\"\",VLOOKUP(C19,basisgegevens!$A$1:$AB$50,$N$3,FALSE)))","v":""},{"$f":"IF(ISERROR(VLOOKUP(C19,basisgegevens!$A$1:$AB$50,$O$3,FALSE)),\"\",VLOOKUP(C19,basisgegevens!$A$1:$AB$50,$O$3,FALSE))","v":""},"",{"$f":"IF(ISERROR(VLOOKUP(C19,basisgegevens!$A$1:$AB$50,$Q$3,FALSE)),\"\",VLOOKUP(C19,basisgegevens!$A$1:$AB$50,$Q$3,FALSE))","v":""},{"$f":"IF(ISERROR(VLOOKUP(C19,basisgegevens!$A$1:$AB$50,$R$3,FALSE)),\"\",VLOOKUP(C19,basisgegevens!$A$1:$AB$409,$R$3,FALSE))","v":""},"",{"$f":"IF(ISERROR(VLOOKUP(C19,basisgegevens!$A$1:$AB$50,$T$3,FALSE)),\"\",VLOOKUP(C19,basisgegevens!$A$1:$AB$409,$T$3,FALSE))","v":""}]
[null,null,{"$f":"IF('keuzelijst assistent'!$B12=\"\",\"\",CONCATENATE('keuzelijst assistent'!$B12))","v":""},{"$nulls":3},{"$f":"IF(C20=\"\",\"\",CONCATENATE(D20,\"  \",F20))","v":""},{"$f":"IF(ISERROR(VLOOKUP(C20,basisgegevens!$A$1:$AB$50,$H$3,FALSE)),\"\",VLOOKUP(C20,basisgegevens!$A$1:$AB$50,$H$3,FALSE))","v":""},{"$nulls":4},{"$f":"IF(L20=\"\",\"\",L20)","v":""},{"$f":"IF(ISERROR(VLOOKUP(C20,basisgegevens!$A$1:$AB$50,$N$3,FALSE)),\"\",IF(VLOOKUP(C20,basisgegevens!$A$1:$AB$50,$N$3,FALSE)=0,\"\",VLOOKUP(C20,basisgegevens!$A$1:$AB$50,$N$3,FALSE)))","v":""},{"$f":"IF(ISERROR(VLOOKUP(C20,basisgegevens!$A$1:$AB$50,$O$3,FALSE)),\"\",VLOOKUP(C20,basisgegevens!$A$1:$AB$50,$O$3,FALSE))","v":""},{"$f":"IF(M20=\"\",\"\",IF(M20=0,0,IF(N20=\"+\",M20+O20,IF(N20=\"*\",M20*O20,M20))))","v":""},{"$nulls":3},{"$f":"IF(ISERROR(VLOOKUP(C20,basisgegevens!$A$1:$AB$50,$T$3,FALSE)),\"\",VLOOKUP(C20,basisgegevens!$A$1:$AB$409,$T$3,FALSE))","v":""}]
[null,"  Huishouden, verzorging",{"$f":"IF('keuzelijst assistent'!$B13=\"\",\"\",CONCATENATE('keuzelijst assistent'!$B13))","v":""},{"$nulls":3},{"$f":"IF(C21=\"\",\"\",CONCATENATE(D21,\"  \",F21))","v":""},{"$nulls":5},"",{"$nulls":6},{"$f":"IF(ISERROR(VLOOKUP(C21,basisgegevens!$A$1:$AB$50,$T$3,FALSE)),\"\",VLOOKUP(C21,basisgegevens!$A$1:$AB$409,$T$3,FALSE))","v":""}]
[null,null,{"$f":"IF('keuzelijst huishouden'!$B$1=\"\",\"\",CONCATENATE('keuzelijst huishouden'!$B$1+13))","v":""},{"$f":"IF(ISERROR(VLOOKUP(C22,basisgegevens!$A$1:$AB$50,$D$3,FALSE)),\"\",VLOOKUP(C22,basisgegevens!$A$1:$AB$404,$D$3,FALSE))","v":""},{"$f":"IF(ISERROR(VLOOKUP(C22,basisgegevens!$A$1:$ZL$50,$E$3,FALSE)),\"\",VLOOKUP(C22,basisgegevens!$A$1:$AB$50,$E$3,FALSE))","v":""},null,{"$f":"IF(C22=\"\",\"\",CONCATENATE(D22,\"  \",F22))","v":""},{"$f":"IF(ISERROR(VLOOKUP(C22,basisgegevens!$A$1:$AB$50,$H$3,FALSE)),\"\",VLOOKUP(C22,basisgegevens!$A$1:$AB$50,$H$3,FALSE))","v":""},null,{"$f":"IF(ISERROR(VLOOKUP(C22,basisgegevens!$A$1:$AB$50,$J$3,FALSE)),\"\",VLOOKUP(C22,basisgegevens!$A$1:$AB$50,$J$3,FALSE))","v":""},{"$f":"IF(ISERROR(VLOOKUP(C22,basisgegevens!$A$1:$AB$50,$K$3,FALSE)),\"\",VLOOKUP(C22,basisgegevens!$A$1:$AB$50,$K$3,FALSE))","v":""},null,"",{"$f":"IF(ISERROR(VLOOKUP(C22,basisgegevens!$A$1:$AB$50,$N$3,FALSE)),\"\",VLOOKUP(C22,basisgegevens!$A$1:$AB$50,$N$3,FALSE))","v":""},{"$f":"IF(ISERROR(VLOOKUP(C22,basisgegevens!$A$1:$AB$50,$O$3,FALSE)),\"\",VLOOKUP(C22,basisgegevens!$A$1:$AB$50,$O$3,FALSE))","v":""},{"$f":"IF(M22=\"\",\"\",IF(M22=0,0,IF(N22=\"+\",M22+O22,IF(N22=\"*\",M22*O22,M22))))","v":""},{"$f":"IF(ISERROR(VLOOKUP(C22,basisgegevens!$A$1:$AB$50,$Q$3,FALSE)),\"\",VLOOKUP(C22,basisgegevens!$A$1:$AB$50,$Q$3,FALSE))","v":""},{"$f":"IF(ISERROR(VLOOKUP(C22,basisgegevens!$A$1:$AB$50,$R$3,FALSE)),\"\",VLOOKUP(C22,basisgegevens!$A$1:$AB$409,$R$3,FALSE))","v":""},{"$f":"R22","v":""},{"$f":"IF(ISERROR(VLOOKUP(C22,basisgegevens!$A$1:$AB$50,$T$3,FALSE)),\"\",VLOOKUP(C22,basisgegevens!$A$1:$AB$409,$T$3,FALSE))","v":""}]
[null,null,{"$f":"IF('keuzelijst huishouden'!$C$1=\"\",\"\",CONCATENATE('keuzelijst huishouden'!$C$1+13))","v":""},{"$f":"IF(ISERROR(VLOOKUP(C23,basisgegevens!$A$1:$AB$50,$D$3,FALSE)),\"\",VLOOKUP(C23,basisgegevens!$A$1:$AB$404,$D$3,FALSE))","v":""},{"$f":"IF(ISERROR(VLOOKUP(C23,basisgegevens!$A$1:$ZL$50,$E$3,FALSE)),\"\",VLOOKUP(C23,basisgegevens!$A$1:$AB$50,$E$3,FALSE))","v":""},null,"",{"$f":"IF(ISERROR(VLOOKUP(C23,basisgegevens!$A$1:$AB$50,$H$3,FALSE)),\"\",VLOOKUP(C23,basisgegevens!$A$1:$AB$50,$H$3,FALSE))","v":""},null,{"$f":"IF(ISERROR(VLOOKUP(C23,basisgegevens!$A$1:$AB$50,$J$3,FALSE)),\"\",VLOOKUP(C23,basisgegevens!$A$1:$AB$50,$J$3,FALSE))","v":""},{"$f":"IF(ISERROR(VLOOKUP(C23,basisgegevens!$A$1:$AB$50,$K$3,FALSE)),\"\",VLOOKUP(C23,basisgegevens!$A$1:$AB$50,$K$3,FALSE))","v":""},null,"",{"$f":"IF(ISERROR(VLOOKUP(C23,basisgegevens!$A$1:$AB$50,$N$3,FALSE)),\"\",VLOOKUP(C23,basisgegevens!$A$1:$AB$50,$N$3,FALSE))","v":""},{"$f":"IF(ISERROR(VLOOKUP(C23,basisgegevens!$A$1:$AB$50,$O$3,FALSE)),\"\",VLOOKUP(C23,basisgegevens!$A$1:$AB$50,$O$3,FALSE))","v":""},{"$f":"IF(M23=\"\",\"\",IF(M23=0,0,IF(N23=\"+\",M23+O23,IF(N23=\"*\",M23*O23,M23))))","v":""},{"$f":"IF(ISERROR(VLOOKUP(C23,basisgegevens!$A$1:$AB$50,$Q$3,FALSE)),\"\",VLOOKUP(C23,basisgegevens!$A$1:$AB$50,$Q$3,FALSE))","v":""},{"$f":"IF(ISERROR(VLOOKUP(C23,basisgegevens!$A$1:$AB$50,$R$3,FALSE)),\"\",VLOOKUP(C23,basisgegevens!$A$1:$AB$409,$R$3,FALSE))","v":""},"",{"$f":"IF(ISERROR(VLOOKUP(C23,basisgegevens!$A$1:$AB$50,$T$3,FALSE)),\"\",VLOOKUP(C23,basisgegevens!$A$1:$AB$409,$T$3,FALSE))","v":""}]
[null,null,{"$f":"IF('keuzelijst huishouden'!$D$1=\"\",\"\",CONCATENATE('keuzelijst huishouden'!$D$1+13))","v":""},{"$f":"IF(ISERROR(VLOOKUP(C24,basisgegevens!$A$1:$AB$50,$D$3,FALSE)),\"\",VLOOKUP(C24,basisgegevens!$A$1:$AB$404,$D$3,FALSE))","v":""},{"$f":"IF(ISERROR(VLOOKUP(C24,basisgegevens!$A$1:$ZL$50,$E$3,FALSE)),\"\",VLOOKUP(C24,basisgegevens!$A$1:$AB$50,$E$3,FALSE))","v":""},null,{"$f":"IF(C24=\"\",\"\",CONCATENATE(D24,\"  \",F24))","v":""},{"$f":"IF(ISERROR(VLOOKUP(C24,basisgegevens!$A$1:$AB$50,$H$3,FALSE)),\"\",VLOOKUP(C24,basisgegevens!$A$1:$AB$50,$H$3,FALSE))","v":""},null,{"$f":"IF(ISERROR(VLOOKUP(C24,basisgegevens!$A$1:$AB$50,$J$3,FALSE)),\"\",VLOOKUP(C24,basisgegevens!$A$1:$AB$50,$J$3,FALSE))","v":""},{"$f":"IF(ISERROR(VLOOKUP(C24,basisgegevens!$A$1:$AB$50,$K$3,FALSE)),\"\",VLOOKUP(C24,basisgegevens!$A$1:$AB$50,$K$3,FALSE))","v":""},null,"",{"$f":"IF(ISERROR(VLOOKUP(C24,basisgegevens!$A$1:$AB$50,$N$3,FALSE)),\"\",VLOOKUP(C24,basisgegevens!$A$1:$AB$50,$N$3,FALSE))","v":""},{"$f":"IF(ISERROR(VLOOKUP(C24,basisgegevens!$A$1:$AB$50,$O$3,FALSE)),\"\",VLOOKUP(C24,basisgegevens!$A$1:$AB$50,$O$3,FALSE))","v":""},{"$f":"IF(M24=\"\",\"\",IF(M24=0,0,IF(N24=\"+\",M24+O24,IF(N24=\"*\",M24*O24,M24))))","v":""},{"$f":"IF(ISERROR(VLOOKUP(C24,basisgegevens!$A$1:$AB$50,$Q$3,FALSE)),\"\",VLOOKUP(C24,basisgegevens!$A$1:$AB$50,$Q$3,FALSE))","v":""},{"$f":"IF(ISERROR(VLOOKUP(C24,basisgegevens!$A$1:$AB$50,$R$3,FALSE)),\"\",VLOOKUP(C24,basisgegevens!$A$1:$AB$409,$R$3,FALSE))","v":""},{"$f":"R24","v":""},{"$f":"IF(ISERROR(VLOOKUP(C24,basisgegevens!$A$1:$AB$50,$T$3,FALSE)),\"\",VLOOKUP(C24,basisgegevens!$A$1:$AB$409,$T$3,FALSE))","v":""}]
[null,null,{"$f":"IF('keuzelijst huishouden'!$E$1=\"\",\"\",CONCATENATE('keuzelijst huishouden'!$E$1+13))","v":""},{"$f":"IF(ISERROR(VLOOKUP(C25,basisgegevens!$A$1:$AB$50,$D$3,FALSE)),\"\",VLOOKUP(C25,basisgegevens!$A$1:$AB$404,$D$3,FALSE))","v":""},{"$f":"IF(ISERROR(VLOOKUP(C25,basisgegevens!$A$1:$ZL$50,$E$3,FALSE)),\"\",VLOOKUP(C25,basisgegevens!$A$1:$AB$50,$E$3,FALSE))","v":""},null,"",{"$f":"IF(ISERROR(VLOOKUP(C25,basisgegevens!$A$1:$AB$50,$H$3,FALSE)),\"\",VLOOKUP(C25,basisgegevens!$A$1:$AB$50,$H$3,FALSE))","v":""},null,{"$f":"IF(ISERROR(VLOOKUP(C25,basisgegevens!$A$1:$AB$50,$J$3,FALSE)),\"\",VLOOKUP(C25,basisgegevens!$A$1:$AB$50,$J$3,FALSE))","v":""},{"$f":"IF(ISERROR(VLOOKUP(C25,basisgegevens!$A$1:$AB$50,$K$3,FALSE)),\"\",VLOOKUP(C25,basisgegevens!$A$1:$AB$50,$K$3,FALSE))","v":""},null,"",{"$f":"IF(ISERROR(VLOOKUP(C25,basisgegevens!$A$1:$AB$50,$N$3,FALSE)),\"\",VLOOKUP(C25,basisgegevens!$A$1:$AB$50,$N$3,FALSE))","v":""},{"$f":"IF(ISERROR(VLOOKUP(C25,basisgegevens!$A$1:$AB$50,$O$3,FALSE)),\"\",VLOOKUP(C25,basisgegevens!$A$1:$AB$50,$O$3,FALSE))","v":""},"",{"$f":"IF(ISERROR(VLOOKUP(C25,basisgegevens!$A$1:$AB$50,$Q$3,FALSE)),\"\",VLOOKUP(C25,basisgegevens!$A$1:$AB$50,$Q$3,FALSE))","v":""},{"$f":"IF(ISERROR(VLOOKUP(C25,basisgegevens!$A$1:$AB$50,$R$3,FALSE)),\"\",VLOOKUP(C25,basisgegevens!$A$1:$AB$409,$R$3,FALSE))","v":""},"",{"$f":"IF(ISERROR(VLOOKUP(C25,basisgegevens!$A$1:$AB$50,$T$3,FALSE)),\"\",VLOOKUP(C25,basisgegevens!$A$1:$AB$409,$T$3,FALSE))","v":""}]
[null,null,{"$f":"IF('keuzelijst huishouden'!$F$1=\"\",\"\",CONCATENATE('keuzelijst huishouden'!$F$1+13))","v":""},{"$f":"IF(ISERROR(VLOOKUP(C26,basisgegevens!$A$1:$AB$50,$D$3,FALSE)),\"\",VLOOKUP(C26,basisgegevens!$A$1:$AB$404,$D$3,FALSE))","v":""},{"$f":"IF(ISERROR(VLOOKUP(C26,basisgegevens!$A$1:$ZL$50,$E$3,FALSE)),\"\",VLOOKUP(C26,basisgegevens!$A$1:$AB$50,$E$3,FALSE))","v":""},null,"",{"$f":"IF(ISERROR(VLOOKUP(C26,basisgegevens!$A$1:$AB$50,$H$3,FALSE)),\"\",VLOOKUP(C26,basisgegevens!$A$1:$AB$50,$H$3,FALSE))","v":""},null,{"$f":"IF(ISERROR(VLOOKUP(C26,basisgegevens!$A$1:$AB$50,$J$3,FALSE)),\"\",VLOOKUP(C26,basisgegevens!$A$1:$AB$50,$J$3,FALSE))","v":""},{"$f":"IF(ISERROR(VLOOKUP(C26,basisgegevens!$A$1:$AB$50,$K$3,FALSE)),\"\",VLOOKUP(C26,basisgegevens!$A$1:$AB$50,$K$3,FALSE))","v":""},null,"",{"$f":"IF(ISERROR(VLOOKUP(C26,basisgegevens!$A$1:$AB$50,$N$3,FALSE)),\"\",VLOOKUP(C26,basisgegevens!$A$1:$AB$50,$N$3,FALSE))","v":""},{"$f":"IF(ISERROR(VLOOKUP(C26,basisgegevens!$A$1:$AB$50,$O$3,FALSE)),\"\",VLOOKUP(C26,basisgegevens!$A$1:$AB$50,$O$3,FALSE))","v":""},"",{"$f":"IF(ISERROR(VLOOKUP(C26,basisgegevens!$A$1:$AB$50,$Q$3,FALSE)),\"\",VLOOKUP(C26,basisgegevens!$A$1:$AB$50,$Q$3,FALSE))","v":""},{"$f":"IF(ISERROR(VLOOKUP(C26,basisgegevens!$A$1:$AB$50,$R$3,FALSE)),\"\",VLOOKUP(C26,basisgegevens!$A$1:$AB$409,$R$3,FALSE))","v":""},"",{"$f":"IF(ISERROR(VLOOKUP(C26,basisgegevens!$A$1:$AB$50,$T$3,FALSE)),\"\",VLOOKUP(C26,basisgegevens!$A$1:$AB$409,$T$3,FALSE))","v":""}]
[{"$nulls":6},{"$f":"IF(C27=\"\",\"\",CONCATENATE(D27,\"  \",F27))","v":""},{"$nulls":5},"",{"$nulls":6},{"$f":"IF(ISERROR(VLOOKUP(C27,basisgegevens!$A$1:$AB$50,$T$3,FALSE)),\"\",VLOOKUP(C27,basisgegevens!$A$1:$AB$409,$T$3,FALSE))","v":""}]
[null,"  Vergunde zorgaanbieder",{"$nulls":4},"",{"$nulls":5},"",{"$nulls":6},{"$f":"IF(ISERROR(VLOOKUP(C28,basisgegevens!$A$1:$AB$50,$T$3,FALSE)),\"\",VLOOKUP(C28,basisgegevens!$A$1:$AB$409,$T$3,FALSE))","v":""}]
[null,null,{"$f":"IF('keuzelijst zorgaanbieder'!$B$1=\"\",\"\",CONCATENATE('keuzelijst zorgaanbieder'!$B$1+22))","v":""},{"$f":"IF(ISERROR(VLOOKUP(C29,basisgegevens!$A$1:$AB$50,$D$3,FALSE)),\"\",VLOOKUP(C29,basisgegevens!$A$1:$AB$404,$D$3,FALSE))","v":""},{"$f":"IF(ISERROR(VLOOKUP(C29,basisgegevens!$A$1:$ZL$50,$E$3,FALSE)),\"\",VLOOKUP(C29,basisgegevens!$A$1:$AB$50,$E$3,FALSE))","v":""},null,"",{"$f":"IF(ISERROR(VLOOKUP(C29,basisgegevens!$A$1:$AB$50,$H$3,FALSE)),\"\",VLOOKUP(C29,basisgegevens!$A$1:$AB$50,$H$3,FALSE))","v":""},null,{"$f":"IF(ISERROR(VLOOKUP(C29,basisgegevens!$A$1:$AB$50,$J$3,FALSE)),\"\",VLOOKUP(C29,basisgegevens!$A$1:$AB$50,$J$3,FALSE))","v":""},{"$f":"IF(ISERROR(VLOOKUP(C29,basisgegevens!$A$1:$AB$50,$K$3,FALSE)),\"\",VLOOKUP(C29,basisgegevens!$A$1:$AB$50,$K$3,FALSE))","v":""},null,"",{"$f":"IF(ISERROR(VLOOKUP(C29,basisgegevens!$A$1:$AB$50,$N$3,FALSE)),\"\",VLOOKUP(C29,basisgegevens!$A$1:$AB$50,$N$3,FALSE))","v":""},{"$f":"IF(ISERROR(VLOOKUP(C29,basisgegevens!$A$1:$AB$50,$O$3,FALSE)),\"\",VLOOKUP(C29,basisgegevens!$A$1:$AB$50,$O$3,FALSE))","v":""},{"$f":"IF(M29=\"\",\"\",IF(M29=0,0,IF(N29=\"+\",M29+O29,IF(N29=\"*\",M29*O29,M29))))","v":""},{"$f":"IF(ISERROR(VLOOKUP(C29,basisgegevens!$A$1:$AB$50,$Q$3,FALSE)),\"\",VLOOKUP(C29,basisgegevens!$A$1:$AB$50,$Q$3,FALSE))","v":""},{"$f":"IF(ISERROR(VLOOKUP(C29,basisgegevens!$A$1:$AB$50,$R$3,FALSE)),\"\",VLOOKUP(C29,basisgegevens!$A$1:$AB$409,$R$3,FALSE))","v":""},{"$f":"R29","v":""},{"$f":"IF(ISERROR(VLOOKUP(C29,basisgegevens!$A$1:$AB$50,$T$3,FALSE)),\"\",VLOOKUP(C29,basisgegevens!$A$1:$AB$409,$T$3,FALSE))","v":""}]
[null,null,{"$f":"IF('keuzelijst zorgaanbieder'!$C$1=\"\",\"\",CONCATENATE('keuzelijst zorgaanbieder'!$C$1+22))","v":""},{"$f":"IF(ISERROR(VLOOKUP(C30,basisgegevens!$A$1:$AB$50,$D$3,FALSE)),\"\",VLOOKUP(C30,basisgegevens!$A$1:$AB$404,$D$3,FALSE))","v":""},{"$f":"IF(ISERROR(VLOOKUP(C30,basisgegevens!$A$1:$ZL$50,$E$3,FALSE)),\"\",VLOOKUP(C30,basisgegevens!$A$1:$AB$50,$E$3,FALSE))","v":""},null,"",{"$f":"IF(ISERROR(VLOOKUP(C30,basisgegevens!$A$1:$AB$50,$H$3,FALSE)),\"\",VLOOKUP(C30,basisgegevens!$A$1:$AB$50,$H$3,FALSE))","v":""},null,{"$f":"IF(ISERROR(VLOOKUP(C30,basisgegevens!$A$1:$AB$50,$J$3,FALSE)),\"\",VLOOKUP(C30,basisgegevens!$A$1:$AB$50,$J$3,FALSE))","v":""},{"$f":"IF(ISERROR(VLOOKUP(C30,basisgegevens!$A$1:$AB$50,$K$3,FALSE)),\"\",VLOOKUP(C30,basisgegevens!$A$1:$AB$50,$K$3,FALSE))","v":""},null,"",{"$f":"IF(ISERROR(VLOOKUP(C30,basisgegevens!$A$1:$AB$50,$N$3,FALSE)),\"\",VLOOKUP(C30,basisgegevens!$A$1:$AB$50,$N$3,FALSE))","v":""},{"$f":"IF(ISERROR(VLOOKUP(C30,basisgegevens!$A$1:$AB$50,$O$3,FALSE)),\"\",VLOOKUP(C30,basisgegevens!$A$1:$AB$50,$O$3,FALSE))","v":""},{"$f":"IF(M30=\"\",\"\",IF(M30=0,0,IF(N30=\"+\",M30+O30,IF(N30=\"*\",M30*O30,M30))))","v":""},{"$f":"IF(ISERROR(VLOOKUP(C30,basisgegevens!$A$1:$AB$50,$Q$3,FALSE)),\"\",VLOOKUP(C30,basisgegevens!$A$1:$AB$50,$Q$3,FALSE))","v":""},{"$f":"IF(ISERROR(VLOOKUP(C30,basisgegevens!$A$1:$AB$50,$R$3,FALSE)),\"\",VLOOKUP(C30,basisgegevens!$A$1:$AB$409,$R$3,FALSE))","v":""},"",{"$f":"IF(ISERROR(VLOOKUP(C30,basisgegevens!$A$1:$AB$50,$T$3,FALSE)),\"\",VLOOKUP(C30,basisgegevens!$A$1:$AB$409,$T$3,FALSE))","v":""}]
[null,null,{"$f":"IF('keuzelijst zorgaanbieder'!$D$1=\"\",\"\",CONCATENATE('keuzelijst zorgaanbieder'!$D$1+22))","v":""},{"$f":"IF(ISERROR(VLOOKUP(C31,basisgegevens!$A$1:$AB$50,$D$3,FALSE)),\"\",VLOOKUP(C31,basisgegevens!$A$1:$AB$404,$D$3,FALSE))","v":""},{"$f":"IF(ISERROR(VLOOKUP(C31,basisgegevens!$A$1:$ZL$50,$E$3,FALSE)),\"\",VLOOKUP(C31,basisgegevens!$A$1:$AB$50,$E$3,FALSE))","v":""},null,"",{"$f":"IF(ISERROR(VLOOKUP(C31,basisgegevens!$A$1:$AB$50,$H$3,FALSE)),\"\",VLOOKUP(C31,basisgegevens!$A$1:$AB$50,$H$3,FALSE))","v":""},null,{"$f":"IF(ISERROR(VLOOKUP(C31,basisgegevens!$A$1:$AB$50,$J$3,FALSE)),\"\",VLOOKUP(C31,basisgegevens!$A$1:$AB$50,$J$3,FALSE))","v":""},{"$f":"IF(ISERROR(VLOOKUP(C31,basisgegevens!$A$1:$AB$50,$K$3,FALSE)),\"\",VLOOKUP(C31,basisgegevens!$A$1:$AB$50,$K$3,FALSE))","v":""},null,"",{"$f":"IF(ISERROR(VLOOKUP(C31,basisgegevens!$A$1:$AB$50,$N$3,FALSE)),\"\",VLOOKUP(C31,basisgegevens!$A$1:$AB$50,$N$3,FALSE))","v":""},{"$f":"IF(ISERROR(VLOOKUP(C31,basisgegevens!$A$1:$AB$50,$O$3,FALSE)),\"\",VLOOKUP(C31,basisgegevens!$A$1:$AB$50,$O$3,FALSE))","v":""},"",{"$f":"IF(ISERROR(VLOOKUP(C31,basisgegevens!$A$1:$AB$50,$Q$3,FALSE)),\"\",VLOOKUP(C31,basisgegevens!$A$1:$AB$50,$Q$3,FALSE))","v":""},{"$f":"IF(ISERROR(VLOOKUP(C31,basisgegevens!$A$1:$AB$50,$R$3,FALSE)),\"\",VLOOKUP(C31,basisgegevens!$A$1:$AB$409,$R$3,FALSE))","v":""},"",{"$f":"IF(ISERROR(VLOOKUP(C31,basisgegevens!$A$1:$AB$50,$T$3,FALSE)),\"\",VLOOKUP(C31,basisgegevens!$A$1:$AB$409,$T$3,FALSE))","v":""}]
[null,null,{"$f":"IF('keuzelijst zorgaanbieder'!$E$1=\"\",\"\",CONCATENATE('keuzelijst zorgaanbieder'!$E$1+22))","v":""},{"$f":"IF(ISERROR(VLOOKUP(C32,basisgegevens!$A$1:$AB$50,$D$3,FALSE)),\"\",VLOOKUP(C32,basisgegevens!$A$1:$AB$404,$D$3,FALSE))","v":""},{"$f":"IF(ISERROR(VLOOKUP(C32,basisgegevens!$A$1:$ZL$50,$E$3,FALSE)),\"\",VLOOKUP(C32,basisgegevens!$A$1:$AB$50,$E$3,FALSE))","v":""},null,"",{"$f":"IF(ISERROR(VLOOKUP(C32,basisgegevens!$A$1:$AB$50,$H$3,FALSE)),\"\",VLOOKUP(C32,basisgegevens!$A$1:$AB$50,$H$3,FALSE))","v":""},null,{"$f":"IF(ISERROR(VLOOKUP(C32,basisgegevens!$A$1:$AB$50,$J$3,FALSE)),\"\",VLOOKUP(C32,basisgegevens!$A$1:$AB$50,$J$3,FALSE))","v":""},{"$f":"IF(ISERROR(VLOOKUP(C32,basisgegevens!$A$1:$AB$50,$K$3,FALSE)),\"\",VLOOKUP(C32,basisgegevens!$A$1:$AB$50,$K$3,FALSE))","v":""},null,"",{"$f":"IF(ISERROR(VLOOKUP(C32,basisgegevens!$A$1:$AB$50,$N$3,FALSE)),\"\",VLOOKUP(C32,basisgegevens!$A$1:$AB$50,$N$3,FALSE))","v":""},{"$f":"IF(ISERROR(VLOOKUP(C32,basisgegevens!$A$1:$AB$50,$O$3,FALSE)),\"\",VLOOKUP(C32,basisgegevens!$A$1:$AB$50,$O$3,FALSE))","v":""},"",{"$f":"IF(ISERROR(VLOOKUP(C32,basisgegevens!$A$1:$AB$50,$Q$3,FALSE)),\"\",VLOOKUP(C32,basisgegevens!$A$1:$AB$50,$Q$3,FALSE))","v":""},{"$f":"IF(ISERROR(VLOOKUP(C32,basisgegevens!$A$1:$AB$50,$R$3,FALSE)),\"\",VLOOKUP(C32,basisgegevens!$A$1:$AB$409,$R$3,FALSE))","v":""},"",{"$f":"IF(ISERROR(VLOOKUP(C32,basisgegevens!$A$1:$AB$50,$T$3,FALSE)),\"\",VLOOKUP(C32,basisgegevens!$A$1:$AB$409,$T$3,FALSE))","v":""}]
[{"$nulls":6},"",{"$nulls":5},"",{"$nulls":6},{"$f":"IF(ISERROR(VLOOKUP(C33,basisgegevens!$A$1:$AB$50,$T$3,FALSE)),\"\",VLOOKUP(C33,basisgegevens!$A$1:$AB$409,$T$3,FALSE))","v":""}]
[null,"  Bijstandsorganisatie",{"$nulls":4},"",{"$nulls":5},"",{"$nulls":6},{"$f":"IF(ISERROR(VLOOKUP(C34,basisgegevens!$A$1:$AB$50,$T$3,FALSE)),\"\",VLOOKUP(C34,basisgegevens!$A$1:$AB$409,$T$3,FALSE))","v":""}]
[null,null,{"$f":"IF('keuzelijst bijstand'!$A$1=\"\",\"\",CONCATENATE('keuzelijst bijstand'!$A$1+29))","v":""},{"$f":"IF(ISERROR(VLOOKUP(C35,basisgegevens!$A$1:$AB$89,$D$3,FALSE)),\"\",VLOOKUP(C35,basisgegevens!$A$1:$AB$404,$D$3,FALSE))","v":""},{"$f":"IF(ISERROR(VLOOKUP(C35,basisgegevens!$A$1:$ZL$50,$E$3,FALSE)),\"\",VLOOKUP(C35,basisgegevens!$A$1:$AB$50,$E$3,FALSE))","v":""},null,"",{"$f":"IF(ISERROR(VLOOKUP(C35,basisgegevens!$A$1:$AB$50,$H$3,FALSE)),\"\",VLOOKUP(C35,basisgegevens!$A$1:$AB$50,$H$3,FALSE))","v":""},null,{"$f":"IF(ISERROR(VLOOKUP(C35,basisgegevens!$A$1:$AB$50,$J$3,FALSE)),\"\",VLOOKUP(C35,basisgegevens!$A$1:$AB$50,$J$3,FALSE))","v":""},{"$f":"IF(ISERROR(VLOOKUP(C35,basisgegevens!$A$1:$AB$50,$K$3,FALSE)),\"\",VLOOKUP(C35,basisgegevens!$A$1:$AB$50,$K$3,FALSE))","v":""},null,"",{"$f":"IF(ISERROR(VLOOKUP(C35,basisgegevens!$A$1:$AB$50,$N$3,FALSE)),\"\",VLOOKUP(C35,basisgegevens!$A$1:$AB$50,$N$3,FALSE))","v":""},{"$f":"IF(ISERROR(VLOOKUP(C35,basisgegevens!$A$1:$AB$50,$O$3,FALSE)),\"\",VLOOKUP(C35,basisgegevens!$A$1:$AB$50,$O$3,FALSE))","v":""},{"$f":"IF(M35=\"\",\"\",IF(M35=0,0,IF(N35=\"+\",M35+O35,IF(N35=\"*\",M35*O35,M35))))","v":""},{"$f":"IF(ISERROR(VLOOKUP(C35,basisgegevens!$A$1:$AB$50,$Q$3,FALSE)),\"\",VLOOKUP(C35,basisgegevens!$A$1:$AB$50,$Q$3,FALSE))","v":""},{"$f":"IF(ISERROR(VLOOKUP(C35,basisgegevens!$A$1:$AB$50,$R$3,FALSE)),\"\",VLOOKUP(C35,basisgegevens!$A$1:$AB$409,$R$3,FALSE))","v":""},{"$f":"R35","v":""},{"$f":"IF(ISERROR(VLOOKUP(C35,basisgegevens!$A$1:$AB$50,$T$3,FALSE)),\"\",VLOOKUP(C35,basisgegevens!$A$1:$AB$409,$T$3,FALSE))","v":""}]
[{"$nulls":6},"",{"$nulls":5},"",{"$nulls":6},{"$f":"IF(ISERROR(VLOOKUP(C36,basisgegevens!$A$1:$AB$50,$T$3,FALSE)),\"\",VLOOKUP(C36,basisgegevens!$A$1:$AB$409,$T$3,FALSE))","v":""}]
[null,"Vervoer",{"$nulls":4},"",{"$f":"IF(ISERROR(VLOOKUP(C37,basisgegevens!$A$1:$AB$50,$H$3,FALSE)),\"\",VLOOKUP(C37,basisgegevens!$A$1:$AB$50,$H$3,FALSE))","v":""},{"$nulls":4},"",{"$f":"IF(ISERROR(VLOOKUP(C37,basisgegevens!$A$1:$AB$50,$N$3,FALSE)),\"\",IF(VLOOKUP(C37,basisgegevens!$A$1:$AB$50,$N$3,FALSE)=0,\"\",VLOOKUP(C37,basisgegevens!$A$1:$AB$50,$N$3,FALSE)))","v":""},{"$f":"IF(ISERROR(VLOOKUP(C37,basisgegevens!$A$1:$AB$50,$O$3,FALSE)),\"\",VLOOKUP(C37,basisgegevens!$A$1:$AB$50,$O$3,FALSE))","v":""},"",{"$nulls":3},{"$f":"IF(ISERROR(VLOOKUP(C37,basisgegevens!$A$1:$AB$50,$T$3,FALSE)),\"\",VLOOKUP(C37,basisgegevens!$A$1:$AB$409,$T$3,FALSE))","v":""}]
[null,null,{"$f":"IF('keuzelijst vervoer'!$B$1=\"\",\"\",CONCATENATE('keuzelijst vervoer'!$B$1+34))","v":""},{"$f":"IF(ISERROR(VLOOKUP(C38,basisgegevens!$A$1:$AB$50,$D$3,FALSE)),\"\",VLOOKUP(C38,basisgegevens!$A$1:$AB$404,$D$3,FALSE))","v":""},{"$f":"IF(ISERROR(VLOOKUP(C38,basisgegevens!$A$1:$ZL$50,$E$3,FALSE)),\"\",VLOOKUP(C38,basisgegevens!$A$1:$AB$50,$E$3,FALSE))","v":""},null,"",{"$f":"IF(ISERROR(VLOOKUP(C38,basisgegevens!$A$1:$AB$50,$H$3,FALSE)),\"\",VLOOKUP(C38,basisgegevens!$A$1:$AB$50,$H$3,FALSE))","v":""},null,{"$f":"IF(ISERROR(VLOOKUP(C38,basisgegevens!$A$1:$AB$50,$J$3,FALSE)),\"\",VLOOKUP(C38,basisgegevens!$A$1:$AB$50,$J$3,FALSE))","v":""},{"$f":"IF(ISERROR(VLOOKUP(C38,basisgegevens!$A$1:$AB$50,$K$3,FALSE)),\"\",VLOOKUP(C38,basisgegevens!$A$1:$AB$50,$K$3,FALSE))","v":""},{"$f":"IF(ISERROR(VLOOKUP(C38,basisgegevens!$A$1:$AB$50,$L$3,FALSE)),\"\",VLOOKUP(C38,basisgegevens!$A$1:$AB$50,$L$3,FALSE))","v":""},"",{"$f":"IF(ISERROR(VLOOKUP(C38,basisgegevens!$A$1:$AB$50,$N$3,FALSE)),\"\",IF(VLOOKUP(C38,basisgegevens!$A$1:$AB$50,$N$3,FALSE)=0,\"\",VLOOKUP(C38,basisgegevens!$A$1:$AB$50,$N$3,FALSE)))","v":""},{"$f":"IF(ISERROR(VLOOKUP(C38,basisgegevens!$A$1:$AB$50,$O$3,FALSE)),\"\",VLOOKUP(C38,basisgegevens!$A$1:$AB$50,$O$3,FALSE))","v":""},"",{"$f":"IF(ISERROR(VLOOKUP(C38,basisgegevens!$A$1:$AB$50,$Q$3,FALSE)),\"\",VLOOKUP(C38,basisgegevens!$A$1:$AB$50,$Q$3,FALSE))","v":""},{"$f":"IF(ISERROR(VLOOKUP(C38,basisgegevens!$A$1:$AB$50,$R$3,FALSE)),\"\",VLOOKUP(C38,basisgegevens!$A$1:$AB$409,$R$3,FALSE))","v":""},{"$f":"R38","v":""},{"$f":"IF(ISERROR(VLOOKUP(C38,basisgegevens!$A$1:$AB$50,$T$3,FALSE)),\"\",VLOOKUP(C38,basisgegevens!$A$1:$AB$409,$T$3,FALSE))","v":""}]
[null,null,{"$f":"IF('keuzelijst vervoer'!$C$1=\"\",\"\",CONCATENATE('keuzelijst vervoer'!$C$1+34))","v":""},{"$f":"IF(ISERROR(VLOOKUP(C39,basisgegevens!$A$1:$AB$50,$D$3,FALSE)),\"\",VLOOKUP(C39,basisgegevens!$A$1:$AB$404,$D$3,FALSE))","v":""},{"$f":"IF(ISERROR(VLOOKUP(C39,basisgegevens!$A$1:$ZL$50,$E$3,FALSE)),\"\",VLOOKUP(C39,basisgegevens!$A$1:$AB$50,$E$3,FALSE))","v":""},null,"",{"$f":"IF(ISERROR(VLOOKUP(C39,basisgegevens!$A$1:$AB$50,$H$3,FALSE)),\"\",VLOOKUP(C39,basisgegevens!$A$1:$AB$50,$H$3,FALSE))","v":""},null,{"$f":"IF(ISERROR(VLOOKUP(C39,basisgegevens!$A$1:$AB$50,$J$3,FALSE)),\"\",VLOOKUP(C39,basisgegevens!$A$1:$AB$50,$J$3,FALSE))","v":""},{"$f":"IF(ISERROR(VLOOKUP(C39,basisgegevens!$A$1:$AB$50,$K$3,FALSE)),\"\",VLOOKUP(C39,basisgegevens!$A$1:$AB$50,$K$3,FALSE))","v":""},{"$f":"IF(ISERROR(VLOOKUP(C39,basisgegevens!$A$1:$AB$50,$L$3,FALSE)),\"\",VLOOKUP(C39,basisgegevens!$A$1:$AB$50,$L$3,FALSE))","v":""},"",{"$f":"IF(ISERROR(VLOOKUP(C39,basisgegevens!$A$1:$AB$50,$N$3,FALSE)),\"\",IF(VLOOKUP(C39,basisgegevens!$A$1:$AB$50,$N$3,FALSE)=0,\"\",VLOOKUP(C39,basisgegevens!$A$1:$AB$50,$N$3,FALSE)))","v":""},{"$f":"IF(ISERROR(VLOOKUP(C39,basisgegevens!$A$1:$AB$50,$O$3,FALSE)),\"\",VLOOKUP(C39,basisgegevens!$A$1:$AB$50,$O$3,FALSE))","v":""},"",{"$f":"IF(ISERROR(VLOOKUP(C39,basisgegevens!$A$1:$AB$50,$Q$3,FALSE)),\"\",VLOOKUP(C39,basisgegevens!$A$1:$AB$50,$Q$3,FALSE))","v":""},{"$f":"IF(ISERROR(VLOOKUP(C39,basisgegevens!$A$1:$AB$50,$R$3,FALSE)),\"\",VLOOKUP(C39,basisgegevens!$A$1:$AB$409,$R$3,FALSE))","v":""},{"$f":"R39","v":""},{"$f":"IF(ISERROR(VLOOKUP(C39,basisgegevens!$A$1:$AB$50,$T$3,FALSE)),\"\",VLOOKUP(C39,basisgegevens!$A$1:$AB$409,$T$3,FALSE))","v":""}]
[null,null,{"$f":"IF('keuzelijst vervoer'!$D$1=\"\",\"\",CONCATENATE('keuzelijst vervoer'!$D$1+34))","v":""},{"$f":"IF(ISERROR(VLOOKUP(C40,basisgegevens!$A$1:$AB$50,$D$3,FALSE)),\"\",VLOOKUP(C40,basisgegevens!$A$1:$AB$404,$D$3,FALSE))","v":""},{"$f":"IF(ISERROR(VLOOKUP(C40,basisgegevens!$A$1:$ZL$50,$E$3,FALSE)),\"\",VLOOKUP(C40,basisgegevens!$A$1:$AB$50,$E$3,FALSE))","v":""},null,"",{"$f":"IF(ISERROR(VLOOKUP(C40,basisgegevens!$A$1:$AB$50,$H$3,FALSE)),\"\",VLOOKUP(C40,basisgegevens!$A$1:$AB$50,$H$3,FALSE))","v":""},null,{"$f":"IF(ISERROR(VLOOKUP(C40,basisgegevens!$A$1:$AB$50,$J$3,FALSE)),\"\",VLOOKUP(C40,basisgegevens!$A$1:$AB$50,$J$3,FALSE))","v":""},{"$f":"IF(ISERROR(VLOOKUP(C40,basisgegevens!$A$1:$AB$50,$K$3,FALSE)),\"\",VLOOKUP(C40,basisgegevens!$A$1:$AB$50,$K$3,FALSE))","v":""},{"$f":"IF(ISERROR(VLOOKUP(C40,basisgegevens!$A$1:$AB$50,$L$3,FALSE)),\"\",VLOOKUP(C40,basisgegevens!$A$1:$AB$50,$L$3,FALSE))","v":""},"",{"$f":"IF(ISERROR(VLOOKUP(C40,basisgegevens!$A$1:$AB$50,$N$3,FALSE)),\"\",IF(VLOOKUP(C40,basisgegevens!$A$1:$AB$50,$N$3,FALSE)=0,\"\",VLOOKUP(C40,basisgegevens!$A$1:$AB$50,$N$3,FALSE)))","v":""},{"$f":"IF(ISERROR(VLOOKUP(C40,basisgegevens!$A$1:$AB$50,$O$3,FALSE)),\"\",VLOOKUP(C40,basisgegevens!$A$1:$AB$50,$O$3,FALSE))","v":""},"",{"$f":"IF(ISERROR(VLOOKUP(C40,basisgegevens!$A$1:$AB$50,$Q$3,FALSE)),\"\",VLOOKUP(C40,basisgegevens!$A$1:$AB$50,$Q$3,FALSE))","v":""},{"$f":"IF(ISERROR(VLOOKUP(C40,basisgegevens!$A$1:$AB$50,$R$3,FALSE)),\"\",VLOOKUP(C40,basisgegevens!$A$1:$AB$409,$R$3,FALSE))","v":""},"",{"$f":"IF(ISERROR(VLOOKUP(C40,basisgegevens!$A$1:$AB$50,$T$3,FALSE)),\"\",VLOOKUP(C40,basisgegevens!$A$1:$AB$409,$T$3,FALSE))","v":""}]
[null,null,{"$f":"IF('keuzelijst vervoer'!$E$1=\"\",\"\",CONCATENATE('keuzelijst vervoer'!$E$1+34))","v":""},{"$f":"IF(ISERROR(VLOOKUP(C41,basisgegevens!$A$1:$AB$50,$D$3,FALSE)),\"\",VLOOKUP(C41,basisgegevens!$A$1:$AB$404,$D$3,FALSE))","v":""},{"$f":"IF(ISERROR(VLOOKUP(C41,basisgegevens!$A$1:$ZL$50,$E$3,FALSE)),\"\",VLOOKUP(C41,basisgegevens!$A$1:$AB$50,$E$3,FALSE))","v":""},null,"",{"$f":"IF(ISERROR(VLOOKUP(C41,basisgegevens!$A$1:$AB$50,$H$3,FALSE)),\"\",VLOOKUP(C41,basisgegevens!$A$1:$AB$50,$H$3,FALSE))","v":""},null,{"$f":"IF(ISERROR(VLOOKUP(C41,basisgegevens!$A$1:$AB$50,$J$3,FALSE)),\"\",VLOOKUP(C41,basisgegevens!$A$1:$AB$50,$J$3,FALSE))","v":""},{"$f":"IF(ISERROR(VLOOKUP(C41,basisgegevens!$A$1:$AB$50,$K$3,FALSE)),\"\",VLOOKUP(C41,basisgegevens!$A$1:$AB$50,$K$3,FALSE))","v":""},{"$f":"IF(ISERROR(VLOOKUP(C41,basisgegevens!$A$1:$AB$50,$L$3,FALSE)),\"\",VLOOKUP(C41,basisgegevens!$A$1:$AB$50,$L$3,FALSE))","v":""},"",{"$f":"IF(ISERROR(VLOOKUP(C41,basisgegevens!$A$1:$AB$50,$N$3,FALSE)),\"\",IF(VLOOKUP(C41,basisgegevens!$A$1:$AB$50,$N$3,FALSE)=0,\"\",VLOOKUP(C41,basisgegevens!$A$1:$AB$50,$N$3,FALSE)))","v":""},{"$f":"IF(ISERROR(VLOOKUP(C41,basisgegevens!$A$1:$AB$50,$O$3,FALSE)),\"\",VLOOKUP(C41,basisgegevens!$A$1:$AB$50,$O$3,FALSE))","v":""},"",{"$f":"IF(ISERROR(VLOOKUP(C41,basisgegevens!$A$1:$AB$50,$Q$3,FALSE)),\"\",VLOOKUP(C41,basisgegevens!$A$1:$AB$50,$Q$3,FALSE))","v":""},{"$f":"IF(ISERROR(VLOOKUP(C41,basisgegevens!$A$1:$AB$50,$R$3,FALSE)),\"\",VLOOKUP(C41,basisgegevens!$A$1:$AB$409,$R$3,FALSE))","v":""},"",{"$f":"IF(ISERROR(VLOOKUP(C41,basisgegevens!$A$1:$AB$50,$T$3,FALSE)),\"\",VLOOKUP(C41,basisgegevens!$A$1:$AB$409,$T$3,FALSE))","v":""}]
[]
[null,"Andere"]
[null,null,{"$f":"IF('keuzelijst Andere'!$B$1=\"\",\"\",CONCATENATE('keuzelijst Andere'!$B$1+39))","v":""},{"$f":"IF(ISERROR(VLOOKUP(C44,basisgegevens!$A$1:$AB$50,$D$3,FALSE)),\"\",VLOOKUP(C44,basisgegevens!$A$1:$AB$50,$D$3,FALSE))","v":""},null," ",{"$f":"IF(C44=\"\",\"\",CONCATENATE(D44,\"  \",F44))","v":""},{"$f":"IF(ISERROR(VLOOKUP(C44,basisgegevens!$A$1:$AB$50,$H$3,FALSE)),\"\",VLOOKUP(C44,basisgegevens!$A$1:$AB$50,$H$3,FALSE))","v":""},null,{"$f":"IF(ISERROR(VLOOKUP(C44,basisgegevens!$A$1:$AB$50,$J$3,FALSE)),\"\",VLOOKUP(C44,basisgegevens!$A$1:$AB$50,$J$3,FALSE))","v":""},{"$f":"IF(ISERROR(VLOOKUP(C44,basisgegevens!$A$1:$AB$50,$K$3,FALSE)),\"\",VLOOKUP(C44,basisgegevens!$A$1:$AB$50,$K$3,FALSE))","v":""},{"$f":"IF(ISERROR(VLOOKUP(C44,basisgegevens!$A$1:$AB$50,$L$3,FALSE)),\"\",VLOOKUP(C44,basisgegevens!$A$1:$AB$50,$L$3,FALSE))","v":""},{"$f":"IF(L44=\"\",\"\",L44)","v":""},{"$f":"IF(ISERROR(VLOOKUP(C44,basisgegevens!$A$1:$AB$50,$N$3,FALSE)),\"\",IF(VLOOKUP(C44,basisgegevens!$A$1:$AB$50,$N$3,FALSE)=0,\"\",VLOOKUP(C44,basisgegevens!$A$1:$AB$50,$N$3,FALSE)))","v":""},{"$f":"IF(ISERROR(VLOOKUP(C44,basisgegevens!$A$1:$AB$50,$O$3,FALSE)),\"\",VLOOKUP(C44,basisgegevens!$A$1:$AB$50,$O$3,FALSE))","v":""},{"$f":"IF(M44=\"\",\"\",IF(M44=0,0,IF(N44=\"+\",M44+O44,IF(N44=\"*\",M44*O44,M44))))","v":""},{"$f":"IF(ISERROR(VLOOKUP(C44,basisgegevens!$A$1:$AB$50,$Q$3,FALSE)),\"\",VLOOKUP(C44,basisgegevens!$A$1:$AB$50,$Q$3,FALSE))","v":""},{"$f":"IF(ISERROR(VLOOKUP(C44,basisgegevens!$A$1:$AB$50,$R$3,FALSE)),\"\",VLOOKUP(C44,basisgegevens!$A$1:$AB$409,$R$3,FALSE))","v":""},{"$f":"R44","v":""},{"$f":"IF(ISERROR(VLOOKUP(C44,basisgegevens!$A$1:$AB$50,$T$3,FALSE)),\"\",VLOOKUP(C44,basisgegevens!$A$1:$AB$409,$T$3,FALSE))","v":""}]
[null,null,{"$f":"IF('keuzelijst Andere'!$C$1=\"\",\"\",CONCATENATE('keuzelijst Andere'!$C$1+39))","v":""},{"$f":"IF(ISERROR(VLOOKUP(C45,basisgegevens!$A$1:$AB$50,$D$3,FALSE)),\"\",VLOOKUP(C45,basisgegevens!$A$1:$AB$50,$D$3,FALSE))","v":""},null,null,"",{"$f":"IF(ISERROR(VLOOKUP(C45,basisgegevens!$A$1:$AB$50,$H$3,FALSE)),\"\",VLOOKUP(C45,basisgegevens!$A$1:$AB$50,$H$3,FALSE))","v":""},null,{"$f":"IF(ISERROR(VLOOKUP(C45,basisgegevens!$A$1:$AB$50,$J$3,FALSE)),\"\",VLOOKUP(C45,basisgegevens!$A$1:$AB$50,$J$3,FALSE))","v":""},{"$f":"IF(ISERROR(VLOOKUP(C45,basisgegevens!$A$1:$AB$50,$K$3,FALSE)),\"\",VLOOKUP(C45,basisgegevens!$A$1:$AB$50,$K$3,FALSE))","v":""},{"$f":"IF(ISERROR(VLOOKUP(C45,basisgegevens!$A$1:$AB$50,$L$3,FALSE)),\"\",VLOOKUP(C45,basisgegevens!$A$1:$AB$50,$L$3,FALSE))","v":""},"",null,{"$f":"IF(ISERROR(VLOOKUP(C45,basisgegevens!$A$1:$AB$50,$O$3,FALSE)),\"\",VLOOKUP(C45,basisgegevens!$A$1:$AB$50,$O$3,FALSE))","v":""},"",{"$f":"IF(ISERROR(VLOOKUP(C45,basisgegevens!$A$1:$AB$50,$Q$3,FALSE)),\"\",VLOOKUP(C45,basisgegevens!$A$1:$AB$50,$Q$3,FALSE))","v":""},{"$f":"IF(ISERROR(VLOOKUP(C45,basisgegevens!$A$1:$AB$50,$R$3,FALSE)),\"\",VLOOKUP(C45,basisgegevens!$A$1:$AB$409,$R$3,FALSE))","v":""},"",{"$f":"IF(ISERROR(VLOOKUP(C45,basisgegevens!$A$1:$AB$50,$T$3,FALSE)),\"\",VLOOKUP(C45,basisgegevens!$A$1:$AB$409,$T$3,FALSE))","v":""}]

{"sheet":"jaarkalender","index":13,"n_rows":53,"n_cols":24,"rows_kept":53,"merged":[[0,1,0,2],[1,1,1,2],[2,1,2,2],[3,1,3,2],[4,1,4,2],[9,0,10,15],[9,16,10,22],[11,0,12,0],[11,1,12,1],[11,2,12,2],[11,3,12,3],[11,4,12,4],[11,5,12,5],[11,6,12,6],[11,7,12,7],[11,8,12,8],[11,9,12,9],[11,10,12,10],[11,11,12,11],[11,12,12,12],[11,13,12,13],[11,14,12,14],[11,15,12,15],[11,16,12,16],[11,17,12,17],[11,18,12,18],[11,19,12,19],[11,20,12,20],[11,21,12,21],[11,22,12,22]]}
["TE BESTEDEN BUDGET"]
["REEDS GEBUDGETTEERD",{"$f":"V52","v":0}]
["NOG TE BESTEDEN",{"$f":"B1-B2","v":0}]
[]
["BUITEN BUDGET",{"$f":"W52","v":0}]
[]
[]
[]
[]
["INPUT",{"$nulls":15},"KOST"]
[]
["AARD ONDERSTEUNING","EENHEID","JAN","FEB","MAART","APRIL","MEI","JUNI","JULI","AUG","SEPT","OKT","NOV","DEC","TOTAAL EH","RAMING KOSTPRIJS","TOTAAL BEDRAG","JAARKOST","TOTAAL","JAARLIMIET","Budget?","OP BUDGET","BUITEN BUDGET"]
[]
["Assistenten",{"$nulls":19}," "]
[{"$f":"IF('individuele bedragen'!G9=\"\",\"\",'individuele bedragen'!G9)","v":""},{"$f":"'individuele bedragen'!H9","v":""},{"$f":"IF($A15=\"\",\"\",'individuele bedragen'!$I9)","v":""},{"$f":"IF($A15=\"\",\"\",'individuele bedragen'!$I9)","v":""},{"$f":"IF($A15=\"\",\"\",'individuele bedragen'!$I9)","v":""},{"$f":"IF($A15=\"\",\"\",'individuele bedragen'!$I9)","v":""},{"$f":"IF($A15=\"\",\"\",'individuele bedragen'!$I9)","v":""},{"$f":"IF($A15=\"\",\"\",'individuele bedragen'!$I9)","v":""},{"$f":"IF($A15=\"\",\"\",'individuele bedragen'!$I9)","v":""},{"$f":"IF($A15=\"\",\"\",'individuele bedragen'!$I9)","v":""},{"$f":"IF($A15=\"\",\"\",'individuele bedragen'!$I9)","v":""},{"$f":"IF($A15=\"\",\"\",'individuele bedragen'!$I9)","v":""},{"$f":"IF($A15=\"\",\"\",'individuele bedragen'!$I9)","v":""},{"$f":"IF($A15=\"\",\"\",'individuele bedragen'!$I9)","v":""},{"$f":"IF(A15=\"\",\"\",SUM(C15:N15))","v":""},{"$f":"IF($A15=\"\",\"\",IF('individuele bedragen'!P9=\"\",0,'individuele bedragen'!P9))","v":""},{"$f":"IF(A15=\"\",\"\",O15*P15)","v":""},{"$f":"IF(A15=\"\",\"\",IF('individuele bedragen'!Q9=\"\",0,'individuele bedragen'!Q9))","v":""},{"$f":"IF(A15=\"\",\"\",Q15+R15)","v":""},{"$f":"'individuele bedragen'!T9","v":""},{"$f":"'individuele bedragen'!S9","v":""},{"$f":"IF(S15=\"\",\"\",IF(U15=\"J\",S15,0))","v":""},{"$f":"IF(S15=\"\",\"\",IF(U15<>\"J\",S15,0))","v":""},{"$f":"IF(S15=\"\",\"\",IF(T15=0,\"\",IF(S15>T15,\"Opgelet; jaarlimiet overschreden\",\"\")))","v":""}]
[{"$f":"IF('individuele bedragen'!G10=\"\",\"\",'individuele bedragen'!G10)","v":""},{"$f":"'individuele bedragen'!H10","v":""},{"$f":"IF($A16=\"\",\"\",'individuele bedragen'!$I10)","v":""},{"$f":"IF($A16=\"\",\"\",'individuele bedragen'!$I10)","v":""},{"$f":"IF($A16=\"\",\"\",'individuele bedragen'!$I10)","v":""},{"$f":"IF($A16=\"\",\"\",'individuele bedragen'!$I10)","v":""},{"$f":"IF($A16=\"\",\"\",'individuele bedragen'!$I10)","v":""},{"$f":"IF($A16=\"\",\"\",'individuele bedragen'!$I10)","v":""},{"$f":"IF($A16=\"\",\"\",'individuele bedragen'!$I10)","v":""},{"$f":"IF($A16=\"\",\"\",'individuele bedragen'!$I10)","v":""},{"$f":"IF($A16=\"\",\"\",'individuele bedragen'!$I10)","v":""},{"$f":"IF($A16=\"\",\"\",'individuele bedragen'!$I10)","v":""},{"$f":"IF($A16=\"\",\"\",'individuele bedragen'!$I10)","v":""},{"$f":"IF($A16=\"\",\"\",'individuele bedragen'!$I10)","v":""},{"$f":"IF(A16=\"\",\"\",SUM(C16:N16))","v":""},{"$f":"IF($A16=\"\",\"\",IF('individuele bedragen'!P10=\"\",0,'individuele bedragen'!P10))","v":""},{"$f":"IF(A16=\"\",\"\",O16*P16)","v":""},{"$f":"IF(A16=\"\",\"\",IF('individuele bedragen'!Q10=\"\",0,'individuele bedragen'!Q10))","v":""},{"$f":"IF(A16=\"\",\"\",Q16+R16)","v":""},{"$f":"'individuele bedragen'!T10","v":""},{"$f":"'individuele bedragen'!S10","v":""},{"$f":"IF(S16=\"\",\"\",IF(U16=\"J\",S16,0))","v":""},{"$f":"IF(S16=\"\",\"\",IF(U16<>\"J\",S16,0))","v":""},""]
[{"$f":"IF('individuele bedragen'!G11=\"\",\"\",'individuele bedragen'!G11)","v":""},{"$f":"'individuele bedragen'!H11","v":""},{"$f":"IF($A17=\"\",\"\",'individuele bedragen'!$I11)","v":""},{"$f":"IF($A17=\"\",\"\",'individuele bedragen'!$I11)","v":""},{"$f":"IF($A17=\"\",\"\",'individuele bedragen'!$I11)","v":""},{"$f":"IF($A17=\"\",\"\",'individuele bedragen'!$I11)","v":""},{"$f":"IF($A17=\"\",\"\",'individuele bedragen'!$I11)","v":""},{"$f":"IF($A17=\"\",\"\",'individuele bedragen'!$I11)","v":""},{"$f":"IF($A17=\"\",\"\",'individuele bedragen'!$I11)","v":""},{"$f":"IF($A17=\"\",\"\",'individuele bedragen'!$I11)","v":""},{"$f":"IF($A17=\"\",\"\",'individuele bedragen'!$I11)","v":""},{"$f":"IF($A17=\"\",\"\",'individuele bedragen'!$I11)","v":""},{"$f":"IF($A17=\"\",\"\",'individuele bedragen'!$I11)","v":""},{"$f":"IF($A17=\"\",\"\",'individuele bedragen'!$I11)","v":""},"",{"$f":"IF($A17=\"\",\"\",IF('individuele bedragen'!P11=\"\",0,'individuele bedragen'!P11))","v":""},"",{"$f":"IF(A17=\"\",\"\",IF('individuele bedragen'!Q11=\"\",0,'individuele bedragen'!Q11))","v":""},"",{"$f":"'individuele bedragen'!T11","v":""},{"$f":"'individuele bedragen'!S11","v":""},"","",""]
[{"$f":"IF('individuele bedragen'!G12=\"\",\"\",'individuele bedragen'!G12)","v":""},{"$f":"'individuele bedragen'!H12","v":""},{"$f":"IF($A18=\"\",\"\",'individuele bedragen'!$I12)","v":""},{"$f":"IF($A18=\"\",\"\",'individuele bedragen'!$I12)","v":""},{"$f":"IF($A18=\"\",\"\",'individuele bedragen'!$I12)","v":""},{"$f":"IF($A18=\"\",\"\",'individuele bedragen'!$I12)","v":""},{"$f":"IF($A18=\"\",\"\",'individuele bedragen'!$I12)","v":""},{"$f":"IF($A18=\"\",\"\",'individuele bedragen'!$I12)","v":""},{"$f":"IF($A18=\"\",\"\",'individuele bedragen'!$I12)","v":""},{"$f":"IF($A18=\"\",\"\",'individuele bedragen'!$I12)","v":""},{"$f":"IF($A18=\"\",\"\",'individuele bedragen'!$I12)","v":""},{"$f":"IF($A18=\"\",\"\",'individuele bedragen'!$I12)","v":""},{"$f":"IF($A18=\"\",\"\",'individuele bedragen'!$I12)","v":""},{"$f":"IF($A18=\"\",\"\",'individuele bedragen'!$I12)","v":""},"",{"$f":"IF($A18=\"\",\"\",IF('individuele bedragen'!P12=\"\",0,'individuele bedragen'!P12))","v":""},"",{"$f":"IF(A18=\"\",\"\",IF('individuele bedragen'!Q12=\"\",0,'individuele bedragen'!Q12))","v":""},"",{"$f":"'individuele bedragen'!T12","v":""},{"$f":"'individuele bedragen'!S12","v":""},"","",""]
[{"$f":"IF('individuele bedragen'!G13=\"\",\"\",'individuele bedragen'!G13)","v":""},{"$f":"'individuele bedragen'!H13","v":""},{"$f":"IF($A19=\"\",\"\",'individuele bedragen'!$I13)","v":""},{"$f":"IF($A19=\"\",\"\",'individuele bedragen'!$I13)","v":""},{"$f":"IF($A19=\"\",\"\",'individuele bedragen'!$I13)","v":""},{"$f":"IF($A19=\"\",\"\",'individuele bedragen'!$I13)","v":""},{"$f":"IF($A19=\"\",\"\",'individuele bedragen'!$I13)","v":""},{"$f":"IF($A19=\"\",\"\",'individuele bedragen'!$I13)","v":""},{"$f":"IF($A19=\"\",\"\",'individuele bedragen'!$I13)","v":""},{"$f":"IF($A19=\"\",\"\",'individuele bedragen'!$I13)","v":""},{"$f":"IF($A19=\"\",\"\",'individuele bedragen'!$I13)","v":""},{"$f":"IF($A19=\"\",\"\",'individuele bedragen'!$I13)","v":""},{"$f":"IF($A19=\"\",\"\",'individuele bedragen'!$I13)","v":""},{"$f":"IF($A19=\"\",\"\",'individuele bedragen'!$I13)","v":""},"",{"$f":"IF($A19=\"\",\"\",IF('individuele bedragen'!P13=\"\",0,'individuele bedragen'!P13))","v":""},"",{"$f":"IF(A19=\"\",\"\",IF('individuele bedragen'!Q13=\"\",0,'individuele bedragen'!Q13))","v":""},"",{"$f":"'individuele bedragen'!T13","v":""},{"$f":"'individuele bedragen'!S13","v":""},"","",""]
[{"$f":"IF('individuele bedragen'!G14=\"\",\"\",'individuele bedragen'!G14)","v":""},{"$f":"'individuele bedragen'!H14","v":""},{"$f":"IF($A20=\"\",\"\",'individuele bedragen'!$I14)","v":""},{"$f":"IF($A20=\"\",\"\",'individuele bedragen'!$I14)","v":""},{"$f":"IF($A20=\"\",\"\",'individuele bedragen'!$I14)","v":""},{"$f":"IF($A20=\"\",\"\",'individuele bedragen'!$I14)","v":""},{"$f":"IF($A20=\"\",\"\",'individuele bedragen'!$I14)","v":""},{"$f":"IF($A20=\"\",\"\",'individuele bedragen'!$I14)","v":""},{"$f":"IF($A20=\"\",\"\",'individuele bedragen'!$I14)","v":""},{"$f":"IF($A20=\"\",\"\",'individuele bedragen'!$I14)","v":""},{"$f":"IF($A20=\"\",\"\",'individuele bedragen'!$I14)","v":""},{"$f":"IF($A20=\"\",\"\",'individuele bedragen'!$I14)","v":""},{"$f":"IF($A20=\"\",\"\",'individuele bedragen'!$I14)","v":""},{"$f":"IF($A20=\"\",\"\",'individuele bedragen'!$I14)","v":""},"",{"$f":"IF($A20=\"\",\"\",IF('individuele bedragen'!P14=\"\",0,'individuele bedragen'!P14))","v":""},"",{"$f":"IF(A20=\"\",\"\",IF('individuele bedragen'!Q14=\"\",0,'individuele bedragen'!Q14))","v":""},"",{"$f":"'individuele bedragen'!T14","v":""},{"$f":"'individuele bedragen'!S14","v":""},"","",""]
[{"$f":"IF('individuele bedragen'!G15=\"\",\"\",'individuele bedragen'!G15)","v":""},{"$f":"'individuele bedragen'!H15","v":""},{"$f":"IF($A21=\"\",\"\",'individuele bedragen'!$I15)","v":""},{"$f":"IF($A21=\"\",\"\",'individuele bedragen'!$I15)","v":""},{"$f":"IF($A21=\"\",\"\",'individuele bedragen'!$I15)","v":""},{"$f":"IF($A21=\"\",\"\",'individuele bedragen'!$I15)","v":""},{"$f":"IF($A21=\"\",\"\",'individuele bedragen'!$I15)","v":""},{"$f":"IF($A21=\"\",\"\",'individuele bedragen'!$I15)","v":""},{"$f":"IF($A21=\"\",\"\",'individuele bedragen'!$I15)","v":""},{"$f":"IF($A21=\"\",\"\",'individuele bedragen'!$I15)","v":""},{"$f":"IF($A21=\"\",\"\",'individuele bedragen'!$I15)","v":""},{"$f":"IF($A21=\"\",\"\",'individuele bedragen'!$I15)","v":""},{"$f":"IF($A21=\"\",\"\",'individuele bedragen'!$I15)","v":""},{"$f":"IF($A21=\"\",\"\",'individuele bedragen'!$I15)","v":""},"",{"$f":"IF($A21=\"\",\"\",IF('individuele bedragen'!P15=\"\",0,'individuele bedragen'!P15))","v":""},"",{"$f":"IF(A21=\"\",\"\",IF('individuele bedragen'!Q15=\"\",0,'individuele bedragen'!Q15))","v":""},"",{"$f":"'individuele bedragen'!T15","v":""},{"$f":"'individuele bedragen'!S15","v":""},"","",""]
[{"$f":"IF('individuele bedragen'!G16=\"\",\"\",'individuele bedragen'!G16)","v":""},{"$f":"'individuele bedragen'!H16","v":""},{"$f":"IF($A22=\"\",\"\",'individuele bedragen'!$I16)","v":""},{"$f":"IF($A22=\"\",\"\",'individuele bedragen'!$I16)","v":""},{"$f":"IF($A22=\"\",\"\",'individuele bedragen'!$I16)","v":""},{"$f":"IF($A22=\"\",\"\",'individuele bedragen'!$I16)","v":""},{"$f":"IF($A22=\"\",\"\",'individuele bedragen'!$I16)","v":""},{"$f":"IF($A22=\"\",\"\",'individuele bedragen'!$I16)","v":""},{"$f":"IF($A22=\"\",\"\",'individuele bedragen'!$I16)","v":""},{"$f":"IF($A22=\"\",\"\",'individuele bedragen'!$I16)","v":""},{"$f":"IF($A22=\"\",\"\",'individuele bedragen'!$I16)","v":""},{"$f":"IF($A22=\"\",\"\",'individuele bedragen'!$I16)","v":""},{"$f":"IF($A22=\"\",\"\",'individuele bedragen'!$I16)","v":""},{"$f":"IF($A22=\"\",\"\",'individuele bedragen'!$I16)","v":""},"",{"$f":"IF($A22=\"\",\"\",IF('individuele bedragen'!P16=\"\",0,'individuele bedragen'!P16))","v":""},"",{"$f":"IF(A22=\"\",\"\",IF('individuele bedragen'!Q16=\"\",0,'individuele bedragen'!Q16))","v":""},"",{"$f":"'individuele bedragen'!T16","v":""},{"$f":"'individuele bedragen'!S16","v":""},"","",""]
[{"$f":"IF('individuele bedragen'!G17=\"\",\"\",'individuele bedragen'!G17)","v":""},{"$f":"'individuele bedragen'!H17","v":""},{"$f":"IF($A23=\"\",\"\",'individuele bedragen'!$I17)","v":""},{"$f":"IF($A23=\"\",\"\",'individuele bedragen'!$I17)","v":""},{"$f":"IF($A23=\"\",\"\",'individuele bedragen'!$I17)","v":""},{"$f":"IF($A23=\"\",\"\",'individuele bedragen'!$I17)","v":""},{"$f":"IF($A23=\"\",\"\",'individuele bedragen'!$I17)","v":""},{"$f":"IF($A23=\"\",\"\",'individuele bedragen'!$I17)","v":""},{"$f":"IF($A23=\"\",\"\",'individuele bedragen'!$I17)","v":""},{"$f":"IF($A23=\"\",\"\",'individuele bedragen'!$I17)","v":""},{"$f":"IF($A23=\"\",\"\",'individuele bedragen'!$I17)","v":""},{"$f":"IF($A23=\"\",\"\",'individuele bedragen'!$I17)","v":""},{"$f":"IF($A23=\"\",\"\",'individuele bedragen'!$I17)","v":""},{"$f":"IF($A23=\"\",\"\",'individuele bedragen'!$I17)","v":""},"",{"$f":"IF($A23=\"\",\"\",IF('individuele bedragen'!P17=\"\",0,'individuele bedragen'!P17))","v":""},"",{"$f":"IF(A23=\"\",\"\",IF('individuele bedragen'!Q17=\"\",0,'individuele bedragen'!Q17))","v":""},"",{"$f":"'individuele bedragen'!T17","v":""},{"$f":"'individuele bedragen'!S17","v":""},"","",""]
[{"$f":"IF('individuele bedragen'!G18=\"\",\"\",'individuele bedragen'!G18)","v":""},{"$f":"'individuele bedragen'!H18","v":""},{"$f":"IF($A24=\"\",\"\",'individuele bedragen'!$I18)","v":""},{"$f":"IF($A24=\"\",\"\",'individuele bedragen'!$I18)","v":""},{"$f":"IF($A24=\"\",\"\",'individuele bedragen'!$I18)","v":""},{"$f":"IF($A24=\"\",\"\",'individuele bedragen'!$I18)","v":""},{"$f":"IF($A24=\"\",\"\",'individuele bedragen'!$I18)","v":""},{"$f":"IF($A24=\"\",\"\",'individuele bedragen'!$I18)","v":""},{"$f":"IF($A24=\"\",\"\",'individuele bedragen'!$I18)","v":""},{"$f":"IF($A24=\"\",\"\",'individuele bedragen'!$I18)","v":""},{"$f":"IF($A24=\"\",\"\",'individuele bedragen'!$I18)","v":""},{"$f":"IF($A24=\"\",\"\",'individuele bedragen'!$I18)","v":""},{"$f":"IF($A24=\"\",\"\",'individuele bedragen'!$I18)","v":""},{"$f":"IF($A24=\"\",\"\",'individuele bedragen'!$I18)","v":""},"",{"$f":"IF($A24=\"\",\"\",IF('individuele bedragen'!P18=\"\",0,'individuele bedragen'!P18))","v":""},"",{"$f":"IF(A24=\"\",\"\",IF('individuele bedragen'!Q18=\"\",0,'individuele bedragen'!Q18))","v":""},"",{"$f":"'individuele bedragen'!T18","v":""},{"$f":"'individuele bedragen'!S18","v":""},"","",{"$f":"IF(S24=\"\",\"\",IF(T24=0,\"\",IF(S24>T24,\"Opgelet; jaarlimiet overschreden\",\"\")))","v":""}]
[{"$f":"IF('individuele bedragen'!G19=\"\",\"\",'individuele bedragen'!G19)","v":""},{"$f":"'individuele bedragen'!H19","v":""},{"$f":"IF($A25=\"\",\"\",'individuele bedragen'!$I19)","v":""},{"$f":"IF($A25=\"\",\"\",'individuele bedragen'!$I19)","v":""},{"$f":"IF($A25=\"\",\"\",'individuele bedragen'!$I19)","v":""},{"$f":"IF($A25=\"\",\"\",'individuele bedragen'!$I19)","v":""},{"$f":"IF($A25=\"\",\"\",'individuele bedragen'!$I19)","v":""},{"$f":"IF($A25=\"\",\"\",'individuele bedragen'!$I19)","v":""},{"$f":"IF($A25=\"\",\"\",'individuele bedragen'!$I19)","v":""},{"$f":"IF($A25=\"\",\"\",'individuele bedragen'!$I19)","v":""},{"$f":"IF($A25=\"\",\"\",'individuele bedragen'!$I19)","v":""},{"$f":"IF($A25=\"\",\"\",'individuele bedragen'!$I19)","v":""},{"$f":"IF($A25=\"\",\"\",'individuele bedragen'!$I19)","v":""},{"$f":"IF($A25=\"\",\"\",'individuele bedragen'!$I19)","v":""},"",{"$f":"IF($A25=\"\",\"\",IF('individuele bedragen'!P19=\"\",0,'individuele bedragen'!P19))","v":""},"",{"$f":"IF(A25=\"\",\"\",IF('individuele bedragen'!Q19=\"\",0,'individuele bedragen'!Q19))","v":""},"",{"$f":"'individuele bedragen'!T19","v":""},{"$f":"'individuele bedragen'!S19","v":""},"","",""]
[{"$nulls":17},{"$f":"IF(A26=\"\",\"\",IF('individuele bedragen'!Q20=\"\",0,'individuele bedragen'!Q20))","v":""},{"$f":"IF(A26=\"\",\"\",Q26+R26)","v":""},{"$f":"'individuele bedragen'!T20","v":""},null,{"$f":"IF(S26=\"\",\"\",IF(U26=\"J\",S26,0))","v":""},{"$f":"IF(S26=\"\",\"\",IF(U26<>\"J\",S26,0))","v":""},{"$f":"IF(S26=\"\",\"\",IF(T26=0,\"\",IF(S26>T26,\"Opgelet; jaarlimiet overschreden\",\"\")))","v":""}]
["Huishouden, verzorging",{"$nulls":18},{"$f":"'individuele bedragen'!T21","v":""},null,"","",""]
[{"$f":"IF('individuele bedragen'!G22=\"\",\"\",'individuele bedragen'!G22)","v":""},{"$f":"'individuele bedragen'!H22","v":""},{"$f":"IF($A28=\"\",\"\",'individuele bedragen'!$I22)","v":""},{"$f":"IF($A28=\"\",\"\",'individuele bedragen'!$I22)","v":""},{"$f":"IF($A28=\"\",\"\",'individuele bedragen'!$I22)","v":""},{"$f":"IF($A28=\"\",\"\",'individuele bedragen'!$I22)","v":""},{"$f":"IF($A28=\"\",\"\",'individuele bedragen'!$I22)","v":""},{"$f":"IF($A28=\"\",\"\",'individuele bedragen'!$I22)","v":""},{"$f":"IF($A28=\"\",\"\",'individuele bedragen'!$I22)","v":""},{"$f":"IF($A28=\"\",\"\",'individuele bedragen'!$I22)","v":""},{"$f":"IF($A28=\"\",\"\",'individuele bedragen'!$I22)","v":""},{"$f":"IF($A28=\"\",\"\",'individuele bedragen'!$I22)","v":""},{"$f":"IF($A28=\"\",\"\",'individuele bedragen'!$I22)","v":""},{"$f":"IF($A28=\"\",\"\",'individuele bedragen'!$I22)","v":""},{"$f":"IF(A28=\"\",\"\",SUM(C28:N28))","v":""},{"$f":"IF($A28=\"\",\"\",IF('individuele bedragen'!P22=\"\",0,'individuele bedragen'!P22))","v":""},{"$f":"IF(A28=\"\",\"\",O28*P28)","v":""},{"$f":"IF(A28=\"\",\"\",IF('individuele bedragen'!Q22=\"\",0,'individuele bedragen'!Q22))","v":""},{"$f":"IF(A28=\"\",\"\",Q28+R28)","v":""},{"$f":"'individuele bedragen'!T22","v":""},{"$f":"'individuele bedragen'!S22","v":""},"","",""]
[{"$f":"IF('individuele bedragen'!G23=\"\",\"\",'individuele bedragen'!G23)","v":""},{"$f":"'individuele bedragen'!H23","v":""},{"$f":"IF($A29=\"\",\"\",'individuele bedragen'!$I23)","v":""},{"$f":"IF($A29=\"\",\"\",'individuele bedragen'!$I23)","v":""},{"$f":"IF($A29=\"\",\"\",'individuele bedragen'!$I23)","v":""},{"$f":"IF($A29=\"\",\"\",'individuele bedragen'!$I23)","v":""},{"$f":"IF($A29=\"\",\"\",'individuele bedragen'!$I23)","v":""},{"$f":"IF($A29=\"\",\"\",'individuele bedragen'!$I23)","v":""},{"$f":"IF($A29=\"\",\"\",'individuele bedragen'!$I23)","v":""},{"$f":"IF($A29=\"\",\"\",'individuele bedragen'!$I23)","v":""},{"$f":"IF($A29=\"\",\"\",'individuele bedragen'!$I23)","v":""},{"$f":"IF($A29=\"\",\"\",'individuele bedragen'!$I23)","v":""},{"$f":"IF($A29=\"\",\"\",'individuele bedragen'!$I23)","v":""},{"$f":"IF($A29=\"\",\"\",'individuele bedragen'!$I23)","v":""},"",{"$f":"IF($A29=\"\",\"\",IF('individuele bedragen'!P23=\"\",0,'individuele bedragen'!P23))","v":""},"",{"$f":"IF(A29=\"\",\"\",IF('individuele bedragen'!Q23=\"\",0,'individuele bedragen'!Q23))","v":""},"",{"$f":"'individuele bedragen'!T23","v":""},{"$f":"'individuele bedragen'!S23","v":""},"","",""]
[{"$f":"IF('individuele bedragen'!G24=\"\",\"\",'individuele bedragen'!G24)","v":""},{"$f":"'individuele bedragen'!H24","v":""},{"$f":"IF($A30=\"\",\"\",'individuele bedragen'!$I24)","v":""},{"$f":"IF($A30=\"\",\"\",'individuele bedragen'!$I24)","v":""},{"$f":"IF($A30=\"\",\"\",'individuele bedragen'!$I24)","v":""},{"$f":"IF($A30=\"\",\"\",'individuele bedragen'!$I24)","v":""},{"$f":"IF($A30=\"\",\"\",'individuele bedragen'!$I24)","v":""},{"$f":"IF($A30=\"\",\"\",'individuele bedragen'!$I24)","v":""},{"$f":"IF($A30=\"\",\"\",'individuele bedragen'!$I24)","v":""},{"$f":"IF($A30=\"\",\"\",'individuele bedragen'!$I24)","v":""},{"$f":"IF($A30=\"\",\"\",'individuele bedragen'!$I24)","v":""},{"$f":"IF($A30=\"\",\"\",'individuele bedragen'!$I24)","v":""},{"$f":"IF($A30=\"\",\"\",'individuele bedragen'!$I24)","v":""},{"$f":"IF($A30=\"\",\"\",'individuele bedragen'!$I24)","v":""},{"$f":"IF(A30=\"\",\"\",SUM(C30:N30))","v":""},{"$f":"IF($A30=\"\",\"\",IF('individuele bedragen'!P24=\"\",0,'individuele bedragen'!P24))","v":""},{"$f":"IF(A30=\"\",\"\",O30*P30)","v":""},{"$f":"IF(A30=\"\",\"\",IF('individuele bedragen'!Q24=\"\",0,'individuele bedragen'!Q24))","v":""},{"$f":"IF(A30=\"\",\"\",Q30+R30)","v":""},{"$f":"'individuele bedragen'!T24","v":""},{"$f":"'individuele bedragen'!S24","v":""},"","",""]
[{"$f":"IF('individuele bedragen'!G25=\"\",\"\",'individuele bedragen'!G25)","v":""},{"$f":"'individuele bedragen'!H25","v":""},{"$f":"IF($A31=\"\",\"\",'individuele bedragen'!$I25)","v":""},{"$f":"IF($A31=\"\",\"\",'individuele bedragen'!$I25)","v":""},{"$f":"IF($A31=\"\",\"\",'individuele bedragen'!$I25)","v":""},{"$f":"IF($A31=\"\",\"\",'individuele bedragen'!$I25)","v":""},{"$f":"IF($A31=\"\",\"\",'individuele bedragen'!$I25)","v":""},{"$f":"IF($A31=\"\",\"\",'individuele bedragen'!$I25)","v":""},{"$f":"IF($A31=\"\",\"\",'individuele bedragen'!$I25)","v":""},{"$f":"IF($A31=\"\",\"\",'individuele bedragen'!$I25)","v":""},{"$f":"IF($A31=\"\",\"\",'individuele bedragen'!$I25)","v":""},{"$f":"IF($A31=\"\",\"\",'individuele bedragen'!$I25)","v":""},{"$f":"IF($A31=\"\",\"\",'individuele bedragen'!$I25)","v":""},{"$f":"IF($A31=\"\",\"\",'individuele bedragen'!$I25)","v":""},"",{"$f":"IF($A31=\"\",\"\",IF('individuele bedragen'!P25=\"\",0,'individuele bedragen'!P25))","v":""},"",{"$f":"IF(A31=\"\",\"\",IF('individuele bedragen'!Q25=\"\",0,'individuele bedragen'!Q25))","v":""},"",{"$f":"'individuele bedragen'!T25","v":""},{"$f":"'individuele bedragen'!S25","v":""},"","",""]
[{"$f":"IF('individuele bedragen'!G26=\"\",\"\",'individuele bedragen'!G26)","v":""},{"$f":"'individuele bedragen'!H26","v":""},{"$f":"IF($A32=\"\",\"\",'individuele bedragen'!$I26)","v":""},{"$f":"IF($A32=\"\",\"\",'individuele bedragen'!$I26)","v":""},{"$f":"IF($A32=\"\",\"\",'individuele bedragen'!$I26)","v":""},{"$f":"IF($A32=\"\",\"\",'individuele bedragen'!$I26)","v":""},{"$f":"IF($A32=\"\",\"\",'individuele bedragen'!$I26)","v":""},{"$f":"IF($A32=\"\",\"\",'individuele bedragen'!$I26)","v":""},{"$f":"IF($A32=\"\",\"\",'individuele bedragen'!$I26)","v":""},{"$f":"IF($A32=\"\",\"\",'individuele bedragen'!$I26)","v":""},{"$f":"IF($A32=\"\",\"\",'individuele bedragen'!$I26)","v":""},{"$f":"IF($A32=\"\",\"\",'individuele bedragen'!$I26)","v":""},{"$f":"IF($A32=\"\",\"\",'individuele bedragen'!$I26)","v":""},{"$f":"IF($A32=\"\",\"\",'individuele bedragen'!$I26)","v":""},"",{"$f":"IF($A32=\"\",\"\",IF('individuele bedragen'!P26=\"\",0,'individuele bedragen'!P26))","v":""},"",{"$f":"IF(A32=\"\",\"\",IF('individuele bedragen'!Q26=\"\",0,'individuele bedragen'!Q26))","v":""},"",{"$f":"'individuele bedragen'!T26","v":""},{"$f":"'individuele bedragen'!S26","v":""},"","",""]
[{"$f":"IF('individuele bedragen'!G27=\"\",\"\",'individuele bedragen'!G27)","v":""},{"$nulls":16},{"$f":"IF(A33=\"\",\"\",IF('individuele bedragen'!Q27=\"\",0,'individuele bedragen'!Q27))","v":""},{"$f":"IF(A33=\"\",\"\",Q33+R33)","v":""},{"$f":"'individuele bedragen'!T27","v":""},{"$nulls":3},""]
["Vergunde zorgaanbieder",{"$nulls":18},{"$f":"'individuele bedragen'!T28","v":""},{"$nulls":3},""]
[{"$f":"IF('individuele bedragen'!G29=\"\",\"\",'individuele bedragen'!G29)","v":""},{"$f":"'individuele bedragen'!H29","v":""},{"$f":"IF($A35=\"\",\"\",'individuele bedragen'!$I29)","v":""},{"$f":"IF($A35=\"\",\"\",'individuele bedragen'!$I29)","v":""},{"$f":"IF($A35=\"\",\"\",'individuele bedragen'!$I29)","v":""},{"$f":"IF($A35=\"\",\"\",'individuele bedragen'!$I29)","v":""},{"$f":"IF($A35=\"\",\"\",'individuele bedragen'!$I29)","v":""},{"$f":"IF($A35=\"\",\"\",'individuele bedragen'!$I29)","v":""},{"$f":"IF($A35=\"\",\"\",'individuele bedragen'!$I29)","v":""},{"$f":"IF($A35=\"\",\"\",'individuele bedragen'!$I29)","v":""},{"$f":"IF($A35=\"\",\"\",'individuele bedragen'!$I29)","v":""},{"$f":"IF($A35=\"\",\"\",'individuele bedragen'!$I29)","v":""},{"$f":"IF($A35=\"\",\"\",'individuele bedragen'!$I29)","v":""},{"$f":"IF($A35=\"\",\"\",'individuele bedragen'!$I29)","v":""},{"$f":"IF(A35=\"\",\"\",SUM(C35:N35))","v":""},{"$f":"IF($A35=\"\",\"\",IF('individuele bedragen'!P29=\"\",0,'individuele bedragen'!P29))","v":""},{"$f":"IF(A35=\"\",\"\",O35*P35)","v":""},{"$f":"IF(A35=\"\",\"\",IF('individuele bedragen'!Q29=\"\",0,'individuele bedragen'!Q29))","v":""},{"$f":"IF(A35=\"\",\"\",Q35+R35)","v":""},{"$f":"'individuele bedragen'!T29","v":""},{"$f":"'individuele bedragen'!S29","v":""},{"$f":"IF(S35=\"\",\"\",IF(U35=\"J\",S35,0))","v":""},{"$f":"IF(S35=\"\",\"\",IF(U35<>\"J\",S35,0))","v":""},""]
[{"$f":"IF('individuele bedragen'!G30=\"\",\"\",'individuele bedragen'!G30)","v":""},{"$f":"'individuele bedragen'!H30","v":""},{"$f":"IF($A36=\"\",\"\",'individuele bedragen'!$I30)","v":""},{"$f":"IF($A36=\"\",\"\",'individuele bedragen'!$I30)","v":""},{"$f":"IF($A36=\"\",\"\",'individuele bedragen'!$I30)","v":""},{"$f":"IF($A36=\"\",\"\",'individuele bedragen'!$I30)","v":""},{"$f":"IF($A36=\"\",\"\",'individuele bedragen'!$I30)","v":""},{"$f":"IF($A36=\"\",\"\",'individuele bedragen'!$I30)","v":""},{"$f":"IF($A36=\"\",\"\",'individuele bedragen'!$I30)","v":""},{"$f":"IF($A36=\"\",\"\",'individuele bedragen'!$I30)","v":""},{"$f":"IF($A36=\"\",\"\",'individuele bedragen'!$I30)","v":""},{"$f":"IF($A36=\"\",\"\",'individuele bedragen'!$I30)","v":""},{"$f":"IF($A36=\"\",\"\",'individuele bedragen'!$I30)","v":""},{"$f":"IF($A36=\"\",\"\",'individuele bedragen'!$I30)","v":""},"",{"$f":"IF($A36=\"\",\"\",IF('individuele bedragen'!P30=\"\",0,'individuele bedragen'!P30))","v":""},"",{"$f":"IF(A36=\"\",\"\",IF('individuele bedragen'!Q30=\"\",0,'individuele bedragen'!Q30))","v":""},"",{"$f":"'individuele bedragen'!T30","v":""},{"$f":"'individuele bedragen'!S30","v":""},"","",""]
[{"$f":"IF('individuele bedragen'!G31=\"\",\"\",'individuele bedragen'!G31)","v":""},{"$f":"'individuele bedragen'!H31","v":""},{"$f":"IF($A37=\"\",\"\",'individuele bedragen'!$I31)","v":""},{"$f":"IF($A37=\"\",\"\",'individuele bedragen'!$I31)","v":""},{"$f":"IF($A37=\"\",\"\",'individuele bedragen'!$I31)","v":""},{"$f":"IF($A37=\"\",\"\",'individuele bedragen'!$I31)","v":""},{"$f":"IF($A37=\"\",\"\",'individuele bedragen'!$I31)","v":""},{"$f":"IF($A37=\"\",\"\",'individuele bedragen'!$I31)","v":""},{"$f":"IF($A37=\"\",\"\",'individuele bedragen'!$I31)","v":""},{"$f":"IF($A37=\"\",\"\",'individuele bedragen'!$I31)","v":""},{"$f":"IF($A37=\"\",\"\",'individuele bedragen'!$I31)","v":""},{"$f":"IF($A37=\"\",\"\",'individuele bedragen'!$I31)","v":""},{"$f":"IF($A37=\"\",\"\",'individuele bedragen'!$I31)","v":""},{"$f":"IF($A37=\"\",\"\",'individuele bedragen'!$I31)","v":""},"",{"$f":"IF($A37=\"\",\"\",IF('individuele bedragen'!P31=\"\",0,'individuele bedragen'!P31))","v":""},"",{"$f":"IF(A37=\"\",\"\",IF('individuele bedragen'!Q31=\"\",0,'individuele bedragen'!Q31))","v":""},"",{"$f":"'individuele bedragen'!T31","v":""},{"$f":"'individuele bedragen'!S31","v":""},"","",""]
[{"$f":"IF('individuele bedragen'!G32=\"\",\"\",'individuele bedragen'!G32)","v":""},{"$f":"'individuele bedragen'!H32","v":""},{"$f":"IF($A38=\"\",\"\",'individuele bedragen'!$I32)","v":""},{"$f":"IF($A38=\"\",\"\",'individuele bedragen'!$I32)","v":""},{"$f":"IF($A38=\"\",\"\",'individuele bedragen'!$I32)","v":""},{"$f":"IF($A38=\"\",\"\",'individuele bedragen'!$I32)","v":""},{"$f":"IF($A38=\"\",\"\",'individuele bedragen'!$I32)","v":""},{"$f":"IF($A38=\"\",\"\",'individuele bedragen'!$I32)","v":""},{"$f":"IF($A38=\"\",\"\",'individuele bedragen'!$I32)","v":""},{"$f":"IF($A38=\"\",\"\",'individuele bedragen'!$I32)","v":""},{"$f":"IF($A38=\"\",\"\",'individuele bedragen'!$I32)","v":""},{"$f":"IF($A38=\"\",\"\",'individuele bedragen'!$I32)","v":""},{"$f":"IF($A38=\"\",\"\",'individuele bedragen'!$I32)","v":""},{"$f":"IF($A38=\"\",\"\",'individuele bedragen'!$I32)","v":""},"",{"$f":"IF($A38=\"\",\"\",IF('individuele bedragen'!P32=\"\",0,'individuele bedragen'!P32))","v":""},"",{"$f":"IF(A38=\"\",\"\",IF('individuele bedragen'!Q32=\"\",0,'individuele bedragen'!Q32))","v":""},"",{"$f":"'individuele bedragen'!T32","v":""},{"$f":"'individuele bedragen'!S32","v":""},"","",""]
[{"$nulls":17},{"$f":"IF(A39=\"\",\"\",IF('individuele bedragen'!Q33=\"\",0,'individuele bedragen'!Q33))","v":""},"",{"$f":"'individuele bedragen'!T33","v":""},null,{"$f":"IF(S39=\"\",\"\",IF(U39=\"J\",S39,0))","v":""},{"$f":"IF(S39=\"\",\"\",IF(U39<>\"J\",S39,0))","v":""},""]
["Bijstandsorganisatie",{"$nulls":22},""]
[{"$f":"IF('individuele bedragen'!G35=\"\",\"\",'individuele bedragen'!G35)","v":""},{"$f":"'individuele bedragen'!H35","v":""},{"$f":"IF($A41=\"\",\"\",'individuele bedragen'!$I35)","v":""},{"$f":"IF($A41=\"\",\"\",'individuele bedragen'!$I35)","v":""},{"$f":"IF($A41=\"\",\"\",'individuele bedragen'!$I35)","v":""},{"$f":"IF($A41=\"\",\"\",'individuele bedragen'!$I35)","v":""},{"$f":"IF($A41=\"\",\"\",'individuele bedragen'!$I35)","v":""},{"$f":"IF($A41=\"\",\"\",'individuele bedragen'!$I35)","v":""},{"$f":"IF($A41=\"\",\"\",'individuele bedragen'!$I35)","v":""},{"$f":"IF($A41=\"\",\"\",'individuele bedragen'!$I35)","v":""},{"$f":"IF($A41=\"\",\"\",'individuele bedragen'!$I35)","v":""},{"$f":"IF($A41=\"\",\"\",'individuele bedragen'!$I35)","v":""},{"$f":"IF($A41=\"\",\"\",'individuele bedragen'!$I35)","v":""},{"$f":"IF($A41=\"\",\"\",'individuele bedragen'!$I35)","v":""},{"$f":"IF(A41=\"\",\"\",SUM(C41:N41))","v":""},{"$f":"IF($A41=\"\",\"\",IF('individuele bedragen'!P35=\"\",0,'individuele bedragen'!P35))","v":""},{"$f":"IF(A41=\"\",\"\",O41*P41)","v":""},{"$f":"IF(A41=\"\",\"\",IF('individuele bedragen'!Q35=\"\",0,'individuele bedragen'!Q35))","v":""},{"$f":"IF(A41=\"\",\"\",Q41+R41)","v":""},{"$f":"'individuele bedragen'!T35","v":""},{"$f":"'individuele bedragen'!S35","v":""},{"$f":"IF(S41=\"\",\"\",IF(U41=\"J\",S41,0))","v":""},{"$f":"IF(S41=\"\",\"\",IF(U41<>\"J\",S41,0))","v":""},""]
[{"$nulls":17},{"$f":"IF(A42=\"\",\"\",IF('individuele bedragen'!Q36=\"\",0,'individuele bedragen'!Q36))","v":""},"",{"$f":"'individuele bedragen'!T36","v":""},null,{"$f":"IF(S42=\"\",\"\",IF(U42=\"J\",S42,0))","v":""},{"$f":"IF(S42=\"\",\"\",IF(U42<>\"J\",S42,0))","v":""},""]
["Vervoer",{"$f":"'individuele bedragen'!H37","v":""},{"$nulls":17},{"$f":"'individuele bedragen'!T37","v":""},{"$nulls":3},""]
[{"$f":"IF('individuele bedragen'!G38=\"\",\"\",'individuele bedragen'!G38)","v":""},{"$f":"'individuele bedragen'!H38","v":""},{"$f":"IF($A44=\"\",\"\",'individuele bedragen'!$I38)","v":""},{"$f":"IF($A44=\"\",\"\",'individuele bedragen'!$I38)","v":""},{"$f":"IF($A44=\"\",\"\",'individuele bedragen'!$I38)","v":""},{"$f":"IF($A44=\"\",\"\",'individuele bedragen'!$I38)","v":""},{"$f":"IF($A44=\"\",\"\",'individuele bedragen'!$I38)","v":""},{"$f":"IF($A44=\"\",\"\",'individuele bedragen'!$I38)","v":""},{"$f":"IF($A44=\"\",\"\",'individuele bedragen'!$I38)","v":""},{"$f":"IF($A44=\"\",\"\",'individuele bedragen'!$I38)","v":""},{"$f":"IF($A44=\"\",\"\",'individuele bedragen'!$I38)","v":""},{"$f":"IF($A44=\"\",\"\",'individuele bedragen'!$I38)","v":""},{"$f":"IF($A44=\"\",\"\",'individuele bedragen'!$I38)","v":""},{"$f":"IF($A44=\"\",\"\",'individuele bedragen'!$I38)","v":""},{"$f":"IF(A44=\"\",\"\",SUM(C44:N44))","v":""},{"$f":"IF($A44=\"\",\"\",IF('individuele bedragen'!P38=\"\",0,'individuele bedragen'!P38))","v":""},{"$f":"IF(A44=\"\",\"\",O44*P44)","v":""},{"$f":"IF(A44=\"\",\"\",IF('individuele bedragen'!Q38=\"\",0,'individuele bedragen'!Q38))","v":""},{"$f":"IF(A44=\"\",\"\",Q44+R44)","v":""},{"$f":"'individuele bedragen'!T38","v":""},{"$f":"'individuele bedragen'!S38","v":""},{"$f":"IF(S44=\"\",\"\",IF(U44=\"J\",S44,0))","v":""},{"$f":"IF(S44=\"\",\"\",IF(U44<>\"J\",S44,0))","v":""},""]
[{"$f":"IF('individuele bedragen'!G39=\"\",\"\",'individuele bedragen'!G39)","v":""},{"$f":"'individuele bedragen'!H39","v":""},{"$f":"IF($A45=\"\",\"\",'individuele bedragen'!$I39)","v":""},{"$f":"IF($A45=\"\",\"\",'individuele bedragen'!$I39)","v":""},{"$f":"IF($A45=\"\",\"\",'individuele bedragen'!$I39)","v":""},{"$f":"IF($A45=\"\",\"\",'individuele bedragen'!$I39)","v":""},{"$f":"IF($A45=\"\",\"\",'individuele bedragen'!$I39)","v":""},{"$f":"IF($A45=\"\",\"\",'individuele bedragen'!$I39)","v":""},{"$f":"IF($A45=\"\",\"\",'individuele bedragen'!$I39)","v":""},{"$f":"IF($A45=\"\",\"\",'individuele bedragen'!$I39)","v":""},{"$f":"IF($A45=\"\",\"\",'individuele bedragen'!$I39)","v":""},{"$f":"IF($A45=\"\",\"\",'individuele bedragen'!$I39)","v":""},{"$f":"IF($A45=\"\",\"\",'individuele bedragen'!$I39)","v":""},{"$f":"IF($A45=\"\",\"\",'individuele bedragen'!$I39)","v":""},{"$f":"IF(A45=\"\",\"\",SUM(C45:N45))","v":""},{"$f":"IF($A45=\"\",\"\",IF('individuele bedragen'!P39=\"\",0,'individuele bedragen'!P39))","v":""},{"$f":"IF(A45=\"\",\"\",O45*P45)","v":""},{"$f":"IF(A45=\"\",\"\",IF('individuele bedragen'!Q39=\"\",0,'individuele bedragen'!Q39))","v":""},{"$f":"IF(A45=\"\",\"\",Q45+R45)","v":""},{"$f":"'individuele bedragen'!T39","v":""},{"$f":"'individuele bedragen'!S39","v":""},{"$f":"IF(S45=\"\",\"\",IF(U45=\"J\",S45,0))","v":""},{"$f":"IF(S45=\"\",\"\",IF(U45<>\"J\",S45,0))","v":""},""]
[{"$f":"IF('individuele bedragen'!G40=\"\",\"\",'individuele bedragen'!G40)","v":""},{"$f":"'individuele bedragen'!H40","v":""},{"$f":"IF($A46=\"\",\"\",'individuele bedragen'!$I40)","v":""},{"$f":"IF($A46=\"\",\"\",'individuele bedragen'!$I40)","v":""},{"$f":"IF($A46=\"\",\"\",'individuele bedragen'!$I40)","v":""},{"$f":"IF($A46=\"\",\"\",'individuele bedragen'!$I40)","v":""},{"$f":"IF($A46=\"\",\"\",'individuele bedragen'!$I40)","v":""},{"$f":"IF($A46=\"\",\"\",'individuele bedragen'!$I40)","v":""},{"$f":"IF($A46=\"\",\"\",'individuele bedragen'!$I40)","v":""},{"$f":"IF($A46=\"\",\"\",'individuele bedragen'!$I40)","v":""},{"$f":"IF($A46=\"\",\"\",'individuele bedragen'!$I40)","v":""},{"$f":"IF($A46=\"\",\"\",'individuele bedragen'!$I40)","v":""},{"$f":"IF($A46=\"\",\"\",'individuele bedragen'!$I40)","v":""},{"$f":"IF($A46=\"\",\"\",'individuele bedragen'!$I40)","v":""},"",{"$f":"IF($A46=\"\",\"\",IF('individuele bedragen'!P40=\"\",0,'individuele bedragen'!P40))","v":""},"",{"$f":"IF(A46=\"\",\"\",IF('individuele bedragen'!Q40=\"\",0,'individuele bedragen'!Q40))","v":""},"",{"$f":"'individuele bedragen'!T40","v":""},{"$f":"'individuele bedragen'!S40","v":""},"","",""]
[{"$f":"IF('individuele bedragen'!G41=\"\",\"\",'individuele bedragen'!G41)","v":""},{"$f":"'individuele bedragen'!H41","v":""},{"$f":"IF($A47=\"\",\"\",'individuele bedragen'!$I41)","v":""},{"$f":"IF($A47=\"\",\"\",'individuele bedragen'!$I41)","v":""},{"$f":"IF($A47=\"\",\"\",'individuele bedragen'!$I41)","v":""},{"$f":"IF($A47=\"\",\"\",'individuele bedragen'!$I41)","v":""},{"$f":"IF($A47=\"\",\"\",'individuele bedragen'!$I41)","v":""},{"$f":"IF($A47=\"\",\"\",'individuele bedragen'!$I41)","v":""},{"$f":"IF($A47=\"\",\"\",'individuele bedragen'!$I41)","v":""},{"$f":"IF($A47=\"\",\"\",'individuele bedragen'!$I41)","v":""},{"$f":"IF($A47=\"\",\"\",'individuele bedragen'!$I41)","v":""},{"$f":"IF($A47=\"\",\"\",'individuele bedragen'!$I41)","v":""},{"$f":"IF($A47=\"\",\"\",'individuele bedragen'!$I41)","v":""},{"$f":"IF($A47=\"\",\"\",'individuele bedragen'!$I41)","v":""},"",{"$f":"IF($A47=\"\",\"\",IF('individuele bedragen'!P41=\"\",0,'individuele bedragen'!P41))","v":""},"",{"$f":"IF(A47=\"\",\"\",IF('individuele bedragen'!Q41=\"\",0,'individuele bedragen'!Q41))","v":""},"",{"$f":"'individuele bedragen'!T41","v":""},{"$f":"'individuele bedragen'!S41","v":""},{"$f":"IF(S47=\"\",\"\",IF(U47=\"J\",S47,0))","v":""},{"$f":"IF(S47=\"\",\"\",IF(U47<>\"J\",S47,0))","v":""},""]
["Andere"]
[{"$f":"IF('individuele bedragen'!G44=\"\",\"\",'individuele bedragen'!G44)","v":""},{"$f":"'individuele bedragen'!H44","v":""},{"$f":"IF($A49=\"\",\"\",'individuele bedragen'!$I44)","v":""},{"$f":"IF($A49=\"\",\"\",'individuele bedragen'!$I44)","v":""},{"$f":"IF($A49=\"\",\"\",'individuele bedragen'!$I44)","v":""},{"$f":"IF($A49=\"\",\"\",'individuele bedragen'!$I44)","v":""},{"$f":"IF($A49=\"\",\"\",'individuele bedragen'!$I44)","v":""},{"$f":"IF($A49=\"\",\"\",'individuele bedragen'!$I44)","v":""},{"$f":"IF($A49=\"\",\"\",'individuele bedragen'!$I44)","v":""},{"$f":"IF($A49=\"\",\"\",'individuele bedragen'!$I44)","v":""},{"$f":"IF($A49=\"\",\"\",'individuele bedragen'!$I44)","v":""},{"$f":"IF($A49=\"\",\"\",'individuele bedragen'!$I44)","v":""},{"$f":"IF($A49=\"\",\"\",'individuele bedragen'!$I44)","v":""},{"$f":"IF($A49=\"\",\"\",'individuele bedragen'!$I44)","v":""},{"$f":"IF(A49=\"\",\"\",SUM(C49:N49))","v":""},{"$f":"IF($A49=\"\",\"\",IF('individuele bedragen'!P44=\"\",0,'individuele bedragen'!P44))","v":""},{"$f":"IF(A49=\"\",\"\",O49*P49)","v":""},{"$f":"IF(A49=\"\",\"\",IF('individuele bedragen'!Q44=\"\",0,'individuele bedragen'!Q44))","v":""},{"$f":"IF(A49=\"\",\"\",Q49+R49)","v":""},{"$f":"'individuele bedragen'!T44","v":""},{"$f":"'individuele bedragen'!S43","v":0},{"$f":"IF(S49=\"\",\"\",IF(U49=\"J\",S49,0))","v":""},{"$f":"IF(S49=\"\",\"\",IF(U49<>\"J\",S49,0))","v":""}]
[{"$f":"IF('individuele bedragen'!G45=\"\",\"\",'individuele bedragen'!G45)","v":""},{"$f":"'individuele bedragen'!H44","v":""},{"$f":"IF($A50=\"\",\"\",'individuele bedragen'!$I44)","v":""},{"$f":"IF($A50=\"\",\"\",'individuele bedragen'!$I44)","v":""},{"$f":"IF($A50=\"\",\"\",'individuele bedragen'!$I44)","v":""},{"$f":"IF($A50=\"\",\"\",'individuele bedragen'!$I44)","v":""},{"$f":"IF($A50=\"\",\"\",'individuele bedragen'!$I44)","v":""},{"$f":"IF($A50=\"\",\"\",'individuele bedragen'!$I44)","v":""},{"$f":"IF($A50=\"\",\"\",'individuele bedragen'!$I44)","v":""},{"$f":"IF($A50=\"\",\"\",'individuele bedragen'!$I44)","v":""},{"$f":"IF($A50=\"\",\"\",'individuele bedragen'!$I44)","v":""},{"$f":"IF($A50=\"\",\"\",'individuele bedragen'!$I44)","v":""},{"$f":"IF($A50=\"\",\"\",'individuele bedragen'!$I44)","v":""},{"$f":"IF($A50=\"\",\"\",'individuele bedragen'!$I44)","v":""},"",{"$f":"IF($A50=\"\",\"\",IF('individuele bedragen'!P44=\"\",0,'individuele bedragen'!P44))","v":""},"",{"$f":"IF(A50=\"\",\"\",IF('individuele bedragen'!Q44=\"\",0,'individuele bedragen'!Q44))","v":""},"",{"$f":"'individuele bedragen'!T44","v":""},{"$f":"'individuele bedragen'!S44","v":""},"",""]
[]
["Totalen",{"$nulls":13}," "," ",null,null,{"$f":"SUM(S14:S51)","v":0},null,{"$f":"SUM(U14:U47)","v":0},{"$f":"SUM(V14:V51)","v":0},{"$f":"SUM(W14:W51)","v":0}," "]
[{"$nulls":23}," "]

{"sheet":"grafiek","index":14,"n_rows":1,"n_cols":1,"rows_kept":1,"hidden":true}
["Totaal budget: "]

{"sheet":"vrijwilliger","index":15,"n_rows":39,"n_cols":3,"rows_kept":39}
["VRIJWILLIGER"]
[]
[null,"FORFAITAIRE ONKOSTENVERGOEDING  "]
[null,"Een forfaitaire onkostenvergoeding is een vaste vergoeding per keer. Hou hierbij rekening  met het maximumbedrag per dag (€ 35,41 in 2021)."]
[null,"Je vult de blauwe vakken in het invulscherm in met het aantal keer dat de vrijwilliger langskomt en het tarief dat je afgesproken hebt."]
[null,null,"In ons voorbeeld: Buddy Lisette komt gemiddeld 4 keer per maand en krijgt een forfait van € 25 per keer."]
[null,"Bekijk ook of er vaste kosten per jaar zijn, bijvoorbeeld  lidgeld of een bijdrage voor de verzekering. Als er een maandelijkse kost is (bvb. Administratiekost) vermenigvuldig dan zelf met 12 om de jaarkost te berekenen."]
[null,null,"In ons voorbeeld: een jaarlijkse administratiekost van € 50."]
[]
[]
[]
[]
[]
[null,"In het jaaroverzicht zal de lijn rood kleuren als het jaarmaximum van € 1416,16 overschreden is (bedrag 2021)."]
[null,"Als de vrijwilliger voor verschillende mensen of organisaties werkt moet het plafond over alle vrijwilligerswerk heen gerespecteerd worden."]
[null,"Er is een verhoogd jaarplafond mogelijk voor nachtoppas en dagoppas. Je kan best vooraf checken of deze van toepassing is bij de organisatie via dewelke je de vrijwilliger aanstelt."]
[]
[null,"Een forfaitaire onkostenvergoeding kan je combineren met een kilometervergoeding."]
[null,"Maak een inschatting van het aantal kilometers op maandbasis en vul dit in bij de rubriek VERVOER. "]
[null,"Bij een forfaitaire onkostenvergoeding is er in principe een maximum van 2000km. Informeer vooraf of er een uitzondering van toepassing is."]
[null,null,"In ons voorbeeld: Lisette rijdt maandelijks 100 kilometer en krijgt € 0,35 per kilometer."]
[]
[]
[]
[]
[]
[]
[null,"REËLE ONKOSTENVERGOEDING"]
[null,"Hier heb je geen vaste vergoeding per keer dat de vrijwilliger langskomt"]
[null,"Je laat de kolom reële prijs dus leeg"]
[null,"Je kan een raming van reële kosten (achteraf altijd te bewijzen met tickets, bvb van een drankje, toegangsbewijs,..) op jaarbasis invullen in de kolom kosten per jaar"]
[]
[]
[]
[]
[]
[null,"Je kan dit combineren met een kilometervergoeding. "]
[null,"Als je een de kilometervergoeding combineert met een reële onkostenvergoeding, geldt er geen maximum op het aantal kilometers. "]
[null,"Maak een inschatting van het aantal kilometers op maandbasis en vul dit in bij de rubriek VERVOER."]

{"sheet":"jobstudent","index":16,"n_rows":42,"n_cols":3,"rows_kept":42}
["JOBSTUDENT"]
[]
[null,"ALGEMEEN"]
[null,"Jobstudenten kunnen aangeworven via een uitzendkantoor of door rechtstreeks een overeenkomst af te sluiten (ondersteuning door een sociaal secretariaat)."]
[null,"Er zijn minimumlonen die je moet respecteren, die verschillen naargelang de leeftijd van de student en afhankelijk van het \"paritair comité\"."]
[null,"Het paritair comité van de sector van de uitzendarbeid (PC 337) heeft andere regelingen dan het bevoegde paritiar comité als je rechtstreeks een jobstudent in dienst neemt (PC 319.01)."]
[null,"Tot 475 uur per jaar zijn er verlaagde sociale zekerheidsbijdragen: 2,71 % wordt ingehouden op het loon van de jobstudent en 5,42 % wordt betaald als patronale bijdrage."]
[null,"TIP: vraag aan de jobstudent of hij ook op andere plaatsen werkt/gewerkt heeft want de 475 uur wordt geteld als totaal bij verschillende werkgevers!"]
[]
[null,"AANSTELLING VIA EEN UITZENDKANTOOR"]
[null,"Een uitzendkantoor hanteert een \"factor\" waarmee het bruto uurloon van de jobstudent vermenigvuldigd wordt. Dat leidt tot de \"all-in prijs\"."]
[null,"De all in prijs bevat  naast de sociale zekerheidsbijdragen ook de premie voor arbeidsongevallenverzekering, eindejaarspremie, vakantiegeld, ziekte en de administratiekost van het uitzendkantoor"]
[null,"Meestal hanteert een uitzendkantoor 2 \"factoren\":"]
[null,"1) het uitzendkantoor zoekt mogelijke kandidaten en doet een (pré)selectie"]
[null,"2) je hebt al een kandidaat (kan ook een familielid-student  zijn) en dan is de factor lager"]
[null,"TIP: Vraag  naar de factor die het uitzendkantoor toepast en wat in de all-in prijs zit; vraag voor de zekerheid ook bevestiging dat er geen extra (jaar)kosten aangerekend worden"]
[]
[]
[]
[]
[]
[null,"RECHTSTREEKSE AANSTELLING (VIA SOCIAAL SECRETARIAAT)"]
[null,"Je kan ook rechtstreeks met een jobstudent een overeenkomst afsluiten. Schakel dan een sociaal secretariaat in zodat je zeker voldoet aan alle wettelijke verplichtingen als werkgever."]
[null,"Ook een sociaal secretatiaat hanteert een \"factor\" waarmee het bruto uurloon vermenigvuldigd wordt."]
[null,"Dit ligt altijd lager dan bij een uitzendkantoor omdat zij meestal geen all-in prijs hebben. Ze rekenen wel een factor aan waarmee de eindejaarspremie, vakantiegeld en werkgeversbijdrage sociale zekerheid afgedekt worden."]
[null,"Je zal merken dat je bij een sociaal secretariaat wel nog extra kosten moet voorzien: bijvoorbeeld premie voor verplichte arbeidsongevallenverzekering en vergoeding voor de dienstverlening van het sociaal secretariaat."]
[null,"TIP: Vraag naar de factor die men toepast én naar een offerte met de extra kosten waarmee je nog rekening moet houden"]
{"$rows_empty":7}
[null,"ALGEMENE TIPS"]
[null,"Sommige uitzendkantoren en sociaal secretariaten zijn meer dan andere vertrouwd met het  systeem van PAB en PVB voor mensen met een handicap"]
[null,null,"Vraag bij een verkennend contact of ze die specialisatie al in huis hebben; op de website zie je soms al dat er een gespecialiseerd team is."]
[null,null,"Vraag aan je bijstandsorganisatie met welke uitzendkantoren en sociaal secretariaten zij goede ervaringen hebben, sommige bijstandsorganisaties hebben samenwerkingsovereenkomsten afgesloten. "]
[null,null,"Is de dienstverlening ondermaats? Neem contact op met een ander uitzendkantoor of sociaal secretariaat en overweeg over te stappen."]
[null,"Verfijn de informatie gaandeweg"]
[null,null,"We beperken ons hier tot de informatie die helpend kan zijn voor een eerste ruwe schatting; er zijn nog wel wat elementen die van belang kunnen zijn"]
[null,null,"Overweeg je de piste van studentenjobs? Je kan aankloppen bij een bijstandsorganisatie om meer detailleerde informatie, op jouw maat, te bekomen"]

{"sheet":"assistent","index":17,"n_rows":64,"n_cols":4,"rows_kept":64}
["ASSISTENT"]
[]
[null,"ALGEMEEN"]
[null,"Assistenten kunnen ingezet worden via een Dienst Persoonlijke Assistentie, via een uitzendkantoor of rechtstreeks (met ondersteuning van een sociaal secretariaat) door een overeenkomst af te sluiten. "]
[null,"Er zijn minimumlonen die je moet respecteren, die verschillen naargelang het bevoegde \"paritair comité\"."]
[null,"Het paritair comité van de sector van de uitzendarbeid (PC 337) heeft andere regelingen dan het bevoegde paritiar comité als je rechtstreeks of via een DPA een assistant inzet (PC 319.01)."]
[]
[null,"AANSTELLING VIA EEN UITZENDKANTOOR (HET UITZENDKANTOOR IS WERKGEVER)"]
[null,"Een uitzendkantoor hanteert een \"factor\" waarmee het bruto uurloon van de assistent vermenigvuldigd wordt en wat tot een all-in prijs leidt."]
[null,"De all in prijs bevat naast de sociale zekerheidsbijdragen ook de premie voor arbeidsongevallenverzekering, eindejaarspremie, vakantiegeld, ziekte en de administratiekost van het uitzendkantoor."]
[null,"Je krijgt enkel aanrekening van de effectief gepresteerde uren. Als de assistent bijvoorbeeld ziek is dan moet je die dag niet betalen."]
[null,"Meestal hanteert een uitzendkantoor 2 \"factoren\" (wordt soms ook coëfficiënt genoemd):"]
[null,"1) het uitzendkantoor zoekt mogelijke kandidaten en doet een (pré)selectie"]
[null,"2) je hebt al een kandidaat (kan ook jijzelf zijn) en dan is de factor lager"]
[null,"TIP: Vraag  naar de factor die het uitzendkantoor toepast en wat in de all-in prijs zit; vraag voor de zekerheid ook bevestiging dat er geen extra (jaar)kosten aangerekend worden."]
[]
[]
[]
[]
[]
[]
[null,"AANSTELLING VIA EEN DIENST PERSOONLIJKE ASSISTENTIE (DE DPA IS WERKGEVER)"]
[null,"De Diensten Persoonlijk Assistentie nemen de rol van werkgever over. "]
[null,null,"Naast de administratieve verplichtingen nemen ze ook de vorming en begeleiding van de assistenten op."]
[null,null,"Ze kunnen daarbij gebruik maken van de expertise die aanwezig is in de VAPH- vergunde voorziening van waaruit de DPA opgestart is."]
[null,"Zij stellen een bruto-uurloon voor op basis van het gezochte profiel en de geldende verloningsregels (diploma, anciënniteit). "]
[null,"Ook een DPA hanteert een factor om bovenop het bruto uurloon van de assistent de eindejaarspremie, vakantiegeld, sociale zekerheidsbijdragen arbeidsongevallenverzekeringen,… te financieren"]
[null,"TIP: contacteer een DPA voor meer informatie"]
[null,null,"Check of er naast de \"factor\" waarmee het brutoloon moet vermenigvuldigd worden extra kosten zijn waarmee je rekening moet houden en vul dit aan in de kolom extra kosten"]
[null,null,"Vraag welke dienstverlening inbegrepen is (bijvoorbeeld vervanging bij ziekte of vakantie van de assistent)"]
[]
[null,"RECHTSTREEKSE AANSTELLING (VIA SOCIAAL SECRETARIAAT)"]
[null,"Je kan ook rechtstreeks met een assistent een overeenkomst afsluiten. Schakel dan een sociaal secretariaat in zodat je zeker voldoet aan alle wettelijke verplichtingen als werkgever."]
[null,"Ook een sociaal secretatiaat hanteert een \"factor\" waarmee het bruto uurloon vermenigvuldigd wordt."]
[null,"Dit ligt altijd lager dan bij een uitzendkantoor omdat zij meestal geen all-in prijs hebben. Ze rekenen wel een factor aan waarmee de eindejaarspremie, vakantiegeld en werkgeversbijdrage sociale zekerheid afgedekt worden."]
[null,null,"Jij bent in dit geval de werkgever en degene die de contractuele afspraken moet nakomen. Als de assistent bijvoorbeeld ziek is dan moet jij toch het afgesproken loon betalen tot de ziekteverzekering het overneemt."]
[null,"De budgethouder is de werkgever. De kostprijs wordt vaak verlaagd omdat je als werkgever (tijdelijk) gebruik kan maken van verlaagde sociale zekerheidsbijdragen (doelgroepenvermindering, bv. voor de eerste aanwervingen)."]
[null,null,"TIP: vraag aan je sociaal secretariaat een verfijnde raming van de loonkosten, meer bepaald naar de korting door de doelgroepenvermindering "]
[null,"Je zal merken dat je bij een sociaal secretariaat  nog extra kosten moet voorzien: bijvoorbeeld premie(s) voor verplichte arbeidsongevallenverzekering en vergoeding voor de dienstverlening van het sociaal secretariaat."]
[null,null,"Elk sociaal secretariaat heeft een eigen prijszetting. "]
[{"$nulls":3},"TIP: Vraag naar de details: is er een prijs voor het opstarten van een dossier, een maandelijkse administratieve kost, een extra jaarlijkse kost voor afsluiting met ondermeer opmaak fiscale fiche, …"]
[{"$nulls":3},"Op basis van de voorbeelden die we hebben varieert de prijs van 750 tot 1200 euro per jaar (kost van de arbeidsongevallenverzekering niet inbegrepen)"]
[null,"TIP: Vraag naar de factor die men toepast én naar een offerte met de extra kosten waarmee je nog rekening moet houden"]
[null,"TIP: Bekijk ook wat er mogelijk is aan extra-legale voordelen, bijvoorbeeld maaltijdcheques, ecocheques. "]
[null,null,"Doordat er geen belastingen noch sociale zekerheidsbijdragen op betaald moeten worden kan dit een interessante aanvulling op het uurloon zijn."]
[null,"TIP: Bij rechtstreekse aanstelling van assistenten kan je gebruik maken van VIA4-middelen en (in 2021) van de VIA5 maatregelen (toevoegingen aan het budget). "]
[null,null,"Via het e-loket mijnvaph.be kunt u uw totale budget inclusief de VIA 4-middelen raadplegen. Het totale bedrag getoond op de budgetlijn is dus inclusief uw recht op VIA 4-middelen."]
[]
[]
[]
[]
[]
[]
[null,"Gebruik deze kolom om je raming van extra kosten in te geven"]
[null,null,"kost voor dienstverlening sociaal secretariaat + premie arbeidsongevallenverzekering + raming kost extra-legale voordelen- korting doelgroepenvermindering…."]
[]
[null,"ALGEMENE TIPS"]
[null,"Sommige uitzendkantoren en sociaal secretariaten zijn meer dan andere vertrouwd met het  systeem van PAB en PVB voor mensen met een handicap"]
[null,null,"Vraag bij een verkennend contact of ze die specialisatie al in huis hebben; op de website zie je soms al dat er een gespecialiseerd team is."]
[null,null,"Vraag aan je bijstandsorganisatie met welke uitzendkantoren en sociaal secretariaten zij goede ervaringen hebben, sommige bijstandsorganisaties hebben samenwerkingsovereenkomsten afgesloten. "]
[null,null,"Is de dienstverlening ondermaats? Neem contact op met een ander uitzendkantoor of sociaal secretariaat en overweeg over te stappen."]
[null,"Verfijn de informatie gaandeweg"]
[null,null,"We beperken ons hier tot de informatie die helpend kan zijn voor een eerste ruwe schatting; er zijn nog wel wat elementen die van belang kunnen zijn"]
[null,null,"Vraag je bijstandsorganisatie om meer gedetailleerde informatie en/of op maat advies"]

{"sheet":"deeleconomie","index":18,"n_rows":21,"n_cols":18,"rows_kept":21}
["SYSTEEM VAN DE DEELECONOMIE"]
[]
[null,"ALGEMEEN"]
[null,"Via het systeem van de deeleconomie kan je mensen vinden die uiteenlopende diensten aanbieden (bijvoorbeeld werken in de tuin, hulp bij administratie,…). ",{"$nulls":15},"De kosten kan je betalen met je budget. "]
[null,"Er bestaan verschillende deelplatformen (bijvoorbeeld: Helpper, Listminut, Trixxo Exxtra) waarop je terecht kan. "]
[null,"De deelplatformen verschillen in de diensten die ze aanbieden.  Daarnaast gebruiken de verschillende deelplatformen vaak een andere manier om de kosten te berekenen."]
[null,"Bij sommige deelplatformen zal je een abonnement moeten afsluiten. Dan betaal je de abonnementkosten aangevuld met een uurvergoeding per geleverde dienst. "]
[null,"Bij andere deelplatformen worden geen abonnementskosten aangerekend, maar zal je per uur een vaste meerprijs moeten betalen."]
[null,"Bekijk dus eerst welke kosten het deelplatform van je voorkeur hanteert."]
[null,"De uurvergoeding wordt steeds bepaald door de budgethouder, liefst in onderling overleg met de aanbieder."]
[null,"Een assistent mag niet meer dan € 6.390 verdienen, maar je kan wel zoveel assistenten inhuren als je wil."]
[]
[null,"INGEVEN KOSTEN"]
[null,"Je vult de blauwe vakken in het invulscherm in met het aantal keer dat de assistent langskomt en het tarief dat je afgesproken hebt."]
[null,"Bekijk of er per uur een bijkomende kost wordt aangerekend. Zo ja, tel dan zelf de bijkomende kost per uur op bij het overeengekomen uurtarief."]
[null,null,"In ons voorbeeld: Rudy komt gemiddeld 2 uur per maand langs om de administratie bij te werken. Jullie spraken onderling af om Rudy. Jullie bespraken onderling om € 7 te betalen."]
[null,null,"Het deelplatform rekent bijkomend een werkingskost van € 2 per uur aan. In de kolommen factor moet er dus \"+ 2\" komen."]
[null,null,"Dat doe je door naar het tabblad 'individuele bedragen' te gaan. Vul bij deeleconomie een \"+\" gevolgd door een \"enter\" in de kolom \"+ of *\" en een \"2\" in de volgende kolom."]
[null,null,"De raming van de kostprijs wordt dan automatisch berekend (groene kolom)."]
[null,"Bekijk ook of er vaste kosten per jaar zijn, bijvoorbeeld  een abonnementskost. Als er een maandelijkse kost is, vermenigvuldig die dan zelf met 12 om de jaarkost te berekenen."]
[null,null,"in ons voorbeeld: het deelplatform rekent € 80 per jaar aan voor het afsluiten van een abonnement."]

{"sheet":"zelfstandige","index":19,"n_rows":8,"n_cols":2,"rows_kept":8}
["ZELFSTANDIGE"]
[]
[]
[]
[null,"Nog in ontwikkeling."]
[]
[null,"Input van personen die persoonlijke assistentie verschaffen aan een familielid (en/of eventuele andere mensen met een budget) is welkom."]
[null,"Je kan mailen naar magentatobe@kuleuven.be"]

{"sheet":"gezins- en thuiszorg","index":20,"n_rows":65,"n_cols":3,"rows_kept":65}
["GEZINS- EN THUISZORG"]
[]
[null,"GEZINSZORG"]
[null,"Met gezinszorg ligt het accent op persoonsverzorging, hulp in het huishouden en psychosociale/pedagogische ondersteuning."]
[null,"Voor de tarieven moet we een onderscheid tussen het budgetsysteem voor meerderjarigen (PVB) en het systeem voor minderjarigen (PAB)."]
[]
[null,"Persoonsvolgend budget (PVB)"]
[null,"gewone gebruikersbijdrage"]
[null,"Je valt onder het gesubsidieerd systeem: er wordt een tarief bepaald rekening houden met het gezinsinkomen en de gezinslast. "]
[null,"De diensten voor gezinszorg zijn verplicht de bijdragentabel en de instructies voor eventuele kortingen te volgen."]
[null,"De gebruikersbijdrage varieert tussen € 0,51 en € 14,14 per uur."]
[null,"Er worden geen extra (jaarlijkse) kosten aangerekend."]
[null,null,"In ons voorbeeld: Sonja werkt voor een dienst gezinszorg en biedt elke maand gemiddeld 30 uur ondersteuning. "]
[null,null,"De loonkost van Sonja bedraagt € 40 per uur."]
[null,null,"Ik ontvang echter een PVB waardoor ik niet de gehele loonkost moeten betalen, maar gebruik kan maken van het gesubsidieerde tarief. Dat tarief ligt tussen € 0,51 en € 14,14 per uur."]
[null,null,"In ons voorbeeld betaal ik als gebruiker € 10 per uur."]
[null,null,"Er worden geen extra jaarlijkse kosten aangerekend, deze tabel laat ik dan ook leeg."]
[null,null,"Ik kan de kosten volledig met mijn PVB betalen."]
[]
[]
[]
[]
[]
[]
[null,"Persoonlijk assistentiebudget (PAB)"]
[null,"reële loonkost van de zorgkundige"]
[null,"Met het PAB kan je geen gebruik maken van het gesubidieerde stelsel van gezinszorg."]
[null,"De loonkost moet door de dienst doorgerekend worden aan de gebruiker (bijvoorbeeld € 40 per uur)."]
[null,"TIP: overweeg om gezinszorg niet vanuit je budget te betalen maar vanuit eigen middelen. "]
[null,"Dan is het gesubsidieerd tarief (zie uitleg bij PVB) dat veel lager ligt van toepassing."]
[null,null,"We nemen hetzelfde voorbeeld als bij het PVB, maar gaan er deze keer vanuit dat ik een PAB ontvang. "]
[null,null,"Sonja werkt voor een dienst gezinszorg en biedt elke maand gemiddeld 30 uur ondersteuning. "]
[null,null,"De loonkost van Sonja bedraagt € 40 per uur."]
[null,null,"Aangezien ik een PAB ontvang, kan ik geen gebruik maken van het gesubsidieerd stelsel van gezinszorg. Ik zal dus de gehele loonkost van € 40 per uur moeten betalen."]
[null,null,"Er worden geen extra jaarlijkse kosten aangerekend, deze tabel laat ik dan ook leeg."]
[null,null,"Ik kan de kosten volledig met mijn PAB betalen."]
[]
[]
[]
[]
[]
[]
[null,"AANVULLENDE THUISZORG  "]
[null,"Aanvullende thuiszorg omvat schoonmaak en, naargelang de dienst, ook oppashulp en karweihulp"]
[null,"Bij aanvullende thuiszorg moeten de diensten de prijs bepalen rekening houdend met inkomen en gezinssamenstelling."]
[null,"Er is echter geen gedetailleerde bijdragentabel. Er is dus meer vrijheid om aan prijszetting te doen."]
[null,"De meeste diensten hanteren verschillende prijzen voor schoonmaakhulp en karweihulp (iets duurder)."]
[]
[null,"Schoonmaakhulp"]
[null,"In de praktijk zal het tarief voor schoonmaakhulp rond € 9 per uur liggen. "]
[null,null,"In ons voorbeeld: Boris biedt gemiddeld 12 uur per maand schoonmaakhulp."]
[null,null,"Op basis van mijn inkomen en gezinssamenstelling heeft mijn dienst voor aanvullende thuiszorg een tarief van € 9 per uur bepaald. "]
[null,null,"Er worden geen extra jaarlijkse kosten aangerekend, deze tabel laat ik dan ook leeg."]
[null,null,"Ik kan de kosten volledig met mijn budget betalen."]
[]
[]
[]
[]
[]
[null,"Karweihulp"]
[null,"Voor karweihulp kunnen de prijzen meer uiteenlopen (gebruik voor een eerste simulatie € 16 per uur)."]
[null,null,"In ons voorbeeld: Anouar biedt mandelijk gemiddeld 8 uur karweihulp. "]
[null,null,"Op basis van mijn inkomen en gezinssamenstelling heeft mijn dienst voor aanvullende thuiszorg een tarief van € 16 per uur bepaald. "]
[null,null,"Er worden volgens onze informatie geen extra (administratie)kosten aangerekend."]
[null,null,"Ik kan de kosten volledig met mijn budget betalen."]

{"sheet":"dienstencheques","index":21,"n_rows":54,"n_cols":5,"rows_kept":54}
["DIENSTENCHEQUES"]
[]
[null,"ALGEMEEN"]
[null,"Als individuele gebruiker kan je 500 dienstencheques per jaar aankopen. Voor de eerste 400 cheques betaal je  € 9, voor de overige 100 cheques betaal je € 10.\n"]
[null,"Als gezin heb je recht op 1.000 dienstencheques per jaar. Je betaalt € 9 voor de eerste 800 cheques en € 10 voor de overige 200 cheques."]
[]
[null,"Personen met een beperking"]
[null,"Mensen met een beperking en ouders van een kind met een beperking kunnen tot 2.000 dienstencheques per jaar bestellen tegen 9 euro. "]
[null,"Om recht te hebben op dit verhoogd plafond dien je aan bepaalde voorwaarden te voldoen."]
[null,null,"Om beschouwd te worden als een persoon met een beperking, moet je aan één van de volgende voorwaarden voldoen:"]
[{"$nulls":3},"* je bent erkend door het Vlaams Agentschap voor Personen met een Handicap (VAPH)"]
[{"$nulls":3},"* of je ontvangt:"]
[{"$nulls":4},"een inkomensvervangende tegemoetkoming"]
[{"$nulls":4},"of een integratietegemoetkoming"]
[{"$nulls":4},"of een tegemoetkoming voor hulp aan bejaarden"]
[{"$nulls":3},"* of je bent minstens 7 punten toegekend op de zelfredzaamheidsschaal"]
[null,null,"Om beschouwd te worden als kind met een handicap moet aan één van volgende voorwaarden voldaan zijn:"]
[{"$nulls":3},"* het kind "]
[{"$nulls":4},"geniet een verhoogde kinderbijslag voor kinderen met een beperking"]
[{"$nulls":4},"lijdt aan een zware ziekte"]
[{"$nulls":4},"geniet een zorgtoeslag voor een specifieke ondersteuningsbehoefte op basis van artikel 16 van het decreet van 27 april 2018 tot regeling van de toelagen in het kader van het gezinsbeleid"]
[{"$nulls":3},"* of het kind is jonger dan 21 jaar en is als kind met een handicap erkend door het Vlaams Agentschap voor Personen met een Handicap (VAPH)"]
[{"$nulls":3},"* of het kind is jonger dan 21 jaar en werd minstens 7 punten toegekend op de zelfredzaamheidsschaal"]
[]
[null,"Fiscale aftrekbaarheid"]
[null,"In deze rekentool maken we een onderscheid tussen dienstencheques die met het budget betaald worden en dienstencheques die niet met het budget betaald worden."]
[null,"Dat onderscheid maken we omdat dienstencheques die niet met het budget aangekocht worden fiscaal aftrekbaar zijn. "]
[null,"Zo geldt voor het aanslagjaar 2022 (inkomsten 2021)  een belastingvermindering van 20% waardoor een cheque in werkelijkheid € 7,2 kost. "]
[null,"Let wel op! Het belastingsvoordeel geldt enkel voor de eerste 170 cheques die niet met het budget aangekocht worden. "]
[null,"Dienstencheques die je aankoopt met het budget mag je niet inbrengen in de personenbelasting. "]
[null,"Het is de opdracht van de budgethouder om erop toe te zien dat de dienstencheques niet als fiscaal voordeel op de belastingaangifte staan."]
[]
[null,"INVULLEN VAN DE TABEL"]
[null,"Alleerst kies je of je de dienstencheques met je budget wilt betalen of niet. "]
[null,"Kies je ervoor om de dienstencheques met het budget aan te kopen, duid dan 'dienstencheques op budget aan' bij 'Aard ondersteuning'."]
[null,"Kies je ervoor om de dienstencheques met eigen middelen te betalen, duid dan 'dienstencheques niet op budget' aan bij 'Aard ondersteuning'."]
[null,"In de kolom 'gemiddeld maandaantal' vul je het aantal uur per maand in dat je gebruik wil maken van dienstencheques."]
[null,"In het blauwe vak bij 'reële prijs' vul je de prijs van een dienstencheque in. "]
[null,"Bij dienstencheques komen geen extra kosten per jaar kijken. Daarom laat je de kolom 'extra kosten per jaar' leeg."]
[null,null,"in ons voorbeeld: Simon komt 5 uur per week schoonmaken via een dienstenchequekantoor. "]
[null,null,"Om het maandaantal te berekenen vermenigvuldig ik dat aantal met 4. Dat komt op 20 uur per maand uit. Op jaarbasis heb ik dus 240 dienstencheques nodig. "]
[null,null,"Ik beslis om 168 cheques aan te kopen met mijn eigen middelen om gebruik te maken van het belastingsvoordeel. De overige 72 cheques koop ik aan met mijn budget. "]
[null,null,"De 168 cheques die ik met eigen middelen wil aankopen, vul ik in bij 'dienstencheques niet op budget'. "]
[null,null,"Om te weten hoeveel cheques per maand ik nodig heb, deel ik dat aantal door 12. Ik kom uit dat ik 14 cheques per maand met mijn eigen middelen aankoop."]
[null,null,"Een cheque kost op het moment van de aankoop € 9. Vul dat bedrag in. Later kan je deze cheques fiscaal aftrekken waardoor de eerste 170 cheques in werkelijkheid € 7,2 zullen kost."]
[]
[]
[]
[]
[]
[]
[null,null,"De 72 cheques die ik met mijn budget betaal vul ik in bij 'dienstencheques op budget'. "]
[null,null,"Om te weten hoeveel cheques per maand ik nodig heb, deel ik dat aantal door 12. Ik kom uit dat ik 6 cheques per maand met mijn budget aankoop."]
[null,null,"Een cheque kost € 9. "]

{"sheet":"wijkwerkcheques","index":22,"n_rows":35,"n_cols":2,"rows_kept":35}
["WIJKWERKCHEQUES"]
[]
[null,"ALGEMEEN"]
[null,"Een wijkwerkcheque kost tussen € 5,95 en € 7,45. De prijs hangt af van de gemeente of stad waarin je woont."]
[null,"Er staat geen maximum op het aantal cheques dat je per jaar kan kopen."]
[null,"In deze rekentool maken we een onderscheid tussen wijkwerkcheques die met het budget betaald worden en wijkwerkcheques die niet met het budget betaald worden."]
[null,"Dat onderscheid maken we omdat wijkwerkcheques die niet met het budget betaald worden fiscaal aftrekbaar zijn. "]
[null,"Zo geldt voor het aanslagjaar 2022 (inkomsten 2021) er een belastingvermindering van 20% waardoor een cheque in werkelijkheid minder kost. "]
[null,"Let wel op! Het belastingsvoordeel geldt enkel voor de eerste 170 cheques die niet met het budget aangekocht worden. "]
[]
[null,"Cheques die met het budget aangekocht worden, zijn nooit fiscaal aftrekbaar."]
[]
[null,"INVULLEN VAN DE TABEL"]
[null,"Alleerst kies je of je de wijkwerkcheques met je budget wilt betalen of niet. "]
[null,"Kies je ervoor om de wijkwerkcheques met het budget aan te kopen, duid dan 'wijkwerkcheques op budget aan' bij 'Aard ondersteuning'."]
[null,"Kies je ervoor om de wijkwerkcheques met eigen middelen te betalen, duid dan 'wijkwerkcheques  niet op budget' aan bij 'Aard ondersteuning'."]
[null,"In de kolom 'gemiddeld maandaantal' vul je het aantal uur per maand in dat je gebruik wil maken van wijkwerkcheques."]
[null,"In het blauwe vak bij 'reële prijs' vul je de prijs van een wijkwerkcheque in. "]
[null,"Bij wijkwerkcheques komt jaarlijks een exta kost van bijvoorbeeld € 7,50 kijken. Daarom vul bijvoorbeeld € 7,50 in bij 'extra kosten per jaar'."]
[]
[null,"in ons voorbeeld: Luc ondersteunt mij 5 uur per week bij logistieke en huishoudelijke taken."]
[null,"Om het maandaantal te berekenen vermenigvuldig ik dat aantal met 4. Dat komt op 20 uur per maand uit. Op jaarbasis heb ik dus 240 wijkwerkcheques nodig. "]
[null,"Ik beslis om 168 cheques aan te kopen met mijn eigen middelen om gebruik te maken van het belastingsvoordeel. De overige 72 cheques koop ik aan met mijn budget. "]
[null,"De 168 cheques die ik met eigen middelen wil aankopen, vul ik in bij 'wijkwerkcheques niet op budget'. "]
[null,"Om te weten hoeveel cheques per maand ik nodig heb, deel ik dat aantal door 12. Ik kom uit dat ik 14 cheques per maand met mijn eigen middelen aankoop."]
[null,"In mijn gemeente kost een cheque € 7,45. Ik vul dat bedrag in. Later kan ik deze cheques fiscaal aftrekken waardoor een cheque in werkelijkheid € 5,96 zal kost."]
[]
[]
[]
[]
[]
[]
[null,"De 72 cheques die ik met mijn budget betaal vul ik in bij 'wijkwerkcheques op budget'. "]
[null,"Om te weten hoeveel cheques per maand ik nodig heb, deel ik dat aantal door 12. Ik kom uit dat ik 6 cheques per maand met mijn budget aankoop."]
[null,"In mijn gemeente kost een wijkwerkcheque € 7,45. Ik vul dat bedrag in. Later kan ik deze cheques fiscaal aftrekken waardoor een cheque in werkelijkheid € 5,96 zal kost."]

{"sheet":"vergunde zorgaanbieders","index":23,"n_rows":29,"n_cols":2,"rows_kept":29}
["VERGUNDE ZORGAANBIEDERS"]
[]
[null,"VOUCHER, CASH OF DE COMBINATIE VAN VOUCHER EN CASH"]
[null,"Sommige personen kiezen voor voltijds verblijf in een voorziening. "]
[null,"Meer en meer organisaties zetten in op inclusieve trajecten vanuit die thuisbasis. Anderen bieden veiligheid en comfort van een vertrouwde setting."]
[null,"Bij voltijds verblijf in een voorziening neem je het budget op in vouchers; we gaan hierop niet verder in omdat dit buiten het thema van deze toolbox gaat."]
[null,"TIP: Het budgetsysteem laat combinatie met cash toe; in principe zijn deeltijdse regelingen mogelijk. De ene voorziening gaat er soepeler mee om dan de andere."]
[]
[null,"CASHBUDGET BESTEDEN AAN DIENSTVERLENING DOOR EEN VERGUNDE ZORGAANBIEDER"]
[null,"Het aanbod van vergunde zorgaanbieders is zeer breed en zeer divers. Elke dienst en voorziening legt zijn eigen accenten."]
[null,"Het kan een aantal kansen en ondersteuningsmogelijkheden bieden die zeer waardevol zijn voor de persoon met een beperking:"]
[null,"* bepaalde vormen van individuele begeleiding"]
[null,"voorbeelden: inzet van een begeleider met handicapspecifieke expertise/ trajectbegeleiding op vlak van werken, wonen, algemene ontwikkeling/ psychosociale ondersteuning"]
[null,"* dagopvang met een aanbod van actitiviteiten die aansluiten bij de interesses of ontwikkelingsvragen van de persoon en sociale contacten bieden"]
[null,"voorbeelden: kunstatelier, soepatelier, begeleide uitstappen, sportieve activiteiten, muziekgroep, uitbaten buurtwinkel of brasserie, ontwikkelingstraject met andere jongeren,…."]
[null,"* verblijf"]
[null,"voorbeelden: gedeeltelijke opvang in de week, weekendopvang, kortverblijf,..."]
[null,"TIP: Ga op zoek naar een aanbod dat echt past bij de noden en wensen van de persoon met de beperking. Je kan als je dat wenst verschillende aanbieders combineren."]
[null,"De gehanteerde prijzen zijn afhankelijk van de aard van de dienstverlening, nodige personeelsbezetting en de prijspolitiek van de organisatie."]
[null,"Enkele indicatieve prijzen op basis van voorbeelden die we konden inkijken"]
[null,"* individuele begeleiding: 75 tot 130 euro per uur of per sessie (+ eventueel bijkomende verplaatsinskosten)"]
[null,"* dagopvang/dagactiviteiten: zeer uiteenlopende prijzen; neem contact op met enkele diensten en voorzieningen"]
[null,"        * verblijf/nachtopvang: 130 tot 160 euro per nacht (zonder woon- en leefkosten)"]
[null,"Met het budget kunnen enkel de kosten voor zorg en ondersteuning betaald worden. Woon- en leefkosten of een vergoeding voor extra uitgaven (bvb een drankje) moeten van eigen middelen betaald worden."]
[null,"Er mogen geen extra administratie- of beheerskosten aangerekend worden."]
[null,"TIP: Heb je een gepast aanbod gevonden en wil je er op geregelde basis gebruik van maken? Bekijk samen met de voorziening of je dan beter een deel van het budget in vouchers opneemt."]
[]
[null,"Voorbeeld"]
[null,"Elke week  komt er een thuisbegeleider langs en 1 weekend per maand (2 dagen) wordt gebruik gemaakt van de logeerformule"]

{"sheet":"vervoer","index":24,"n_rows":34,"n_cols":28,"rows_kept":34}
["VERVOER"]
[]
[null,"ALGEMEEN"]
[null,"In dit tabblad vindt u hulp om snel de vervoerkosten te berekenen"]
[null,"Er zijn 2 berekeningsmodellen"]
[null,"VASTE KILOMETERKOST"]
[null,"Heel wat vrijwilligersinitiatieven (ziekenfonds, mindermobielencentrale,…) hanteren een vlak tarief (zelfde prijs ongeacht het aantal kilometers)",{"$nulls":13},"Kilometerkosten van een 'eigen' vrijwilliger: maximum 0,3542 euro per kilometer (2021); beperkt tot 2000 km per jaar als de vrijwilliger een forfaitaire vergoeding krijgt"]
[null,"Aandachtspunten: "]
[null,"* welke kilometers moeten vergoed worden? Bvb ook vergoeding voor de kilometers van de woonplaats van de chauffeur tot uw thuisadres?",{"$nulls":13},"Kilometerkosten van persoonlijk assistent: bekijk met uitzendkantoor of sociaal secretariaat wat mogelijk is en wat verplicht is"]
[null,"* is er een jaarlijks lidgeld te betalen?",{"$nulls":13},"1) Woon-werkverkeer"]
[{"$nulls":15},"2) Verplaatsingen in opdracht van/met de persoon met beperking"]
[null,"Voorbeeld (u kan de cellen overschrijven met uw eigen gegevens)"]
[null,"Wie: mindermobielencentrale",{"$nulls":13},"Mindermobielencentrale (https://www.mindermobielencentrale.be/nl/node/38 )"]
[null,"Naar:",{"$nulls":4},"ziekenhuis","sport","therapie","TOTAAL",{"$nulls":5},"Jaarlijks lidgeld van 12 euro, kilometerkost  tussen 0,30 en 0,35 euro , kilometers vanaf thuisadres chauffeur moeten ook betaald worden."]
[null,"Aantal kilometer voor vervoer (heen en terug): ",{"$nulls":4},30,15,9]
[null,"Extra kilometers van/naar adres chauffeur",{"$nulls":4},12,12,12]
[null,"TOTAAL KILOMETERS per keer",{"$nulls":4},{"$f":"SUM(G15:G16)","v":42},{"$f":"SUM(H15:H16)","v":27},21,{"$nulls":8},"             totaal kilometers invullen",{"$nulls":9},"       jaarkost invullen"]
[null,"Aantal ritten per maand",{"$nulls":4},4,1,1]
[null,"Aantal kilometers per maand",{"$nulls":4},{"$f":"G17*4","v":168},{"$f":"H17*4","v":108},84,{"$f":"SUM(G19:I19)","v":360}]
[null,"Lidgeld/Jaarlijkse kost",null,12,"euro"]
[null,"VARIABEL TARIEF "]
[null,"De diensten aangepast vervoer hanteren een tarief dat afhankelijk is van het aantal gereden kilometers",{"$nulls":13},"ODAV (Overleg Diensten Aangepast Vervoer)"]
[{"$nulls":15},"Eerst wordt bekeken of een andere vervoeroplossing (vb. Mindermobielencentrale) mogelijk is."]
[null,"Voorbeeld (u kan de cellen overschrijven met uw eigen gegevens)",{"$nulls":13},"\"Leeggereden\" kilometers en wachttijden worden niet aangerekend"]
[null,"Wie: Dienst aangepast vervoer (geebruiker met rolstoel)",{"$nulls":19},"VOOR EEN GEBRUIKER MET ROLSTOEL",{"$nulls":3},"VOOR EEN GEBRUIKER ZONDER ROLSTOEL"]
[null,"Naar:",{"$nulls":4},"ziekenhuis","sport","therapie","TOTAAL",{"$nulls":5},"instapgeld;",{"$nulls":5},"0 tot 2 euro",{"$nulls":3},"0 tot 2 euro"]
[null,"Aantal kilometer: ",null," ",null,null,30,15,9,{"$nulls":6},"per gereden kilometer t.e.m. 25 km;",{"$nulls":5},"0 tot 1 euro",{"$nulls":3},"0.60 euro tot 1,50 euro "]
[null,"Instapgeld:",null,1,null,null,{"$f":"$D$28","v":1},{"$f":"$D$28","v":1},{"$f":"$D$28","v":1},{"$nulls":6},"per gereden kilometer vanaf 26 km en t.e.m. 50 km",{"$nulls":5},"0 tot 1,75 euro",{"$nulls":3},"0,90 euro tot 1,75 euro "]
[null,"km <25",25,0.9,null,null,{"$f":"IF(G27<$C$29,G27*$D$29,$C$29*$D$29)","v":22.5},{"$f":"IF(H27<$C$29,H27*$D$29,$C$29*$D$29)","v":13.5},{"$f":"IF(I27<$C$29,I27*$D$29,$C$29*$D$29)","v":8.1},{"$nulls":6},"Vanaf 51 kilometer ",{"$nulls":5},"kan de vervoerder het tarief per gereden kilometer vrij bepalen."]
[null,"km 25 - 50",50,1.2,null,null,{"$f":"IF(G27-$C$29<0,\"\",(G27-$C$29)*$D$30)","v":6},{"$f":"IF(H27-$C$29<0,\"\",(H27-$C$29)*$D$30)","v":""},{"$f":"IF(I27-$C$29<0,\"\",(I27-$C$29)*$D$30)","v":""}]
[null,"km > 50",null,2,null,null,{"$f":"IF(G27-$C$30<0,\"\",(G27-$C$30)*$D$31)","v":""},{"$f":"IF(H27-$C$30<0,\"\",(H27-$C$30)*$D$31)","v":""},{"$f":"IF(I27-$C$30<0,\"\",(I27-$C$30)*$D$31)","v":""}]
[null,"Totaal bedrag per keer",{"$nulls":4},{"$f":"SUM(G28:G31)","v":29.5},{"$f":"SUM(H28:H31)","v":14.5},9.1,{"$nulls":8},"                 geen kilometers invullen",{"$nulls":7},"                 bedrag per maand invullen"]
[null,"aantal ritten per maand",{"$nulls":4},4,1,1]
[null,"bedrag per maand",{"$nulls":4},{"$f":"G32*G33","v":118},{"$f":"H32*H33","v":14.5},{"$f":"I32*I33","v":9.1},{"$f":"SUM(G34:I34)","v":141.6}]

{"sheet":"bijstandsorganisaties","index":25,"n_rows":39,"n_cols":12,"rows_kept":39}
["BIJSTANDSORGANISATIE"]
[]
[null,"ALGEMEEN"]
[null,"Bij een bijstandsorganisatie kan je terecht voor informatie en advies over je budget. "]
[null,"Daarnaast biedt een bijstandsorganisatie ook intensieve ondersteuning op maat rond de besteding en administratie van het budget."]
[null,"In Vlaanderen en het Brussels hoofstedelijk gewest bestaan er vijf bijstandsorganisaties (Absoluut vzw, alin vzw, MyAssist vzw, Onafhankelijk leven vzw en Zoom vzw)."]
[null,"De gegevens van de verschillende bijstandsorganisaties vind je onderaan dit tabblad. "]
[null,"In essentie verschillen de bijstandsorganisaties niet in de ondersteuning die ze bieden."]
[]
[null,"Alle bijstandsorganisaties vragen € 50 lidgeld. "]
[null,"Voor intensieve ondersteuning vragen de organisaties daarnaast een bedrag per uur. Het uurbedrag voor intensieve ondersteuning varieërt van organisatie tot organisatie. "]
[null,"Voor een huisbezoek rekenen sommige organisaties een bijkomende (forfaitaire) prijs of verplaatsingskosten aan."]
[null,"Bekijk dus eerst welke kosten de bijstandsorganisatie van je voorkeur hanteert. Deze kan je gemakkelijk terugvinden op de website van de organisatie."]
[null,"Je kosten voor een bijstandsorganisatie kan je integraal betalen met je budget."]
[]
[null,"INVULLEN VAN DE TABEL"]
[null,"In de kolom 'gemiddeld maandaantal' vul je het aantal uur per maand in dat je beroep wilt doen op een bijstandsorganisatie."]
[null,"In het blauwe vak bij 'reële prijs' vul je de prijs in die jouw organisatie per uur vraagt voor intensieve ondersteuning."]
[null,null,"In ons voorbeeld: ik doe gemiddeld 2 uur per maand beroep op mijn bijstandsorganisatie voor intensieve hulp bij de administratie van mijn budget. "]
[null,null,"Mijn bijstandsorganisatie rekent daarvoor € 80 per uur aan. "]
[null,null,"Ik kan me moeilijk verplaatsen waardoor mijn bijstandsorganisatie 2 keer (gedurende een uur) aan huis komt. "]
[null,null,"Per huisbezoek rekent mijn bijstandsorganisatie € 30 aan."]
[null,null,"Ik betaal in totaal dus € 110 per uur (namelijk de uurvergoeding van € 80 en de huisbezoekskost van € 30)."]
[null,null,"Deze kost vul ik in bij 'reële prijs'."]
[null,"In het blauwe vak bij 'extra kosten per jaar' vul je de extra jaarlijkse kosten in."]
[null,null,"In ons voorbeeld: mijn bijstandsorganisatie vraagt jaarlijks lidgeld van € 50. Deze vul ik in bij 'extra kosten per jaar'."]
[]
[]
[]
[]
[]
[]
[null,"DE GEGEVENS VAN DE VERSCHILLENDE BIJSTANDSORGANISATIES"]
[null,"Organisatie",null,"E-mailadres",null,"Tel","Fax","Link","Straat","Postcode","Stad","Provincie"]
[null,"Absoluut vzw",null,"info@absoluutvzw.be",null,"03 259 08 85","03 248 14 42","www.absoluutvzw.be","Arthur Goemaerelei 66",2018,"ANTWERPEN","Antwerpen"]
[null,"alin vzw",null,"info@alin-vzw.be",null,"0478 96 02 16",null,"www.alin-vzw.be","Gasthuisstraat 31",1000,"BRUSSEL","Brussels Hoofdstedelijk Gewest"]
[null,"MyAssist vzw",null,"info@myassist.be",null,"016 23 95 82",null,"www.myassist.be","Kapucijnenvoer 33B/1",3000,"LEUVEN","Vlaams-Brabant"]
[null,"Onafhankelijk Leven vzw",null,"advies@onafhankelijkleven.be",null,"03 808 22 99",null,"www.onafhankelijkleven.be","Groot Begijnhof 31",9040,"SINT-AMANDSBERG","Oost-Vlaanderen"]
[null,"ZOOM vzw",null,"info@zoomvzw.be",null,"0468 406 606",null,"www.zoomvzw.be","Albert Giraudlaan 24",1030,"BRUSSEL","Brussels Hoofdstedelijk Gewest"]

{"sheet":"Blad4","index":26,"n_rows":1,"n_cols":1,"rows_kept":1,"hidden":true}
["ipv gemiddeld: voorgesteld gebruiken"]

{"sheet":"Blad2","index":27,"n_rows":17,"n_cols":20,"rows_kept":17,"hidden":true}
["jaarkalender eenheden"]
["MENSENTAAL","VAPH categorie","eenheid","tarief","bedrag ten laste van budget per eenheid","verpl.kost in tarief incalculeren?","Totaal eenheden op jaarbasis","Totaal kost op jaarbasis op budget","januari","februari","maart","april","mei","juni","juli","augustus","september","oktober","november","december"]
["Gezinszorg",null,"uur",20,20,null,176,{"v":3520,"d":"3,520"},16,16,16,16,16,16,16,8,16,16,16,8]
["buddy -vrijwilliger",null,"keer",32,32,null,40,{"v":1280,"d":"1,280"},4,4,4,4,4,4,0,0,4,4,4,4]
["nRTH dagopvang",null,"(halve) dag",null,0,null,0,0]
["nRTH verblijf",null,"nacht",null,0,null,0,0]
["thuisverpleging",null,"keer",0,0,null,50,0]
["dienstencheques op budget",null,"uur",9,9,null,200,{"v":1800,"d":"1,800"}]
["dienstencheques niet op budget (belastingvoordeel)",null,"uur",7.2,0,null,200,0]
["naam onbezoldigde mantelzorger",null,"uur",0,0,null,0,0]
["Naam PA via  interimkantoor",null,"uur",12,23.759999999999998,null,240,{"v":5702.4,"d":"5,702"},20,20,20,20,20,20,20,20,20,20,20,20]
["Naam PA via sociaal secretariaat",null,"uur",12,17.4,null,240,{"v":4176,"d":"4,176"}]
["Naam PA via DPA",null,"uur",{"$nulls":3},0,0]
["ondersteuning bijstandsorganisatie",{"$nulls":5},0,0]
["Jobstudent X via interimkantoor",null,"uur",9,null,null,0,0]
["Jobstudent X rechtstreeks",null,null,9,null,null,0,0]
["mindermobielencentrale ",null,"kilometer",0.3,null,null,300,90]

{"sheet":"Blad1","index":28,"n_rows":27,"n_cols":20,"rows_kept":27,"hidden":true}
["MENSENTAAL","VAPH categorie","eenheid","tarief","bedrag ten laste van budget per eenheid","verpl.kost in tarief incalculeren?","Totaal eenheden op jaarbasis","Totaal kost op jaarbasis op budget","januari","februari","maart","april","mei","juni","juli","augustus","september","oktober","november","december"]
["Gezinszorg",null,"uur",20,20,null,176,{"v":3520,"d":"3,520"},16,16,16,16,16,16,16,8,16,16,16,8]
["buddy -vrijwilliger",null,"keer",32,32,null,40,{"v":1280,"d":"1,280"},4,4,4,4,4,4,0,0,4,4,4,4]
["nRTH dagopvang",null,"(halve) dag",null,0,null,0,0]
["nRTH verblijf",null,"nacht",null,0,null,0,0]
["thuisverpleging",null,"keer",0,0,null,50,0]
["dienstencheques op budget",null,"uur",9,9,null,200,{"v":1800,"d":"1,800"}]
["dienstencheques niet op budget (belastingvoordeel)",null,"uur",7.2,0,null,200,0]
["naam onbezoldigde mantelzorger",null,"uur",0,0,null,0,0]
["Naam PA via  interimkantoor",null,"uur",12,23.759999999999998,null,240,{"v":5702.4,"d":"5,702"},20,20,20,20,20,20,20,20,20,20,20,20]
["Naam PA via sociaal secretariaat",null,"uur",12,17.4,null,240,{"v":4176,"d":"4,176"}]
["Naam PA via DPA",null,"uur",{"$nulls":3},0,0]
["ondersteuning bijstandsorganisatie",{"$nulls":5},0,0]
["Jobstudent X via interimkantoor",null,"uur",9,null,null,0,0]
["Jobstudent X rechtstreeks",null,null,9,null,null,0,0]
["mindermobielencentrale ",null,"kilometer",0.3,null,null,300,90]
[{"$nulls":4},"Uitgaven op budget",null,null,{"v":16568.4,"d":"16,568"}]
[{"$nulls":4},"uitgaven naast budget",null,null,{"v":1440,"d":"1,440"}]
["bijkomend budget"]
["VIA4 (soc secr.)"]
["sociale Maribel (soc.secr.)"]
[]
[]
[]
["jaarkosten "]
["jaarlijkse vergoeding ingeschakelde organisaties"]
["arbeidsongevallenverzekering"]

{"sheet":"jaartabel","index":29,"n_rows":13,"n_cols":17,"rows_kept":13,"hidden":true}
[]
["Totaal budget",{"$nulls":14},"Jaarroverzicht (samenvatting)"]
[null,"Uren","wie","Kost"," ",{"$nulls":5},"Nog te bsteden"]
["Jan",{"$nulls":14},"a","€"]
[{"$nulls":10},"Bedrag",{"$nulls":4},"b","€"]
[{"$nulls":10},"Uren:",{"$nulls":4},"c","€"]
["Feb",{"$nulls":14},"d","€"]
[]
[{"$nulls":16},{"$f":"SUM(Q4:Q8)","v":0}]
["Maart"]
[]
[]
["April"]

{"sheet":"alg","index":30,"n_rows":29,"n_cols":8,"rows_kept":29,"hidden":true}
[]
["Jaarbudget: ",null,"(exclusief lidgeld bijstandsorganisatie)"]
[]
["* tabellen voorbereiden met mogelijke cijfers, "]
["* parameters door gebruikers laten wijzigen"]
["* invullen in agenda / "]
["* later onderhoud,"]
[null,null,"Algem",{"$nulls":4},"Tabel activiteiten"]
[]
[]
[]
[]
["Andere kosten"]
["Lidgeld bijstandsorganisatie",{"v":50,"d":"50 €"},"absoluut","jaarbedrag"]
{"$rows_empty":8}
["ofwel evt een knop - terugbrengen oude cijfers, of nieuw maandcijfer ingeven?"]
[]
[]
["in bouwen:"]
["wijziging van keuze = uitblanken van ingevulde tabel "]
[]
["mindermobielencentrale : niet van budget??"]

{"sheet":"alg2","index":31,"n_rows":38,"n_cols":9,"rows_kept":38,"hidden":true}
[]
[null,null,"(exclusief lidgeld bijstandsorganisatie)"]
["* tabellen voorbereiden met mogelijke cijfers, "]
["* parameters door gebruikers laten wijzigen"]
["* invullen in agenda / "]
["* later onderhoud,"]
[]
["Aantal uren op jaarbasis / op maandbasis?",null,"Algem",{"$nulls":4},"Tabel activiteiten"]
[null,"Aantal uren",null,null,"Te doen door",null,null,"Wie mag wat doen"]
["Activiteit 1",{"$nulls":3},"Soort 1","Soort 2"]
["Activiteit 2"]
["Activiteit 3"]
["Activiteit 4"]
[]
[]
["Soorten"]
["Vrijwilligerswerk","Bedrag","min","max","Eenheid","Vaste kost","periodiciteit vaste kost","categorie vaph"," Opmerkingen:"]
[]
["Thuisverpleging","Gemiddeld bedrag voorstel, evt min en max meegeven, wijzigbaar binnen de grenzen"]
["Interimarbeid"]
["Via Soc secretariaat"]
["Maaltijdcheques"]
["Dienstencheques (huishoudhulp)"]
["Kortverblijf"]
["Vergunde zorgaanbieder"]
["Buddy"]
["Studentenjob"]
[]
[]
[]
[]
[null,null,"57791233@videocomf.kuleuven.be"]
[]
[]
[]
[]
[]
["Familiehulp)"]

{"sheet":"opmerkingen","index":32,"n_rows":25,"n_cols":3,"rows_kept":25,"hidden":true}
["Geen exacte raming maar “ongeveer”, tot 2000 euro marge"]
["Enkel planning, geen opvolging"]
["Proberen met gemiddelde te werken (en aangeven min of max waar mogelijk)"]
[]
[]
[]
["In formules inbouwen: van bruto uurloon naar kost/ afrekening op budget"]
["Jaar kosten voorzien bvb opstartkosten verzekeringen, "]
["Nog checken bij Marianne voucherkost moet eraf getrokken worden"]
["Maaltijdcheques over 6 dagen ipv 5 (lastenvrije uitbetaling)"]
["Structurele vermindering als KMO => teruggave van RSZ"]
["Ook administratie, dingen uitzoeken  als taak van PA inschrijven; evt als vrijwilliger"]
["Hoe meer partners, hoe meer werk"]
["Opties om PA’s te houden: degelijk uurloon, maaltijdcheques en doorbetalen in de vakantie"]
["Tijd kopen met budget: wat is helpend in mijn situatie? Wat maakt dat de situatie verlicht wordt?"]
["Tool Securex bruto-netto"]
["Contracten moeten op naam kind staan"]
["Kortverblijf 153 euro per keer"]
["Gezinszorg kan al op naam Sander maar heel duur (40 euro per uur) nog te checken"]
["Via 4 middelen, surplus van 11% (bvb om kosten sociaal secretariaat te gaan"]
["over budget gaan is een dure grap??? Iets met de Via 4 middelen"]
[]
[]
[]
[null,null,"website::www.datisdevraag.be"]

{"sheet":"overzichten","index":33,"n_rows":29,"n_cols":2,"rows_kept":29,"hidden":true}
["interimkantoren"]
[" https://agilitas.be/nl/care."]
{"$rows_empty":9}
["ssistentie via diensten persoonlijke assistenten","Deze vorm van assistentie kan je zowel bij vergunde als bij niet-vergunde zorgaanbieders"]
[]
[]
[]
["Alle diensten voor gezinszorg kan je terugvinden via de website van het Agentschap Zorg en Gezondheid: https://www.zorg-en-gezondheid.be/thuiszorg."]
[]
["Werkgever zijn"]
["Als je ervoor kiest om te werken als werkgever, neem je de belangrijkste verantwoordelijkheden in verband met personeelsbeheer op jou: vacatures opstellen, kandidaten uitnodigen, contracten opstellen, vakantieregeling uitwerken, de administratie in orde houden, ..."]
["Je kan je hiervoor laten bijstaan door een sociaal secretariaat. Dit is een externe dienst, gespecialiseerd in personeelsadministratie. Ze overlopen samen met jou alle wettelijke verplichtingen en houden je op de hoogte wanneer je iets in orde moet brengen."]
["Een sociaal secretariaat:"]
["ondersteunt bij het opstellen van de contracten;"]
["berekent de lonen, sociale bijdragen, vakantiegeld;"]
["sluit een ongevallenverzekering af (sommige);"]
["zorgt voor de Dimona-aangifte;"]
[" …"]
["Deze dienst betaal je via een maandelijkse factuur. Deze factuur kan je betalen met je PAB."]
["Je krijgt hulp, maar je blijft voor het geheel verantwoordelijk. Werkgever worden vraagt veel administratie en opvolging. "]
["Lees meer bij 'Werken met een PAB' en vraag onze brochure aan."]

{"sheet":"jaarkalender eenheden","index":34,"n_rows":15,"n_cols":18,"rows_kept":15,"hidden":true}
["jaarkalender eenheden",{"$nulls":12},"totaal","eenheid","budget/eenheid","nog te besteden","nog te besteden euro's"]
[" ","januari","februari","maart","april","mei","juni","juli","augustus","september","oktober","november","december"]
["Gezinszorg",16,16,16,16,16,16,16,8,16,16,16,8,{"$f":"SUM(B3:M3)","v":176},{"$f":"#REF!","v":{"$error":"#REF!"}},{"$f":"#REF!","v":{"$error":"#REF!"}},{"$f":"P3-N3","v":{"$error":"#REF!"}}]
["buddy -vrijwilliger",15,4,4,4,4,4,0,0,4,4,4,4,{"$f":"SUM(B4:M4)","v":51},{"$f":"#REF!","v":{"$error":"#REF!"}},{"$f":"#REF!","v":{"$error":"#REF!"}},{"$f":"P4-N4","v":{"$error":"#REF!"}}]
{"$rows_empty":10}
[null,"evt 12 tabbladen, 1 per maand, waar hierbij naar verwezen wordt"]

{"sheet":"Blad3","index":35,"n_rows":10,"n_cols":1,"rows_kept":10,"hidden":true}
["vervoerskosten"]
[]
["apart tabblad voor berekening gemiddelde prijs 1 rit"]
["ingave kilometers…."]
[]
["dan bij keuze als naam de verplaatsing ingeven (dokter, …) en het bedrag ingeven, bij de parameters het aantal ritten"]
[]
[]
[]
["tabblad algemene gegevens - opmerking invoegen, kijken hoe het werkt bij"]

{"sheet":"Budgetplan OL","index":36,"n_rows":39,"n_cols":6,"rows_kept":39,"hidden":true,"merged":[[0,0,1,1],[0,2,1,5],[2,0,2,1],[2,2,2,5],[3,0,3,1],[3,2,3,5],[4,0,4,1],[4,2,4,5],[5,0,5,1],[5,2,5,5],[7,0,8,1],[7,2,8,5],[9,2,9,3],[9,4,9,5],[10,2,10,3],[10,4,10,5],[11,2,12,3],[11,4,12,5],[13,0,13,1],[13,2,13,3],[13,4,13,5],[14,0,15,1],[14,2,15,5],[16,0,17,3],[16,4,16,5],[22,0,23,1],[22,2,23,5],[25,0,26,1],[25,2,25,5],[27,0,32,0],[33,0,34,0],[35,0,36,0],[37,0,37,1],[38,0,39,1],[38,2,39,5]]}
["Budgetplan PVB",null,"Graag enkel de cellen met lichtgroene achtergrond wijzigen!"]
[]
["Voornaam"]
["Naam"]
["VF-nummer"]
["Rijksregisternummer"]
[]
["Zorggebonden budget"]
[]
[null,null,"Ik ben van plan",null,"Ik kan dus nog"]
[{"$nulls":4},{"$f":"C8-C11","v":0}]
[null,null,"te besteden bij een\nvergunde zorgaanbieder",null,"besteden bij een niet-vergunde zorgaanbieder"]
[]
["Beheerskosten",null,{"$f":"E11","v":{"v":0,"d":"€ 0.00 x 11,94%"}},null,{"$f":"E11*0.1194","v":0}]
[{"$f":"\"Jaarbudget \"&F2","v":"Jaarbudget "},null,{"$f":"SUM(C8,E14)","v":0}]
[]
["Vink hieronder alles aan wat van toepassing is",{"$nulls":3},"Kostprijs"]
[{"$nulls":4},"Geschat","Werkelijk"]
[{"$nulls":5},{"$f":"IF(C8=0,\"\",50)","v":""}]
[{"$nulls":4},{"$f":"IF(C8=0,\"\",IF(C8>=35000,3600,1800))","v":""}]
[{"$nulls":3},{"v":4,"d":"4 x per jaar"},{"$f":"IF(C8=0,\"\",300*D21+45)","v":""}]
[{"$nulls":4},{"$f":"IF(C8=0,\"\",500)","v":""}]
["Beschikbaar voor ondersteuning",null,0]
[]
[null,null,0]
["Bestedingsmogelijkheden\nDe voorgestelde bedragen zijn richtprijzen;\nje dient ze te wijzigen naar de werkelijke prijzen.",null,"OPGELET: regels met een sterretje gelden voor een volle dag"]
[null,null,"€ / uur","uren / dag","dagen / week","€ / jaar"]
["Een\npersoonlijk assistent","met vrijwilligersvergoeding *",{"v":33.36,"d":"€ 33.36"},null,null,{"$f":"C28*E28*365.25/7","v":0}]
[null,"met dienstencheques",{"v":9,"d":"€ 9.00"},null,null,{"$f":"C29*D29*E29*365.25/7","v":0}]
[null,"via sociaal secretariaat",{"v":22,"d":"€ 22.00"},null,null,{"$f":"C30*D30*E30*365.25/7","v":0}]
[null,"via interim",{"v":21,"d":"€ 21.00"},null,null,{"$f":"C31*D31*E31*365.25/7","v":0}]
[null,"door een dienst PA",{"v":30,"d":"€ 30.00"},null,null,{"$f":"C32*D32*E32*365.25/7","v":0}]
[null,"als zelfstandige",{"v":30,"d":"€ 30.00"},null,null,0]
["Oproepbare permanentie","vergunde zorgaanbieder",{"v":8,"d":"€ 8.00"},null,null,{"$f":"C34*D34*E34*365.25/7","v":0}]
[null,"niet-vergunde zorgaanbieder",{"v":11,"d":"€ 11.00"},null,null,{"$f":"C35*D35*E35*365.25/7","v":0}]
["Dagbesteding","vergunde zorgaanbieder",{"v":12,"d":"€ 12.00"},null,null,0]
[null,"niet-vergunde zorgaanbieder",{"v":16,"d":"€ 16.00"},null,null,0]
["Collectieve woon- en dagondersteuning \nbij een vergunde zorgaanbieder *",null,{"v":160,"d":"€ 160.00"},null,null,{"$f":"C38*E38*365.25/7","v":0}]
["Resterend bedrag",null,{"$f":"IF(C8=0,\"\",C23-SUM(F28:F38))","v":""}]

{"sheet":"absoluut","index":37,"n_rows":22,"n_cols":5,"rows_kept":22,"hidden":true}
["info absoluut"]
[]
["Andere partners:"]
["Agilitas care:",{"$nulls":3},"https://agilitas.be/nl"]
[null,"persoonlijke assistent"]
[null,"huishoudhulp via dienstencheques"]
[null,"voordelige tarieven als lid van absoluut"]
[]
["Randstat assistentie en zorg",{"$nulls":3},"https://www.randstad.be/nl/werkgevers/specialisaties/medisch-verzorgend"]
[]
["Stegmann Medica solutions",{"$nulls":3},"https://www.stegmann.be/"]
[]
["Groep S",{"$nulls":3},"https://www.groups.be/"]
[]
["Securex",{"$nulls":3},"https://www.securex.be/nl"]
[]
["Helpper",{"$nulls":3},"https://www.helpper.be/nl/"]
[]
[]
[]
["ntensieve bijstand betaal je aan 78,5 euro per uur met je budget. Wij factureren enkel de huis- of kantoorbezoeken, inclusief de afgesproken voorbereiding en nazorg. De verplaatsingstijd en kilometers betaal je ook. Dit alles aan hetzelfde tarief nl. 78,5 euro per uur. Verplaatsingen worden gerekend vanuit het dichtstbijzijnde regionale kantoor. Op deze manier kan je geen andere verplaatsingstijd krijgen als er eens een andere coach moet komen. Als je op kantoor komt, vallen deze kosten dus weg. Wij streven ernaar om in elke provincie meerdere locaties te hebben waar we zitdagen kunnen organiseren."]
["Naast het huisbezoek of kantoorbezoek volgen we je dossier ook verder op. Vaak moet er tussendoor nog eens gebeld worden of iets nagekeken worden. Hier rekenen wij geen extra kost voor aan. Wij proberen echt de prijs zo laag mogelijk te houden en verwittigen altijd indien de prijs hoger zou zijn dan gewoonlijk. Het VAPH geeft ook 11,94 % beheerskosten bovenop je budget om onze kosten te kunnen betalen (enkel voor Persoonsvolgend Budget)."]

{"sheet":"pab","index":38,"n_rows":19,"n_cols":1,"rows_kept":19,"hidden":true}
["WAT KAN IK DOEN MET EEN PAB?"]
["Wat je met een PAB kunt doen is vastgelegd door het VAPH. Het geld is bedoeld om de hulp van één of meerdere persoonlijke assistenten te betalen. De persoonlijke assistent is feitelijk in dienst van de persoon met een handicap. Je kunt zelf werkgever zijn of de assistent is bij jou tewerkgesteld via een dienst. De assistent voert allerlei taken uit voor jou en helpt je bij de organisatie van je dagelijks leven."]
[]
["De assistenten kunnen hulp bieden in de volgende domeinen:"]
["huishoudelijke taken (koken, opruimen, poetsen, enz.)"]
["lichamelijke taken (wassen en aankleden, enz.)"]
["verplaatsingen"]
["dagactiviteiten (deelname aan dagcentrumactiviteiten, uitstappen, zorgboerderij,enz.)"]
["administratie"]
["tuinonderhoud"]
["agogische, pedagogische of orthopedagogische begeleiding van de persoon met een handicap of zijn of haar ouders"]
["PAB mag niet gebruikt worden voor:"]
["medische of para-medische hulp(kinesitherapie, logopedist, ergotherapeut)"]
["psychologische begeleiding"]
["hulpmiddelen"]
["klusjes in huis"]
["budgetbegeleiding"]
["onderwijs"]
["internaat"]